Workbook

Sheet Cover
A2: RIIO Financial Model
B3: Electricity Distribution
C4: =MID(CELL("filename"),SEARCH("[",CELL("filename"))+1,SEARCH("]",CELL("filename"))-SEARCH("[",CELL("filename"))-1) -> ED1 PCFM November 2020.xlsm
C5: =IF(m_PCFM_year_t=1,"RIIO ED1 Price Control Financial Model for the Annual Iteration Process that will take place by 30 November 2015-16","RIIO ED1 Price Control Financial Model for the Annual Iteration Process that will take place by 30 November "&YEAR(UserInterface!$G$10)-2) -> RIIO ED1 Price Control Financial Model for the Annual Iteration Process that will take place by 30 November 2020
C7: DISCLAIMER: The purpose of this model is used to calculate Base Revenue (PU) and MOD terms in subsequent years for Licensees on the basis of Financial Handbook and Licence conditions of the relevant Network Operator
B9: Model key
E11: Sample | G11: Information and interface
E12: Sample | G12: Fixed input value
E13: Sample | G13: Annual update input
E14: Sample | G14: Input linked from annual update
E15: Sample | G15: Notes and instructions
B17: Contents
E19: INTERFACE >
E20: Cover | G20: Model key and content directory
E21: UserInterface | G21: Model operation
E22: TaxTrigger | G22: Tax trigger calculations
E23: MOD | G23: MOD Summary
E24: INPUT SELECTION >
E25: Input | G25: Inputs for selected licensee
E26: CALCULATION >
E27: Totex | G27: Totex allowance and actuals
E28: TIM | G28: Totex Incentive Mechanism and capitalisation
E29: DARTs | G29: Direct Allowance Revenue Terms
E30: Depn | G30: Regulatory depreciation
E31: Return&RAV | G31: RAV and return calculations
E32: TaxPools | G32: Tax pools and capital allowances
E33: Finance&Tax | G33: Net debt, equity issuance, financing costs and tax
E34: Revenue | G34: Revenue and MOD
E36: OUTPUT >
E37: LiveResults | G37: Results for selected company
E38: SavedResults | G38: Saved results for all companies
E40: COMPANY SPECIFIC INPUT SHEETS >
E41: ENWL
E42: NPgN
E43: NPgY
E44: WMID
E45: EMID
E46: SWALES
E47: SWEST
E48: LPN
E49: SPN
E50: EPN
E51: SPD
E52: SPMW
E53: SSEH
E54: SSES
B56: End of sheet

Sheet UserInterface
A1: User Interface
B3: Model operation
C5: PCFM year t
C6: Instruction: Use the following drop-down list to identify year t in the model. Year t is identified here by its end date.
E8: Year t selection:
E10: Year t selected: | G10: =EOMONTH(42094,E69*12) -> 2022-03-31
C12: Active company
C13: Instruction: Use the following drop-down list to select the active company in the model.
E15: Company selection:
E17: Selected company: | G17: =INDEX(E43:E56, E57) -> ENWL
E18: Company status: | G18: =IF(AND(m_identity>=4,m_identity<=7),"Fast-Tracked","Slow-Tracked") -> Slow-Tracked
C20: Model state
C21: Below shows the state of the model selected in the Tax Trigger sheet
E23: Selected model status: | G23: =INDEX(TaxTrigger!E30:E31,m_tax_trigger_state,1) -> Licence Model
C25: Run model for all licensees
C26: Instruction: Click on the left button to save results for the selected company only. Click the right button to save results for all.
C27: Note: Annual iterations must have been completed for all prior years before running the model to generate MOD.
C28: The macros save results and values required for future years which cannot be recreated once inputs are revised.
C29: Running the macro saves the output from year t's iteration for use in future iterations.
C30: Results for the selected company can be found on the "LiveResults" sheet and also on the "SavedResults" sheet once saved by a macro.
B36: User selection lists
B37: Note: The lists below drive the drop-down lists above.
B38: Using the drop-down lists above returns an integer in the "cell link" positioned below their "source list."
B39: The number returned in the cell link corresponds to the position of the selected item in the source list.
B40: The company selection output is set as a "named range." This gives a stable anchor point for the "RunForAll" macro to change the company.
E42: ="Source for ''"&C12&"'' drop-down list" -> Source for ''Active company'' drop-down list | G42: Company Status List
E43: ENWL | G43: Fast-Tracked
E44: NPgN | G44: Slow-Tracked
E45: NPgY | G45: =MATCH($G$18,$G$43:$G$44)-1 -> 1
E46: WMID | G46: Adjacent named range: m_tracked
E47: EMID
E48: SWALES
E49: SWEST
E50: LPN
E51: SPN
E52: EPN
E53: SPD
E54: SPMW
E55: SSEH
E56: SSES
E57: 1
E58: Adjacent named range: m_identity
E60: ="Source for ''"&C5&"'' drop-down list" -> Source for ''PCFM year t'' drop-down list
E61: 2016-03-31
E62: 2017-03-31
E63: 2018-03-31
E64: 2019-03-31
E65: 2020-03-31
E66: 2021-03-31
E67: 2022-03-31
E68: 2023-03-31
E69: 7
E70: Adjacent named range: m_PCFM_year_t
B72: End of sheet

Sheet TaxTrigger
A1: Tax Trigger
B2: =UserInterface!G17 -> ENWL
E7: Parameter | G7: Units | I7: Constant | AJ7: Annual values
E8: PCFM year ending | I8: =UserInterface!$G$10 -> 2022-03-31 | K8: 1991-03-31 | L8: 1992-03-31 | M8: 1993-03-31 | N8: 1994-03-31 | O8: 1995-03-31 | P8: 1996-03-31 | Q8: 1997-03-31 | R8: 1998-03-31 | S8: 1999-03-31 | T8: 2000-03-31 | U8: 2001-03-31 | V8: 2002-03-31 | W8: 2003-03-31 | X8: 2004-03-31 | Y8: 2005-03-31 | Z8: 2006-03-31 | AA8: 2007-03-31 | AB8: 2008-03-31 | AC8: 2009-03-31 | AD8: 2010-03-31 | AE8: 2011-03-31 | AF8: 2012-03-31 | AG8: 2013-03-31 | AH8: 2014-03-31 | AI8: 2015-03-31 | AJ8: 2016-03-31 | AK8: 2017-03-31 | AL8: 2018-03-31 | AM8: 2019-03-31 | AN8: 2020-03-31 | AO8: 2021-03-31 | AP8: 2022-03-31 | AQ8: 2023-03-31
B10: Tax trigger calculation
C12: Test operation
C13: Instruction: To run the model as the Tax Trigger Tool, The model state selected below should be Tax Trigger Calculation
C14: Clicking the macro button below runs the "TaxTrigger" macro, performing the Tax Trigger adjustment calculation for the selected licensee for year t.
C15: The output generated by the macro can be replicated manually using the following steps:
C16: 1. Clear any values from previous tests in the "Test state output" section below (named range "m_saved_original_results")
C17: 2. Set testing state to "Licence Model"
C18: 3. Copy the cells marked as the "m_calculated_tax" named range and paste them at the named range "m_saved_original_test."
C19: 4. Set testing state to "Tax Trigger Calculation"
C20: Note: The Tax Trigger Tool is disabled if the "Model state" below reads "Licence Model."
E26: State selection
E29: State options
E30: Licence Model
E31: Tax Trigger Calculation
E32: 1
E33: Adjacent named range: m_tax_trigger_state
E38: Run macro
C44: Tax calculation
E46: Tax Allowance when tax losses are not taken into account
E48: Profits attributable to corporation tax | G48: £m 12/13 prices | AJ48: ='Finance&Tax'!AJ169 * Input!$AG$62 / Input!AJ$62 -> 84.80722141 | AK48: ='Finance&Tax'!AK169 * Input!$AG$62 / Input!AK$62 -> 105.1448834 | AL48: ='Finance&Tax'!AL169 * Input!$AG$62 / Input!AL$62 -> 83.18501437 | AM48: ='Finance&Tax'!AM169 * Input!$AG$62 / Input!AM$62 -> 78.74811543 | AN48: ='Finance&Tax'!AN169 * Input!$AG$62 / Input!AN$62 -> 73.095763 | AO48: ='Finance&Tax'!AO169 * Input!$AG$62 / Input!AO$62 -> 76.76046331 | AP48: ='Finance&Tax'!AP169 * Input!$AG$62 / Input!AP$62 -> 73.96814205 | AQ48: ='Finance&Tax'!AQ169 * Input!$AG$62 / Input!AQ$62 -> 68.50260782
E49: Corporation tax rate | AJ49: ='Finance&Tax'!AJ186 -> 0.2 | AK49: ='Finance&Tax'!AK186 -> 0.2 | AL49: ='Finance&Tax'!AL186 -> 0.2 | AM49: ='Finance&Tax'!AM186 -> 0.2 | AN49: ='Finance&Tax'!AN186 -> 0.2 | AO49: ='Finance&Tax'!AO186 -> 0.2 | AP49: ='Finance&Tax'!AP186 -> 0.2 | AQ49: ='Finance&Tax'!AQ186 -> 0.2
E50: Grossing-up factor for tax on tax charge | AJ50: ='Finance&Tax'!AJ189 -> 1.25 | AK50: ='Finance&Tax'!AK189 -> 1.25 | AL50: ='Finance&Tax'!AL189 -> 1.25 | AM50: ='Finance&Tax'!AM189 -> 1.25 | AN50: ='Finance&Tax'!AN189 -> 1.25 | AO50: ='Finance&Tax'!AO189 -> 1.25 | AP50: ='Finance&Tax'!AP189 -> 1.25 | AQ50: ='Finance&Tax'!AQ189 -> 1.25
E51: Corporation tax charge beforre losses | AJ51: =AJ49*AJ48*AJ50 -> 21.20180535 | AK51: =AK49*AK48*AK50 -> 26.28622084 | AL51: 20.79625359 | AM51: 19.68702886 | AN51: 18.27394075 | AO51: 19.19011583 | AP51: 18.49203551 | AQ51: 17.12565196
E53: Tax allowance without taking into account losses | AJ53: =AJ51 -> 21.20180535 | AK53: =AK51 -> 26.28622084 | AL53: 20.79625359 | AM53: 19.68702886 | AN53: 18.27394075 | AO53: 19.19011583 | AP53: 18.49203551 | AQ53: 17.12565196
I55: Instruction
E56: Tax allowance before tax trigger | G56: £m 12/13 prices | AJ56: =AJ53 -> 21.20180535 | AK56: =AK53 -> 26.28622084 | AL56: 20.79625359 | AM56: 19.68702886 | AN56: 18.27394075 | AO56: 19.19011583 | AP56: 18.49203551 | AQ56: 17.12565196
E57: B event value | G57: £m 12/13 prices | AJ57: =AJ135 -> 0 | AK57: =AK135 -> 0 | AL57: 0 | AM57: 0 | AN57: 0 | AO57: 0 | AP57: 0 | AQ57: 0
E58: Threshold value adjustment | G58: £m 12/13 prices | AJ58: =AJ86 -> 0 | AK58: =AK86 -> 0 | AL58: 0 | AM58: 0 | AN58: 0 | AO58: 0 | AP58: 0 | AQ58: 0
E59: Tax allowance | G59: £m 12/13 prices | I59: =IF(m_tax_trigger_state = 1, "Copy cells -->", "-") -> Copy cells --> | AJ59: =SUM(AJ56:AJ58) -> 21.20180535 | AK59: 26.28622084 | AL59: 20.79625359 | AM59: 19.68702886 | AN59: 18.27394075 | AO59: 19.19011583 | AP59: 18.49203551 | AQ59: 17.12565196
AJ60: Adjacent named range: m_calculated_tax
C61: Test state output
C62: Note: The formula determines whether the recalculated tax is above or below the threshold and sets the adjustment accordingly
I64: Instruction
E65: Value with original settings | G65: £m 12/13 prices | I65: =IF( m_tax_trigger_state = 1, "Paste cells -->","-") -> Paste cells -->
AJ66: Named ranges above: m_saved_original_test
E67: Value with new settings and threshold adjustment | G67: £m 12/13 prices | AJ67: =AJ59 -> 21.20180535 | AK67: =AK59 -> 26.28622084 | AL67: 20.79625359 | AM67: 19.68702886 | AN67: 18.27394075 | AO67: 19.19011583 | AP67: 18.49203551 | AQ67: 17.12565196
C69: Result and output
C70: Note: Once the test is complete, the "Tax Trigger adjustment" below can be taken from below and inputted to the PCFM set to run as the Licence Model, rather than the Tax Trigger Tool.
E72: Tax trigger adjustment | G72: £m 12/13 prices | AJ72: =IF(m_tax_trigger_state=2,IF(ABS((AJ56+AJ57)-AJ65)> ABS(AJ86), AJ67 - AJ65, 0),0) -> 0 | AK72: 0 | AL72: 0 | AM72: 0 | AN72: 0 | AO72: 0 | AP72: 0 | AQ72: 0
B74: Tax trigger parameters
B75: Instruction: Enter values in the yellow cells below for use in the Tax Trigger test.
B76: Note: Flags are used throughout to indicate whether the original or Tax Trigger value is being used. The live values below are exported for use throughout the model.
C78: Active policy
E80: Tax trigger tax settings are used | G80: flag | AJ80: =IF(AND(AJ$8 <= $I8, m_tax_trigger_state = 2), TRUE, FALSE) -> FALSE | AK80: FALSE | AL80: FALSE | AM80: FALSE | AN80: FALSE | AO80: FALSE | AP80: FALSE | AQ80: FALSE
C82: Threshold
E84: Threshold value | G84: £m 12/13 prices | AJ84: =CHOOSE(m_identity,AJ139,AJ140,AJ141,AJ142,AJ143,AJ144,AJ145,AJ146,AJ147,AJ148,AJ149,AJ150,AJ151,AJ152) -> 1.2309 | AK84: 1.258847884 | AL84: 1.195891962 | AM84: 1.183930097 | AN84: 1.172093678 | AO84: 1.160379435 | AP84: 1.16037376 | AQ84: 1.160383768
E86: Threshold value applied | G86: £m 12/13 prices | AJ86: =IF(OR((AJ56+AJ57) = AJ65, AJ65 = ""), 0, IF(AJ65 < (AJ56+AJ57), -AJ84, +AJ84)) -> 0 | AK86: =IF(OR((AK56+AK57) = AK65, AK65 = ""), 0, IF(AK65 < (AK56+AK57), -AK84, +AK84)) -> 0 | AL86: 0 | AM86: 0 | AN86: 0 | AO86: 0 | AP86: 0 | AQ86: 0
C88: Corporation tax rate
E90: Active | G90: text | AJ90: =AJ$80 = FALSE() -> TRUE | AK90: TRUE | AL90: TRUE | AM90: TRUE | AN90: TRUE | AO90: TRUE | AP90: TRUE | AQ90: TRUE
E91: RIIO | G91: % | AJ91: =Input!AJ407 -> 0.2 | AK91: =Input!AK407 -> 0.2 | AL91: =Input!AL407 -> 0.2 | AM91: =Input!AM407 -> 0.2 | AN91: =Input!AN407 -> 0.2 | AO91: =Input!AO407 -> 0.2 | AP91: =Input!AP407 -> 0.2 | AQ91: =Input!AQ407 -> 0.2
E93: Active | G93: text | AJ93: =AJ$80 -> FALSE | AK93: FALSE | AL93: FALSE | AM93: FALSE | AN93: FALSE | AO93: FALSE | AP93: FALSE | AQ93: FALSE
E94: Tax trigger | G94: % | AJ94: 0.2 | AK94: 0.2 | AL94: 0.19 | AM94: 0.19 | AN94: 0.19 | AO94: 0.19 | AP94: 0.19 | AQ94: 0.19
E96: Applied | G96: % | AJ96: =(AJ90 * AJ91) + (AJ93 * AJ94) -> 0.2 | AK96: =(AK90 * AK91) + (AK93 * AK94) -> 0.2 | AL96: 0.2 | AM96: 0.2 | AN96: 0.2 | AO96: 0.2 | AP96: 0.2 | AQ96: 0.2
C98: Capital allowance rate
D100: General pool
E102: Active | G102: text | AJ102: =AJ$80 = FALSE() -> TRUE | AK102: TRUE | AL102: TRUE | AM102: TRUE | AN102: TRUE | AO102: TRUE | AP102: TRUE | AQ102: TRUE
E103: RIIO | G103: % | AJ103: =Input!AJ409 -> 0.18 | AK103: =Input!AK409 -> 0.18 | AL103: =Input!AL409 -> 0.18 | AM103: =Input!AM409 -> 0.18 | AN103: =Input!AN409 -> 0.18 | AO103: =Input!AO409 -> 0.18 | AP103: =Input!AP409 -> 0.18 | AQ103: =Input!AQ409 -> 0.18
E105: Active | G105: text | AJ105: =AJ$80 -> FALSE | AK105: FALSE | AL105: FALSE | AM105: FALSE | AN105: FALSE | AO105: FALSE | AP105: FALSE | AQ105: FALSE
E106: Tax trigger | G106: % | AJ106: =AJ103 -> 0.18 | AK106: =AK103 -> 0.18 | AL106: 0.18 | AM106: 0.18 | AN106: 0.18 | AO106: 0.18 | AP106: 0.18 | AQ106: 0.18
E108: Applied | G108: % | AJ108: =(AJ102 * AJ103) + (AJ105 * AJ106) -> 0.18 | AK108: 0.18 | AL108: 0.18 | AM108: 0.18 | AN108: 0.18 | AO108: 0.18 | AP108: 0.18 | AQ108: 0.18
D110: Special Rate pool
E112: Active | G112: text | AJ112: =AJ$80 = FALSE() -> TRUE | AK112: TRUE | AL112: TRUE | AM112: TRUE | AN112: TRUE | AO112: TRUE | AP112: TRUE | AQ112: TRUE
E113: RIIO | G113: % | AJ113: =Input!AJ410 -> 0.08 | AK113: =Input!AK410 -> 0.08 | AL113: =Input!AL410 -> 0.08 | AM113: =Input!AM410 -> 0.08 | AN113: =Input!AN410 -> 0.08 | AO113: =Input!AO410 -> 0.08 | AP113: =Input!AP410 -> 0.08 | AQ113: =Input!AQ410 -> 0.08
E115: Active | G115: text | AJ115: =AJ$80 -> FALSE | AK115: FALSE | AL115: FALSE | AM115: FALSE | AN115: FALSE | AO115: FALSE | AP115: FALSE | AQ115: FALSE
E116: Tax trigger | G116: % | AJ116: =AJ113 -> 0.08 | AK116: =AK113 -> 0.08 | AL116: 0.08 | AM116: 0.08 | AN116: 0.06 | AO116: 0.06 | AP116: 0.06 | AQ116: 0.06
E118: Applied | G118: % | AJ118: =(AJ112 * AJ113) + (AJ115 * AJ116) -> 0.08 | AK118: 0.08 | AL118: 0.08 | AM118: 0.08 | AN118: 0.08 | AO118: 0.08 | AP118: 0.08 | AQ118: 0.08
D120: Deferred revenue writing down allowance rate
E122: Active | G122: text | AJ122: =AJ$80 = FALSE() -> TRUE | AK122: TRUE | AL122: TRUE | AM122: TRUE | AN122: TRUE | AO122: TRUE | AP122: TRUE | AQ122: TRUE
E123: RIIO | G123: % | AJ123: =Input!AJ411 -> 0.0222 | AK123: =Input!AK411 -> 0.0222 | AL123: =Input!AL411 -> 0.0222 | AM123: =Input!AM411 -> 0.0222 | AN123: =Input!AN411 -> 0.0222 | AO123: =Input!AO411 -> 0.0222 | AP123: =Input!AP411 -> 0.0222 | AQ123: =Input!AQ411 -> 0.0222
E125: Active | G125: text | AJ125: =AJ$80 -> FALSE | AK125: FALSE | AL125: FALSE | AM125: FALSE | AN125: FALSE | AO125: FALSE | AP125: FALSE | AQ125: FALSE
E126: Tax trigger | G126: % | AJ126: =AJ123 -> 0.0222 | AK126: =AK123 -> 0.0222 | AL126: 0.0222 | AM126: 0.0222 | AN126: 0.0222 | AO126: 0.0222 | AP126: 0.0222 | AQ126: 0.0222
E128: Applied | G128: % | AJ128: =(AJ122 * AJ123) + (AJ125 * AJ126) -> 0.0222 | AK128: 0.0222 | AL128: 0.0222 | AM128: 0.0222 | AN128: 0.0222 | AO128: 0.0222 | AP128: 0.0222 | AQ128: 0.0222
C130: B event value
E132: Active | G132: text | AJ132: =AJ$80 -> FALSE | AK132: FALSE | AL132: FALSE | AM132: FALSE | AN132: FALSE | AO132: FALSE | AP132: FALSE | AQ132: FALSE
E133: Tax trigger | G133: £m 12/13 prices | AJ133: =INDEX(AJ$156:AJ$169,MATCH($B$2,TaxTrigger!$E$156:$E$169,0)) -> 0 | AK133: =INDEX(AK$156:AK$169,MATCH($B$2,TaxTrigger!$E$156:$E$169,0)) -> 0 | AL133: =INDEX(AL$156:AL$169,MATCH($B$2,TaxTrigger!$E$156:$E$169,0)) -> 0 | AM133: =INDEX(AM$156:AM$169,MATCH($B$2,TaxTrigger!$E$156:$E$169,0)) -> 0 | AN133: =INDEX(AN$156:AN$169,MATCH($B$2,TaxTrigger!$E$156:$E$169,0)) -> 0 | AO133: =INDEX(AO$156:AO$169,MATCH($B$2,TaxTrigger!$E$156:$E$169,0)) -> 0 | AP133: =INDEX(AP$156:AP$169,MATCH($B$2,TaxTrigger!$E$156:$E$169,0)) -> 0 | AQ133: =INDEX(AQ$156:AQ$169,MATCH($B$2,TaxTrigger!$E$156:$E$169,0)) -> 0
E135: Applied | G135: £m 12/13 prices | AJ135: =AJ132 * AJ133 -> 0 | AK135: =AK132 * AK133 -> 0 | AL135: 0 | AM135: 0 | AN135: 0 | AO135: 0 | AP135: 0 | AQ135: 0
C137: Tax Trigger Deadbands
E139: ENWL | G139: £m 12/13 prices | AJ139: =ENWL!AJ$498 -> 1.2309 | AK139: =ENWL!AK$498 -> 1.258847884 | AL139: =ENWL!AL$498 -> 1.195891962 | AM139: =ENWL!AM$498 -> 1.183930097 | AN139: =ENWL!AN$498 -> 1.172093678 | AO139: =ENWL!AO$498 -> 1.160379435 | AP139: =ENWL!AP$498 -> 1.16037376 | AQ139: =ENWL!AQ$498 -> 1.160383768
E140: NPgN | G140: £m 12/13 prices | AJ140: =NPgN!AJ$498 -> 0.8220105433 | AK140: =NPgN!AK$498 -> 0.8142559998 | AL140: =NPgN!AL$498 -> 0.8142417164 | AM140: =NPgN!AM$498 -> 0.814230382 | AN140: =NPgN!AN$498 -> 0.8142221954 | AO140: =NPgN!AO$498 -> 0.8142091206 | AP140: =NPgN!AP$498 -> 0.8142200746 | AQ140: =NPgN!AQ$498 -> 0.8142298945
E141: NPgY | G141: £m 12/13 prices | AJ141: =NPgY!AJ$498 -> 1.068020567 | AK141: =NPgY!AK$498 -> 1.065140678 | AL141: =NPgY!AL$498 -> 1.065160538 | AM141: =NPgY!AM$498 -> 1.065205396 | AN141: =NPgY!AN$498 -> 1.065254023 | AO141: =NPgY!AO$498 -> 1.065264557 | AP141: =NPgY!AP$498 -> 1.065297158 | AQ141: =NPgY!AQ$498 -> 1.065244745
E142: WMID | G142: £m 12/13 prices | AJ142: =WMID!AJ$498 -> 1.273210224 | AK142: =WMID!AK$498 -> 1.28557271 | AL142: =WMID!AL$498 -> 1.298295279 | AM142: =WMID!AM$498 -> 1.311436608 | AN142: =WMID!AN$498 -> 1.324549011 | AO142: =WMID!AO$498 -> 1.337631129 | AP142: =WMID!AP$498 -> 1.350931815 | AQ142: =WMID!AQ$498 -> 1.364372724
E143: EMID | G143: £m 12/13 prices | AJ143: =EMID!AJ$498 -> 1.273706574 | AK143: =EMID!AK$498 -> 1.286257558 | AL143: =EMID!AL$498 -> 1.299036786 | AM143: =EMID!AM$498 -> 1.312023091 | AN143: =EMID!AN$498 -> 1.325077696 | AO143: =EMID!AO$498 -> 1.338266746 | AP143: =EMID!AP$498 -> 1.35167007 | AQ143: =EMID!AQ$498 -> 1.36512478
E144: SWALES | G144: £m 12/13 prices | AJ144: =SWALES!AJ$498 -> 0.6556845117 | AK144: =SWALES!AK$498 -> 0.6618390508 | AL144: =SWALES!AL$498 -> 0.6683452642 | AM144: =SWALES!AM$498 -> 0.6753307727 | AN144: =SWALES!AN$498 -> 0.6820163784 | AO144: =SWALES!AO$498 -> 0.6887795194 | AP144: =SWALES!AP$498 -> 0.6955375173 | AQ144: =SWALES!AQ$498 -> 0.7025354834
E145: SWEST | G145: £m 12/13 prices | AJ145: =SWEST!AJ$498 -> 0.9467242023 | AK145: =SWEST!AK$498 -> 0.955664652 | AL145: =SWEST!AL$498 -> 0.9650760778 | AM145: =SWEST!AM$498 -> 0.9749555756 | AN145: =SWEST!AN$498 -> 0.9846079364 | AO145: =SWEST!AO$498 -> 0.9943699231 | AP145: =SWEST!AP$498 -> 1.004239903 | AQ145: =SWEST!AQ$498 -> 1.014210831
E146: LPN | G146: £m 12/13 prices | AJ146: =LPN!AJ$498 -> 1.210633078 | AK146: =LPN!AK$498 -> 1.283113214 | AL146: =LPN!AL$498 -> 1.268942558 | AM146: =LPN!AM$498 -> 1.29182947 | AN146: =LPN!AN$498 -> 1.315547525 | AO146: =LPN!AO$498 -> 1.339685719 | AP146: =LPN!AP$498 -> 1.364177976 | AQ146: =LPN!AQ$498 -> 1.38937291
E147: SPN | G147: £m 12/13 prices | AJ147: =SPN!AJ$498 -> 1.062765121 | AK147: =SPN!AK$498 -> 1.078344162 | AL147: =SPN!AL$498 -> 1.100799043 | AM147: =SPN!AM$498 -> 1.127696882 | AN147: =SPN!AN$498 -> 1.15551715 | AO147: =SPN!AO$498 -> 1.183842759 | AP147: =SPN!AP$498 -> 1.212864579 | AQ147: =SPN!AQ$498 -> 1.242977122
E148: EPN | G148: £m 12/13 prices | AJ148: =EPN!AJ$498 -> 1.638759792 | AK148: =EPN!AK$498 -> 1.682458601 | AL148: =EPN!AL$498 -> 1.670781974 | AM148: =EPN!AM$498 -> 1.682408508 | AN148: =EPN!AN$498 -> 1.709040489 | AO148: =EPN!AO$498 -> 1.73623439 | AP148: =EPN!AP$498 -> 1.763994066 | AQ148: =EPN!AQ$498 -> 1.79160168
E149: SPD | G149: £m 12/13 prices | AJ149: =SPD!AJ$498 -> 1.11647617 | AK149: =SPD!AK$498 -> 1.142677444 | AL149: =SPD!AL$498 -> 1.142672807 | AM149: =SPD!AM$498 -> 1.142643376 | AN149: =SPD!AN$498 -> 1.142616833 | AO149: =SPD!AO$498 -> 1.142602554 | AP149: =SPD!AP$498 -> 1.142583716 | AQ149: =SPD!AQ$498 -> 1.142576019
E150: SPMW | G150: £m 12/13 prices | AJ150: =SPMW!AJ$498 -> 1.005326046 | AK150: =SPMW!AK$498 -> 1.029367624 | AL150: =SPMW!AL$498 -> 1.029380897 | AM150: =SPMW!AM$498 -> 1.029392605 | AN150: =SPMW!AN$498 -> 1.029400809 | AO150: =SPMW!AO$498 -> 1.029401331 | AP150: =SPMW!AP$498 -> 1.029427242 | AQ150: =SPMW!AQ$498 -> 1.029409936
E151: SSEH | G151: £m 12/13 prices | AJ151: =SSEH!AJ$498 -> 0.8131584539 | AK151: =SSEH!AK$498 -> 0.8543561778 | AL151: =SSEH!AL$498 -> 0.8543313898 | AM151: =SSEH!AM$498 -> 0.8543136796 | AN151: =SSEH!AN$498 -> 0.8542794404 | AO151: =SSEH!AO$498 -> 0.8542972959 | AP151: =SSEH!AP$498 -> 0.8543097174 | AQ151: =SSEH!AQ$498 -> 0.8543171258
E152: SSES | G152: £m 12/13 prices | AJ152: =SSES!AJ$498 -> 1.563374397 | AK152: =SSES!AK$498 -> 1.569638064 | AL152: =SSES!AL$498 -> 1.569580723 | AM152: =SSES!AM$498 -> 1.569551637 | AN152: =SSES!AN$498 -> 1.569530156 | AO152: =SSES!AO$498 -> 1.569538416 | AP152: =SSES!AP$498 -> 1.569534828 | AQ152: =SSES!AQ$498 -> 1.569562439
C154: B Event Values by Licensee
E156: ENWL | G156: £m 12/13 prices | AJ156: 0 | AK156: 0 | AL156: 0 | AM156: 0 | AN156: 0 | AO156: 0 | AP156: 0 | AQ156: 0
E157: NPgN | G157: £m 12/13 prices | AJ157: 0 | AK157: 0 | AL157: 0 | AM157: 0 | AN157: 0 | AO157: 0 | AP157: 0 | AQ157: 0
E158: NPgY | G158: £m 12/13 prices | AJ158: 0 | AK158: 0 | AL158: 0 | AM158: 0 | AN158: 0 | AO158: 0 | AP158: 0 | AQ158: 0
E159: WMID | G159: £m 12/13 prices | AJ159: 0 | AK159: 0 | AL159: 0 | AM159: 0 | AN159: 0 | AO159: 0 | AP159: 0 | AQ159: 0
E160: EMID | G160: £m 12/13 prices | AJ160: 0 | AK160: 0 | AL160: 0 | AM160: 0 | AN160: 0 | AO160: 0 | AP160: 0 | AQ160: 0
E161: SWALES | G161: £m 12/13 prices | AJ161: 0 | AK161: 0 | AL161: 0 | AM161: 0 | AN161: 0 | AO161: 0 | AP161: 0 | AQ161: 0
E162: SWEST | G162: £m 12/13 prices | AJ162: 0 | AK162: 0 | AL162: 0 | AM162: 0 | AN162: 0 | AO162: 0 | AP162: 0 | AQ162: 0
E163: LPN | G163: £m 12/13 prices | AJ163: 0 | AK163: 0 | AL163: 0 | AM163: 0 | AN163: 0 | AO163: 0 | AP163: 0 | AQ163: 0
E164: SPN | G164: £m 12/13 prices | AJ164: 0 | AK164: 0 | AL164: 0 | AM164: 0 | AN164: 0 | AO164: 0 | AP164: 0 | AQ164: 0
E165: EPN | G165: £m 12/13 prices | AJ165: 0 | AK165: 0 | AL165: 0 | AM165: 0 | AN165: 0 | AO165: 0 | AP165: 0 | AQ165: 0
E166: SPD | G166: £m 12/13 prices | AJ166: 0 | AK166: 0 | AL166: 0 | AM166: 0 | AN166: 0 | AO166: 0 | AP166: 0 | AQ166: 0
E167: SPMW | G167: £m 12/13 prices | AJ167: 0 | AK167: 0 | AL167: 0 | AM167: 0 | AN167: 0 | AO167: 0 | AP167: 0 | AQ167: 0
E168: SSEH | G168: £m 12/13 prices | AJ168: 0 | AK168: 0 | AL168: 0 | AM168: 0 | AN168: 0 | AO168: 0 | AP168: 0 | AQ168: 0
E169: SSES | G169: £m 12/13 prices | AJ169: 0 | AK169: 0 | AL169: 0 | AM169: 0 | AN169: 0 | AO169: 0 | AP169: 0 | AQ169: 0
B171: End of sheet

Sheet MOD
A1: MOD
B2: =UserInterface!G17 -> ENWL
E6: Parameter | G6: Units | I6: Constant | AJ6: Annual values
E7: PCFM year ending | I7: =UserInterface!$G$10 -> 2022-03-31 | K7: 1991-03-31 | L7: 1992-03-31 | M7: 1993-03-31 | N7: 1994-03-31 | O7: 1995-03-31 | P7: 1996-03-31 | Q7: 1997-03-31 | R7: 1998-03-31 | S7: 1999-03-31 | T7: 2000-03-31 | U7: 2001-03-31 | V7: 2002-03-31 | W7: 2003-03-31 | X7: 2004-03-31 | Y7: 2005-03-31 | Z7: 2006-03-31 | AA7: 2007-03-31 | AB7: 2008-03-31 | AC7: 2009-03-31 | AD7: 2010-03-31 | AE7: 2011-03-31 | AF7: 2012-03-31 | AG7: 2013-03-31 | AH7: 2014-03-31 | AI7: 2015-03-31 | AJ7: 2016-03-31 | AK7: 2017-03-31 | AL7: 2018-03-31 | AM7: 2019-03-31 | AN7: 2020-03-31 | AO7: 2021-03-31 | AP7: 2022-03-31 | AQ7: 2023-03-31
E9: =UserInterface!E10 -> Year t selected: | G9: =UserInterface!G10 -> 2022-03-31
E11: =Revenue!E67 -> Final Proposals base revenue | AJ11: =Revenue!AJ67 -> 372.9994411 | AK11: =Revenue!AK67 -> 379.9378697 | AL11: =Revenue!AL67 -> 360.9368197 | AM11: =Revenue!AM67 -> 357.3265994 | AN11: =Revenue!AN67 -> 353.7542374 | AO11: =Revenue!AO67 -> 350.218739 | AP11: =Revenue!AP67 -> 350.2170412 | AQ11: =Revenue!AQ67 -> 350.2200363
E12: =Revenue!E68 -> MOD | AK12: =Revenue!AK68 -> -3.249150037 | AL12: =Revenue!AL68 -> -4.913821913 | AM12: =Revenue!AM68 -> -11.5968608 | AN12: =Revenue!AN68 -> -12.17621985 | AO12: =Revenue!AO68 -> -7.848617602 | AP12: =Revenue!AP68 -> -13.56329798 | AQ12: =Revenue!AQ68 -> 0
E13: =Revenue!E69 -> Base revenue | AJ13: =Revenue!AJ69 -> 372.9994411 | AK13: =Revenue!AK69 -> 376.6887197 | AL13: =Revenue!AL69 -> 356.0229978 | AM13: =Revenue!AM69 -> 345.7297386 | AN13: =Revenue!AN69 -> 341.5780175 | AO13: =Revenue!AO69 -> 342.3701214 | AP13: =Revenue!AP69 -> 336.6537432 | AQ13: =Revenue!AQ69 -> 350.2200363
B15: End of sheet

Sheet Input
A1: Input
B2: =UserInterface!G17 -> ENWL
E6: Parameter | F6: Licence condition | G6: Units | H6: Term | I6: Constant | AJ6: Annual values
E7: PCFM year ending | F7: =Cover!C4 -> ED1 PCFM November 2020.xlsm | I7: =UserInterface!$G$10 -> 2022-03-31 | K7: 1991-03-31 | L7: 1992-03-31 | M7: 1993-03-31 | N7: 1994-03-31 | O7: 1995-03-31 | P7: 1996-03-31 | Q7: 1997-03-31 | R7: 1998-03-31 | S7: 1999-03-31 | T7: 2000-03-31 | U7: 2001-03-31 | V7: 2002-03-31 | W7: 2003-03-31 | X7: 2004-03-31 | Y7: 2005-03-31 | Z7: 2006-03-31 | AA7: 2007-03-31 | AB7: 2008-03-31 | AC7: 2009-03-31 | AD7: 2010-03-31 | AE7: 2011-03-31 | AF7: 2012-03-31 | AG7: 2013-03-31 | AH7: 2014-03-31 | AI7: 2015-03-31 | AJ7: 2016-03-31 | AK7: 2017-03-31 | AL7: 2018-03-31 | AM7: 2019-03-31 | AN7: 2020-03-31 | AO7: 2021-03-31 | AP7: 2022-03-31 | AQ7: 2023-03-31
B9: PCFM Variable Values Table
E11: Allowed percentage cost of corporate debt | F11: CRC 3C | G11: Annual Real % | H11: CDE | AJ11: =CHOOSE(m_identity,ENWL!AJ11, NPgN!AJ11, NPgY!AJ11, WMID!AJ11, EMID!AJ11, SWALES!AJ11, SWEST!AJ11, LPN!AJ11,SPN!AJ11,EPN!AJ11,SPD!AJ11,SPMW!AJ11,SSEH!AJ11,SSES!AJ11) -> 0.0255 | AK11: =CHOOSE(m_identity,ENWL!AK11, NPgN!AK11, NPgY!AK11, WMID!AK11, EMID!AK11, SWALES!AK11, SWEST!AK11, LPN!AK11,SPN!AK11,EPN!AK11,SPD!AK11,SPMW!AK11,SSEH!AK11,SSES!AK11) -> 0.0242 | AL11: =CHOOSE(m_identity,ENWL!AL11, NPgN!AL11, NPgY!AL11, WMID!AL11, EMID!AL11, SWALES!AL11, SWEST!AL11, LPN!AL11,SPN!AL11,EPN!AL11,SPD!AL11,SPMW!AL11,SSEH!AL11,SSES!AL11) -> 0.0229 | AM11: =CHOOSE(m_identity,ENWL!AM11, NPgN!AM11, NPgY!AM11, WMID!AM11, EMID!AM11, SWALES!AM11, SWEST!AM11, LPN!AM11,SPN!AM11,EPN!AM11,SPD!AM11,SPMW!AM11,SSEH!AM11,SSES!AM11) -> 0.0209 | AN11: =CHOOSE(m_identity,ENWL!AN11, NPgN!AN11, NPgY!AN11, WMID!AN11, EMID!AN11, SWALES!AN11, SWEST!AN11, LPN!AN11,SPN!AN11,EPN!AN11,SPD!AN11,SPMW!AN11,SSEH!AN11,SSES!AN11) -> 0.0194 | AO11: =CHOOSE(m_identity,ENWL!AO11, NPgN!AO11, NPgY!AO11, WMID!AO11, EMID!AO11, SWALES!AO11, SWEST!AO11, LPN!AO11,SPN!AO11,EPN!AO11,SPD!AO11,SPMW!AO11,SSEH!AO11,SSES!AO11) -> 0.0178 | AP11: =CHOOSE(m_identity,ENWL!AP11, NPgN!AP11, NPgY!AP11, WMID!AP11, EMID!AP11, SWALES!AP11, SWEST!AP11, LPN!AP11,SPN!AP11,EPN!AP11,SPD!AP11,SPMW!AP11,SSEH!AP11,SSES!AP11) -> 0.0162 | AQ11: =CHOOSE(m_identity,ENWL!AQ11, NPgN!AQ11, NPgY!AQ11, WMID!AQ11, EMID!AQ11, SWALES!AQ11, SWEST!AQ11, LPN!AQ11,SPN!AQ11,EPN!AQ11,SPD!AQ11,SPMW!AQ11,SSEH!AQ11,SSES!AQ11) -> 0.0162
E12: Actual load-related capex expenditure | F12: CRC 3B | G12: £m 12/13 prices | H12: ALC | AJ12: =CHOOSE(m_identity,ENWL!AJ12, NPgN!AJ12, NPgY!AJ12, WMID!AJ12, EMID!AJ12, SWALES!AJ12, SWEST!AJ12, LPN!AJ12,SPN!AJ12,EPN!AJ12,SPD!AJ12,SPMW!AJ12,SSEH!AJ12,SSES!AJ12) -> 9.827272069 | AK12: =CHOOSE(m_identity,ENWL!AK12, NPgN!AK12, NPgY!AK12, WMID!AK12, EMID!AK12, SWALES!AK12, SWEST!AK12, LPN!AK12,SPN!AK12,EPN!AK12,SPD!AK12,SPMW!AK12,SSEH!AK12,SSES!AK12) -> 2.469648331 | AL12: =CHOOSE(m_identity,ENWL!AL12, NPgN!AL12, NPgY!AL12, WMID!AL12, EMID!AL12, SWALES!AL12, SWEST!AL12, LPN!AL12,SPN!AL12,EPN!AL12,SPD!AL12,SPMW!AL12,SSEH!AL12,SSES!AL12) -> 3.371187014 | AM12: =CHOOSE(m_identity,ENWL!AM12, NPgN!AM12, NPgY!AM12, WMID!AM12, EMID!AM12, SWALES!AM12, SWEST!AM12, LPN!AM12,SPN!AM12,EPN!AM12,SPD!AM12,SPMW!AM12,SSEH!AM12,SSES!AM12) -> 6.18007277 | AN12: =CHOOSE(m_identity,ENWL!AN12, NPgN!AN12, NPgY!AN12, WMID!AN12, EMID!AN12, SWALES!AN12, SWEST!AN12, LPN!AN12,SPN!AN12,EPN!AN12,SPD!AN12,SPMW!AN12,SSEH!AN12,SSES!AN12) -> 11.57751037 | AO12: =CHOOSE(m_identity,ENWL!AO12, NPgN!AO12, NPgY!AO12, WMID!AO12, EMID!AO12, SWALES!AO12, SWEST!AO12, LPN!AO12,SPN!AO12,EPN!AO12,SPD!AO12,SPMW!AO12,SSEH!AO12,SSES!AO12) -> 0 | AP12: =CHOOSE(m_identity,ENWL!AP12, NPgN!AP12, NPgY!AP12, WMID!AP12, EMID!AP12, SWALES!AP12, SWEST!AP12, LPN!AP12,SPN!AP12,EPN!AP12,SPD!AP12,SPMW!AP12,SSEH!AP12,SSES!AP12) -> 0 | AQ12: =CHOOSE(m_identity,ENWL!AQ12, NPgN!AQ12, NPgY!AQ12, WMID!AQ12, EMID!AQ12, SWALES!AQ12, SWEST!AQ12, LPN!AQ12,SPN!AQ12,EPN!AQ12,SPD!AQ12,SPMW!AQ12,SSEH!AQ12,SSES!AQ12) -> 0
E13: Actual non-load related capex expenditure - asset replacement | F13: CRC 3B | G13: £m 12/13 prices | H13: ANLR | AJ13: =CHOOSE(m_identity,ENWL!AJ13, NPgN!AJ13, NPgY!AJ13, WMID!AJ13, EMID!AJ13, SWALES!AJ13, SWEST!AJ13, LPN!AJ13,SPN!AJ13,EPN!AJ13,SPD!AJ13,SPMW!AJ13,SSEH!AJ13,SSES!AJ13) -> 71.54371488 | AK13: =CHOOSE(m_identity,ENWL!AK13, NPgN!AK13, NPgY!AK13, WMID!AK13, EMID!AK13, SWALES!AK13, SWEST!AK13, LPN!AK13,SPN!AK13,EPN!AK13,SPD!AK13,SPMW!AK13,SSEH!AK13,SSES!AK13) -> 70.76111894 | AL13: =CHOOSE(m_identity,ENWL!AL13, NPgN!AL13, NPgY!AL13, WMID!AL13, EMID!AL13, SWALES!AL13, SWEST!AL13, LPN!AL13,SPN!AL13,EPN!AL13,SPD!AL13,SPMW!AL13,SSEH!AL13,SSES!AL13) -> 78.16435367 | AM13: =CHOOSE(m_identity,ENWL!AM13, NPgN!AM13, NPgY!AM13, WMID!AM13, EMID!AM13, SWALES!AM13, SWEST!AM13, LPN!AM13,SPN!AM13,EPN!AM13,SPD!AM13,SPMW!AM13,SSEH!AM13,SSES!AM13) -> 75.78148886 | AN13: =CHOOSE(m_identity,ENWL!AN13, NPgN!AN13, NPgY!AN13, WMID!AN13, EMID!AN13, SWALES!AN13, SWEST!AN13, LPN!AN13,SPN!AN13,EPN!AN13,SPD!AN13,SPMW!AN13,SSEH!AN13,SSES!AN13) -> 57.78287818 | AO13: =CHOOSE(m_identity,ENWL!AO13, NPgN!AO13, NPgY!AO13, WMID!AO13, EMID!AO13, SWALES!AO13, SWEST!AO13, LPN!AO13,SPN!AO13,EPN!AO13,SPD!AO13,SPMW!AO13,SSEH!AO13,SSES!AO13) -> 0 | AP13: =CHOOSE(m_identity,ENWL!AP13, NPgN!AP13, NPgY!AP13, WMID!AP13, EMID!AP13, SWALES!AP13, SWEST!AP13, LPN!AP13,SPN!AP13,EPN!AP13,SPD!AP13,SPMW!AP13,SSEH!AP13,SSES!AP13) -> 0 | AQ13: =CHOOSE(m_identity,ENWL!AQ13, NPgN!AQ13, NPgY!AQ13, WMID!AQ13, EMID!AQ13, SWALES!AQ13, SWEST!AQ13, LPN!AQ13,SPN!AQ13,EPN!AQ13,SPD!AQ13,SPMW!AQ13,SSEH!AQ13,SSES!AQ13) -> 0
E14: Actual non-load related capex - other | F14: CRC 3B | G14: £m 12/13 prices | H14: ANLO | AJ14: =CHOOSE(m_identity,ENWL!AJ14, NPgN!AJ14, NPgY!AJ14, WMID!AJ14, EMID!AJ14, SWALES!AJ14, SWEST!AJ14, LPN!AJ14,SPN!AJ14,EPN!AJ14,SPD!AJ14,SPMW!AJ14,SSEH!AJ14,SSES!AJ14) -> 23.8067907 | AK14: =CHOOSE(m_identity,ENWL!AK14, NPgN!AK14, NPgY!AK14, WMID!AK14, EMID!AK14, SWALES!AK14, SWEST!AK14, LPN!AK14,SPN!AK14,EPN!AK14,SPD!AK14,SPMW!AK14,SSEH!AK14,SSES!AK14) -> 17.79240157 | AL14: =CHOOSE(m_identity,ENWL!AL14, NPgN!AL14, NPgY!AL14, WMID!AL14, EMID!AL14, SWALES!AL14, SWEST!AL14, LPN!AL14,SPN!AL14,EPN!AL14,SPD!AL14,SPMW!AL14,SSEH!AL14,SSES!AL14) -> 18.38457565 | AM14: =CHOOSE(m_identity,ENWL!AM14, NPgN!AM14, NPgY!AM14, WMID!AM14, EMID!AM14, SWALES!AM14, SWEST!AM14, LPN!AM14,SPN!AM14,EPN!AM14,SPD!AM14,SPMW!AM14,SSEH!AM14,SSES!AM14) -> 19.78615198 | AN14: =CHOOSE(m_identity,ENWL!AN14, NPgN!AN14, NPgY!AN14, WMID!AN14, EMID!AN14, SWALES!AN14, SWEST!AN14, LPN!AN14,SPN!AN14,EPN!AN14,SPD!AN14,SPMW!AN14,SSEH!AN14,SSES!AN14) -> 14.7731476 | AO14: =CHOOSE(m_identity,ENWL!AO14, NPgN!AO14, NPgY!AO14, WMID!AO14, EMID!AO14, SWALES!AO14, SWEST!AO14, LPN!AO14,SPN!AO14,EPN!AO14,SPD!AO14,SPMW!AO14,SSEH!AO14,SSES!AO14) -> 0 | AP14: =CHOOSE(m_identity,ENWL!AP14, NPgN!AP14, NPgY!AP14, WMID!AP14, EMID!AP14, SWALES!AP14, SWEST!AP14, LPN!AP14,SPN!AP14,EPN!AP14,SPD!AP14,SPMW!AP14,SSEH!AP14,SSES!AP14) -> 0 | AQ14: =CHOOSE(m_identity,ENWL!AQ14, NPgN!AQ14, NPgY!AQ14, WMID!AQ14, EMID!AQ14, SWALES!AQ14, SWEST!AQ14, LPN!AQ14,SPN!AQ14,EPN!AQ14,SPD!AQ14,SPMW!AQ14,SSEH!AQ14,SSES!AQ14) -> 0
E15: Actual faults expenditure | F15: CRC 3B | G15: £m 12/13 prices | H15: AFE | AJ15: =CHOOSE(m_identity,ENWL!AJ15, NPgN!AJ15, NPgY!AJ15, WMID!AJ15, EMID!AJ15, SWALES!AJ15, SWEST!AJ15, LPN!AJ15,SPN!AJ15,EPN!AJ15,SPD!AJ15,SPMW!AJ15,SSEH!AJ15,SSES!AJ15) -> 35.55022541 | AK15: =CHOOSE(m_identity,ENWL!AK15, NPgN!AK15, NPgY!AK15, WMID!AK15, EMID!AK15, SWALES!AK15, SWEST!AK15, LPN!AK15,SPN!AK15,EPN!AK15,SPD!AK15,SPMW!AK15,SSEH!AK15,SSES!AK15) -> 26.21047371 | AL15: =CHOOSE(m_identity,ENWL!AL15, NPgN!AL15, NPgY!AL15, WMID!AL15, EMID!AL15, SWALES!AL15, SWEST!AL15, LPN!AL15,SPN!AL15,EPN!AL15,SPD!AL15,SPMW!AL15,SSEH!AL15,SSES!AL15) -> 26.10091088 | AM15: =CHOOSE(m_identity,ENWL!AM15, NPgN!AM15, NPgY!AM15, WMID!AM15, EMID!AM15, SWALES!AM15, SWEST!AM15, LPN!AM15,SPN!AM15,EPN!AM15,SPD!AM15,SPMW!AM15,SSEH!AM15,SSES!AM15) -> 27.95571293 | AN15: =CHOOSE(m_identity,ENWL!AN15, NPgN!AN15, NPgY!AN15, WMID!AN15, EMID!AN15, SWALES!AN15, SWEST!AN15, LPN!AN15,SPN!AN15,EPN!AN15,SPD!AN15,SPMW!AN15,SSEH!AN15,SSES!AN15) -> 25.1759602 | AO15: =CHOOSE(m_identity,ENWL!AO15, NPgN!AO15, NPgY!AO15, WMID!AO15, EMID!AO15, SWALES!AO15, SWEST!AO15, LPN!AO15,SPN!AO15,EPN!AO15,SPD!AO15,SPMW!AO15,SSEH!AO15,SSES!AO15) -> 0 | AP15: =CHOOSE(m_identity,ENWL!AP15, NPgN!AP15, NPgY!AP15, WMID!AP15, EMID!AP15, SWALES!AP15, SWEST!AP15, LPN!AP15,SPN!AP15,EPN!AP15,SPD!AP15,SPMW!AP15,SSEH!AP15,SSES!AP15) -> 0 | AQ15: =CHOOSE(m_identity,ENWL!AQ15, NPgN!AQ15, NPgY!AQ15, WMID!AQ15, EMID!AQ15, SWALES!AQ15, SWEST!AQ15, LPN!AQ15,SPN!AQ15,EPN!AQ15,SPD!AQ15,SPMW!AQ15,SSEH!AQ15,SSES!AQ15) -> 0
E16: Actual tree cutting expenditure | F16: CRC 3B | G16: £m 12/13 prices | H16: TRE | AJ16: =CHOOSE(m_identity,ENWL!AJ16, NPgN!AJ16, NPgY!AJ16, WMID!AJ16, EMID!AJ16, SWALES!AJ16, SWEST!AJ16, LPN!AJ16,SPN!AJ16,EPN!AJ16,SPD!AJ16,SPMW!AJ16,SSEH!AJ16,SSES!AJ16) -> 2.875388662 | AK16: =CHOOSE(m_identity,ENWL!AK16, NPgN!AK16, NPgY!AK16, WMID!AK16, EMID!AK16, SWALES!AK16, SWEST!AK16, LPN!AK16,SPN!AK16,EPN!AK16,SPD!AK16,SPMW!AK16,SSEH!AK16,SSES!AK16) -> 3.252440486 | AL16: =CHOOSE(m_identity,ENWL!AL16, NPgN!AL16, NPgY!AL16, WMID!AL16, EMID!AL16, SWALES!AL16, SWEST!AL16, LPN!AL16,SPN!AL16,EPN!AL16,SPD!AL16,SPMW!AL16,SSEH!AL16,SSES!AL16) -> 3.553006632 | AM16: =CHOOSE(m_identity,ENWL!AM16, NPgN!AM16, NPgY!AM16, WMID!AM16, EMID!AM16, SWALES!AM16, SWEST!AM16, LPN!AM16,SPN!AM16,EPN!AM16,SPD!AM16,SPMW!AM16,SSEH!AM16,SSES!AM16) -> 3.178548136 | AN16: =CHOOSE(m_identity,ENWL!AN16, NPgN!AN16, NPgY!AN16, WMID!AN16, EMID!AN16, SWALES!AN16, SWEST!AN16, LPN!AN16,SPN!AN16,EPN!AN16,SPD!AN16,SPMW!AN16,SSEH!AN16,SSES!AN16) -> 3.873357299 | AO16: =CHOOSE(m_identity,ENWL!AO16, NPgN!AO16, NPgY!AO16, WMID!AO16, EMID!AO16, SWALES!AO16, SWEST!AO16, LPN!AO16,SPN!AO16,EPN!AO16,SPD!AO16,SPMW!AO16,SSEH!AO16,SSES!AO16) -> 0 | AP16: =CHOOSE(m_identity,ENWL!AP16, NPgN!AP16, NPgY!AP16, WMID!AP16, EMID!AP16, SWALES!AP16, SWEST!AP16, LPN!AP16,SPN!AP16,EPN!AP16,SPD!AP16,SPMW!AP16,SSEH!AP16,SSES!AP16) -> 0 | AQ16: =CHOOSE(m_identity,ENWL!AQ16, NPgN!AQ16, NPgY!AQ16, WMID!AQ16, EMID!AQ16, SWALES!AQ16, SWEST!AQ16, LPN!AQ16,SPN!AQ16,EPN!AQ16,SPD!AQ16,SPMW!AQ16,SSEH!AQ16,SSES!AQ16) -> 0
E17: Actual 100% ‘revenue pool’ expenditure | F17: CRC 3B | G17: £m 12/13 prices | H17: ARP | AJ17: =CHOOSE(m_identity,ENWL!AJ17, NPgN!AJ17, NPgY!AJ17, WMID!AJ17, EMID!AJ17, SWALES!AJ17, SWEST!AJ17, LPN!AJ17,SPN!AJ17,EPN!AJ17,SPD!AJ17,SPMW!AJ17,SSEH!AJ17,SSES!AJ17) -> 12.0870516 | AK17: =CHOOSE(m_identity,ENWL!AK17, NPgN!AK17, NPgY!AK17, WMID!AK17, EMID!AK17, SWALES!AK17, SWEST!AK17, LPN!AK17,SPN!AK17,EPN!AK17,SPD!AK17,SPMW!AK17,SSEH!AK17,SSES!AK17) -> 11.73888674 | AL17: =CHOOSE(m_identity,ENWL!AL17, NPgN!AL17, NPgY!AL17, WMID!AL17, EMID!AL17, SWALES!AL17, SWEST!AL17, LPN!AL17,SPN!AL17,EPN!AL17,SPD!AL17,SPMW!AL17,SSEH!AL17,SSES!AL17) -> 13.17658777 | AM17: =CHOOSE(m_identity,ENWL!AM17, NPgN!AM17, NPgY!AM17, WMID!AM17, EMID!AM17, SWALES!AM17, SWEST!AM17, LPN!AM17,SPN!AM17,EPN!AM17,SPD!AM17,SPMW!AM17,SSEH!AM17,SSES!AM17) -> 13.18740029 | AN17: =CHOOSE(m_identity,ENWL!AN17, NPgN!AN17, NPgY!AN17, WMID!AN17, EMID!AN17, SWALES!AN17, SWEST!AN17, LPN!AN17,SPN!AN17,EPN!AN17,SPD!AN17,SPMW!AN17,SSEH!AN17,SSES!AN17) -> 13.6913389 | AO17: =CHOOSE(m_identity,ENWL!AO17, NPgN!AO17, NPgY!AO17, WMID!AO17, EMID!AO17, SWALES!AO17, SWEST!AO17, LPN!AO17,SPN!AO17,EPN!AO17,SPD!AO17,SPMW!AO17,SSEH!AO17,SSES!AO17) -> 0 | AP17: =CHOOSE(m_identity,ENWL!AP17, NPgN!AP17, NPgY!AP17, WMID!AP17, EMID!AP17, SWALES!AP17, SWEST!AP17, LPN!AP17,SPN!AP17,EPN!AP17,SPD!AP17,SPMW!AP17,SSEH!AP17,SSES!AP17) -> 0 | AQ17: =CHOOSE(m_identity,ENWL!AQ17, NPgN!AQ17, NPgY!AQ17, WMID!AQ17, EMID!AQ17, SWALES!AQ17, SWEST!AQ17, LPN!AQ17,SPN!AQ17,EPN!AQ17,SPD!AQ17,SPMW!AQ17,SSEH!AQ17,SSES!AQ17) -> 0
E18: Actual controllable opex expenditure | F18: CRC 3B | G18: £m 12/13 prices | H18: ACO | AJ18: =CHOOSE(m_identity,ENWL!AJ18, NPgN!AJ18, NPgY!AJ18, WMID!AJ18, EMID!AJ18, SWALES!AJ18, SWEST!AJ18, LPN!AJ18,SPN!AJ18,EPN!AJ18,SPD!AJ18,SPMW!AJ18,SSEH!AJ18,SSES!AJ18) -> 74.82531566 | AK18: =CHOOSE(m_identity,ENWL!AK18, NPgN!AK18, NPgY!AK18, WMID!AK18, EMID!AK18, SWALES!AK18, SWEST!AK18, LPN!AK18,SPN!AK18,EPN!AK18,SPD!AK18,SPMW!AK18,SSEH!AK18,SSES!AK18) -> 63.1593872 | AL18: =CHOOSE(m_identity,ENWL!AL18, NPgN!AL18, NPgY!AL18, WMID!AL18, EMID!AL18, SWALES!AL18, SWEST!AL18, LPN!AL18,SPN!AL18,EPN!AL18,SPD!AL18,SPMW!AL18,SSEH!AL18,SSES!AL18) -> 83.86704784 | AM18: =CHOOSE(m_identity,ENWL!AM18, NPgN!AM18, NPgY!AM18, WMID!AM18, EMID!AM18, SWALES!AM18, SWEST!AM18, LPN!AM18,SPN!AM18,EPN!AM18,SPD!AM18,SPMW!AM18,SSEH!AM18,SSES!AM18) -> 86.60877338 | AN18: =CHOOSE(m_identity,ENWL!AN18, NPgN!AN18, NPgY!AN18, WMID!AN18, EMID!AN18, SWALES!AN18, SWEST!AN18, LPN!AN18,SPN!AN18,EPN!AN18,SPD!AN18,SPMW!AN18,SSEH!AN18,SSES!AN18) -> 85.80778515 | AO18: =CHOOSE(m_identity,ENWL!AO18, NPgN!AO18, NPgY!AO18, WMID!AO18, EMID!AO18, SWALES!AO18, SWEST!AO18, LPN!AO18,SPN!AO18,EPN!AO18,SPD!AO18,SPMW!AO18,SSEH!AO18,SSES!AO18) -> 0 | AP18: =CHOOSE(m_identity,ENWL!AP18, NPgN!AP18, NPgY!AP18, WMID!AP18, EMID!AP18, SWALES!AP18, SWEST!AP18, LPN!AP18,SPN!AP18,EPN!AP18,SPD!AP18,SPMW!AP18,SSEH!AP18,SSES!AP18) -> 0 | AQ18: =CHOOSE(m_identity,ENWL!AQ18, NPgN!AQ18, NPgY!AQ18, WMID!AQ18, EMID!AQ18, SWALES!AQ18, SWEST!AQ18, LPN!AQ18,SPN!AQ18,EPN!AQ18,SPD!AQ18,SPMW!AQ18,SSEH!AQ18,SSES!AQ18) -> 0
E19: Allowed Expenditure - Enhanced Physical Site Security | F19: CRC 3F | G19: £m 12/13 prices | H19: UCEPS | AJ19: =CHOOSE(m_identity,ENWL!AJ19, NPgN!AJ19, NPgY!AJ19, WMID!AJ19, EMID!AJ19, SWALES!AJ19, SWEST!AJ19, LPN!AJ19,SPN!AJ19,EPN!AJ19,SPD!AJ19,SPMW!AJ19,SSEH!AJ19,SSES!AJ19) -> 0 | AK19: =CHOOSE(m_identity,ENWL!AK19, NPgN!AK19, NPgY!AK19, WMID!AK19, EMID!AK19, SWALES!AK19, SWEST!AK19, LPN!AK19,SPN!AK19,EPN!AK19,SPD!AK19,SPMW!AK19,SSEH!AK19,SSES!AK19) -> 0 | AL19: =CHOOSE(m_identity,ENWL!AL19, NPgN!AL19, NPgY!AL19, WMID!AL19, EMID!AL19, SWALES!AL19, SWEST!AL19, LPN!AL19,SPN!AL19,EPN!AL19,SPD!AL19,SPMW!AL19,SSEH!AL19,SSES!AL19) -> 0 | AM19: =CHOOSE(m_identity,ENWL!AM19, NPgN!AM19, NPgY!AM19, WMID!AM19, EMID!AM19, SWALES!AM19, SWEST!AM19, LPN!AM19,SPN!AM19,EPN!AM19,SPD!AM19,SPMW!AM19,SSEH!AM19,SSES!AM19) -> 0 | AN19: =CHOOSE(m_identity,ENWL!AN19, NPgN!AN19, NPgY!AN19, WMID!AN19, EMID!AN19, SWALES!AN19, SWEST!AN19, LPN!AN19,SPN!AN19,EPN!AN19,SPD!AN19,SPMW!AN19,SSEH!AN19,SSES!AN19) -> 0 | AO19: =CHOOSE(m_identity,ENWL!AO19, NPgN!AO19, NPgY!AO19, WMID!AO19, EMID!AO19, SWALES!AO19, SWEST!AO19, LPN!AO19,SPN!AO19,EPN!AO19,SPD!AO19,SPMW!AO19,SSEH!AO19,SSES!AO19) -> 0 | AP19: =CHOOSE(m_identity,ENWL!AP19, NPgN!AP19, NPgY!AP19, WMID!AP19, EMID!AP19, SWALES!AP19, SWEST!AP19, LPN!AP19,SPN!AP19,EPN!AP19,SPD!AP19,SPMW!AP19,SSEH!AP19,SSES!AP19) -> 0 | AQ19: =CHOOSE(m_identity,ENWL!AQ19, NPgN!AQ19, NPgY!AQ19, WMID!AQ19, EMID!AQ19, SWALES!AQ19, SWEST!AQ19, LPN!AQ19,SPN!AQ19,EPN!AQ19,SPD!AQ19,SPMW!AQ19,SSEH!AQ19,SSES!AQ19) -> 0
E20: Allowed Expenditure - High Value Projects | F20: CRC 3F | G20: £m 12/13 prices | H20: UCHVP | AJ20: =CHOOSE(m_identity,ENWL!AJ20, NPgN!AJ20, NPgY!AJ20, WMID!AJ20, EMID!AJ20, SWALES!AJ20, SWEST!AJ20, LPN!AJ20,SPN!AJ20,EPN!AJ20,SPD!AJ20,SPMW!AJ20,SSEH!AJ20,SSES!AJ20) -> 0 | AK20: =CHOOSE(m_identity,ENWL!AK20, NPgN!AK20, NPgY!AK20, WMID!AK20, EMID!AK20, SWALES!AK20, SWEST!AK20, LPN!AK20,SPN!AK20,EPN!AK20,SPD!AK20,SPMW!AK20,SSEH!AK20,SSES!AK20) -> 0 | AL20: =CHOOSE(m_identity,ENWL!AL20, NPgN!AL20, NPgY!AL20, WMID!AL20, EMID!AL20, SWALES!AL20, SWEST!AL20, LPN!AL20,SPN!AL20,EPN!AL20,SPD!AL20,SPMW!AL20,SSEH!AL20,SSES!AL20) -> 0 | AM20: =CHOOSE(m_identity,ENWL!AM20, NPgN!AM20, NPgY!AM20, WMID!AM20, EMID!AM20, SWALES!AM20, SWEST!AM20, LPN!AM20,SPN!AM20,EPN!AM20,SPD!AM20,SPMW!AM20,SSEH!AM20,SSES!AM20) -> 0 | AN20: =CHOOSE(m_identity,ENWL!AN20, NPgN!AN20, NPgY!AN20, WMID!AN20, EMID!AN20, SWALES!AN20, SWEST!AN20, LPN!AN20,SPN!AN20,EPN!AN20,SPD!AN20,SPMW!AN20,SSEH!AN20,SSES!AN20) -> 0 | AO20: =CHOOSE(m_identity,ENWL!AO20, NPgN!AO20, NPgY!AO20, WMID!AO20, EMID!AO20, SWALES!AO20, SWEST!AO20, LPN!AO20,SPN!AO20,EPN!AO20,SPD!AO20,SPMW!AO20,SSEH!AO20,SSES!AO20) -> 0 | AP20: =CHOOSE(m_identity,ENWL!AP20, NPgN!AP20, NPgY!AP20, WMID!AP20, EMID!AP20, SWALES!AP20, SWEST!AP20, LPN!AP20,SPN!AP20,EPN!AP20,SPD!AP20,SPMW!AP20,SSEH!AP20,SSES!AP20) -> 0 | AQ20: =CHOOSE(m_identity,ENWL!AQ20, NPgN!AQ20, NPgY!AQ20, WMID!AQ20, EMID!AQ20, SWALES!AQ20, SWEST!AQ20, LPN!AQ20,SPN!AQ20,EPN!AQ20,SPD!AQ20,SPMW!AQ20,SSEH!AQ20,SSES!AQ20) -> 0
E21: Allowed Expenditure - Visual Amenity Projects (TIM neutral) | F21: CRC 3J | G21: £m 12/13 prices | H21: VAA | AJ21: =CHOOSE(m_identity,ENWL!AJ21, NPgN!AJ21, NPgY!AJ21, WMID!AJ21, EMID!AJ21, SWALES!AJ21, SWEST!AJ21, LPN!AJ21,SPN!AJ21,EPN!AJ21,SPD!AJ21,SPMW!AJ21,SSEH!AJ21,SSES!AJ21) -> 0.8128081602 | AK21: =CHOOSE(m_identity,ENWL!AK21, NPgN!AK21, NPgY!AK21, WMID!AK21, EMID!AK21, SWALES!AK21, SWEST!AK21, LPN!AK21,SPN!AK21,EPN!AK21,SPD!AK21,SPMW!AK21,SSEH!AK21,SSES!AK21) -> 0.8711219202 | AL21: =CHOOSE(m_identity,ENWL!AL21, NPgN!AL21, NPgY!AL21, WMID!AL21, EMID!AL21, SWALES!AL21, SWEST!AL21, LPN!AL21,SPN!AL21,EPN!AL21,SPD!AL21,SPMW!AL21,SSEH!AL21,SSES!AL21) -> 0.9575588996 | AM21: =CHOOSE(m_identity,ENWL!AM21, NPgN!AM21, NPgY!AM21, WMID!AM21, EMID!AM21, SWALES!AM21, SWEST!AM21, LPN!AM21,SPN!AM21,EPN!AM21,SPD!AM21,SPMW!AM21,SSEH!AM21,SSES!AM21) -> 0.9352615071 | AN21: =CHOOSE(m_identity,ENWL!AN21, NPgN!AN21, NPgY!AN21, WMID!AN21, EMID!AN21, SWALES!AN21, SWEST!AN21, LPN!AN21,SPN!AN21,EPN!AN21,SPD!AN21,SPMW!AN21,SSEH!AN21,SSES!AN21) -> 1.052401384 | AO21: =CHOOSE(m_identity,ENWL!AO21, NPgN!AO21, NPgY!AO21, WMID!AO21, EMID!AO21, SWALES!AO21, SWEST!AO21, LPN!AO21,SPN!AO21,EPN!AO21,SPD!AO21,SPMW!AO21,SSEH!AO21,SSES!AO21) -> 0 | AP21: =CHOOSE(m_identity,ENWL!AP21, NPgN!AP21, NPgY!AP21, WMID!AP21, EMID!AP21, SWALES!AP21, SWEST!AP21, LPN!AP21,SPN!AP21,EPN!AP21,SPD!AP21,SPMW!AP21,SSEH!AP21,SSES!AP21) -> 0 | AQ21: =CHOOSE(m_identity,ENWL!AQ21, NPgN!AQ21, NPgY!AQ21, WMID!AQ21, EMID!AQ21, SWALES!AQ21, SWEST!AQ21, LPN!AQ21,SPN!AQ21,EPN!AQ21,SPD!AQ21,SPMW!AQ21,SSEH!AQ21,SSES!AQ21) -> 0
E22: Allowed Expenditure - Worst Served Customer Project (TIM neutral) | F22: CRC 3H | G22: £m 12/13 prices | H22: WSCC | AJ22: =CHOOSE(m_identity,ENWL!AJ22, NPgN!AJ22, NPgY!AJ22, WMID!AJ22, EMID!AJ22, SWALES!AJ22, SWEST!AJ22, LPN!AJ22,SPN!AJ22,EPN!AJ22,SPD!AJ22,SPMW!AJ22,SSEH!AJ22,SSES!AJ22) -> 0.1302513562 | AK22: =CHOOSE(m_identity,ENWL!AK22, NPgN!AK22, NPgY!AK22, WMID!AK22, EMID!AK22, SWALES!AK22, SWEST!AK22, LPN!AK22,SPN!AK22,EPN!AK22,SPD!AK22,SPMW!AK22,SSEH!AK22,SSES!AK22) -> 0.2715342126 | AL22: =CHOOSE(m_identity,ENWL!AL22, NPgN!AL22, NPgY!AL22, WMID!AL22, EMID!AL22, SWALES!AL22, SWEST!AL22, LPN!AL22,SPN!AL22,EPN!AL22,SPD!AL22,SPMW!AL22,SSEH!AL22,SSES!AL22) -> 0.6657341858 | AM22: =CHOOSE(m_identity,ENWL!AM22, NPgN!AM22, NPgY!AM22, WMID!AM22, EMID!AM22, SWALES!AM22, SWEST!AM22, LPN!AM22,SPN!AM22,EPN!AM22,SPD!AM22,SPMW!AM22,SSEH!AM22,SSES!AM22) -> 0.2270046007 | AN22: =CHOOSE(m_identity,ENWL!AN22, NPgN!AN22, NPgY!AN22, WMID!AN22, EMID!AN22, SWALES!AN22, SWEST!AN22, LPN!AN22,SPN!AN22,EPN!AN22,SPD!AN22,SPMW!AN22,SSEH!AN22,SSES!AN22) -> 0.04727705967 | AO22: =CHOOSE(m_identity,ENWL!AO22, NPgN!AO22, NPgY!AO22, WMID!AO22, EMID!AO22, SWALES!AO22, SWEST!AO22, LPN!AO22,SPN!AO22,EPN!AO22,SPD!AO22,SPMW!AO22,SSEH!AO22,SSES!AO22) -> 0 | AP22: =CHOOSE(m_identity,ENWL!AP22, NPgN!AP22, NPgY!AP22, WMID!AP22, EMID!AP22, SWALES!AP22, SWEST!AP22, LPN!AP22,SPN!AP22,EPN!AP22,SPD!AP22,SPMW!AP22,SSEH!AP22,SSES!AP22) -> 0 | AQ22: =CHOOSE(m_identity,ENWL!AQ22, NPgN!AQ22, NPgY!AQ22, WMID!AQ22, EMID!AQ22, SWALES!AQ22, SWEST!AQ22, LPN!AQ22,SPN!AQ22,EPN!AQ22,SPD!AQ22,SPMW!AQ22,SSEH!AQ22,SSES!AQ22) -> 0
E23: Allowed Expenditure - Smart Meter Roll-out costs | F23: CRC 3E | G23: £m 12/13 prices | H23: SMAE | AJ23: =CHOOSE(m_identity,ENWL!AJ23, NPgN!AJ23, NPgY!AJ23, WMID!AJ23, EMID!AJ23, SWALES!AJ23, SWEST!AJ23, LPN!AJ23,SPN!AJ23,EPN!AJ23,SPD!AJ23,SPMW!AJ23,SSEH!AJ23,SSES!AJ23) -> 0.338827 | AK23: =CHOOSE(m_identity,ENWL!AK23, NPgN!AK23, NPgY!AK23, WMID!AK23, EMID!AK23, SWALES!AK23, SWEST!AK23, LPN!AK23,SPN!AK23,EPN!AK23,SPD!AK23,SPMW!AK23,SSEH!AK23,SSES!AK23) -> 2.693174 | AL23: =CHOOSE(m_identity,ENWL!AL23, NPgN!AL23, NPgY!AL23, WMID!AL23, EMID!AL23, SWALES!AL23, SWEST!AL23, LPN!AL23,SPN!AL23,EPN!AL23,SPD!AL23,SPMW!AL23,SSEH!AL23,SSES!AL23) -> 4.652815 | AM23: =CHOOSE(m_identity,ENWL!AM23, NPgN!AM23, NPgY!AM23, WMID!AM23, EMID!AM23, SWALES!AM23, SWEST!AM23, LPN!AM23,SPN!AM23,EPN!AM23,SPD!AM23,SPMW!AM23,SSEH!AM23,SSES!AM23) -> 6.260063 | AN23: =CHOOSE(m_identity,ENWL!AN23, NPgN!AN23, NPgY!AN23, WMID!AN23, EMID!AN23, SWALES!AN23, SWEST!AN23, LPN!AN23,SPN!AN23,EPN!AN23,SPD!AN23,SPMW!AN23,SSEH!AN23,SSES!AN23) -> 6.522339 | AO23: =CHOOSE(m_identity,ENWL!AO23, NPgN!AO23, NPgY!AO23, WMID!AO23, EMID!AO23, SWALES!AO23, SWEST!AO23, LPN!AO23,SPN!AO23,EPN!AO23,SPD!AO23,SPMW!AO23,SSEH!AO23,SSES!AO23) -> 0 | AP23: =CHOOSE(m_identity,ENWL!AP23, NPgN!AP23, NPgY!AP23, WMID!AP23, EMID!AP23, SWALES!AP23, SWEST!AP23, LPN!AP23,SPN!AP23,EPN!AP23,SPD!AP23,SPMW!AP23,SSEH!AP23,SSES!AP23) -> 0 | AQ23: =CHOOSE(m_identity,ENWL!AQ23, NPgN!AQ23, NPgY!AQ23, WMID!AQ23, EMID!AQ23, SWALES!AQ23, SWEST!AQ23, LPN!AQ23,SPN!AQ23,EPN!AQ23,SPD!AQ23,SPMW!AQ23,SSEH!AQ23,SSES!AQ23) -> 0
E24: Allowed Expenditure - Specified Street Works | F24: CRC 3F | G24: £m 12/13 prices | H24: UCSSW | AJ24: =CHOOSE(m_identity,ENWL!AJ24, NPgN!AJ24, NPgY!AJ24, WMID!AJ24, EMID!AJ24, SWALES!AJ24, SWEST!AJ24, LPN!AJ24,SPN!AJ24,EPN!AJ24,SPD!AJ24,SPMW!AJ24,SSEH!AJ24,SSES!AJ24) -> 1.086138563 | AK24: =CHOOSE(m_identity,ENWL!AK24, NPgN!AK24, NPgY!AK24, WMID!AK24, EMID!AK24, SWALES!AK24, SWEST!AK24, LPN!AK24,SPN!AK24,EPN!AK24,SPD!AK24,SPMW!AK24,SSEH!AK24,SSES!AK24) -> 1.036496296 | AL24: =CHOOSE(m_identity,ENWL!AL24, NPgN!AL24, NPgY!AL24, WMID!AL24, EMID!AL24, SWALES!AL24, SWEST!AL24, LPN!AL24,SPN!AL24,EPN!AL24,SPD!AL24,SPMW!AL24,SSEH!AL24,SSES!AL24) -> 1.325077634 | AM24: =CHOOSE(m_identity,ENWL!AM24, NPgN!AM24, NPgY!AM24, WMID!AM24, EMID!AM24, SWALES!AM24, SWEST!AM24, LPN!AM24,SPN!AM24,EPN!AM24,SPD!AM24,SPMW!AM24,SSEH!AM24,SSES!AM24) -> 1.425075419 | AN24: =CHOOSE(m_identity,ENWL!AN24, NPgN!AN24, NPgY!AN24, WMID!AN24, EMID!AN24, SWALES!AN24, SWEST!AN24, LPN!AN24,SPN!AN24,EPN!AN24,SPD!AN24,SPMW!AN24,SSEH!AN24,SSES!AN24) -> 1.211590579 | AO24: =CHOOSE(m_identity,ENWL!AO24, NPgN!AO24, NPgY!AO24, WMID!AO24, EMID!AO24, SWALES!AO24, SWEST!AO24, LPN!AO24,SPN!AO24,EPN!AO24,SPD!AO24,SPMW!AO24,SSEH!AO24,SSES!AO24) -> 1.279714074 | AP24: =CHOOSE(m_identity,ENWL!AP24, NPgN!AP24, NPgY!AP24, WMID!AP24, EMID!AP24, SWALES!AP24, SWEST!AP24, LPN!AP24,SPN!AP24,EPN!AP24,SPD!AP24,SPMW!AP24,SSEH!AP24,SSES!AP24) -> 1.220365268 | AQ24: =CHOOSE(m_identity,ENWL!AQ24, NPgN!AQ24, NPgY!AQ24, WMID!AQ24, EMID!AQ24, SWALES!AQ24, SWEST!AQ24, LPN!AQ24,SPN!AQ24,EPN!AQ24,SPD!AQ24,SPMW!AQ24,SSEH!AQ24,SSES!AQ24) -> 1.157404714
E25: Allowed Expenditure - Load Related | F25: CRC 3G | G25: £m 12/13 prices | H25: LRRC | AJ25: =CHOOSE(m_identity,ENWL!AJ25, NPgN!AJ25, NPgY!AJ25, WMID!AJ25, EMID!AJ25, SWALES!AJ25, SWEST!AJ25, LPN!AJ25,SPN!AJ25,EPN!AJ25,SPD!AJ25,SPMW!AJ25,SSEH!AJ25,SSES!AJ25) -> 14.84367076 | AK25: =CHOOSE(m_identity,ENWL!AK25, NPgN!AK25, NPgY!AK25, WMID!AK25, EMID!AK25, SWALES!AK25, SWEST!AK25, LPN!AK25,SPN!AK25,EPN!AK25,SPD!AK25,SPMW!AK25,SSEH!AK25,SSES!AK25) -> 18.62165692 | AL25: =CHOOSE(m_identity,ENWL!AL25, NPgN!AL25, NPgY!AL25, WMID!AL25, EMID!AL25, SWALES!AL25, SWEST!AL25, LPN!AL25,SPN!AL25,EPN!AL25,SPD!AL25,SPMW!AL25,SSEH!AL25,SSES!AL25) -> 12.39712226 | AM25: =CHOOSE(m_identity,ENWL!AM25, NPgN!AM25, NPgY!AM25, WMID!AM25, EMID!AM25, SWALES!AM25, SWEST!AM25, LPN!AM25,SPN!AM25,EPN!AM25,SPD!AM25,SPMW!AM25,SSEH!AM25,SSES!AM25) -> 16.09209496 | AN25: =CHOOSE(m_identity,ENWL!AN25, NPgN!AN25, NPgY!AN25, WMID!AN25, EMID!AN25, SWALES!AN25, SWEST!AN25, LPN!AN25,SPN!AN25,EPN!AN25,SPD!AN25,SPMW!AN25,SSEH!AN25,SSES!AN25) -> 15.15703367 | AO25: =CHOOSE(m_identity,ENWL!AO25, NPgN!AO25, NPgY!AO25, WMID!AO25, EMID!AO25, SWALES!AO25, SWEST!AO25, LPN!AO25,SPN!AO25,EPN!AO25,SPD!AO25,SPMW!AO25,SSEH!AO25,SSES!AO25) -> 16.46941455 | AP25: =CHOOSE(m_identity,ENWL!AP25, NPgN!AP25, NPgY!AP25, WMID!AP25, EMID!AP25, SWALES!AP25, SWEST!AP25, LPN!AP25,SPN!AP25,EPN!AP25,SPD!AP25,SPMW!AP25,SSEH!AP25,SSES!AP25) -> 22.25871242 | AQ25: =CHOOSE(m_identity,ENWL!AQ25, NPgN!AQ25, NPgY!AQ25, WMID!AQ25, EMID!AQ25, SWALES!AQ25, SWEST!AQ25, LPN!AQ25,SPN!AQ25,EPN!AQ25,SPD!AQ25,SPMW!AQ25,SSEH!AQ25,SSES!AQ25) -> 19.41046618
E26: Allowed Expenditure - Rail Electrification (WPD) | F26: CRC 3K | G26: £m 12/13 prices | H26: RE | AJ26: =CHOOSE(m_identity,ENWL!AJ26, NPgN!AJ26, NPgY!AJ26, WMID!AJ26, EMID!AJ26, SWALES!AJ26, SWEST!AJ26, LPN!AJ26,SPN!AJ26,EPN!AJ26,SPD!AJ26,SPMW!AJ26,SSEH!AJ26,SSES!AJ26) -> 0 | AK26: =CHOOSE(m_identity,ENWL!AK26, NPgN!AK26, NPgY!AK26, WMID!AK26, EMID!AK26, SWALES!AK26, SWEST!AK26, LPN!AK26,SPN!AK26,EPN!AK26,SPD!AK26,SPMW!AK26,SSEH!AK26,SSES!AK26) -> 0 | AL26: =CHOOSE(m_identity,ENWL!AL26, NPgN!AL26, NPgY!AL26, WMID!AL26, EMID!AL26, SWALES!AL26, SWEST!AL26, LPN!AL26,SPN!AL26,EPN!AL26,SPD!AL26,SPMW!AL26,SSEH!AL26,SSES!AL26) -> 0 | AM26: =CHOOSE(m_identity,ENWL!AM26, NPgN!AM26, NPgY!AM26, WMID!AM26, EMID!AM26, SWALES!AM26, SWEST!AM26, LPN!AM26,SPN!AM26,EPN!AM26,SPD!AM26,SPMW!AM26,SSEH!AM26,SSES!AM26) -> 0 | AN26: =CHOOSE(m_identity,ENWL!AN26, NPgN!AN26, NPgY!AN26, WMID!AN26, EMID!AN26, SWALES!AN26, SWEST!AN26, LPN!AN26,SPN!AN26,EPN!AN26,SPD!AN26,SPMW!AN26,SSEH!AN26,SSES!AN26) -> 0 | AO26: =CHOOSE(m_identity,ENWL!AO26, NPgN!AO26, NPgY!AO26, WMID!AO26, EMID!AO26, SWALES!AO26, SWEST!AO26, LPN!AO26,SPN!AO26,EPN!AO26,SPD!AO26,SPMW!AO26,SSEH!AO26,SSES!AO26) -> 0 | AP26: =CHOOSE(m_identity,ENWL!AP26, NPgN!AP26, NPgY!AP26, WMID!AP26, EMID!AP26, SWALES!AP26, SWEST!AP26, LPN!AP26,SPN!AP26,EPN!AP26,SPD!AP26,SPMW!AP26,SSEH!AP26,SSES!AP26) -> 0 | AQ26: =CHOOSE(m_identity,ENWL!AQ26, NPgN!AQ26, NPgY!AQ26, WMID!AQ26, EMID!AQ26, SWALES!AQ26, SWEST!AQ26, LPN!AQ26,SPN!AQ26,EPN!AQ26,SPD!AQ26,SPMW!AQ26,SSEH!AQ26,SSES!AQ26) -> 0
E27: Allowed Expenditure - Moorside Costs (ENWL) | F27: CRC 3L | G27: £m 12/13 prices | H27: UCMC | AJ27: =CHOOSE(m_identity,ENWL!AJ27, NPgN!AJ27, NPgY!AJ27, WMID!AJ27, EMID!AJ27, SWALES!AJ27, SWEST!AJ27, LPN!AJ27,SPN!AJ27,EPN!AJ27,SPD!AJ27,SPMW!AJ27,SSEH!AJ27,SSES!AJ27) -> 0 | AK27: =CHOOSE(m_identity,ENWL!AK27, NPgN!AK27, NPgY!AK27, WMID!AK27, EMID!AK27, SWALES!AK27, SWEST!AK27, LPN!AK27,SPN!AK27,EPN!AK27,SPD!AK27,SPMW!AK27,SSEH!AK27,SSES!AK27) -> 0 | AL27: =CHOOSE(m_identity,ENWL!AL27, NPgN!AL27, NPgY!AL27, WMID!AL27, EMID!AL27, SWALES!AL27, SWEST!AL27, LPN!AL27,SPN!AL27,EPN!AL27,SPD!AL27,SPMW!AL27,SSEH!AL27,SSES!AL27) -> 0 | AM27: =CHOOSE(m_identity,ENWL!AM27, NPgN!AM27, NPgY!AM27, WMID!AM27, EMID!AM27, SWALES!AM27, SWEST!AM27, LPN!AM27,SPN!AM27,EPN!AM27,SPD!AM27,SPMW!AM27,SSEH!AM27,SSES!AM27) -> 0 | AN27: =CHOOSE(m_identity,ENWL!AN27, NPgN!AN27, NPgY!AN27, WMID!AN27, EMID!AN27, SWALES!AN27, SWEST!AN27, LPN!AN27,SPN!AN27,EPN!AN27,SPD!AN27,SPMW!AN27,SSEH!AN27,SSES!AN27) -> 0 | AO27: =CHOOSE(m_identity,ENWL!AO27, NPgN!AO27, NPgY!AO27, WMID!AO27, EMID!AO27, SWALES!AO27, SWEST!AO27, LPN!AO27,SPN!AO27,EPN!AO27,SPD!AO27,SPMW!AO27,SSEH!AO27,SSES!AO27) -> 0 | AP27: =CHOOSE(m_identity,ENWL!AP27, NPgN!AP27, NPgY!AP27, WMID!AP27, EMID!AP27, SWALES!AP27, SWEST!AP27, LPN!AP27,SPN!AP27,EPN!AP27,SPD!AP27,SPMW!AP27,SSEH!AP27,SSES!AP27) -> 0 | AQ27: =CHOOSE(m_identity,ENWL!AQ27, NPgN!AQ27, NPgY!AQ27, WMID!AQ27, EMID!AQ27, SWALES!AQ27, SWEST!AQ27, LPN!AQ27,SPN!AQ27,EPN!AQ27,SPD!AQ27,SPMW!AQ27,SSEH!AQ27,SSES!AQ27) -> 0
E28: Allowed Expenditure - Shetland Uncertain Energy (SSEH) | F28: CRC 3F | G28: £m 12/13 prices | H28: UCSFE | AJ28: =CHOOSE(m_identity,ENWL!AJ28, NPgN!AJ28, NPgY!AJ28, WMID!AJ28, EMID!AJ28, SWALES!AJ28, SWEST!AJ28, LPN!AJ28,SPN!AJ28,EPN!AJ28,SPD!AJ28,SPMW!AJ28,SSEH!AJ28,SSES!AJ28) -> 0 | AK28: =CHOOSE(m_identity,ENWL!AK28, NPgN!AK28, NPgY!AK28, WMID!AK28, EMID!AK28, SWALES!AK28, SWEST!AK28, LPN!AK28,SPN!AK28,EPN!AK28,SPD!AK28,SPMW!AK28,SSEH!AK28,SSES!AK28) -> 0 | AL28: =CHOOSE(m_identity,ENWL!AL28, NPgN!AL28, NPgY!AL28, WMID!AL28, EMID!AL28, SWALES!AL28, SWEST!AL28, LPN!AL28,SPN!AL28,EPN!AL28,SPD!AL28,SPMW!AL28,SSEH!AL28,SSES!AL28) -> 0 | AM28: =CHOOSE(m_identity,ENWL!AM28, NPgN!AM28, NPgY!AM28, WMID!AM28, EMID!AM28, SWALES!AM28, SWEST!AM28, LPN!AM28,SPN!AM28,EPN!AM28,SPD!AM28,SPMW!AM28,SSEH!AM28,SSES!AM28) -> 0 | AN28: =CHOOSE(m_identity,ENWL!AN28, NPgN!AN28, NPgY!AN28, WMID!AN28, EMID!AN28, SWALES!AN28, SWEST!AN28, LPN!AN28,SPN!AN28,EPN!AN28,SPD!AN28,SPMW!AN28,SSEH!AN28,SSES!AN28) -> 0 | AO28: =CHOOSE(m_identity,ENWL!AO28, NPgN!AO28, NPgY!AO28, WMID!AO28, EMID!AO28, SWALES!AO28, SWEST!AO28, LPN!AO28,SPN!AO28,EPN!AO28,SPD!AO28,SPMW!AO28,SSEH!AO28,SSES!AO28) -> 0 | AP28: =CHOOSE(m_identity,ENWL!AP28, NPgN!AP28, NPgY!AP28, WMID!AP28, EMID!AP28, SWALES!AP28, SWEST!AP28, LPN!AP28,SPN!AP28,EPN!AP28,SPD!AP28,SPMW!AP28,SSEH!AP28,SSES!AP28) -> 0 | AQ28: =CHOOSE(m_identity,ENWL!AQ28, NPgN!AQ28, NPgY!AQ28, WMID!AQ28, EMID!AQ28, SWALES!AQ28, SWEST!AQ28, LPN!AQ28,SPN!AQ28,EPN!AQ28,SPD!AQ28,SPMW!AQ28,SSEH!AQ28,SSES!AQ28) -> 0
E29: Allowed Expenditure - Shetland Competitive Process (SSEH) | F29: CRC 3F | G29: £m 12/13 prices | H29: UCCPC | AJ29: =CHOOSE(m_identity,ENWL!AJ29, NPgN!AJ29, NPgY!AJ29, WMID!AJ29, EMID!AJ29, SWALES!AJ29, SWEST!AJ29, LPN!AJ29,SPN!AJ29,EPN!AJ29,SPD!AJ29,SPMW!AJ29,SSEH!AJ29,SSES!AJ29) -> 0 | AK29: =CHOOSE(m_identity,ENWL!AK29, NPgN!AK29, NPgY!AK29, WMID!AK29, EMID!AK29, SWALES!AK29, SWEST!AK29, LPN!AK29,SPN!AK29,EPN!AK29,SPD!AK29,SPMW!AK29,SSEH!AK29,SSES!AK29) -> 0 | AL29: =CHOOSE(m_identity,ENWL!AL29, NPgN!AL29, NPgY!AL29, WMID!AL29, EMID!AL29, SWALES!AL29, SWEST!AL29, LPN!AL29,SPN!AL29,EPN!AL29,SPD!AL29,SPMW!AL29,SSEH!AL29,SSES!AL29) -> 0 | AM29: =CHOOSE(m_identity,ENWL!AM29, NPgN!AM29, NPgY!AM29, WMID!AM29, EMID!AM29, SWALES!AM29, SWEST!AM29, LPN!AM29,SPN!AM29,EPN!AM29,SPD!AM29,SPMW!AM29,SSEH!AM29,SSES!AM29) -> 0 | AN29: =CHOOSE(m_identity,ENWL!AN29, NPgN!AN29, NPgY!AN29, WMID!AN29, EMID!AN29, SWALES!AN29, SWEST!AN29, LPN!AN29,SPN!AN29,EPN!AN29,SPD!AN29,SPMW!AN29,SSEH!AN29,SSES!AN29) -> 0 | AO29: =CHOOSE(m_identity,ENWL!AO29, NPgN!AO29, NPgY!AO29, WMID!AO29, EMID!AO29, SWALES!AO29, SWEST!AO29, LPN!AO29,SPN!AO29,EPN!AO29,SPD!AO29,SPMW!AO29,SSEH!AO29,SSES!AO29) -> 0 | AP29: =CHOOSE(m_identity,ENWL!AP29, NPgN!AP29, NPgY!AP29, WMID!AP29, EMID!AP29, SWALES!AP29, SWEST!AP29, LPN!AP29,SPN!AP29,EPN!AP29,SPD!AP29,SPMW!AP29,SSEH!AP29,SSES!AP29) -> 0 | AQ29: =CHOOSE(m_identity,ENWL!AQ29, NPgN!AQ29, NPgY!AQ29, WMID!AQ29, EMID!AQ29, SWALES!AQ29, SWEST!AQ29, LPN!AQ29,SPN!AQ29,EPN!AQ29,SPD!AQ29,SPMW!AQ29,SSEH!AQ29,SSES!AQ29) -> 0
E30: Allowed Expenditure - Link Boxes | F30: CRC 3F | G30: £m 12/13 prices | H30: UCLB | AJ30: =CHOOSE(m_identity,ENWL!AJ30, NPgN!AJ30, NPgY!AJ30, WMID!AJ30, EMID!AJ30, SWALES!AJ30, SWEST!AJ30, LPN!AJ30,SPN!AJ30,EPN!AJ30,SPD!AJ30,SPMW!AJ30,SSEH!AJ30,SSES!AJ30) -> 0 | AK30: =CHOOSE(m_identity,ENWL!AK30, NPgN!AK30, NPgY!AK30, WMID!AK30, EMID!AK30, SWALES!AK30, SWEST!AK30, LPN!AK30,SPN!AK30,EPN!AK30,SPD!AK30,SPMW!AK30,SSEH!AK30,SSES!AK30) -> 0 | AL30: =CHOOSE(m_identity,ENWL!AL30, NPgN!AL30, NPgY!AL30, WMID!AL30, EMID!AL30, SWALES!AL30, SWEST!AL30, LPN!AL30,SPN!AL30,EPN!AL30,SPD!AL30,SPMW!AL30,SSEH!AL30,SSES!AL30) -> 0 | AM30: =CHOOSE(m_identity,ENWL!AM30, NPgN!AM30, NPgY!AM30, WMID!AM30, EMID!AM30, SWALES!AM30, SWEST!AM30, LPN!AM30,SPN!AM30,EPN!AM30,SPD!AM30,SPMW!AM30,SSEH!AM30,SSES!AM30) -> 0 | AN30: =CHOOSE(m_identity,ENWL!AN30, NPgN!AN30, NPgY!AN30, WMID!AN30, EMID!AN30, SWALES!AN30, SWEST!AN30, LPN!AN30,SPN!AN30,EPN!AN30,SPD!AN30,SPMW!AN30,SSEH!AN30,SSES!AN30) -> 0 | AO30: =CHOOSE(m_identity,ENWL!AO30, NPgN!AO30, NPgY!AO30, WMID!AO30, EMID!AO30, SWALES!AO30, SWEST!AO30, LPN!AO30,SPN!AO30,EPN!AO30,SPD!AO30,SPMW!AO30,SSEH!AO30,SSES!AO30) -> 0 | AP30: =CHOOSE(m_identity,ENWL!AP30, NPgN!AP30, NPgY!AP30, WMID!AP30, EMID!AP30, SWALES!AP30, SWEST!AP30, LPN!AP30,SPN!AP30,EPN!AP30,SPD!AP30,SPMW!AP30,SSEH!AP30,SSES!AP30) -> 0 | AQ30: =CHOOSE(m_identity,ENWL!AQ30, NPgN!AQ30, NPgY!AQ30, WMID!AQ30, EMID!AQ30, SWALES!AQ30, SWEST!AQ30, LPN!AQ30,SPN!AQ30,EPN!AQ30,SPD!AQ30,SPMW!AQ30,SSEH!AQ30,SSES!AQ30) -> 0
E31: Allowed Expenditure - Subsea Cables (SSEH) | F31: CRC 3F | G31: £m 12/13 prices | H31: UCSC | AJ31: =CHOOSE(m_identity,ENWL!AJ31, NPgN!AJ31, NPgY!AJ31, WMID!AJ31, EMID!AJ31, SWALES!AJ31, SWEST!AJ31, LPN!AJ31,SPN!AJ31,EPN!AJ31,SPD!AJ31,SPMW!AJ31,SSEH!AJ31,SSES!AJ31) -> 0 | AK31: =CHOOSE(m_identity,ENWL!AK31, NPgN!AK31, NPgY!AK31, WMID!AK31, EMID!AK31, SWALES!AK31, SWEST!AK31, LPN!AK31,SPN!AK31,EPN!AK31,SPD!AK31,SPMW!AK31,SSEH!AK31,SSES!AK31) -> 0 | AL31: =CHOOSE(m_identity,ENWL!AL31, NPgN!AL31, NPgY!AL31, WMID!AL31, EMID!AL31, SWALES!AL31, SWEST!AL31, LPN!AL31,SPN!AL31,EPN!AL31,SPD!AL31,SPMW!AL31,SSEH!AL31,SSES!AL31) -> 0 | AM31: =CHOOSE(m_identity,ENWL!AM31, NPgN!AM31, NPgY!AM31, WMID!AM31, EMID!AM31, SWALES!AM31, SWEST!AM31, LPN!AM31,SPN!AM31,EPN!AM31,SPD!AM31,SPMW!AM31,SSEH!AM31,SSES!AM31) -> 0 | AN31: =CHOOSE(m_identity,ENWL!AN31, NPgN!AN31, NPgY!AN31, WMID!AN31, EMID!AN31, SWALES!AN31, SWEST!AN31, LPN!AN31,SPN!AN31,EPN!AN31,SPD!AN31,SPMW!AN31,SSEH!AN31,SSES!AN31) -> 0 | AO31: =CHOOSE(m_identity,ENWL!AO31, NPgN!AO31, NPgY!AO31, WMID!AO31, EMID!AO31, SWALES!AO31, SWEST!AO31, LPN!AO31,SPN!AO31,EPN!AO31,SPD!AO31,SPMW!AO31,SSEH!AO31,SSES!AO31) -> 0 | AP31: =CHOOSE(m_identity,ENWL!AP31, NPgN!AP31, NPgY!AP31, WMID!AP31, EMID!AP31, SWALES!AP31, SWEST!AP31, LPN!AP31,SPN!AP31,EPN!AP31,SPD!AP31,SPMW!AP31,SSEH!AP31,SSES!AP31) -> 0 | AQ31: =CHOOSE(m_identity,ENWL!AQ31, NPgN!AQ31, NPgY!AQ31, WMID!AQ31, EMID!AQ31, SWALES!AQ31, SWEST!AQ31, LPN!AQ31,SPN!AQ31,EPN!AQ31,SPD!AQ31,SPMW!AQ31,SSEH!AQ31,SSES!AQ31) -> 0
E32: Allowed Expenditure - Uncertain Rail Electrification Costs | F32: CRC 3F | G32: £m 12/13 prices | H32: UCRE | AJ32: =CHOOSE(m_identity,ENWL!AJ32, NPgN!AJ32, NPgY!AJ32, WMID!AJ32, EMID!AJ32, SWALES!AJ32, SWEST!AJ32, LPN!AJ32,SPN!AJ32,EPN!AJ32,SPD!AJ32,SPMW!AJ32,SSEH!AJ32,SSES!AJ32) -> 0 | AK32: =CHOOSE(m_identity,ENWL!AK32, NPgN!AK32, NPgY!AK32, WMID!AK32, EMID!AK32, SWALES!AK32, SWEST!AK32, LPN!AK32,SPN!AK32,EPN!AK32,SPD!AK32,SPMW!AK32,SSEH!AK32,SSES!AK32) -> 0 | AL32: =CHOOSE(m_identity,ENWL!AL32, NPgN!AL32, NPgY!AL32, WMID!AL32, EMID!AL32, SWALES!AL32, SWEST!AL32, LPN!AL32,SPN!AL32,EPN!AL32,SPD!AL32,SPMW!AL32,SSEH!AL32,SSES!AL32) -> 0 | AM32: =CHOOSE(m_identity,ENWL!AM32, NPgN!AM32, NPgY!AM32, WMID!AM32, EMID!AM32, SWALES!AM32, SWEST!AM32, LPN!AM32,SPN!AM32,EPN!AM32,SPD!AM32,SPMW!AM32,SSEH!AM32,SSES!AM32) -> 0 | AN32: =CHOOSE(m_identity,ENWL!AN32, NPgN!AN32, NPgY!AN32, WMID!AN32, EMID!AN32, SWALES!AN32, SWEST!AN32, LPN!AN32,SPN!AN32,EPN!AN32,SPD!AN32,SPMW!AN32,SSEH!AN32,SSES!AN32) -> 0 | AO32: =CHOOSE(m_identity,ENWL!AO32, NPgN!AO32, NPgY!AO32, WMID!AO32, EMID!AO32, SWALES!AO32, SWEST!AO32, LPN!AO32,SPN!AO32,EPN!AO32,SPD!AO32,SPMW!AO32,SSEH!AO32,SSES!AO32) -> 0 | AP32: =CHOOSE(m_identity,ENWL!AP32, NPgN!AP32, NPgY!AP32, WMID!AP32, EMID!AP32, SWALES!AP32, SWEST!AP32, LPN!AP32,SPN!AP32,EPN!AP32,SPD!AP32,SPMW!AP32,SSEH!AP32,SSES!AP32) -> 0 | AQ32: =CHOOSE(m_identity,ENWL!AQ32, NPgN!AQ32, NPgY!AQ32, WMID!AQ32, EMID!AQ32, SWALES!AQ32, SWEST!AQ32, LPN!AQ32,SPN!AQ32,EPN!AQ32,SPD!AQ32,SPMW!AQ32,SSEH!AQ32,SSES!AQ32) -> 0
E33: Allowed Expenditure - Innovation Roll-out Mechanism | F33: CRC 3D | G33: £m 12/13 prices | H33: IRM | AJ33: =CHOOSE(m_identity,ENWL!AJ33, NPgN!AJ33, NPgY!AJ33, WMID!AJ33, EMID!AJ33, SWALES!AJ33, SWEST!AJ33, LPN!AJ33,SPN!AJ33,EPN!AJ33,SPD!AJ33,SPMW!AJ33,SSEH!AJ33,SSES!AJ33) -> 0 | AK33: =CHOOSE(m_identity,ENWL!AK33, NPgN!AK33, NPgY!AK33, WMID!AK33, EMID!AK33, SWALES!AK33, SWEST!AK33, LPN!AK33,SPN!AK33,EPN!AK33,SPD!AK33,SPMW!AK33,SSEH!AK33,SSES!AK33) -> 0 | AL33: =CHOOSE(m_identity,ENWL!AL33, NPgN!AL33, NPgY!AL33, WMID!AL33, EMID!AL33, SWALES!AL33, SWEST!AL33, LPN!AL33,SPN!AL33,EPN!AL33,SPD!AL33,SPMW!AL33,SSEH!AL33,SSES!AL33) -> 0 | AM33: =CHOOSE(m_identity,ENWL!AM33, NPgN!AM33, NPgY!AM33, WMID!AM33, EMID!AM33, SWALES!AM33, SWEST!AM33, LPN!AM33,SPN!AM33,EPN!AM33,SPD!AM33,SPMW!AM33,SSEH!AM33,SSES!AM33) -> 0 | AN33: =CHOOSE(m_identity,ENWL!AN33, NPgN!AN33, NPgY!AN33, WMID!AN33, EMID!AN33, SWALES!AN33, SWEST!AN33, LPN!AN33,SPN!AN33,EPN!AN33,SPD!AN33,SPMW!AN33,SSEH!AN33,SSES!AN33) -> 0 | AO33: =CHOOSE(m_identity,ENWL!AO33, NPgN!AO33, NPgY!AO33, WMID!AO33, EMID!AO33, SWALES!AO33, SWEST!AO33, LPN!AO33,SPN!AO33,EPN!AO33,SPD!AO33,SPMW!AO33,SSEH!AO33,SSES!AO33) -> 4.643312616 | AP33: =CHOOSE(m_identity,ENWL!AP33, NPgN!AP33, NPgY!AP33, WMID!AP33, EMID!AP33, SWALES!AP33, SWEST!AP33, LPN!AP33,SPN!AP33,EPN!AP33,SPD!AP33,SPMW!AP33,SSEH!AP33,SSES!AP33) -> 8.202429895 | AQ33: =CHOOSE(m_identity,ENWL!AQ33, NPgN!AQ33, NPgY!AQ33, WMID!AQ33, EMID!AQ33, SWALES!AQ33, SWEST!AQ33, LPN!AQ33,SPN!AQ33,EPN!AQ33,SPD!AQ33,SPMW!AQ33,SSEH!AQ33,SSES!AQ33) -> 2.2429151
E34: Allowed Expenditure - Shetland Extension Fixed Energy Costs (SSEH) | F34: CRC 3F | G34: £m 12/13 prices | H34: UCSEFEC | AJ34: =CHOOSE(m_identity,ENWL!AJ34, NPgN!AJ34, NPgY!AJ34, WMID!AJ34, EMID!AJ34, SWALES!AJ34, SWEST!AJ34, LPN!AJ34,SPN!AJ34,EPN!AJ34,SPD!AJ34,SPMW!AJ34,SSEH!AJ34,SSES!AJ34) -> 0 | AK34: =CHOOSE(m_identity,ENWL!AK34, NPgN!AK34, NPgY!AK34, WMID!AK34, EMID!AK34, SWALES!AK34, SWEST!AK34, LPN!AK34,SPN!AK34,EPN!AK34,SPD!AK34,SPMW!AK34,SSEH!AK34,SSES!AK34) -> 0 | AL34: =CHOOSE(m_identity,ENWL!AL34, NPgN!AL34, NPgY!AL34, WMID!AL34, EMID!AL34, SWALES!AL34, SWEST!AL34, LPN!AL34,SPN!AL34,EPN!AL34,SPD!AL34,SPMW!AL34,SSEH!AL34,SSES!AL34) -> 0 | AM34: =CHOOSE(m_identity,ENWL!AM34, NPgN!AM34, NPgY!AM34, WMID!AM34, EMID!AM34, SWALES!AM34, SWEST!AM34, LPN!AM34,SPN!AM34,EPN!AM34,SPD!AM34,SPMW!AM34,SSEH!AM34,SSES!AM34) -> 0 | AN34: =CHOOSE(m_identity,ENWL!AN34, NPgN!AN34, NPgY!AN34, WMID!AN34, EMID!AN34, SWALES!AN34, SWEST!AN34, LPN!AN34,SPN!AN34,EPN!AN34,SPD!AN34,SPMW!AN34,SSEH!AN34,SSES!AN34) -> 0 | AO34: =CHOOSE(m_identity,ENWL!AO34, NPgN!AO34, NPgY!AO34, WMID!AO34, EMID!AO34, SWALES!AO34, SWEST!AO34, LPN!AO34,SPN!AO34,EPN!AO34,SPD!AO34,SPMW!AO34,SSEH!AO34,SSES!AO34) -> 0 | AP34: =CHOOSE(m_identity,ENWL!AP34, NPgN!AP34, NPgY!AP34, WMID!AP34, EMID!AP34, SWALES!AP34, SWEST!AP34, LPN!AP34,SPN!AP34,EPN!AP34,SPD!AP34,SPMW!AP34,SSEH!AP34,SSES!AP34) -> 0 | AQ34: =CHOOSE(m_identity,ENWL!AQ34, NPgN!AQ34, NPgY!AQ34, WMID!AQ34, EMID!AQ34, SWALES!AQ34, SWEST!AQ34, LPN!AQ34,SPN!AQ34,EPN!AQ34,SPD!AQ34,SPMW!AQ34,SSEH!AQ34,SSES!AQ34) -> 0
E35: Allowed Expenditure - Shetland Enduring Solution Process Costs (SSEH) | F35: CRC 3F | G35: £m 12/13 prices | H35: UCSESPC | AJ35: =CHOOSE(m_identity,ENWL!AJ35, NPgN!AJ35, NPgY!AJ35, WMID!AJ35, EMID!AJ35, SWALES!AJ35, SWEST!AJ35, LPN!AJ35,SPN!AJ35,EPN!AJ35,SPD!AJ35,SPMW!AJ35,SSEH!AJ35,SSES!AJ35) -> 0 | AK35: =CHOOSE(m_identity,ENWL!AK35, NPgN!AK35, NPgY!AK35, WMID!AK35, EMID!AK35, SWALES!AK35, SWEST!AK35, LPN!AK35,SPN!AK35,EPN!AK35,SPD!AK35,SPMW!AK35,SSEH!AK35,SSES!AK35) -> 0 | AL35: =CHOOSE(m_identity,ENWL!AL35, NPgN!AL35, NPgY!AL35, WMID!AL35, EMID!AL35, SWALES!AL35, SWEST!AL35, LPN!AL35,SPN!AL35,EPN!AL35,SPD!AL35,SPMW!AL35,SSEH!AL35,SSES!AL35) -> 0 | AM35: =CHOOSE(m_identity,ENWL!AM35, NPgN!AM35, NPgY!AM35, WMID!AM35, EMID!AM35, SWALES!AM35, SWEST!AM35, LPN!AM35,SPN!AM35,EPN!AM35,SPD!AM35,SPMW!AM35,SSEH!AM35,SSES!AM35) -> 0 | AN35: =CHOOSE(m_identity,ENWL!AN35, NPgN!AN35, NPgY!AN35, WMID!AN35, EMID!AN35, SWALES!AN35, SWEST!AN35, LPN!AN35,SPN!AN35,EPN!AN35,SPD!AN35,SPMW!AN35,SSEH!AN35,SSES!AN35) -> 0 | AO35: =CHOOSE(m_identity,ENWL!AO35, NPgN!AO35, NPgY!AO35, WMID!AO35, EMID!AO35, SWALES!AO35, SWEST!AO35, LPN!AO35,SPN!AO35,EPN!AO35,SPD!AO35,SPMW!AO35,SSEH!AO35,SSES!AO35) -> 0 | AP35: =CHOOSE(m_identity,ENWL!AP35, NPgN!AP35, NPgY!AP35, WMID!AP35, EMID!AP35, SWALES!AP35, SWEST!AP35, LPN!AP35,SPN!AP35,EPN!AP35,SPD!AP35,SPMW!AP35,SSEH!AP35,SSES!AP35) -> 0 | AQ35: =CHOOSE(m_identity,ENWL!AQ35, NPgN!AQ35, NPgY!AQ35, WMID!AQ35, EMID!AQ35, SWALES!AQ35, SWEST!AQ35, LPN!AQ35,SPN!AQ35,EPN!AQ35,SPD!AQ35,SPMW!AQ35,SSEH!AQ35,SSES!AQ35) -> 0
E36: Allowed Expenditure - Shetland Extension Battery Costs (SSEH) | F36: CRC 3F | G36: £m 12/13 prices | H36: UCSEBC | AJ36: =CHOOSE(m_identity,ENWL!AJ36, NPgN!AJ36, NPgY!AJ36, WMID!AJ36, EMID!AJ36, SWALES!AJ36, SWEST!AJ36, LPN!AJ36,SPN!AJ36,EPN!AJ36,SPD!AJ36,SPMW!AJ36,SSEH!AJ36,SSES!AJ36) -> 0 | AK36: =CHOOSE(m_identity,ENWL!AK36, NPgN!AK36, NPgY!AK36, WMID!AK36, EMID!AK36, SWALES!AK36, SWEST!AK36, LPN!AK36,SPN!AK36,EPN!AK36,SPD!AK36,SPMW!AK36,SSEH!AK36,SSES!AK36) -> 0 | AL36: =CHOOSE(m_identity,ENWL!AL36, NPgN!AL36, NPgY!AL36, WMID!AL36, EMID!AL36, SWALES!AL36, SWEST!AL36, LPN!AL36,SPN!AL36,EPN!AL36,SPD!AL36,SPMW!AL36,SSEH!AL36,SSES!AL36) -> 0 | AM36: =CHOOSE(m_identity,ENWL!AM36, NPgN!AM36, NPgY!AM36, WMID!AM36, EMID!AM36, SWALES!AM36, SWEST!AM36, LPN!AM36,SPN!AM36,EPN!AM36,SPD!AM36,SPMW!AM36,SSEH!AM36,SSES!AM36) -> 0 | AN36: =CHOOSE(m_identity,ENWL!AN36, NPgN!AN36, NPgY!AN36, WMID!AN36, EMID!AN36, SWALES!AN36, SWEST!AN36, LPN!AN36,SPN!AN36,EPN!AN36,SPD!AN36,SPMW!AN36,SSEH!AN36,SSES!AN36) -> 0 | AO36: =CHOOSE(m_identity,ENWL!AO36, NPgN!AO36, NPgY!AO36, WMID!AO36, EMID!AO36, SWALES!AO36, SWEST!AO36, LPN!AO36,SPN!AO36,EPN!AO36,SPD!AO36,SPMW!AO36,SSEH!AO36,SSES!AO36) -> 0 | AP36: =CHOOSE(m_identity,ENWL!AP36, NPgN!AP36, NPgY!AP36, WMID!AP36, EMID!AP36, SWALES!AP36, SWEST!AP36, LPN!AP36,SPN!AP36,EPN!AP36,SPD!AP36,SPMW!AP36,SSEH!AP36,SSES!AP36) -> 0 | AQ36: =CHOOSE(m_identity,ENWL!AQ36, NPgN!AQ36, NPgY!AQ36, WMID!AQ36, EMID!AQ36, SWALES!AQ36, SWEST!AQ36, LPN!AQ36,SPN!AQ36,EPN!AQ36,SPD!AQ36,SPMW!AQ36,SSEH!AQ36,SSES!AQ36) -> 0
E37: Pension Scheme Established Deficit revenue allowance | F37: CRC 3C | G37: £m 12/13 prices | H37: EDE | AJ37: =CHOOSE(m_identity,ENWL!AJ37, NPgN!AJ37, NPgY!AJ37, WMID!AJ37, EMID!AJ37, SWALES!AJ37, SWEST!AJ37, LPN!AJ37,SPN!AJ37,EPN!AJ37,SPD!AJ37,SPMW!AJ37,SSEH!AJ37,SSES!AJ37) -> 15.82585971 | AK37: =CHOOSE(m_identity,ENWL!AK37, NPgN!AK37, NPgY!AK37, WMID!AK37, EMID!AK37, SWALES!AK37, SWEST!AK37, LPN!AK37,SPN!AK37,EPN!AK37,SPD!AK37,SPMW!AK37,SSEH!AK37,SSES!AK37) -> 15.82585971 | AL37: =CHOOSE(m_identity,ENWL!AL37, NPgN!AL37, NPgY!AL37, WMID!AL37, EMID!AL37, SWALES!AL37, SWEST!AL37, LPN!AL37,SPN!AL37,EPN!AL37,SPD!AL37,SPMW!AL37,SSEH!AL37,SSES!AL37) -> 15.82585971 | AM37: =CHOOSE(m_identity,ENWL!AM37, NPgN!AM37, NPgY!AM37, WMID!AM37, EMID!AM37, SWALES!AM37, SWEST!AM37, LPN!AM37,SPN!AM37,EPN!AM37,SPD!AM37,SPMW!AM37,SSEH!AM37,SSES!AM37) -> 11.59963342 | AN37: =CHOOSE(m_identity,ENWL!AN37, NPgN!AN37, NPgY!AN37, WMID!AN37, EMID!AN37, SWALES!AN37, SWEST!AN37, LPN!AN37,SPN!AN37,EPN!AN37,SPD!AN37,SPMW!AN37,SSEH!AN37,SSES!AN37) -> 11.59963342 | AO37: =CHOOSE(m_identity,ENWL!AO37, NPgN!AO37, NPgY!AO37, WMID!AO37, EMID!AO37, SWALES!AO37, SWEST!AO37, LPN!AO37,SPN!AO37,EPN!AO37,SPD!AO37,SPMW!AO37,SSEH!AO37,SSES!AO37) -> 11.59963342 | AP37: =CHOOSE(m_identity,ENWL!AP37, NPgN!AP37, NPgY!AP37, WMID!AP37, EMID!AP37, SWALES!AP37, SWEST!AP37, LPN!AP37,SPN!AP37,EPN!AP37,SPD!AP37,SPMW!AP37,SSEH!AP37,SSES!AP37) -> 10.83142942 | AQ37: =CHOOSE(m_identity,ENWL!AQ37, NPgN!AQ37, NPgY!AQ37, WMID!AQ37, EMID!AQ37, SWALES!AQ37, SWEST!AQ37, LPN!AQ37,SPN!AQ37,EPN!AQ37,SPD!AQ37,SPMW!AQ37,SSEH!AQ37,SSES!AQ37) -> 9.398302137
E38: Other legacy adjustments' price control allowed revenue adjustment | F38: CRC 3A | G38: £m 12/13 prices | H38: OLREV | AJ38: =CHOOSE(m_identity,ENWL!AJ38, NPgN!AJ38, NPgY!AJ38, WMID!AJ38, EMID!AJ38, SWALES!AJ38, SWEST!AJ38, LPN!AJ38,SPN!AJ38,EPN!AJ38,SPD!AJ38,SPMW!AJ38,SSEH!AJ38,SSES!AJ38) -> -3.984678303
E39: Other legacy adjustments' price control RAV additions adjustment | F39: CRC 3A | G39: £m 12/13 prices | H39: OLRAV | AH39: =CHOOSE(m_identity,ENWL!AH39, NPgN!AH39, NPgY!AH39, WMID!AH39, EMID!AH39, SWALES!AH39, SWEST!AH39, LPN!AH39,SPN!AH39,EPN!AH39,SPD!AH39,SPMW!AH39,SSEH!AH39,SSES!AH39) -> -0.3354561548 | AI39: =CHOOSE(m_identity,ENWL!AI39, NPgN!AI39, NPgY!AI39, WMID!AI39, EMID!AI39, SWALES!AI39, SWEST!AI39, LPN!AI39,SPN!AI39,EPN!AI39,SPD!AI39,SPMW!AI39,SSEH!AI39,SSES!AI39) -> -4.478619956
E40: RAV Rolling Incentive legacy adjustments' price control allowed revenue adjustment | F40: CRC 3A | G40: £m 12/13 prices | H40: RIREV | AJ40: =CHOOSE(m_identity,ENWL!AJ40, NPgN!AJ40, NPgY!AJ40, WMID!AJ40, EMID!AJ40, SWALES!AJ40, SWEST!AJ40, LPN!AJ40,SPN!AJ40,EPN!AJ40,SPD!AJ40,SPMW!AJ40,SSEH!AJ40,SSES!AJ40) -> 0.152617688
E41: Tax liability revenue allowance adjustments - gearing / debt interest costs | F41: CRC 3C | G41: £m Nominal | H41: TGIE | AJ41: =CHOOSE(m_identity,ENWL!AJ41, NPgN!AJ41, NPgY!AJ41, WMID!AJ41, EMID!AJ41, SWALES!AJ41, SWEST!AJ41, LPN!AJ41,SPN!AJ41,EPN!AJ41,SPD!AJ41,SPMW!AJ41,SSEH!AJ41,SSES!AJ41) -> 0 | AK41: =CHOOSE(m_identity,ENWL!AK41, NPgN!AK41, NPgY!AK41, WMID!AK41, EMID!AK41, SWALES!AK41, SWEST!AK41, LPN!AK41,SPN!AK41,EPN!AK41,SPD!AK41,SPMW!AK41,SSEH!AK41,SSES!AK41) -> 0 | AL41: =CHOOSE(m_identity,ENWL!AL41, NPgN!AL41, NPgY!AL41, WMID!AL41, EMID!AL41, SWALES!AL41, SWEST!AL41, LPN!AL41,SPN!AL41,EPN!AL41,SPD!AL41,SPMW!AL41,SSEH!AL41,SSES!AL41) -> 0 | AM41: =CHOOSE(m_identity,ENWL!AM41, NPgN!AM41, NPgY!AM41, WMID!AM41, EMID!AM41, SWALES!AM41, SWEST!AM41, LPN!AM41,SPN!AM41,EPN!AM41,SPD!AM41,SPMW!AM41,SSEH!AM41,SSES!AM41) -> 0 | AN41: =CHOOSE(m_identity,ENWL!AN41, NPgN!AN41, NPgY!AN41, WMID!AN41, EMID!AN41, SWALES!AN41, SWEST!AN41, LPN!AN41,SPN!AN41,EPN!AN41,SPD!AN41,SPMW!AN41,SSEH!AN41,SSES!AN41) -> 0 | AO41: =CHOOSE(m_identity,ENWL!AO41, NPgN!AO41, NPgY!AO41, WMID!AO41, EMID!AO41, SWALES!AO41, SWEST!AO41, LPN!AO41,SPN!AO41,EPN!AO41,SPD!AO41,SPMW!AO41,SSEH!AO41,SSES!AO41) -> 0 | AP41: =CHOOSE(m_identity,ENWL!AP41, NPgN!AP41, NPgY!AP41, WMID!AP41, EMID!AP41, SWALES!AP41, SWEST!AP41, LPN!AP41,SPN!AP41,EPN!AP41,SPD!AP41,SPMW!AP41,SSEH!AP41,SSES!AP41) -> 0 | AQ41: =CHOOSE(m_identity,ENWL!AQ41, NPgN!AQ41, NPgY!AQ41, WMID!AQ41, EMID!AQ41, SWALES!AQ41, SWEST!AQ41, LPN!AQ41,SPN!AQ41,EPN!AQ41,SPD!AQ41,SPMW!AQ41,SSEH!AQ41,SSES!AQ41) -> 0
E42: Tax liability revenue allowance adjustments - tax trigger events | F42: CRC 3C | G42: £m 12/13 prices | H42: TTE | AJ42: =CHOOSE(m_identity,ENWL!AJ42, NPgN!AJ42, NPgY!AJ42, WMID!AJ42, EMID!AJ42, SWALES!AJ42, SWEST!AJ42, LPN!AJ42,SPN!AJ42,EPN!AJ42,SPD!AJ42,SPMW!AJ42,SSEH!AJ42,SSES!AJ42) -> 0 | AK42: =CHOOSE(m_identity,ENWL!AK42, NPgN!AK42, NPgY!AK42, WMID!AK42, EMID!AK42, SWALES!AK42, SWEST!AK42, LPN!AK42,SPN!AK42,EPN!AK42,SPD!AK42,SPMW!AK42,SSEH!AK42,SSES!AK42) -> 0 | AL42: =CHOOSE(m_identity,ENWL!AL42, NPgN!AL42, NPgY!AL42, WMID!AL42, EMID!AL42, SWALES!AL42, SWEST!AL42, LPN!AL42,SPN!AL42,EPN!AL42,SPD!AL42,SPMW!AL42,SSEH!AL42,SSES!AL42) -> -0.08782739546 | AM42: =CHOOSE(m_identity,ENWL!AM42, NPgN!AM42, NPgY!AM42, WMID!AM42, EMID!AM42, SWALES!AM42, SWEST!AM42, LPN!AM42,SPN!AM42,EPN!AM42,SPD!AM42,SPMW!AM42,SSEH!AM42,SSES!AM42) -> -0.03063809041 | AN42: =CHOOSE(m_identity,ENWL!AN42, NPgN!AN42, NPgY!AN42, WMID!AN42, EMID!AN42, SWALES!AN42, SWEST!AN42, LPN!AN42,SPN!AN42,EPN!AN42,SPD!AN42,SPMW!AN42,SSEH!AN42,SSES!AN42) -> 0 | AO42: =CHOOSE(m_identity,ENWL!AO42, NPgN!AO42, NPgY!AO42, WMID!AO42, EMID!AO42, SWALES!AO42, SWEST!AO42, LPN!AO42,SPN!AO42,EPN!AO42,SPD!AO42,SPMW!AO42,SSEH!AO42,SSES!AO42) -> 0 | AP42: =CHOOSE(m_identity,ENWL!AP42, NPgN!AP42, NPgY!AP42, WMID!AP42, EMID!AP42, SWALES!AP42, SWEST!AP42, LPN!AP42,SPN!AP42,EPN!AP42,SPD!AP42,SPMW!AP42,SSEH!AP42,SSES!AP42) -> 0 | AQ42: =CHOOSE(m_identity,ENWL!AQ42, NPgN!AQ42, NPgY!AQ42, WMID!AQ42, EMID!AQ42, SWALES!AQ42, SWEST!AQ42, LPN!AQ42,SPN!AQ42,EPN!AQ42,SPD!AQ42,SPMW!AQ42,SSEH!AQ42,SSES!AQ42) -> 0
E43: Legacy general tax pool adjustment | F43: CRC 3A | G43: £m Nominal | H43: LTPG | AH43: =CHOOSE(m_identity,ENWL!AH43, NPgN!AH43, NPgY!AH43, WMID!AH43, EMID!AH43, SWALES!AH43, SWEST!AH43, LPN!AH43,SPN!AH43,EPN!AH43,SPD!AH43,SPMW!AH43,SSEH!AH43,SSES!AH43) -> 0 | AI43: =CHOOSE(m_identity,ENWL!AI43, NPgN!AI43, NPgY!AI43, WMID!AI43, EMID!AI43, SWALES!AI43, SWEST!AI43, LPN!AI43,SPN!AI43,EPN!AI43,SPD!AI43,SPMW!AI43,SSEH!AI43,SSES!AI43) -> 1.962
E44: Legacy special tax pool adjustment | F44: CRC 3A | G44: £m Nominal | H44: LTPS | AH44: =CHOOSE(m_identity,ENWL!AH44, NPgN!AH44, NPgY!AH44, WMID!AH44, EMID!AH44, SWALES!AH44, SWEST!AH44, LPN!AH44,SPN!AH44,EPN!AH44,SPD!AH44,SPMW!AH44,SSEH!AH44,SSES!AH44) -> 0 | AI44: =CHOOSE(m_identity,ENWL!AI44, NPgN!AI44, NPgY!AI44, WMID!AI44, EMID!AI44, SWALES!AI44, SWEST!AI44, LPN!AI44,SPN!AI44,EPN!AI44,SPD!AI44,SPMW!AI44,SSEH!AI44,SSES!AI44) -> 5.471972934
E45: Deferred Revenue Expenditure pre-RIIO movement adjustment | F45: CRC 3A | G45: £m Nominal | H45: LTPD | AH45: =CHOOSE(m_identity,ENWL!AH45, NPgN!AH45, NPgY!AH45, WMID!AH45, EMID!AH45, SWALES!AH45, SWEST!AH45, LPN!AH45,SPN!AH45,EPN!AH45,SPD!AH45,SPMW!AH45,SSEH!AH45,SSES!AH45) -> 0 | AI45: =CHOOSE(m_identity,ENWL!AI45, NPgN!AI45, NPgY!AI45, WMID!AI45, EMID!AI45, SWALES!AI45, SWEST!AI45, LPN!AI45,SPN!AI45,EPN!AI45,SPD!AI45,SPMW!AI45,SSEH!AI45,SSES!AI45) -> -21.736
E46: DRE: Gross capex adjustment | F46: CRC 3A | G46: £m Nominal | H46: LTPC | AH46: =CHOOSE(m_identity,ENWL!AH46, NPgN!AH46, NPgY!AH46, WMID!AH46, EMID!AH46, SWALES!AH46, SWEST!AH46, LPN!AH46,SPN!AH46,EPN!AH46,SPD!AH46,SPMW!AH46,SSEH!AH46,SSES!AH46) -> 0 | AI46: =CHOOSE(m_identity,ENWL!AI46, NPgN!AI46, NPgY!AI46, WMID!AI46, EMID!AI46, SWALES!AI46, SWEST!AI46, LPN!AI46,SPN!AI46,EPN!AI46,SPD!AI46,SPMW!AI46,SSEH!AI46,SSES!AI46) -> -21.971
B48: Policy
C50: Cost of capital
E52: Cost of debt | G52: annual real % | AJ52: =AJ11 -> 0.0255 | AK52: 0.0242 | AL52: 0.0229 | AM52: 0.0209 | AN52: 0.0194 | AO52: 0.0178 | AP52: 0.0162 | AQ52: 0.0162
E53: Cost of equity | G53: annual real % | AJ53: =CHOOSE(m_identity,ENWL!AJ53, NPgN!AJ53, NPgY!AJ53, WMID!AJ53, EMID!AJ53, SWALES!AJ53, SWEST!AJ53, LPN!AJ53,SPN!AJ53,EPN!AJ53,SPD!AJ53,SPMW!AJ53,SSEH!AJ53,SSES!AJ53) -> 0.06 | AK53: =CHOOSE(m_identity,ENWL!AK53, NPgN!AK53, NPgY!AK53, WMID!AK53, EMID!AK53, SWALES!AK53, SWEST!AK53, LPN!AK53,SPN!AK53,EPN!AK53,SPD!AK53,SPMW!AK53,SSEH!AK53,SSES!AK53) -> 0.06 | AL53: =CHOOSE(m_identity,ENWL!AL53, NPgN!AL53, NPgY!AL53, WMID!AL53, EMID!AL53, SWALES!AL53, SWEST!AL53, LPN!AL53,SPN!AL53,EPN!AL53,SPD!AL53,SPMW!AL53,SSEH!AL53,SSES!AL53) -> 0.06 | AM53: =CHOOSE(m_identity,ENWL!AM53, NPgN!AM53, NPgY!AM53, WMID!AM53, EMID!AM53, SWALES!AM53, SWEST!AM53, LPN!AM53,SPN!AM53,EPN!AM53,SPD!AM53,SPMW!AM53,SSEH!AM53,SSES!AM53) -> 0.06 | AN53: =CHOOSE(m_identity,ENWL!AN53, NPgN!AN53, NPgY!AN53, WMID!AN53, EMID!AN53, SWALES!AN53, SWEST!AN53, LPN!AN53,SPN!AN53,EPN!AN53,SPD!AN53,SPMW!AN53,SSEH!AN53,SSES!AN53) -> 0.06 | AO53: =CHOOSE(m_identity,ENWL!AO53, NPgN!AO53, NPgY!AO53, WMID!AO53, EMID!AO53, SWALES!AO53, SWEST!AO53, LPN!AO53,SPN!AO53,EPN!AO53,SPD!AO53,SPMW!AO53,SSEH!AO53,SSES!AO53) -> 0.06 | AP53: =CHOOSE(m_identity,ENWL!AP53, NPgN!AP53, NPgY!AP53, WMID!AP53, EMID!AP53, SWALES!AP53, SWEST!AP53, LPN!AP53,SPN!AP53,EPN!AP53,SPD!AP53,SPMW!AP53,SSEH!AP53,SSES!AP53) -> 0.06 | AQ53: =CHOOSE(m_identity,ENWL!AQ53, NPgN!AQ53, NPgY!AQ53, WMID!AQ53, EMID!AQ53, SWALES!AQ53, SWEST!AQ53, LPN!AQ53,SPN!AQ53,EPN!AQ53,SPD!AQ53,SPMW!AQ53,SSEH!AQ53,SSES!AQ53) -> 0.06
E54: Notional gearing | G54: % | J54: > | AI54: =CHOOSE(m_identity,ENWL!AI54, NPgN!AI54, NPgY!AI54, WMID!AI54, EMID!AI54, SWALES!AI54, SWEST!AI54, LPN!AI54,SPN!AI54,EPN!AI54,SPD!AI54,SPMW!AI54,SSEH!AI54,SSES!AI54) -> 0.65 | AJ54: =CHOOSE(m_identity,ENWL!AJ54, NPgN!AJ54, NPgY!AJ54, WMID!AJ54, EMID!AJ54, SWALES!AJ54, SWEST!AJ54, LPN!AJ54,SPN!AJ54,EPN!AJ54,SPD!AJ54,SPMW!AJ54,SSEH!AJ54,SSES!AJ54) -> 0.65 | AK54: =CHOOSE(m_identity,ENWL!AK54, NPgN!AK54, NPgY!AK54, WMID!AK54, EMID!AK54, SWALES!AK54, SWEST!AK54, LPN!AK54,SPN!AK54,EPN!AK54,SPD!AK54,SPMW!AK54,SSEH!AK54,SSES!AK54) -> 0.65 | AL54: =CHOOSE(m_identity,ENWL!AL54, NPgN!AL54, NPgY!AL54, WMID!AL54, EMID!AL54, SWALES!AL54, SWEST!AL54, LPN!AL54,SPN!AL54,EPN!AL54,SPD!AL54,SPMW!AL54,SSEH!AL54,SSES!AL54) -> 0.65 | AM54: =CHOOSE(m_identity,ENWL!AM54, NPgN!AM54, NPgY!AM54, WMID!AM54, EMID!AM54, SWALES!AM54, SWEST!AM54, LPN!AM54,SPN!AM54,EPN!AM54,SPD!AM54,SPMW!AM54,SSEH!AM54,SSES!AM54) -> 0.65 | AN54: =CHOOSE(m_identity,ENWL!AN54, NPgN!AN54, NPgY!AN54, WMID!AN54, EMID!AN54, SWALES!AN54, SWEST!AN54, LPN!AN54,SPN!AN54,EPN!AN54,SPD!AN54,SPMW!AN54,SSEH!AN54,SSES!AN54) -> 0.65 | AO54: =CHOOSE(m_identity,ENWL!AO54, NPgN!AO54, NPgY!AO54, WMID!AO54, EMID!AO54, SWALES!AO54, SWEST!AO54, LPN!AO54,SPN!AO54,EPN!AO54,SPD!AO54,SPMW!AO54,SSEH!AO54,SSES!AO54) -> 0.65 | AP54: =CHOOSE(m_identity,ENWL!AP54, NPgN!AP54, NPgY!AP54, WMID!AP54, EMID!AP54, SWALES!AP54, SWEST!AP54, LPN!AP54,SPN!AP54,EPN!AP54,SPD!AP54,SPMW!AP54,SSEH!AP54,SSES!AP54) -> 0.65 | AQ54: =CHOOSE(m_identity,ENWL!AQ54, NPgN!AQ54, NPgY!AQ54, WMID!AQ54, EMID!AQ54, SWALES!AQ54, SWEST!AQ54, LPN!AQ54,SPN!AQ54,EPN!AQ54,SPD!AQ54,SPMW!AQ54,SSEH!AQ54,SSES!AQ54) -> 0.65
E56: Vanilla WACC | G56: annual real % | AJ56: =(AJ52 * AJ54) + (AJ53 * (1 - AJ54)) -> 0.037575 | AK56: 0.03673 | AL56: 0.035885 | AM56: 0.034585 | AN56: 0.03361 | AO56: 0.03257 | AP56: 0.03153 | AQ56: 0.03153
C60: Indexation
E62: Forecast RPI (Financial Year, Simple Average) | G62: index value | J62: > | AG62: =CHOOSE(m_identity,ENWL!AG62, NPgN!AG62, NPgY!AG62, WMID!AG62, EMID!AG62, SWALES!AG62, SWEST!AG62, LPN!AG62,SPN!AG62,EPN!AG62,SPD!AG62,SPMW!AG62,SSEH!AG62,SSES!AG62) -> 244.675 | AH62: =CHOOSE(m_identity,ENWL!AH62, NPgN!AH62, NPgY!AH62, WMID!AH62, EMID!AH62, SWALES!AH62, SWEST!AH62, LPN!AH62,SPN!AH62,EPN!AH62,SPD!AH62,SPMW!AH62,SSEH!AH62,SSES!AH62) -> 251.733 | AI62: =CHOOSE(m_identity,ENWL!AI62, NPgN!AI62, NPgY!AI62, WMID!AI62, EMID!AI62, SWALES!AI62, SWEST!AI62, LPN!AI62,SPN!AI62,EPN!AI62,SPD!AI62,SPMW!AI62,SSEH!AI62,SSES!AI62) -> 259.537 | AJ62: =CHOOSE(m_identity,ENWL!AJ62, NPgN!AJ62, NPgY!AJ62, WMID!AJ62, EMID!AJ62, SWALES!AJ62, SWEST!AJ62, LPN!AJ62,SPN!AJ62,EPN!AJ62,SPD!AJ62,SPMW!AJ62,SSEH!AJ62,SSES!AJ62) -> 267.583 | AK62: =CHOOSE(m_identity,ENWL!AK62, NPgN!AK62, NPgY!AK62, WMID!AK62, EMID!AK62, SWALES!AK62, SWEST!AK62, LPN!AK62,SPN!AK62,EPN!AK62,SPD!AK62,SPMW!AK62,SSEH!AK62,SSES!AK62) -> 275.878 | AL62: =CHOOSE(m_identity,ENWL!AL62, NPgN!AL62, NPgY!AL62, WMID!AL62, EMID!AL62, SWALES!AL62, SWEST!AL62, LPN!AL62,SPN!AL62,EPN!AL62,SPD!AL62,SPMW!AL62,SSEH!AL62,SSES!AL62) -> 284.43 | AM62: =CHOOSE(m_identity,ENWL!AM62, NPgN!AM62, NPgY!AM62, WMID!AM62, EMID!AM62, SWALES!AM62, SWEST!AM62, LPN!AM62,SPN!AM62,EPN!AM62,SPD!AM62,SPMW!AM62,SSEH!AM62,SSES!AM62) -> 293.247 | AN62: =CHOOSE(m_identity,ENWL!AN62, NPgN!AN62, NPgY!AN62, WMID!AN62, EMID!AN62, SWALES!AN62, SWEST!AN62, LPN!AN62,SPN!AN62,EPN!AN62,SPD!AN62,SPMW!AN62,SSEH!AN62,SSES!AN62) -> 302.338 | AO62: =CHOOSE(m_identity,ENWL!AO62, NPgN!AO62, NPgY!AO62, WMID!AO62, EMID!AO62, SWALES!AO62, SWEST!AO62, LPN!AO62,SPN!AO62,EPN!AO62,SPD!AO62,SPMW!AO62,SSEH!AO62,SSES!AO62) -> 311.71 | AP62: =CHOOSE(m_identity,ENWL!AP62, NPgN!AP62, NPgY!AP62, WMID!AP62, EMID!AP62, SWALES!AP62, SWEST!AP62, LPN!AP62,SPN!AP62,EPN!AP62,SPD!AP62,SPMW!AP62,SSEH!AP62,SSES!AP62) -> 321.373 | AQ62: =CHOOSE(m_identity,ENWL!AQ62, NPgN!AQ62, NPgY!AQ62, WMID!AQ62, EMID!AQ62, SWALES!AQ62, SWEST!AQ62, LPN!AQ62,SPN!AQ62,EPN!AQ62,SPD!AQ62,SPMW!AQ62,SSEH!AQ62,SSES!AQ62) -> 331.336
E63: RPI assumption for interest costs | G63: index value | J63: > | AG63: =CHOOSE(m_identity,ENWL!AG63, NPgN!AG63, NPgY!AG63, WMID!AG63, EMID!AG63, SWALES!AG63, SWEST!AG63, LPN!AG63,SPN!AG63,EPN!AG63,SPD!AG63,SPMW!AG63,SSEH!AG63,SSES!AG63) -> 244.675 | AH63: =CHOOSE(m_identity,ENWL!AH63, NPgN!AH63, NPgY!AH63, WMID!AH63, EMID!AH63, SWALES!AH63, SWEST!AH63, LPN!AH63,SPN!AH63,EPN!AH63,SPD!AH63,SPMW!AH63,SSEH!AH63,SSES!AH63) -> 251.733 | AI63: =CHOOSE(m_identity,ENWL!AI63, NPgN!AI63, NPgY!AI63, WMID!AI63, EMID!AI63, SWALES!AI63, SWEST!AI63, LPN!AI63,SPN!AI63,EPN!AI63,SPD!AI63,SPMW!AI63,SSEH!AI63,SSES!AI63) -> 259.537 | AJ63: =CHOOSE(m_identity,ENWL!AJ63, NPgN!AJ63, NPgY!AJ63, WMID!AJ63, EMID!AJ63, SWALES!AJ63, SWEST!AJ63, LPN!AJ63,SPN!AJ63,EPN!AJ63,SPD!AJ63,SPMW!AJ63,SSEH!AJ63,SSES!AJ63) -> 267.583 | AK63: =CHOOSE(m_identity,ENWL!AK63, NPgN!AK63, NPgY!AK63, WMID!AK63, EMID!AK63, SWALES!AK63, SWEST!AK63, LPN!AK63,SPN!AK63,EPN!AK63,SPD!AK63,SPMW!AK63,SSEH!AK63,SSES!AK63) -> 275.878 | AL63: =CHOOSE(m_identity,ENWL!AL63, NPgN!AL63, NPgY!AL63, WMID!AL63, EMID!AL63, SWALES!AL63, SWEST!AL63, LPN!AL63,SPN!AL63,EPN!AL63,SPD!AL63,SPMW!AL63,SSEH!AL63,SSES!AL63) -> 284.43 | AM63: =CHOOSE(m_identity,ENWL!AM63, NPgN!AM63, NPgY!AM63, WMID!AM63, EMID!AM63, SWALES!AM63, SWEST!AM63, LPN!AM63,SPN!AM63,EPN!AM63,SPD!AM63,SPMW!AM63,SSEH!AM63,SSES!AM63) -> 293.247 | AN63: =CHOOSE(m_identity,ENWL!AN63, NPgN!AN63, NPgY!AN63, WMID!AN63, EMID!AN63, SWALES!AN63, SWEST!AN63, LPN!AN63,SPN!AN63,EPN!AN63,SPD!AN63,SPMW!AN63,SSEH!AN63,SSES!AN63) -> 302.338 | AO63: =CHOOSE(m_identity,ENWL!AO63, NPgN!AO63, NPgY!AO63, WMID!AO63, EMID!AO63, SWALES!AO63, SWEST!AO63, LPN!AO63,SPN!AO63,EPN!AO63,SPD!AO63,SPMW!AO63,SSEH!AO63,SSES!AO63) -> 311.71 | AP63: =CHOOSE(m_identity,ENWL!AP63, NPgN!AP63, NPgY!AP63, WMID!AP63, EMID!AP63, SWALES!AP63, SWEST!AP63, LPN!AP63,SPN!AP63,EPN!AP63,SPD!AP63,SPMW!AP63,SSEH!AP63,SSES!AP63) -> 321.373 | AQ63: =CHOOSE(m_identity,ENWL!AQ63, NPgN!AQ63, NPgY!AQ63, WMID!AQ63, EMID!AQ63, SWALES!AQ63, SWEST!AQ63, LPN!AQ63,SPN!AQ63,EPN!AQ63,SPD!AQ63,SPMW!AQ63,SSEH!AQ63,SSES!AQ63) -> 331.336
C65: TIM and capitalisation
E67: Years from t until normal reporting of actual costs | G67: years | I67: =CHOOSE(m_identity,ENWL!I67, NPgN!I67, NPgY!I67, WMID!I67, EMID!I67, SWALES!I67, SWEST!I67, LPN!I67,SPN!I67,EPN!I67,SPD!I67,SPMW!I67,SSEH!I67,SSES!I67) -> 2
E69: Capitalised share of totex | G69: % | AJ69: =CHOOSE(m_identity,ENWL!AJ69, NPgN!AJ69, NPgY!AJ69, WMID!AJ69, EMID!AJ69, SWALES!AJ69, SWEST!AJ69, LPN!AJ69,SPN!AJ69,EPN!AJ69,SPD!AJ69,SPMW!AJ69,SSEH!AJ69,SSES!AJ69) -> 0.68 | AK69: =CHOOSE(m_identity,ENWL!AK69, NPgN!AK69, NPgY!AK69, WMID!AK69, EMID!AK69, SWALES!AK69, SWEST!AK69, LPN!AK69,SPN!AK69,EPN!AK69,SPD!AK69,SPMW!AK69,SSEH!AK69,SSES!AK69) -> 0.68 | AL69: =CHOOSE(m_identity,ENWL!AL69, NPgN!AL69, NPgY!AL69, WMID!AL69, EMID!AL69, SWALES!AL69, SWEST!AL69, LPN!AL69,SPN!AL69,EPN!AL69,SPD!AL69,SPMW!AL69,SSEH!AL69,SSES!AL69) -> 0.68 | AM69: =CHOOSE(m_identity,ENWL!AM69, NPgN!AM69, NPgY!AM69, WMID!AM69, EMID!AM69, SWALES!AM69, SWEST!AM69, LPN!AM69,SPN!AM69,EPN!AM69,SPD!AM69,SPMW!AM69,SSEH!AM69,SSES!AM69) -> 0.68 | AN69: =CHOOSE(m_identity,ENWL!AN69, NPgN!AN69, NPgY!AN69, WMID!AN69, EMID!AN69, SWALES!AN69, SWEST!AN69, LPN!AN69,SPN!AN69,EPN!AN69,SPD!AN69,SPMW!AN69,SSEH!AN69,SSES!AN69) -> 0.68 | AO69: =CHOOSE(m_identity,ENWL!AO69, NPgN!AO69, NPgY!AO69, WMID!AO69, EMID!AO69, SWALES!AO69, SWEST!AO69, LPN!AO69,SPN!AO69,EPN!AO69,SPD!AO69,SPMW!AO69,SSEH!AO69,SSES!AO69) -> 0.68 | AP69: =CHOOSE(m_identity,ENWL!AP69, NPgN!AP69, NPgY!AP69, WMID!AP69, EMID!AP69, SWALES!AP69, SWEST!AP69, LPN!AP69,SPN!AP69,EPN!AP69,SPD!AP69,SPMW!AP69,SSEH!AP69,SSES!AP69) -> 0.68 | AQ69: =CHOOSE(m_identity,ENWL!AQ69, NPgN!AQ69, NPgY!AQ69, WMID!AQ69, EMID!AQ69, SWALES!AQ69, SWEST!AQ69, LPN!AQ69,SPN!AQ69,EPN!AQ69,SPD!AQ69,SPMW!AQ69,SSEH!AQ69,SSES!AQ69) -> 0.68
E71: Additional income % | G71: % | I71: =CHOOSE(m_identity,ENWL!I71, NPgN!I71, NPgY!I71, WMID!I71, EMID!I71, SWALES!I71, SWEST!I71, LPN!I71,SPN!I71,EPN!I71,SPD!I71,SPMW!I71,SSEH!I71,SSES!I71) -> 0.00657593563
E73: Incentive Strength | G73: % | I73: =CHOOSE(m_identity,ENWL!I73, NPgN!I73, NPgY!I73, WMID!I73, EMID!I73, SWALES!I73, SWEST!I73, LPN!I73,SPN!I73,EPN!I73,SPD!I73,SPMW!I73,SSEH!I73,SSES!I73) -> 0.5811466619
E75: Weight of Ofgem's view on price control totex | G75: % | I75: =CHOOSE(m_identity,ENWL!I75, NPgN!I75, NPgY!I75, WMID!I75, EMID!I75, SWALES!I75, SWEST!I75, LPN!I75,SPN!I75,EPN!I75,SPD!I75,SPMW!I75,SSEH!I75,SSES!I75) -> 0.75
E76: Weight of operator's view on price control totex | G76: % | I76: =CHOOSE(m_identity,ENWL!I76, NPgN!I76, NPgY!I76, WMID!I76, EMID!I76, SWALES!I76, SWEST!I76, LPN!I76,SPN!I76,EPN!I76,SPD!I76,SPMW!I76,SSEH!I76,SSES!I76) -> 0.25
E78: Ofgem's view of licensee totex | G78: £m 12/13 prices | I78: =CHOOSE(m_identity,ENWL!I78, NPgN!I78, NPgY!I78, WMID!I78, EMID!I78, SWALES!I78, SWEST!I78, LPN!I78,SPN!I78,EPN!I78,SPD!I78,SPMW!I78,SSEH!I78,SSES!I78) -> 1807.942609
E79: Operator's view of licensee totex | G79: £m 12/13 prices | I79: =CHOOSE(m_identity,ENWL!I79, NPgN!I79, NPgY!I79, WMID!I79, EMID!I79, SWALES!I79, SWEST!I79, LPN!I79,SPN!I79,EPN!I79,SPD!I79,SPMW!I79,SSEH!I79,SSES!I79) -> 1876.114115
E81: Ofgem's view of group price control totex | G81: £m 12/13 prices | I81: =CHOOSE(m_identity,ENWL!I81, NPgN!I81, NPgY!I81, WMID!I81, EMID!I81, SWALES!I81, SWEST!I81, LPN!I81,SPN!I81,EPN!I81,SPD!I81,SPMW!I81,SSEH!I81,SSES!I81) -> 1807.942609
E82: Operator's view of group price control totex | G82: £m 12/13 prices | I82: =CHOOSE(m_identity,ENWL!I82, NPgN!I82, NPgY!I82, WMID!I82, EMID!I82, SWALES!I82, SWEST!I82, LPN!I82,SPN!I82,EPN!I82,SPD!I82,SPMW!I82,SSEH!I82,SSES!I82) -> 1876.114115
C84: Finance
E86: Minimum equity issuance threshold | G86: % | I86: =CHOOSE(m_identity,ENWL!I86, NPgN!I86, NPgY!I86, WMID!I86, EMID!I86, SWALES!I86, SWEST!I86, LPN!I86,SPN!I86,EPN!I86,SPD!I86,SPMW!I86,SSEH!I86,SSES!I86) -> 0.05
E87: Equity issuance costs | G87: % | I87: =CHOOSE(m_identity,ENWL!I87, NPgN!I87, NPgY!I87, WMID!I87, EMID!I87, SWALES!I87, SWEST!I87, LPN!I87,SPN!I87,EPN!I87,SPD!I87,SPMW!I87,SSEH!I87,SSES!I87) -> 0.05
E88: Assumed dividends as % of notional equity portion of RAV | G88: % | I88: =CHOOSE(m_identity,ENWL!I88, NPgN!I88, NPgY!I88, WMID!I88, EMID!I88, SWALES!I88, SWEST!I88, LPN!I88,SPN!I88,EPN!I88,SPD!I88,SPMW!I88,SSEH!I88,SSES!I88) -> 0.05
E90: Equity issuance gearing target | G90: % | AJ90: =CHOOSE(m_identity,ENWL!AJ90, NPgN!AJ90, NPgY!AJ90, WMID!AJ90, EMID!AJ90, SWALES!AJ90, SWEST!AJ90, LPN!AJ90,SPN!AJ90,EPN!AJ90,SPD!AJ90,SPMW!AJ90,SSEH!AJ90,SSES!AJ90) -> 0.65 | AK90: =CHOOSE(m_identity,ENWL!AK90, NPgN!AK90, NPgY!AK90, WMID!AK90, EMID!AK90, SWALES!AK90, SWEST!AK90, LPN!AK90,SPN!AK90,EPN!AK90,SPD!AK90,SPMW!AK90,SSEH!AK90,SSES!AK90) -> 0.65 | AL90: =CHOOSE(m_identity,ENWL!AL90, NPgN!AL90, NPgY!AL90, WMID!AL90, EMID!AL90, SWALES!AL90, SWEST!AL90, LPN!AL90,SPN!AL90,EPN!AL90,SPD!AL90,SPMW!AL90,SSEH!AL90,SSES!AL90) -> 0.65 | AM90: =CHOOSE(m_identity,ENWL!AM90, NPgN!AM90, NPgY!AM90, WMID!AM90, EMID!AM90, SWALES!AM90, SWEST!AM90, LPN!AM90,SPN!AM90,EPN!AM90,SPD!AM90,SPMW!AM90,SSEH!AM90,SSES!AM90) -> 0.65 | AN90: =CHOOSE(m_identity,ENWL!AN90, NPgN!AN90, NPgY!AN90, WMID!AN90, EMID!AN90, SWALES!AN90, SWEST!AN90, LPN!AN90,SPN!AN90,EPN!AN90,SPD!AN90,SPMW!AN90,SSEH!AN90,SSES!AN90) -> 0.65 | AO90: =CHOOSE(m_identity,ENWL!AO90, NPgN!AO90, NPgY!AO90, WMID!AO90, EMID!AO90, SWALES!AO90, SWEST!AO90, LPN!AO90,SPN!AO90,EPN!AO90,SPD!AO90,SPMW!AO90,SSEH!AO90,SSES!AO90) -> 0.65 | AP90: =CHOOSE(m_identity,ENWL!AP90, NPgN!AP90, NPgY!AP90, WMID!AP90, EMID!AP90, SWALES!AP90, SWEST!AP90, LPN!AP90,SPN!AP90,EPN!AP90,SPD!AP90,SPMW!AP90,SSEH!AP90,SSES!AP90) -> 0.65 | AQ90: =CHOOSE(m_identity,ENWL!AQ90, NPgN!AQ90, NPgY!AQ90, WMID!AQ90, EMID!AQ90, SWALES!AQ90, SWEST!AQ90, LPN!AQ90,SPN!AQ90,EPN!AQ90,SPD!AQ90,SPMW!AQ90,SSEH!AQ90,SSES!AQ90) -> 0.65
E92: Index-linked debt as a percentage of net debt | G92: % | AJ92: =CHOOSE(m_identity,ENWL!AJ92, NPgN!AJ92, NPgY!AJ92, WMID!AJ92, EMID!AJ92, SWALES!AJ92, SWEST!AJ92, LPN!AJ92,SPN!AJ92,EPN!AJ92,SPD!AJ92,SPMW!AJ92,SSEH!AJ92,SSES!AJ92) -> 0.25 | AK92: =CHOOSE(m_identity,ENWL!AK92, NPgN!AK92, NPgY!AK92, WMID!AK92, EMID!AK92, SWALES!AK92, SWEST!AK92, LPN!AK92,SPN!AK92,EPN!AK92,SPD!AK92,SPMW!AK92,SSEH!AK92,SSES!AK92) -> 0.25 | AL92: =CHOOSE(m_identity,ENWL!AL92, NPgN!AL92, NPgY!AL92, WMID!AL92, EMID!AL92, SWALES!AL92, SWEST!AL92, LPN!AL92,SPN!AL92,EPN!AL92,SPD!AL92,SPMW!AL92,SSEH!AL92,SSES!AL92) -> 0.25 | AM92: =CHOOSE(m_identity,ENWL!AM92, NPgN!AM92, NPgY!AM92, WMID!AM92, EMID!AM92, SWALES!AM92, SWEST!AM92, LPN!AM92,SPN!AM92,EPN!AM92,SPD!AM92,SPMW!AM92,SSEH!AM92,SSES!AM92) -> 0.25 | AN92: =CHOOSE(m_identity,ENWL!AN92, NPgN!AN92, NPgY!AN92, WMID!AN92, EMID!AN92, SWALES!AN92, SWEST!AN92, LPN!AN92,SPN!AN92,EPN!AN92,SPD!AN92,SPMW!AN92,SSEH!AN92,SSES!AN92) -> 0.25 | AO92: =CHOOSE(m_identity,ENWL!AO92, NPgN!AO92, NPgY!AO92, WMID!AO92, EMID!AO92, SWALES!AO92, SWEST!AO92, LPN!AO92,SPN!AO92,EPN!AO92,SPD!AO92,SPMW!AO92,SSEH!AO92,SSES!AO92) -> 0.25 | AP92: =CHOOSE(m_identity,ENWL!AP92, NPgN!AP92, NPgY!AP92, WMID!AP92, EMID!AP92, SWALES!AP92, SWEST!AP92, LPN!AP92,SPN!AP92,EPN!AP92,SPD!AP92,SPMW!AP92,SSEH!AP92,SSES!AP92) -> 0.25 | AQ92: =CHOOSE(m_identity,ENWL!AQ92, NPgN!AQ92, NPgY!AQ92, WMID!AQ92, EMID!AQ92, SWALES!AQ92, SWEST!AQ92, LPN!AQ92,SPN!AQ92,EPN!AQ92,SPD!AQ92,SPMW!AQ92,SSEH!AQ92,SSES!AQ92) -> 0.25
B94: Expenditure
C96: Totex
D98: Non-variant allowances
E100: Non-variant allowed load related capex | G100: £m 12/13 prices | AJ100: =CHOOSE(m_identity,ENWL!AJ100, NPgN!AJ100, NPgY!AJ100, WMID!AJ100, EMID!AJ100, SWALES!AJ100, SWEST!AJ100, LPN!AJ100,SPN!AJ100,EPN!AJ100,SPD!AJ100,SPMW!AJ100,SSEH!AJ100,SSES!AJ100) -> 0 | AK100: =CHOOSE(m_identity,ENWL!AK100, NPgN!AK100, NPgY!AK100, WMID!AK100, EMID!AK100, SWALES!AK100, SWEST!AK100, LPN!AK100,SPN!AK100,EPN!AK100,SPD!AK100,SPMW!AK100,SSEH!AK100,SSES!AK100) -> 0 | AL100: =CHOOSE(m_identity,ENWL!AL100, NPgN!AL100, NPgY!AL100, WMID!AL100, EMID!AL100, SWALES!AL100, SWEST!AL100, LPN!AL100,SPN!AL100,EPN!AL100,SPD!AL100,SPMW!AL100,SSEH!AL100,SSES!AL100) -> 0 | AM100: =CHOOSE(m_identity,ENWL!AM100, NPgN!AM100, NPgY!AM100, WMID!AM100, EMID!AM100, SWALES!AM100, SWEST!AM100, LPN!AM100,SPN!AM100,EPN!AM100,SPD!AM100,SPMW!AM100,SSEH!AM100,SSES!AM100) -> 0 | AN100: =CHOOSE(m_identity,ENWL!AN100, NPgN!AN100, NPgY!AN100, WMID!AN100, EMID!AN100, SWALES!AN100, SWEST!AN100, LPN!AN100,SPN!AN100,EPN!AN100,SPD!AN100,SPMW!AN100,SSEH!AN100,SSES!AN100) -> 0 | AO100: =CHOOSE(m_identity,ENWL!AO100, NPgN!AO100, NPgY!AO100, WMID!AO100, EMID!AO100, SWALES!AO100, SWEST!AO100, LPN!AO100,SPN!AO100,EPN!AO100,SPD!AO100,SPMW!AO100,SSEH!AO100,SSES!AO100) -> 0 | AP100: =CHOOSE(m_identity,ENWL!AP100, NPgN!AP100, NPgY!AP100, WMID!AP100, EMID!AP100, SWALES!AP100, SWEST!AP100, LPN!AP100,SPN!AP100,EPN!AP100,SPD!AP100,SPMW!AP100,SSEH!AP100,SSES!AP100) -> 0 | AQ100: =CHOOSE(m_identity,ENWL!AQ100, NPgN!AQ100, NPgY!AQ100, WMID!AQ100, EMID!AQ100, SWALES!AQ100, SWEST!AQ100, LPN!AQ100,SPN!AQ100,EPN!AQ100,SPD!AQ100,SPMW!AQ100,SSEH!AQ100,SSES!AQ100) -> 0
E101: Non-variant allowed non-load related capex - asset replacement | G101: £m 12/13 prices | AJ101: =CHOOSE(m_identity,ENWL!AJ101, NPgN!AJ101, NPgY!AJ101, WMID!AJ101, EMID!AJ101, SWALES!AJ101, SWEST!AJ101, LPN!AJ101,SPN!AJ101,EPN!AJ101,SPD!AJ101,SPMW!AJ101,SSEH!AJ101,SSES!AJ101) -> 85.77219045 | AK101: =CHOOSE(m_identity,ENWL!AK101, NPgN!AK101, NPgY!AK101, WMID!AK101, EMID!AK101, SWALES!AK101, SWEST!AK101, LPN!AK101,SPN!AK101,EPN!AK101,SPD!AK101,SPMW!AK101,SSEH!AK101,SSES!AK101) -> 75.94699878 | AL101: =CHOOSE(m_identity,ENWL!AL101, NPgN!AL101, NPgY!AL101, WMID!AL101, EMID!AL101, SWALES!AL101, SWEST!AL101, LPN!AL101,SPN!AL101,EPN!AL101,SPD!AL101,SPMW!AL101,SSEH!AL101,SSES!AL101) -> 82.88506456 | AM101: =CHOOSE(m_identity,ENWL!AM101, NPgN!AM101, NPgY!AM101, WMID!AM101, EMID!AM101, SWALES!AM101, SWEST!AM101, LPN!AM101,SPN!AM101,EPN!AM101,SPD!AM101,SPMW!AM101,SSEH!AM101,SSES!AM101) -> 79.0516131 | AN101: =CHOOSE(m_identity,ENWL!AN101, NPgN!AN101, NPgY!AN101, WMID!AN101, EMID!AN101, SWALES!AN101, SWEST!AN101, LPN!AN101,SPN!AN101,EPN!AN101,SPD!AN101,SPMW!AN101,SSEH!AN101,SSES!AN101) -> 82.6725225 | AO101: =CHOOSE(m_identity,ENWL!AO101, NPgN!AO101, NPgY!AO101, WMID!AO101, EMID!AO101, SWALES!AO101, SWEST!AO101, LPN!AO101,SPN!AO101,EPN!AO101,SPD!AO101,SPMW!AO101,SSEH!AO101,SSES!AO101) -> 82.78785353 | AP101: =CHOOSE(m_identity,ENWL!AP101, NPgN!AP101, NPgY!AP101, WMID!AP101, EMID!AP101, SWALES!AP101, SWEST!AP101, LPN!AP101,SPN!AP101,EPN!AP101,SPD!AP101,SPMW!AP101,SSEH!AP101,SSES!AP101) -> 81.91919489 | AQ101: =CHOOSE(m_identity,ENWL!AQ101, NPgN!AQ101, NPgY!AQ101, WMID!AQ101, EMID!AQ101, SWALES!AQ101, SWEST!AQ101, LPN!AQ101,SPN!AQ101,EPN!AQ101,SPD!AQ101,SPMW!AQ101,SSEH!AQ101,SSES!AQ101) -> 79.48363302
E102: Non-variant allowed non-load related capex - other (Net of Disposals) | G102: £m 12/13 prices | AJ102: =CHOOSE(m_identity,ENWL!AJ102, NPgN!AJ102, NPgY!AJ102, WMID!AJ102, EMID!AJ102, SWALES!AJ102, SWEST!AJ102, LPN!AJ102,SPN!AJ102,EPN!AJ102,SPD!AJ102,SPMW!AJ102,SSEH!AJ102,SSES!AJ102)+AJ$397 -> 12.13674747 | AK102: =CHOOSE(m_identity,ENWL!AK102, NPgN!AK102, NPgY!AK102, WMID!AK102, EMID!AK102, SWALES!AK102, SWEST!AK102, LPN!AK102,SPN!AK102,EPN!AK102,SPD!AK102,SPMW!AK102,SSEH!AK102,SSES!AK102)+AK$397 -> 9.439290884 | AL102: =CHOOSE(m_identity,ENWL!AL102, NPgN!AL102, NPgY!AL102, WMID!AL102, EMID!AL102, SWALES!AL102, SWEST!AL102, LPN!AL102,SPN!AL102,EPN!AL102,SPD!AL102,SPMW!AL102,SSEH!AL102,SSES!AL102)+AL$397 -> 9.891892873 | AM102: =CHOOSE(m_identity,ENWL!AM102, NPgN!AM102, NPgY!AM102, WMID!AM102, EMID!AM102, SWALES!AM102, SWEST!AM102, LPN!AM102,SPN!AM102,EPN!AM102,SPD!AM102,SPMW!AM102,SSEH!AM102,SSES!AM102)+AM$397 -> 11.97245122 | AN102: =CHOOSE(m_identity,ENWL!AN102, NPgN!AN102, NPgY!AN102, WMID!AN102, EMID!AN102, SWALES!AN102, SWEST!AN102, LPN!AN102,SPN!AN102,EPN!AN102,SPD!AN102,SPMW!AN102,SSEH!AN102,SSES!AN102)+AN$397 -> 11.42103532 | AO102: =CHOOSE(m_identity,ENWL!AO102, NPgN!AO102, NPgY!AO102, WMID!AO102, EMID!AO102, SWALES!AO102, SWEST!AO102, LPN!AO102,SPN!AO102,EPN!AO102,SPD!AO102,SPMW!AO102,SSEH!AO102,SSES!AO102)+AO$397 -> 10.62068054 | AP102: =CHOOSE(m_identity,ENWL!AP102, NPgN!AP102, NPgY!AP102, WMID!AP102, EMID!AP102, SWALES!AP102, SWEST!AP102, LPN!AP102,SPN!AP102,EPN!AP102,SPD!AP102,SPMW!AP102,SSEH!AP102,SSES!AP102)+AP$397 -> 15.30347719 | AQ102: =CHOOSE(m_identity,ENWL!AQ102, NPgN!AQ102, NPgY!AQ102, WMID!AQ102, EMID!AQ102, SWALES!AQ102, SWEST!AQ102, LPN!AQ102,SPN!AQ102,EPN!AQ102,SPD!AQ102,SPMW!AQ102,SSEH!AQ102,SSES!AQ102)+AQ$397 -> 15.17057198
E103: Non-variant allowed faults | G103: £m 12/13 prices | AJ103: =CHOOSE(m_identity,ENWL!AJ103, NPgN!AJ103, NPgY!AJ103, WMID!AJ103, EMID!AJ103, SWALES!AJ103, SWEST!AJ103, LPN!AJ103,SPN!AJ103,EPN!AJ103,SPD!AJ103,SPMW!AJ103,SSEH!AJ103,SSES!AJ103) -> 23.35620383 | AK103: =CHOOSE(m_identity,ENWL!AK103, NPgN!AK103, NPgY!AK103, WMID!AK103, EMID!AK103, SWALES!AK103, SWEST!AK103, LPN!AK103,SPN!AK103,EPN!AK103,SPD!AK103,SPMW!AK103,SSEH!AK103,SSES!AK103) -> 23.14425028 | AL103: =CHOOSE(m_identity,ENWL!AL103, NPgN!AL103, NPgY!AL103, WMID!AL103, EMID!AL103, SWALES!AL103, SWEST!AL103, LPN!AL103,SPN!AL103,EPN!AL103,SPD!AL103,SPMW!AL103,SSEH!AL103,SSES!AL103) -> 22.51746454 | AM103: =CHOOSE(m_identity,ENWL!AM103, NPgN!AM103, NPgY!AM103, WMID!AM103, EMID!AM103, SWALES!AM103, SWEST!AM103, LPN!AM103,SPN!AM103,EPN!AM103,SPD!AM103,SPMW!AM103,SSEH!AM103,SSES!AM103) -> 22.01074141 | AN103: =CHOOSE(m_identity,ENWL!AN103, NPgN!AN103, NPgY!AN103, WMID!AN103, EMID!AN103, SWALES!AN103, SWEST!AN103, LPN!AN103,SPN!AN103,EPN!AN103,SPD!AN103,SPMW!AN103,SSEH!AN103,SSES!AN103) -> 21.52485676 | AO103: =CHOOSE(m_identity,ENWL!AO103, NPgN!AO103, NPgY!AO103, WMID!AO103, EMID!AO103, SWALES!AO103, SWEST!AO103, LPN!AO103,SPN!AO103,EPN!AO103,SPD!AO103,SPMW!AO103,SSEH!AO103,SSES!AO103) -> 21.04768906 | AP103: =CHOOSE(m_identity,ENWL!AP103, NPgN!AP103, NPgY!AP103, WMID!AP103, EMID!AP103, SWALES!AP103, SWEST!AP103, LPN!AP103,SPN!AP103,EPN!AP103,SPD!AP103,SPMW!AP103,SSEH!AP103,SSES!AP103) -> 20.49266046 | AQ103: =CHOOSE(m_identity,ENWL!AQ103, NPgN!AQ103, NPgY!AQ103, WMID!AQ103, EMID!AQ103, SWALES!AQ103, SWEST!AQ103, LPN!AQ103,SPN!AQ103,EPN!AQ103,SPD!AQ103,SPMW!AQ103,SSEH!AQ103,SSES!AQ103) -> 20.00411701
E104: Non-variant tree cutting | G104: £m 12/13 prices | AJ104: =CHOOSE(m_identity,ENWL!AJ104, NPgN!AJ104, NPgY!AJ104, WMID!AJ104, EMID!AJ104, SWALES!AJ104, SWEST!AJ104, LPN!AJ104,SPN!AJ104,EPN!AJ104,SPD!AJ104,SPMW!AJ104,SSEH!AJ104,SSES!AJ104) -> 4.239102961 | AK104: =CHOOSE(m_identity,ENWL!AK104, NPgN!AK104, NPgY!AK104, WMID!AK104, EMID!AK104, SWALES!AK104, SWEST!AK104, LPN!AK104,SPN!AK104,EPN!AK104,SPD!AK104,SPMW!AK104,SSEH!AK104,SSES!AK104) -> 4.199807501 | AL104: =CHOOSE(m_identity,ENWL!AL104, NPgN!AL104, NPgY!AL104, WMID!AL104, EMID!AL104, SWALES!AL104, SWEST!AL104, LPN!AL104,SPN!AL104,EPN!AL104,SPD!AL104,SPMW!AL104,SSEH!AL104,SSES!AL104) -> 4.119243101 | AM104: =CHOOSE(m_identity,ENWL!AM104, NPgN!AM104, NPgY!AM104, WMID!AM104, EMID!AM104, SWALES!AM104, SWEST!AM104, LPN!AM104,SPN!AM104,EPN!AM104,SPD!AM104,SPMW!AM104,SSEH!AM104,SSES!AM104) -> 4.040618031 | AN104: =CHOOSE(m_identity,ENWL!AN104, NPgN!AN104, NPgY!AN104, WMID!AN104, EMID!AN104, SWALES!AN104, SWEST!AN104, LPN!AN104,SPN!AN104,EPN!AN104,SPD!AN104,SPMW!AN104,SSEH!AN104,SSES!AN104) -> 3.965483175 | AO104: =CHOOSE(m_identity,ENWL!AO104, NPgN!AO104, NPgY!AO104, WMID!AO104, EMID!AO104, SWALES!AO104, SWEST!AO104, LPN!AO104,SPN!AO104,EPN!AO104,SPD!AO104,SPMW!AO104,SSEH!AO104,SSES!AO104) -> 3.886017086 | AP104: =CHOOSE(m_identity,ENWL!AP104, NPgN!AP104, NPgY!AP104, WMID!AP104, EMID!AP104, SWALES!AP104, SWEST!AP104, LPN!AP104,SPN!AP104,EPN!AP104,SPD!AP104,SPMW!AP104,SSEH!AP104,SSES!AP104) -> 3.799744553 | AQ104: =CHOOSE(m_identity,ENWL!AQ104, NPgN!AQ104, NPgY!AQ104, WMID!AQ104, EMID!AQ104, SWALES!AQ104, SWEST!AQ104, LPN!AQ104,SPN!AQ104,EPN!AQ104,SPD!AQ104,SPMW!AQ104,SSEH!AQ104,SSES!AQ104) -> 3.723705901
E105: Non-variant allowed 100% ‘revenue pool’ expenditure | G105: £m 12/13 prices | AJ105: =CHOOSE(m_identity,ENWL!AJ105, NPgN!AJ105, NPgY!AJ105, WMID!AJ105, EMID!AJ105, SWALES!AJ105, SWEST!AJ105, LPN!AJ105,SPN!AJ105,EPN!AJ105,SPD!AJ105,SPMW!AJ105,SSEH!AJ105,SSES!AJ105) -> 15.34272133 | AK105: =CHOOSE(m_identity,ENWL!AK105, NPgN!AK105, NPgY!AK105, WMID!AK105, EMID!AK105, SWALES!AK105, SWEST!AK105, LPN!AK105,SPN!AK105,EPN!AK105,SPD!AK105,SPMW!AK105,SSEH!AK105,SSES!AK105) -> 14.43769286 | AL105: =CHOOSE(m_identity,ENWL!AL105, NPgN!AL105, NPgY!AL105, WMID!AL105, EMID!AL105, SWALES!AL105, SWEST!AL105, LPN!AL105,SPN!AL105,EPN!AL105,SPD!AL105,SPMW!AL105,SSEH!AL105,SSES!AL105) -> 14.62453063 | AM105: =CHOOSE(m_identity,ENWL!AM105, NPgN!AM105, NPgY!AM105, WMID!AM105, EMID!AM105, SWALES!AM105, SWEST!AM105, LPN!AM105,SPN!AM105,EPN!AM105,SPD!AM105,SPMW!AM105,SSEH!AM105,SSES!AM105) -> 14.34531921 | AN105: =CHOOSE(m_identity,ENWL!AN105, NPgN!AN105, NPgY!AN105, WMID!AN105, EMID!AN105, SWALES!AN105, SWEST!AN105, LPN!AN105,SPN!AN105,EPN!AN105,SPD!AN105,SPMW!AN105,SSEH!AN105,SSES!AN105) -> 14.4103222 | AO105: =CHOOSE(m_identity,ENWL!AO105, NPgN!AO105, NPgY!AO105, WMID!AO105, EMID!AO105, SWALES!AO105, SWEST!AO105, LPN!AO105,SPN!AO105,EPN!AO105,SPD!AO105,SPMW!AO105,SSEH!AO105,SSES!AO105) -> 14.27713102 | AP105: =CHOOSE(m_identity,ENWL!AP105, NPgN!AP105, NPgY!AP105, WMID!AP105, EMID!AP105, SWALES!AP105, SWEST!AP105, LPN!AP105,SPN!AP105,EPN!AP105,SPD!AP105,SPMW!AP105,SSEH!AP105,SSES!AP105) -> 14.19258305 | AQ105: =CHOOSE(m_identity,ENWL!AQ105, NPgN!AQ105, NPgY!AQ105, WMID!AQ105, EMID!AQ105, SWALES!AQ105, SWEST!AQ105, LPN!AQ105,SPN!AQ105,EPN!AQ105,SPD!AQ105,SPMW!AQ105,SSEH!AQ105,SSES!AQ105) -> 13.84470767
E106: Non-variant allowed controllable opex (Net of DRS 8) | G106: £m 12/13 prices | AJ106: =CHOOSE(m_identity,ENWL!AJ106, NPgN!AJ106, NPgY!AJ106, WMID!AJ106, EMID!AJ106, SWALES!AJ106, SWEST!AJ106, LPN!AJ106,SPN!AJ106,EPN!AJ106,SPD!AJ106,SPMW!AJ106,SSEH!AJ106,SSES!AJ106)-AJ$315 -> 79.31556303 | AK106: =CHOOSE(m_identity,ENWL!AK106, NPgN!AK106, NPgY!AK106, WMID!AK106, EMID!AK106, SWALES!AK106, SWEST!AK106, LPN!AK106,SPN!AK106,EPN!AK106,SPD!AK106,SPMW!AK106,SSEH!AK106,SSES!AK106)-AK$315 -> 76.20906353 | AL106: =CHOOSE(m_identity,ENWL!AL106, NPgN!AL106, NPgY!AL106, WMID!AL106, EMID!AL106, SWALES!AL106, SWEST!AL106, LPN!AL106,SPN!AL106,EPN!AL106,SPD!AL106,SPMW!AL106,SSEH!AL106,SSES!AL106)-AL$315 -> 74.8633498 | AM106: =CHOOSE(m_identity,ENWL!AM106, NPgN!AM106, NPgY!AM106, WMID!AM106, EMID!AM106, SWALES!AM106, SWEST!AM106, LPN!AM106,SPN!AM106,EPN!AM106,SPD!AM106,SPMW!AM106,SSEH!AM106,SSES!AM106)-AM$315 -> 74.87488938 | AN106: =CHOOSE(m_identity,ENWL!AN106, NPgN!AN106, NPgY!AN106, WMID!AN106, EMID!AN106, SWALES!AN106, SWEST!AN106, LPN!AN106,SPN!AN106,EPN!AN106,SPD!AN106,SPMW!AN106,SSEH!AN106,SSES!AN106)-AN$315 -> 73.46748287 | AO106: =CHOOSE(m_identity,ENWL!AO106, NPgN!AO106, NPgY!AO106, WMID!AO106, EMID!AO106, SWALES!AO106, SWEST!AO106, LPN!AO106,SPN!AO106,EPN!AO106,SPD!AO106,SPMW!AO106,SSEH!AO106,SSES!AO106)-AO$315 -> 74.40376194 | AP106: =CHOOSE(m_identity,ENWL!AP106, NPgN!AP106, NPgY!AP106, WMID!AP106, EMID!AP106, SWALES!AP106, SWEST!AP106, LPN!AP106,SPN!AP106,EPN!AP106,SPD!AP106,SPMW!AP106,SSEH!AP106,SSES!AP106)-AP$315 -> 73.54243941 | AQ106: =CHOOSE(m_identity,ENWL!AQ106, NPgN!AQ106, NPgY!AQ106, WMID!AQ106, EMID!AQ106, SWALES!AQ106, SWEST!AQ106, LPN!AQ106,SPN!AQ106,EPN!AQ106,SPD!AQ106,SPMW!AQ106,SSEH!AQ106,SSES!AQ106)-AQ$315 -> 71.87995138
D108: Variant allowances
E110: =E19 -> Allowed Expenditure - Enhanced Physical Site Security | G110: £m 12/13 prices | AJ110: =AJ19 -> 0 | AK110: =AK19 -> 0 | AL110: 0 | AM110: 0 | AN110: 0 | AO110: 0 | AP110: 0 | AQ110: 0
E111: Allocation to load related capex | G111: % | AJ111: =CHOOSE(m_identity,ENWL!AJ111, NPgN!AJ111, NPgY!AJ111, WMID!AJ111, EMID!AJ111, SWALES!AJ111, SWEST!AJ111, LPN!AJ111,SPN!AJ111,EPN!AJ111,SPD!AJ111,SPMW!AJ111,SSEH!AJ111,SSES!AJ111) -> 0 | AK111: =CHOOSE(m_identity,ENWL!AK111, NPgN!AK111, NPgY!AK111, WMID!AK111, EMID!AK111, SWALES!AK111, SWEST!AK111, LPN!AK111,SPN!AK111,EPN!AK111,SPD!AK111,SPMW!AK111,SSEH!AK111,SSES!AK111) -> 0 | AL111: =CHOOSE(m_identity,ENWL!AL111, NPgN!AL111, NPgY!AL111, WMID!AL111, EMID!AL111, SWALES!AL111, SWEST!AL111, LPN!AL111,SPN!AL111,EPN!AL111,SPD!AL111,SPMW!AL111,SSEH!AL111,SSES!AL111) -> 0 | AM111: =CHOOSE(m_identity,ENWL!AM111, NPgN!AM111, NPgY!AM111, WMID!AM111, EMID!AM111, SWALES!AM111, SWEST!AM111, LPN!AM111,SPN!AM111,EPN!AM111,SPD!AM111,SPMW!AM111,SSEH!AM111,SSES!AM111) -> 0 | AN111: =CHOOSE(m_identity,ENWL!AN111, NPgN!AN111, NPgY!AN111, WMID!AN111, EMID!AN111, SWALES!AN111, SWEST!AN111, LPN!AN111,SPN!AN111,EPN!AN111,SPD!AN111,SPMW!AN111,SSEH!AN111,SSES!AN111) -> 0 | AO111: =CHOOSE(m_identity,ENWL!AO111, NPgN!AO111, NPgY!AO111, WMID!AO111, EMID!AO111, SWALES!AO111, SWEST!AO111, LPN!AO111,SPN!AO111,EPN!AO111,SPD!AO111,SPMW!AO111,SSEH!AO111,SSES!AO111) -> 0 | AP111: =CHOOSE(m_identity,ENWL!AP111, NPgN!AP111, NPgY!AP111, WMID!AP111, EMID!AP111, SWALES!AP111, SWEST!AP111, LPN!AP111,SPN!AP111,EPN!AP111,SPD!AP111,SPMW!AP111,SSEH!AP111,SSES!AP111) -> 0 | AQ111: =CHOOSE(m_identity,ENWL!AQ111, NPgN!AQ111, NPgY!AQ111, WMID!AQ111, EMID!AQ111, SWALES!AQ111, SWEST!AQ111, LPN!AQ111,SPN!AQ111,EPN!AQ111,SPD!AQ111,SPMW!AQ111,SSEH!AQ111,SSES!AQ111) -> 0
E112: Allocation to non-load related capex - asset replacement | G112: % | AJ112: =CHOOSE(m_identity,ENWL!AJ112, NPgN!AJ112, NPgY!AJ112, WMID!AJ112, EMID!AJ112, SWALES!AJ112, SWEST!AJ112, LPN!AJ112,SPN!AJ112,EPN!AJ112,SPD!AJ112,SPMW!AJ112,SSEH!AJ112,SSES!AJ112) -> 0.8866997312 | AK112: =CHOOSE(m_identity,ENWL!AK112, NPgN!AK112, NPgY!AK112, WMID!AK112, EMID!AK112, SWALES!AK112, SWEST!AK112, LPN!AK112,SPN!AK112,EPN!AK112,SPD!AK112,SPMW!AK112,SSEH!AK112,SSES!AK112) -> 0.884039668 | AL112: =CHOOSE(m_identity,ENWL!AL112, NPgN!AL112, NPgY!AL112, WMID!AL112, EMID!AL112, SWALES!AL112, SWEST!AL112, LPN!AL112,SPN!AL112,EPN!AL112,SPD!AL112,SPMW!AL112,SSEH!AL112,SSES!AL112) -> 0.8861041014 | AM112: =CHOOSE(m_identity,ENWL!AM112, NPgN!AM112, NPgY!AM112, WMID!AM112, EMID!AM112, SWALES!AM112, SWEST!AM112, LPN!AM112,SPN!AM112,EPN!AM112,SPD!AM112,SPMW!AM112,SSEH!AM112,SSES!AM112) -> 0.8881452451 | AN112: =CHOOSE(m_identity,ENWL!AN112, NPgN!AN112, NPgY!AN112, WMID!AN112, EMID!AN112, SWALES!AN112, SWEST!AN112, LPN!AN112,SPN!AN112,EPN!AN112,SPD!AN112,SPMW!AN112,SSEH!AN112,SSES!AN112) -> 0.8886083891 | AO112: =CHOOSE(m_identity,ENWL!AO112, NPgN!AO112, NPgY!AO112, WMID!AO112, EMID!AO112, SWALES!AO112, SWEST!AO112, LPN!AO112,SPN!AO112,EPN!AO112,SPD!AO112,SPMW!AO112,SSEH!AO112,SSES!AO112) -> 0.8911662227 | AP112: =CHOOSE(m_identity,ENWL!AP112, NPgN!AP112, NPgY!AP112, WMID!AP112, EMID!AP112, SWALES!AP112, SWEST!AP112, LPN!AP112,SPN!AP112,EPN!AP112,SPD!AP112,SPMW!AP112,SSEH!AP112,SSES!AP112) -> 0.8956681481 | AQ112: =CHOOSE(m_identity,ENWL!AQ112, NPgN!AQ112, NPgY!AQ112, WMID!AQ112, EMID!AQ112, SWALES!AQ112, SWEST!AQ112, LPN!AQ112,SPN!AQ112,EPN!AQ112,SPD!AQ112,SPMW!AQ112,SSEH!AQ112,SSES!AQ112) -> 0.8966929122
E113: Allocation to non-load related capex - other | G113: % | AJ113: =CHOOSE(m_identity,ENWL!AJ113, NPgN!AJ113, NPgY!AJ113, WMID!AJ113, EMID!AJ113, SWALES!AJ113, SWEST!AJ113, LPN!AJ113,SPN!AJ113,EPN!AJ113,SPD!AJ113,SPMW!AJ113,SSEH!AJ113,SSES!AJ113) -> 0 | AK113: =CHOOSE(m_identity,ENWL!AK113, NPgN!AK113, NPgY!AK113, WMID!AK113, EMID!AK113, SWALES!AK113, SWEST!AK113, LPN!AK113,SPN!AK113,EPN!AK113,SPD!AK113,SPMW!AK113,SSEH!AK113,SSES!AK113) -> 0 | AL113: =CHOOSE(m_identity,ENWL!AL113, NPgN!AL113, NPgY!AL113, WMID!AL113, EMID!AL113, SWALES!AL113, SWEST!AL113, LPN!AL113,SPN!AL113,EPN!AL113,SPD!AL113,SPMW!AL113,SSEH!AL113,SSES!AL113) -> 0 | AM113: =CHOOSE(m_identity,ENWL!AM113, NPgN!AM113, NPgY!AM113, WMID!AM113, EMID!AM113, SWALES!AM113, SWEST!AM113, LPN!AM113,SPN!AM113,EPN!AM113,SPD!AM113,SPMW!AM113,SSEH!AM113,SSES!AM113) -> 0 | AN113: =CHOOSE(m_identity,ENWL!AN113, NPgN!AN113, NPgY!AN113, WMID!AN113, EMID!AN113, SWALES!AN113, SWEST!AN113, LPN!AN113,SPN!AN113,EPN!AN113,SPD!AN113,SPMW!AN113,SSEH!AN113,SSES!AN113) -> 0 | AO113: =CHOOSE(m_identity,ENWL!AO113, NPgN!AO113, NPgY!AO113, WMID!AO113, EMID!AO113, SWALES!AO113, SWEST!AO113, LPN!AO113,SPN!AO113,EPN!AO113,SPD!AO113,SPMW!AO113,SSEH!AO113,SSES!AO113) -> 0 | AP113: =CHOOSE(m_identity,ENWL!AP113, NPgN!AP113, NPgY!AP113, WMID!AP113, EMID!AP113, SWALES!AP113, SWEST!AP113, LPN!AP113,SPN!AP113,EPN!AP113,SPD!AP113,SPMW!AP113,SSEH!AP113,SSES!AP113) -> 0 | AQ113: =CHOOSE(m_identity,ENWL!AQ113, NPgN!AQ113, NPgY!AQ113, WMID!AQ113, EMID!AQ113, SWALES!AQ113, SWEST!AQ113, LPN!AQ113,SPN!AQ113,EPN!AQ113,SPD!AQ113,SPMW!AQ113,SSEH!AQ113,SSES!AQ113) -> 0
E114: Allocation to faults | G114: % | AJ114: =CHOOSE(m_identity,ENWL!AJ114, NPgN!AJ114, NPgY!AJ114, WMID!AJ114, EMID!AJ114, SWALES!AJ114, SWEST!AJ114, LPN!AJ114,SPN!AJ114,EPN!AJ114,SPD!AJ114,SPMW!AJ114,SSEH!AJ114,SSES!AJ114) -> 0 | AK114: =CHOOSE(m_identity,ENWL!AK114, NPgN!AK114, NPgY!AK114, WMID!AK114, EMID!AK114, SWALES!AK114, SWEST!AK114, LPN!AK114,SPN!AK114,EPN!AK114,SPD!AK114,SPMW!AK114,SSEH!AK114,SSES!AK114) -> 0 | AL114: =CHOOSE(m_identity,ENWL!AL114, NPgN!AL114, NPgY!AL114, WMID!AL114, EMID!AL114, SWALES!AL114, SWEST!AL114, LPN!AL114,SPN!AL114,EPN!AL114,SPD!AL114,SPMW!AL114,SSEH!AL114,SSES!AL114) -> 0 | AM114: =CHOOSE(m_identity,ENWL!AM114, NPgN!AM114, NPgY!AM114, WMID!AM114, EMID!AM114, SWALES!AM114, SWEST!AM114, LPN!AM114,SPN!AM114,EPN!AM114,SPD!AM114,SPMW!AM114,SSEH!AM114,SSES!AM114) -> 0 | AN114: =CHOOSE(m_identity,ENWL!AN114, NPgN!AN114, NPgY!AN114, WMID!AN114, EMID!AN114, SWALES!AN114, SWEST!AN114, LPN!AN114,SPN!AN114,EPN!AN114,SPD!AN114,SPMW!AN114,SSEH!AN114,SSES!AN114) -> 0 | AO114: =CHOOSE(m_identity,ENWL!AO114, NPgN!AO114, NPgY!AO114, WMID!AO114, EMID!AO114, SWALES!AO114, SWEST!AO114, LPN!AO114,SPN!AO114,EPN!AO114,SPD!AO114,SPMW!AO114,SSEH!AO114,SSES!AO114) -> 0 | AP114: =CHOOSE(m_identity,ENWL!AP114, NPgN!AP114, NPgY!AP114, WMID!AP114, EMID!AP114, SWALES!AP114, SWEST!AP114, LPN!AP114,SPN!AP114,EPN!AP114,SPD!AP114,SPMW!AP114,SSEH!AP114,SSES!AP114) -> 0 | AQ114: =CHOOSE(m_identity,ENWL!AQ114, NPgN!AQ114, NPgY!AQ114, WMID!AQ114, EMID!AQ114, SWALES!AQ114, SWEST!AQ114, LPN!AQ114,SPN!AQ114,EPN!AQ114,SPD!AQ114,SPMW!AQ114,SSEH!AQ114,SSES!AQ114) -> 0
E115: Allocation to tree cutting | G115: % | AJ115: =CHOOSE(m_identity,ENWL!AJ115, NPgN!AJ115, NPgY!AJ115, WMID!AJ115, EMID!AJ115, SWALES!AJ115, SWEST!AJ115, LPN!AJ115,SPN!AJ115,EPN!AJ115,SPD!AJ115,SPMW!AJ115,SSEH!AJ115,SSES!AJ115) -> 0 | AK115: =CHOOSE(m_identity,ENWL!AK115, NPgN!AK115, NPgY!AK115, WMID!AK115, EMID!AK115, SWALES!AK115, SWEST!AK115, LPN!AK115,SPN!AK115,EPN!AK115,SPD!AK115,SPMW!AK115,SSEH!AK115,SSES!AK115) -> 0 | AL115: =CHOOSE(m_identity,ENWL!AL115, NPgN!AL115, NPgY!AL115, WMID!AL115, EMID!AL115, SWALES!AL115, SWEST!AL115, LPN!AL115,SPN!AL115,EPN!AL115,SPD!AL115,SPMW!AL115,SSEH!AL115,SSES!AL115) -> 0 | AM115: =CHOOSE(m_identity,ENWL!AM115, NPgN!AM115, NPgY!AM115, WMID!AM115, EMID!AM115, SWALES!AM115, SWEST!AM115, LPN!AM115,SPN!AM115,EPN!AM115,SPD!AM115,SPMW!AM115,SSEH!AM115,SSES!AM115) -> 0 | AN115: =CHOOSE(m_identity,ENWL!AN115, NPgN!AN115, NPgY!AN115, WMID!AN115, EMID!AN115, SWALES!AN115, SWEST!AN115, LPN!AN115,SPN!AN115,EPN!AN115,SPD!AN115,SPMW!AN115,SSEH!AN115,SSES!AN115) -> 0 | AO115: =CHOOSE(m_identity,ENWL!AO115, NPgN!AO115, NPgY!AO115, WMID!AO115, EMID!AO115, SWALES!AO115, SWEST!AO115, LPN!AO115,SPN!AO115,EPN!AO115,SPD!AO115,SPMW!AO115,SSEH!AO115,SSES!AO115) -> 0 | AP115: =CHOOSE(m_identity,ENWL!AP115, NPgN!AP115, NPgY!AP115, WMID!AP115, EMID!AP115, SWALES!AP115, SWEST!AP115, LPN!AP115,SPN!AP115,EPN!AP115,SPD!AP115,SPMW!AP115,SSEH!AP115,SSES!AP115) -> 0 | AQ115: =CHOOSE(m_identity,ENWL!AQ115, NPgN!AQ115, NPgY!AQ115, WMID!AQ115, EMID!AQ115, SWALES!AQ115, SWEST!AQ115, LPN!AQ115,SPN!AQ115,EPN!AQ115,SPD!AQ115,SPMW!AQ115,SSEH!AQ115,SSES!AQ115) -> 0
E116: Allocation to 100% ‘revenue pool’ expenditure | G116: % | AJ116: =CHOOSE(m_identity,ENWL!AJ116, NPgN!AJ116, NPgY!AJ116, WMID!AJ116, EMID!AJ116, SWALES!AJ116, SWEST!AJ116, LPN!AJ116,SPN!AJ116,EPN!AJ116,SPD!AJ116,SPMW!AJ116,SSEH!AJ116,SSES!AJ116) -> 0.1133002688 | AK116: =CHOOSE(m_identity,ENWL!AK116, NPgN!AK116, NPgY!AK116, WMID!AK116, EMID!AK116, SWALES!AK116, SWEST!AK116, LPN!AK116,SPN!AK116,EPN!AK116,SPD!AK116,SPMW!AK116,SSEH!AK116,SSES!AK116) -> 0.115960332 | AL116: =CHOOSE(m_identity,ENWL!AL116, NPgN!AL116, NPgY!AL116, WMID!AL116, EMID!AL116, SWALES!AL116, SWEST!AL116, LPN!AL116,SPN!AL116,EPN!AL116,SPD!AL116,SPMW!AL116,SSEH!AL116,SSES!AL116) -> 0.1138958986 | AM116: =CHOOSE(m_identity,ENWL!AM116, NPgN!AM116, NPgY!AM116, WMID!AM116, EMID!AM116, SWALES!AM116, SWEST!AM116, LPN!AM116,SPN!AM116,EPN!AM116,SPD!AM116,SPMW!AM116,SSEH!AM116,SSES!AM116) -> 0.1118547549 | AN116: =CHOOSE(m_identity,ENWL!AN116, NPgN!AN116, NPgY!AN116, WMID!AN116, EMID!AN116, SWALES!AN116, SWEST!AN116, LPN!AN116,SPN!AN116,EPN!AN116,SPD!AN116,SPMW!AN116,SSEH!AN116,SSES!AN116) -> 0.1113916109 | AO116: =CHOOSE(m_identity,ENWL!AO116, NPgN!AO116, NPgY!AO116, WMID!AO116, EMID!AO116, SWALES!AO116, SWEST!AO116, LPN!AO116,SPN!AO116,EPN!AO116,SPD!AO116,SPMW!AO116,SSEH!AO116,SSES!AO116) -> 0.1088337773 | AP116: =CHOOSE(m_identity,ENWL!AP116, NPgN!AP116, NPgY!AP116, WMID!AP116, EMID!AP116, SWALES!AP116, SWEST!AP116, LPN!AP116,SPN!AP116,EPN!AP116,SPD!AP116,SPMW!AP116,SSEH!AP116,SSES!AP116) -> 0.1043318519 | AQ116: =CHOOSE(m_identity,ENWL!AQ116, NPgN!AQ116, NPgY!AQ116, WMID!AQ116, EMID!AQ116, SWALES!AQ116, SWEST!AQ116, LPN!AQ116,SPN!AQ116,EPN!AQ116,SPD!AQ116,SPMW!AQ116,SSEH!AQ116,SSES!AQ116) -> 0.1033070878
E117: Allocation to controllable opex | G117: % | AJ117: =CHOOSE(m_identity,ENWL!AJ117, NPgN!AJ117, NPgY!AJ117, WMID!AJ117, EMID!AJ117, SWALES!AJ117, SWEST!AJ117, LPN!AJ117,SPN!AJ117,EPN!AJ117,SPD!AJ117,SPMW!AJ117,SSEH!AJ117,SSES!AJ117) -> 0 | AK117: =CHOOSE(m_identity,ENWL!AK117, NPgN!AK117, NPgY!AK117, WMID!AK117, EMID!AK117, SWALES!AK117, SWEST!AK117, LPN!AK117,SPN!AK117,EPN!AK117,SPD!AK117,SPMW!AK117,SSEH!AK117,SSES!AK117) -> 0 | AL117: =CHOOSE(m_identity,ENWL!AL117, NPgN!AL117, NPgY!AL117, WMID!AL117, EMID!AL117, SWALES!AL117, SWEST!AL117, LPN!AL117,SPN!AL117,EPN!AL117,SPD!AL117,SPMW!AL117,SSEH!AL117,SSES!AL117) -> 0 | AM117: =CHOOSE(m_identity,ENWL!AM117, NPgN!AM117, NPgY!AM117, WMID!AM117, EMID!AM117, SWALES!AM117, SWEST!AM117, LPN!AM117,SPN!AM117,EPN!AM117,SPD!AM117,SPMW!AM117,SSEH!AM117,SSES!AM117) -> 0 | AN117: =CHOOSE(m_identity,ENWL!AN117, NPgN!AN117, NPgY!AN117, WMID!AN117, EMID!AN117, SWALES!AN117, SWEST!AN117, LPN!AN117,SPN!AN117,EPN!AN117,SPD!AN117,SPMW!AN117,SSEH!AN117,SSES!AN117) -> 0 | AO117: =CHOOSE(m_identity,ENWL!AO117, NPgN!AO117, NPgY!AO117, WMID!AO117, EMID!AO117, SWALES!AO117, SWEST!AO117, LPN!AO117,SPN!AO117,EPN!AO117,SPD!AO117,SPMW!AO117,SSEH!AO117,SSES!AO117) -> 0 | AP117: =CHOOSE(m_identity,ENWL!AP117, NPgN!AP117, NPgY!AP117, WMID!AP117, EMID!AP117, SWALES!AP117, SWEST!AP117, LPN!AP117,SPN!AP117,EPN!AP117,SPD!AP117,SPMW!AP117,SSEH!AP117,SSES!AP117) -> 0 | AQ117: =CHOOSE(m_identity,ENWL!AQ117, NPgN!AQ117, NPgY!AQ117, WMID!AQ117, EMID!AQ117, SWALES!AQ117, SWEST!AQ117, LPN!AQ117,SPN!AQ117,EPN!AQ117,SPD!AQ117,SPMW!AQ117,SSEH!AQ117,SSES!AQ117) -> 0
E119: =E20 -> Allowed Expenditure - High Value Projects | G119: £m 12/13 prices | AJ119: =AJ20 -> 0 | AK119: 0 | AL119: 0 | AM119: 0 | AN119: 0 | AO119: 0 | AP119: 0 | AQ119: 0
E120: Allocation to load related capex | G120: % | AJ120: =CHOOSE(m_identity,ENWL!AJ120, NPgN!AJ120, NPgY!AJ120, WMID!AJ120, EMID!AJ120, SWALES!AJ120, SWEST!AJ120, LPN!AJ120,SPN!AJ120,EPN!AJ120,SPD!AJ120,SPMW!AJ120,SSEH!AJ120,SSES!AJ120) -> 0 | AK120: =CHOOSE(m_identity,ENWL!AK120, NPgN!AK120, NPgY!AK120, WMID!AK120, EMID!AK120, SWALES!AK120, SWEST!AK120, LPN!AK120,SPN!AK120,EPN!AK120,SPD!AK120,SPMW!AK120,SSEH!AK120,SSES!AK120) -> 0 | AL120: =CHOOSE(m_identity,ENWL!AL120, NPgN!AL120, NPgY!AL120, WMID!AL120, EMID!AL120, SWALES!AL120, SWEST!AL120, LPN!AL120,SPN!AL120,EPN!AL120,SPD!AL120,SPMW!AL120,SSEH!AL120,SSES!AL120) -> 0 | AM120: =CHOOSE(m_identity,ENWL!AM120, NPgN!AM120, NPgY!AM120, WMID!AM120, EMID!AM120, SWALES!AM120, SWEST!AM120, LPN!AM120,SPN!AM120,EPN!AM120,SPD!AM120,SPMW!AM120,SSEH!AM120,SSES!AM120) -> 0 | AN120: =CHOOSE(m_identity,ENWL!AN120, NPgN!AN120, NPgY!AN120, WMID!AN120, EMID!AN120, SWALES!AN120, SWEST!AN120, LPN!AN120,SPN!AN120,EPN!AN120,SPD!AN120,SPMW!AN120,SSEH!AN120,SSES!AN120) -> 0 | AO120: =CHOOSE(m_identity,ENWL!AO120, NPgN!AO120, NPgY!AO120, WMID!AO120, EMID!AO120, SWALES!AO120, SWEST!AO120, LPN!AO120,SPN!AO120,EPN!AO120,SPD!AO120,SPMW!AO120,SSEH!AO120,SSES!AO120) -> 0 | AP120: =CHOOSE(m_identity,ENWL!AP120, NPgN!AP120, NPgY!AP120, WMID!AP120, EMID!AP120, SWALES!AP120, SWEST!AP120, LPN!AP120,SPN!AP120,EPN!AP120,SPD!AP120,SPMW!AP120,SSEH!AP120,SSES!AP120) -> 0 | AQ120: =CHOOSE(m_identity,ENWL!AQ120, NPgN!AQ120, NPgY!AQ120, WMID!AQ120, EMID!AQ120, SWALES!AQ120, SWEST!AQ120, LPN!AQ120,SPN!AQ120,EPN!AQ120,SPD!AQ120,SPMW!AQ120,SSEH!AQ120,SSES!AQ120) -> 0
E121: Allocation to non-load related capex - asset replacement | G121: % | AJ121: =CHOOSE(m_identity,ENWL!AJ121, NPgN!AJ121, NPgY!AJ121, WMID!AJ121, EMID!AJ121, SWALES!AJ121, SWEST!AJ121, LPN!AJ121,SPN!AJ121,EPN!AJ121,SPD!AJ121,SPMW!AJ121,SSEH!AJ121,SSES!AJ121) -> 0.987 | AK121: =CHOOSE(m_identity,ENWL!AK121, NPgN!AK121, NPgY!AK121, WMID!AK121, EMID!AK121, SWALES!AK121, SWEST!AK121, LPN!AK121,SPN!AK121,EPN!AK121,SPD!AK121,SPMW!AK121,SSEH!AK121,SSES!AK121) -> 1 | AL121: =CHOOSE(m_identity,ENWL!AL121, NPgN!AL121, NPgY!AL121, WMID!AL121, EMID!AL121, SWALES!AL121, SWEST!AL121, LPN!AL121,SPN!AL121,EPN!AL121,SPD!AL121,SPMW!AL121,SSEH!AL121,SSES!AL121) -> 0.9912120849 | AM121: =CHOOSE(m_identity,ENWL!AM121, NPgN!AM121, NPgY!AM121, WMID!AM121, EMID!AM121, SWALES!AM121, SWEST!AM121, LPN!AM121,SPN!AM121,EPN!AM121,SPD!AM121,SPMW!AM121,SSEH!AM121,SSES!AM121) -> 0.9908827513 | AN121: =CHOOSE(m_identity,ENWL!AN121, NPgN!AN121, NPgY!AN121, WMID!AN121, EMID!AN121, SWALES!AN121, SWEST!AN121, LPN!AN121,SPN!AN121,EPN!AN121,SPD!AN121,SPMW!AN121,SSEH!AN121,SSES!AN121) -> 0.9055151844 | AO121: =CHOOSE(m_identity,ENWL!AO121, NPgN!AO121, NPgY!AO121, WMID!AO121, EMID!AO121, SWALES!AO121, SWEST!AO121, LPN!AO121,SPN!AO121,EPN!AO121,SPD!AO121,SPMW!AO121,SSEH!AO121,SSES!AO121) -> 0.987 | AP121: =CHOOSE(m_identity,ENWL!AP121, NPgN!AP121, NPgY!AP121, WMID!AP121, EMID!AP121, SWALES!AP121, SWEST!AP121, LPN!AP121,SPN!AP121,EPN!AP121,SPD!AP121,SPMW!AP121,SSEH!AP121,SSES!AP121) -> 0.987 | AQ121: =CHOOSE(m_identity,ENWL!AQ121, NPgN!AQ121, NPgY!AQ121, WMID!AQ121, EMID!AQ121, SWALES!AQ121, SWEST!AQ121, LPN!AQ121,SPN!AQ121,EPN!AQ121,SPD!AQ121,SPMW!AQ121,SSEH!AQ121,SSES!AQ121) -> 0.987
E122: Allocation to non-load related capex - other | G122: % | AJ122: =CHOOSE(m_identity,ENWL!AJ122, NPgN!AJ122, NPgY!AJ122, WMID!AJ122, EMID!AJ122, SWALES!AJ122, SWEST!AJ122, LPN!AJ122,SPN!AJ122,EPN!AJ122,SPD!AJ122,SPMW!AJ122,SSEH!AJ122,SSES!AJ122) -> 0 | AK122: =CHOOSE(m_identity,ENWL!AK122, NPgN!AK122, NPgY!AK122, WMID!AK122, EMID!AK122, SWALES!AK122, SWEST!AK122, LPN!AK122,SPN!AK122,EPN!AK122,SPD!AK122,SPMW!AK122,SSEH!AK122,SSES!AK122) -> 0 | AL122: =CHOOSE(m_identity,ENWL!AL122, NPgN!AL122, NPgY!AL122, WMID!AL122, EMID!AL122, SWALES!AL122, SWEST!AL122, LPN!AL122,SPN!AL122,EPN!AL122,SPD!AL122,SPMW!AL122,SSEH!AL122,SSES!AL122) -> 0 | AM122: =CHOOSE(m_identity,ENWL!AM122, NPgN!AM122, NPgY!AM122, WMID!AM122, EMID!AM122, SWALES!AM122, SWEST!AM122, LPN!AM122,SPN!AM122,EPN!AM122,SPD!AM122,SPMW!AM122,SSEH!AM122,SSES!AM122) -> 0 | AN122: =CHOOSE(m_identity,ENWL!AN122, NPgN!AN122, NPgY!AN122, WMID!AN122, EMID!AN122, SWALES!AN122, SWEST!AN122, LPN!AN122,SPN!AN122,EPN!AN122,SPD!AN122,SPMW!AN122,SSEH!AN122,SSES!AN122) -> 0 | AO122: =CHOOSE(m_identity,ENWL!AO122, NPgN!AO122, NPgY!AO122, WMID!AO122, EMID!AO122, SWALES!AO122, SWEST!AO122, LPN!AO122,SPN!AO122,EPN!AO122,SPD!AO122,SPMW!AO122,SSEH!AO122,SSES!AO122) -> 0 | AP122: =CHOOSE(m_identity,ENWL!AP122, NPgN!AP122, NPgY!AP122, WMID!AP122, EMID!AP122, SWALES!AP122, SWEST!AP122, LPN!AP122,SPN!AP122,EPN!AP122,SPD!AP122,SPMW!AP122,SSEH!AP122,SSES!AP122) -> 0 | AQ122: =CHOOSE(m_identity,ENWL!AQ122, NPgN!AQ122, NPgY!AQ122, WMID!AQ122, EMID!AQ122, SWALES!AQ122, SWEST!AQ122, LPN!AQ122,SPN!AQ122,EPN!AQ122,SPD!AQ122,SPMW!AQ122,SSEH!AQ122,SSES!AQ122) -> 0
E123: Allocation to faults | G123: % | AJ123: =CHOOSE(m_identity,ENWL!AJ123, NPgN!AJ123, NPgY!AJ123, WMID!AJ123, EMID!AJ123, SWALES!AJ123, SWEST!AJ123, LPN!AJ123,SPN!AJ123,EPN!AJ123,SPD!AJ123,SPMW!AJ123,SSEH!AJ123,SSES!AJ123) -> 0 | AK123: =CHOOSE(m_identity,ENWL!AK123, NPgN!AK123, NPgY!AK123, WMID!AK123, EMID!AK123, SWALES!AK123, SWEST!AK123, LPN!AK123,SPN!AK123,EPN!AK123,SPD!AK123,SPMW!AK123,SSEH!AK123,SSES!AK123) -> 0 | AL123: =CHOOSE(m_identity,ENWL!AL123, NPgN!AL123, NPgY!AL123, WMID!AL123, EMID!AL123, SWALES!AL123, SWEST!AL123, LPN!AL123,SPN!AL123,EPN!AL123,SPD!AL123,SPMW!AL123,SSEH!AL123,SSES!AL123) -> 0 | AM123: =CHOOSE(m_identity,ENWL!AM123, NPgN!AM123, NPgY!AM123, WMID!AM123, EMID!AM123, SWALES!AM123, SWEST!AM123, LPN!AM123,SPN!AM123,EPN!AM123,SPD!AM123,SPMW!AM123,SSEH!AM123,SSES!AM123) -> 0 | AN123: =CHOOSE(m_identity,ENWL!AN123, NPgN!AN123, NPgY!AN123, WMID!AN123, EMID!AN123, SWALES!AN123, SWEST!AN123, LPN!AN123,SPN!AN123,EPN!AN123,SPD!AN123,SPMW!AN123,SSEH!AN123,SSES!AN123) -> 0 | AO123: =CHOOSE(m_identity,ENWL!AO123, NPgN!AO123, NPgY!AO123, WMID!AO123, EMID!AO123, SWALES!AO123, SWEST!AO123, LPN!AO123,SPN!AO123,EPN!AO123,SPD!AO123,SPMW!AO123,SSEH!AO123,SSES!AO123) -> 0 | AP123: =CHOOSE(m_identity,ENWL!AP123, NPgN!AP123, NPgY!AP123, WMID!AP123, EMID!AP123, SWALES!AP123, SWEST!AP123, LPN!AP123,SPN!AP123,EPN!AP123,SPD!AP123,SPMW!AP123,SSEH!AP123,SSES!AP123) -> 0 | AQ123: =CHOOSE(m_identity,ENWL!AQ123, NPgN!AQ123, NPgY!AQ123, WMID!AQ123, EMID!AQ123, SWALES!AQ123, SWEST!AQ123, LPN!AQ123,SPN!AQ123,EPN!AQ123,SPD!AQ123,SPMW!AQ123,SSEH!AQ123,SSES!AQ123) -> 0
E124: Allocation to tree cutting | G124: % | AJ124: =CHOOSE(m_identity,ENWL!AJ124, NPgN!AJ124, NPgY!AJ124, WMID!AJ124, EMID!AJ124, SWALES!AJ124, SWEST!AJ124, LPN!AJ124,SPN!AJ124,EPN!AJ124,SPD!AJ124,SPMW!AJ124,SSEH!AJ124,SSES!AJ124) -> 0 | AK124: =CHOOSE(m_identity,ENWL!AK124, NPgN!AK124, NPgY!AK124, WMID!AK124, EMID!AK124, SWALES!AK124, SWEST!AK124, LPN!AK124,SPN!AK124,EPN!AK124,SPD!AK124,SPMW!AK124,SSEH!AK124,SSES!AK124) -> 0 | AL124: =CHOOSE(m_identity,ENWL!AL124, NPgN!AL124, NPgY!AL124, WMID!AL124, EMID!AL124, SWALES!AL124, SWEST!AL124, LPN!AL124,SPN!AL124,EPN!AL124,SPD!AL124,SPMW!AL124,SSEH!AL124,SSES!AL124) -> 0 | AM124: =CHOOSE(m_identity,ENWL!AM124, NPgN!AM124, NPgY!AM124, WMID!AM124, EMID!AM124, SWALES!AM124, SWEST!AM124, LPN!AM124,SPN!AM124,EPN!AM124,SPD!AM124,SPMW!AM124,SSEH!AM124,SSES!AM124) -> 0 | AN124: =CHOOSE(m_identity,ENWL!AN124, NPgN!AN124, NPgY!AN124, WMID!AN124, EMID!AN124, SWALES!AN124, SWEST!AN124, LPN!AN124,SPN!AN124,EPN!AN124,SPD!AN124,SPMW!AN124,SSEH!AN124,SSES!AN124) -> 0 | AO124: =CHOOSE(m_identity,ENWL!AO124, NPgN!AO124, NPgY!AO124, WMID!AO124, EMID!AO124, SWALES!AO124, SWEST!AO124, LPN!AO124,SPN!AO124,EPN!AO124,SPD!AO124,SPMW!AO124,SSEH!AO124,SSES!AO124) -> 0 | AP124: =CHOOSE(m_identity,ENWL!AP124, NPgN!AP124, NPgY!AP124, WMID!AP124, EMID!AP124, SWALES!AP124, SWEST!AP124, LPN!AP124,SPN!AP124,EPN!AP124,SPD!AP124,SPMW!AP124,SSEH!AP124,SSES!AP124) -> 0 | AQ124: =CHOOSE(m_identity,ENWL!AQ124, NPgN!AQ124, NPgY!AQ124, WMID!AQ124, EMID!AQ124, SWALES!AQ124, SWEST!AQ124, LPN!AQ124,SPN!AQ124,EPN!AQ124,SPD!AQ124,SPMW!AQ124,SSEH!AQ124,SSES!AQ124) -> 0
E125: Allocation to 100% ‘revenue pool’ expenditure | G125: % | AJ125: =CHOOSE(m_identity,ENWL!AJ125, NPgN!AJ125, NPgY!AJ125, WMID!AJ125, EMID!AJ125, SWALES!AJ125, SWEST!AJ125, LPN!AJ125,SPN!AJ125,EPN!AJ125,SPD!AJ125,SPMW!AJ125,SSEH!AJ125,SSES!AJ125) -> 0.013 | AK125: =CHOOSE(m_identity,ENWL!AK125, NPgN!AK125, NPgY!AK125, WMID!AK125, EMID!AK125, SWALES!AK125, SWEST!AK125, LPN!AK125,SPN!AK125,EPN!AK125,SPD!AK125,SPMW!AK125,SSEH!AK125,SSES!AK125) -> 0 | AL125: =CHOOSE(m_identity,ENWL!AL125, NPgN!AL125, NPgY!AL125, WMID!AL125, EMID!AL125, SWALES!AL125, SWEST!AL125, LPN!AL125,SPN!AL125,EPN!AL125,SPD!AL125,SPMW!AL125,SSEH!AL125,SSES!AL125) -> 0.008787915095 | AM125: =CHOOSE(m_identity,ENWL!AM125, NPgN!AM125, NPgY!AM125, WMID!AM125, EMID!AM125, SWALES!AM125, SWEST!AM125, LPN!AM125,SPN!AM125,EPN!AM125,SPD!AM125,SPMW!AM125,SSEH!AM125,SSES!AM125) -> 0.009117248681 | AN125: =CHOOSE(m_identity,ENWL!AN125, NPgN!AN125, NPgY!AN125, WMID!AN125, EMID!AN125, SWALES!AN125, SWEST!AN125, LPN!AN125,SPN!AN125,EPN!AN125,SPD!AN125,SPMW!AN125,SSEH!AN125,SSES!AN125) -> 0.09448481559 | AO125: =CHOOSE(m_identity,ENWL!AO125, NPgN!AO125, NPgY!AO125, WMID!AO125, EMID!AO125, SWALES!AO125, SWEST!AO125, LPN!AO125,SPN!AO125,EPN!AO125,SPD!AO125,SPMW!AO125,SSEH!AO125,SSES!AO125) -> 0.013 | AP125: =CHOOSE(m_identity,ENWL!AP125, NPgN!AP125, NPgY!AP125, WMID!AP125, EMID!AP125, SWALES!AP125, SWEST!AP125, LPN!AP125,SPN!AP125,EPN!AP125,SPD!AP125,SPMW!AP125,SSEH!AP125,SSES!AP125) -> 0.013 | AQ125: =CHOOSE(m_identity,ENWL!AQ125, NPgN!AQ125, NPgY!AQ125, WMID!AQ125, EMID!AQ125, SWALES!AQ125, SWEST!AQ125, LPN!AQ125,SPN!AQ125,EPN!AQ125,SPD!AQ125,SPMW!AQ125,SSEH!AQ125,SSES!AQ125) -> 0.013
E126: Allocation to controllable opex | G126: % | AJ126: =CHOOSE(m_identity,ENWL!AJ126, NPgN!AJ126, NPgY!AJ126, WMID!AJ126, EMID!AJ126, SWALES!AJ126, SWEST!AJ126, LPN!AJ126,SPN!AJ126,EPN!AJ126,SPD!AJ126,SPMW!AJ126,SSEH!AJ126,SSES!AJ126) -> 0 | AK126: =CHOOSE(m_identity,ENWL!AK126, NPgN!AK126, NPgY!AK126, WMID!AK126, EMID!AK126, SWALES!AK126, SWEST!AK126, LPN!AK126,SPN!AK126,EPN!AK126,SPD!AK126,SPMW!AK126,SSEH!AK126,SSES!AK126) -> 0 | AL126: =CHOOSE(m_identity,ENWL!AL126, NPgN!AL126, NPgY!AL126, WMID!AL126, EMID!AL126, SWALES!AL126, SWEST!AL126, LPN!AL126,SPN!AL126,EPN!AL126,SPD!AL126,SPMW!AL126,SSEH!AL126,SSES!AL126) -> 0 | AM126: =CHOOSE(m_identity,ENWL!AM126, NPgN!AM126, NPgY!AM126, WMID!AM126, EMID!AM126, SWALES!AM126, SWEST!AM126, LPN!AM126,SPN!AM126,EPN!AM126,SPD!AM126,SPMW!AM126,SSEH!AM126,SSES!AM126) -> 0 | AN126: =CHOOSE(m_identity,ENWL!AN126, NPgN!AN126, NPgY!AN126, WMID!AN126, EMID!AN126, SWALES!AN126, SWEST!AN126, LPN!AN126,SPN!AN126,EPN!AN126,SPD!AN126,SPMW!AN126,SSEH!AN126,SSES!AN126) -> 0 | AO126: =CHOOSE(m_identity,ENWL!AO126, NPgN!AO126, NPgY!AO126, WMID!AO126, EMID!AO126, SWALES!AO126, SWEST!AO126, LPN!AO126,SPN!AO126,EPN!AO126,SPD!AO126,SPMW!AO126,SSEH!AO126,SSES!AO126) -> 0 | AP126: =CHOOSE(m_identity,ENWL!AP126, NPgN!AP126, NPgY!AP126, WMID!AP126, EMID!AP126, SWALES!AP126, SWEST!AP126, LPN!AP126,SPN!AP126,EPN!AP126,SPD!AP126,SPMW!AP126,SSEH!AP126,SSES!AP126) -> 0 | AQ126: =CHOOSE(m_identity,ENWL!AQ126, NPgN!AQ126, NPgY!AQ126, WMID!AQ126, EMID!AQ126, SWALES!AQ126, SWEST!AQ126, LPN!AQ126,SPN!AQ126,EPN!AQ126,SPD!AQ126,SPMW!AQ126,SSEH!AQ126,SSES!AQ126) -> 0
E128: =E21 -> Allowed Expenditure - Visual Amenity Projects (TIM neutral) | G128: £m 12/13 prices | AJ128: =AJ21 -> 0.8128081602 | AK128: =AK21 -> 0.8711219202 | AL128: 0.9575588996 | AM128: 0.9352615071 | AN128: 1.052401384 | AO128: 0 | AP128: 0 | AQ128: 0
E129: Allocation to load related capex | G129: % | AJ129: =CHOOSE(m_identity,ENWL!AJ129, NPgN!AJ129, NPgY!AJ129, WMID!AJ129, EMID!AJ129, SWALES!AJ129, SWEST!AJ129, LPN!AJ129,SPN!AJ129,EPN!AJ129,SPD!AJ129,SPMW!AJ129,SSEH!AJ129,SSES!AJ129) -> 0 | AK129: =CHOOSE(m_identity,ENWL!AK129, NPgN!AK129, NPgY!AK129, WMID!AK129, EMID!AK129, SWALES!AK129, SWEST!AK129, LPN!AK129,SPN!AK129,EPN!AK129,SPD!AK129,SPMW!AK129,SSEH!AK129,SSES!AK129) -> 0 | AL129: =CHOOSE(m_identity,ENWL!AL129, NPgN!AL129, NPgY!AL129, WMID!AL129, EMID!AL129, SWALES!AL129, SWEST!AL129, LPN!AL129,SPN!AL129,EPN!AL129,SPD!AL129,SPMW!AL129,SSEH!AL129,SSES!AL129) -> 0 | AM129: =CHOOSE(m_identity,ENWL!AM129, NPgN!AM129, NPgY!AM129, WMID!AM129, EMID!AM129, SWALES!AM129, SWEST!AM129, LPN!AM129,SPN!AM129,EPN!AM129,SPD!AM129,SPMW!AM129,SSEH!AM129,SSES!AM129) -> 0 | AN129: =CHOOSE(m_identity,ENWL!AN129, NPgN!AN129, NPgY!AN129, WMID!AN129, EMID!AN129, SWALES!AN129, SWEST!AN129, LPN!AN129,SPN!AN129,EPN!AN129,SPD!AN129,SPMW!AN129,SSEH!AN129,SSES!AN129) -> 0 | AO129: =CHOOSE(m_identity,ENWL!AO129, NPgN!AO129, NPgY!AO129, WMID!AO129, EMID!AO129, SWALES!AO129, SWEST!AO129, LPN!AO129,SPN!AO129,EPN!AO129,SPD!AO129,SPMW!AO129,SSEH!AO129,SSES!AO129) -> 0 | AP129: =CHOOSE(m_identity,ENWL!AP129, NPgN!AP129, NPgY!AP129, WMID!AP129, EMID!AP129, SWALES!AP129, SWEST!AP129, LPN!AP129,SPN!AP129,EPN!AP129,SPD!AP129,SPMW!AP129,SSEH!AP129,SSES!AP129) -> 0 | AQ129: =CHOOSE(m_identity,ENWL!AQ129, NPgN!AQ129, NPgY!AQ129, WMID!AQ129, EMID!AQ129, SWALES!AQ129, SWEST!AQ129, LPN!AQ129,SPN!AQ129,EPN!AQ129,SPD!AQ129,SPMW!AQ129,SSEH!AQ129,SSES!AQ129) -> 0
E130: Allocation to non-load related capex - asset replacement | G130: % | AJ130: =CHOOSE(m_identity,ENWL!AJ130, NPgN!AJ130, NPgY!AJ130, WMID!AJ130, EMID!AJ130, SWALES!AJ130, SWEST!AJ130, LPN!AJ130,SPN!AJ130,EPN!AJ130,SPD!AJ130,SPMW!AJ130,SSEH!AJ130,SSES!AJ130) -> 0 | AK130: =CHOOSE(m_identity,ENWL!AK130, NPgN!AK130, NPgY!AK130, WMID!AK130, EMID!AK130, SWALES!AK130, SWEST!AK130, LPN!AK130,SPN!AK130,EPN!AK130,SPD!AK130,SPMW!AK130,SSEH!AK130,SSES!AK130) -> 0 | AL130: =CHOOSE(m_identity,ENWL!AL130, NPgN!AL130, NPgY!AL130, WMID!AL130, EMID!AL130, SWALES!AL130, SWEST!AL130, LPN!AL130,SPN!AL130,EPN!AL130,SPD!AL130,SPMW!AL130,SSEH!AL130,SSES!AL130) -> 0 | AM130: =CHOOSE(m_identity,ENWL!AM130, NPgN!AM130, NPgY!AM130, WMID!AM130, EMID!AM130, SWALES!AM130, SWEST!AM130, LPN!AM130,SPN!AM130,EPN!AM130,SPD!AM130,SPMW!AM130,SSEH!AM130,SSES!AM130) -> 0 | AN130: =CHOOSE(m_identity,ENWL!AN130, NPgN!AN130, NPgY!AN130, WMID!AN130, EMID!AN130, SWALES!AN130, SWEST!AN130, LPN!AN130,SPN!AN130,EPN!AN130,SPD!AN130,SPMW!AN130,SSEH!AN130,SSES!AN130) -> 0 | AO130: =CHOOSE(m_identity,ENWL!AO130, NPgN!AO130, NPgY!AO130, WMID!AO130, EMID!AO130, SWALES!AO130, SWEST!AO130, LPN!AO130,SPN!AO130,EPN!AO130,SPD!AO130,SPMW!AO130,SSEH!AO130,SSES!AO130) -> 0 | AP130: =CHOOSE(m_identity,ENWL!AP130, NPgN!AP130, NPgY!AP130, WMID!AP130, EMID!AP130, SWALES!AP130, SWEST!AP130, LPN!AP130,SPN!AP130,EPN!AP130,SPD!AP130,SPMW!AP130,SSEH!AP130,SSES!AP130) -> 0 | AQ130: =CHOOSE(m_identity,ENWL!AQ130, NPgN!AQ130, NPgY!AQ130, WMID!AQ130, EMID!AQ130, SWALES!AQ130, SWEST!AQ130, LPN!AQ130,SPN!AQ130,EPN!AQ130,SPD!AQ130,SPMW!AQ130,SSEH!AQ130,SSES!AQ130) -> 0
E131: Allocation to non-load related capex - other | G131: % | AJ131: =CHOOSE(m_identity,ENWL!AJ131, NPgN!AJ131, NPgY!AJ131, WMID!AJ131, EMID!AJ131, SWALES!AJ131, SWEST!AJ131, LPN!AJ131,SPN!AJ131,EPN!AJ131,SPD!AJ131,SPMW!AJ131,SSEH!AJ131,SSES!AJ131) -> 0.9614422704 | AK131: =CHOOSE(m_identity,ENWL!AK131, NPgN!AK131, NPgY!AK131, WMID!AK131, EMID!AK131, SWALES!AK131, SWEST!AK131, LPN!AK131,SPN!AK131,EPN!AK131,SPD!AK131,SPMW!AK131,SSEH!AK131,SSES!AK131) -> 0.9602654699 | AL131: =CHOOSE(m_identity,ENWL!AL131, NPgN!AL131, NPgY!AL131, WMID!AL131, EMID!AL131, SWALES!AL131, SWEST!AL131, LPN!AL131,SPN!AL131,EPN!AL131,SPD!AL131,SPMW!AL131,SSEH!AL131,SSES!AL131) -> 0.961230924 | AM131: =CHOOSE(m_identity,ENWL!AM131, NPgN!AM131, NPgY!AM131, WMID!AM131, EMID!AM131, SWALES!AM131, SWEST!AM131, LPN!AM131,SPN!AM131,EPN!AM131,SPD!AM131,SPMW!AM131,SSEH!AM131,SSES!AM131) -> 0.9619988323 | AN131: =CHOOSE(m_identity,ENWL!AN131, NPgN!AN131, NPgY!AN131, WMID!AN131, EMID!AN131, SWALES!AN131, SWEST!AN131, LPN!AN131,SPN!AN131,EPN!AN131,SPD!AN131,SPMW!AN131,SSEH!AN131,SSES!AN131) -> 0.962194438 | AO131: =CHOOSE(m_identity,ENWL!AO131, NPgN!AO131, NPgY!AO131, WMID!AO131, EMID!AO131, SWALES!AO131, SWEST!AO131, LPN!AO131,SPN!AO131,EPN!AO131,SPD!AO131,SPMW!AO131,SSEH!AO131,SSES!AO131) -> 0.9631540864 | AP131: =CHOOSE(m_identity,ENWL!AP131, NPgN!AP131, NPgY!AP131, WMID!AP131, EMID!AP131, SWALES!AP131, SWEST!AP131, LPN!AP131,SPN!AP131,EPN!AP131,SPD!AP131,SPMW!AP131,SSEH!AP131,SSES!AP131) -> 0.9648243525 | AQ131: =CHOOSE(m_identity,ENWL!AQ131, NPgN!AQ131, NPgY!AQ131, WMID!AQ131, EMID!AQ131, SWALES!AQ131, SWEST!AQ131, LPN!AQ131,SPN!AQ131,EPN!AQ131,SPD!AQ131,SPMW!AQ131,SSEH!AQ131,SSES!AQ131) -> 0.9652206093
E132: Allocation to faults | G132: % | AJ132: =CHOOSE(m_identity,ENWL!AJ132, NPgN!AJ132, NPgY!AJ132, WMID!AJ132, EMID!AJ132, SWALES!AJ132, SWEST!AJ132, LPN!AJ132,SPN!AJ132,EPN!AJ132,SPD!AJ132,SPMW!AJ132,SSEH!AJ132,SSES!AJ132) -> 0 | AK132: =CHOOSE(m_identity,ENWL!AK132, NPgN!AK132, NPgY!AK132, WMID!AK132, EMID!AK132, SWALES!AK132, SWEST!AK132, LPN!AK132,SPN!AK132,EPN!AK132,SPD!AK132,SPMW!AK132,SSEH!AK132,SSES!AK132) -> 0 | AL132: =CHOOSE(m_identity,ENWL!AL132, NPgN!AL132, NPgY!AL132, WMID!AL132, EMID!AL132, SWALES!AL132, SWEST!AL132, LPN!AL132,SPN!AL132,EPN!AL132,SPD!AL132,SPMW!AL132,SSEH!AL132,SSES!AL132) -> 0 | AM132: =CHOOSE(m_identity,ENWL!AM132, NPgN!AM132, NPgY!AM132, WMID!AM132, EMID!AM132, SWALES!AM132, SWEST!AM132, LPN!AM132,SPN!AM132,EPN!AM132,SPD!AM132,SPMW!AM132,SSEH!AM132,SSES!AM132) -> 0 | AN132: =CHOOSE(m_identity,ENWL!AN132, NPgN!AN132, NPgY!AN132, WMID!AN132, EMID!AN132, SWALES!AN132, SWEST!AN132, LPN!AN132,SPN!AN132,EPN!AN132,SPD!AN132,SPMW!AN132,SSEH!AN132,SSES!AN132) -> 0 | AO132: =CHOOSE(m_identity,ENWL!AO132, NPgN!AO132, NPgY!AO132, WMID!AO132, EMID!AO132, SWALES!AO132, SWEST!AO132, LPN!AO132,SPN!AO132,EPN!AO132,SPD!AO132,SPMW!AO132,SSEH!AO132,SSES!AO132) -> 0 | AP132: =CHOOSE(m_identity,ENWL!AP132, NPgN!AP132, NPgY!AP132, WMID!AP132, EMID!AP132, SWALES!AP132, SWEST!AP132, LPN!AP132,SPN!AP132,EPN!AP132,SPD!AP132,SPMW!AP132,SSEH!AP132,SSES!AP132) -> 0 | AQ132: =CHOOSE(m_identity,ENWL!AQ132, NPgN!AQ132, NPgY!AQ132, WMID!AQ132, EMID!AQ132, SWALES!AQ132, SWEST!AQ132, LPN!AQ132,SPN!AQ132,EPN!AQ132,SPD!AQ132,SPMW!AQ132,SSEH!AQ132,SSES!AQ132) -> 0
E133: Allocation to tree cutting | G133: % | AJ133: =CHOOSE(m_identity,ENWL!AJ133, NPgN!AJ133, NPgY!AJ133, WMID!AJ133, EMID!AJ133, SWALES!AJ133, SWEST!AJ133, LPN!AJ133,SPN!AJ133,EPN!AJ133,SPD!AJ133,SPMW!AJ133,SSEH!AJ133,SSES!AJ133) -> 0 | AK133: =CHOOSE(m_identity,ENWL!AK133, NPgN!AK133, NPgY!AK133, WMID!AK133, EMID!AK133, SWALES!AK133, SWEST!AK133, LPN!AK133,SPN!AK133,EPN!AK133,SPD!AK133,SPMW!AK133,SSEH!AK133,SSES!AK133) -> 0 | AL133: =CHOOSE(m_identity,ENWL!AL133, NPgN!AL133, NPgY!AL133, WMID!AL133, EMID!AL133, SWALES!AL133, SWEST!AL133, LPN!AL133,SPN!AL133,EPN!AL133,SPD!AL133,SPMW!AL133,SSEH!AL133,SSES!AL133) -> 0 | AM133: =CHOOSE(m_identity,ENWL!AM133, NPgN!AM133, NPgY!AM133, WMID!AM133, EMID!AM133, SWALES!AM133, SWEST!AM133, LPN!AM133,SPN!AM133,EPN!AM133,SPD!AM133,SPMW!AM133,SSEH!AM133,SSES!AM133) -> 0 | AN133: =CHOOSE(m_identity,ENWL!AN133, NPgN!AN133, NPgY!AN133, WMID!AN133, EMID!AN133, SWALES!AN133, SWEST!AN133, LPN!AN133,SPN!AN133,EPN!AN133,SPD!AN133,SPMW!AN133,SSEH!AN133,SSES!AN133) -> 0 | AO133: =CHOOSE(m_identity,ENWL!AO133, NPgN!AO133, NPgY!AO133, WMID!AO133, EMID!AO133, SWALES!AO133, SWEST!AO133, LPN!AO133,SPN!AO133,EPN!AO133,SPD!AO133,SPMW!AO133,SSEH!AO133,SSES!AO133) -> 0 | AP133: =CHOOSE(m_identity,ENWL!AP133, NPgN!AP133, NPgY!AP133, WMID!AP133, EMID!AP133, SWALES!AP133, SWEST!AP133, LPN!AP133,SPN!AP133,EPN!AP133,SPD!AP133,SPMW!AP133,SSEH!AP133,SSES!AP133) -> 0 | AQ133: =CHOOSE(m_identity,ENWL!AQ133, NPgN!AQ133, NPgY!AQ133, WMID!AQ133, EMID!AQ133, SWALES!AQ133, SWEST!AQ133, LPN!AQ133,SPN!AQ133,EPN!AQ133,SPD!AQ133,SPMW!AQ133,SSEH!AQ133,SSES!AQ133) -> 0
E134: Allocation to 100% ‘revenue pool’ expenditure | G134: % | AJ134: =CHOOSE(m_identity,ENWL!AJ134, NPgN!AJ134, NPgY!AJ134, WMID!AJ134, EMID!AJ134, SWALES!AJ134, SWEST!AJ134, LPN!AJ134,SPN!AJ134,EPN!AJ134,SPD!AJ134,SPMW!AJ134,SSEH!AJ134,SSES!AJ134) -> 0.03855772957 | AK134: =CHOOSE(m_identity,ENWL!AK134, NPgN!AK134, NPgY!AK134, WMID!AK134, EMID!AK134, SWALES!AK134, SWEST!AK134, LPN!AK134,SPN!AK134,EPN!AK134,SPD!AK134,SPMW!AK134,SSEH!AK134,SSES!AK134) -> 0.03973453007 | AL134: =CHOOSE(m_identity,ENWL!AL134, NPgN!AL134, NPgY!AL134, WMID!AL134, EMID!AL134, SWALES!AL134, SWEST!AL134, LPN!AL134,SPN!AL134,EPN!AL134,SPD!AL134,SPMW!AL134,SSEH!AL134,SSES!AL134) -> 0.03876907597 | AM134: =CHOOSE(m_identity,ENWL!AM134, NPgN!AM134, NPgY!AM134, WMID!AM134, EMID!AM134, SWALES!AM134, SWEST!AM134, LPN!AM134,SPN!AM134,EPN!AM134,SPD!AM134,SPMW!AM134,SSEH!AM134,SSES!AM134) -> 0.03800116766 | AN134: =CHOOSE(m_identity,ENWL!AN134, NPgN!AN134, NPgY!AN134, WMID!AN134, EMID!AN134, SWALES!AN134, SWEST!AN134, LPN!AN134,SPN!AN134,EPN!AN134,SPD!AN134,SPMW!AN134,SSEH!AN134,SSES!AN134) -> 0.03780556199 | AO134: =CHOOSE(m_identity,ENWL!AO134, NPgN!AO134, NPgY!AO134, WMID!AO134, EMID!AO134, SWALES!AO134, SWEST!AO134, LPN!AO134,SPN!AO134,EPN!AO134,SPD!AO134,SPMW!AO134,SSEH!AO134,SSES!AO134) -> 0.03684591362 | AP134: =CHOOSE(m_identity,ENWL!AP134, NPgN!AP134, NPgY!AP134, WMID!AP134, EMID!AP134, SWALES!AP134, SWEST!AP134, LPN!AP134,SPN!AP134,EPN!AP134,SPD!AP134,SPMW!AP134,SSEH!AP134,SSES!AP134) -> 0.03517564748 | AQ134: =CHOOSE(m_identity,ENWL!AQ134, NPgN!AQ134, NPgY!AQ134, WMID!AQ134, EMID!AQ134, SWALES!AQ134, SWEST!AQ134, LPN!AQ134,SPN!AQ134,EPN!AQ134,SPD!AQ134,SPMW!AQ134,SSEH!AQ134,SSES!AQ134) -> 0.03477939074
E135: Allocation to controllable opex | G135: % | AJ135: =CHOOSE(m_identity,ENWL!AJ135, NPgN!AJ135, NPgY!AJ135, WMID!AJ135, EMID!AJ135, SWALES!AJ135, SWEST!AJ135, LPN!AJ135,SPN!AJ135,EPN!AJ135,SPD!AJ135,SPMW!AJ135,SSEH!AJ135,SSES!AJ135) -> 0 | AK135: =CHOOSE(m_identity,ENWL!AK135, NPgN!AK135, NPgY!AK135, WMID!AK135, EMID!AK135, SWALES!AK135, SWEST!AK135, LPN!AK135,SPN!AK135,EPN!AK135,SPD!AK135,SPMW!AK135,SSEH!AK135,SSES!AK135) -> 0 | AL135: =CHOOSE(m_identity,ENWL!AL135, NPgN!AL135, NPgY!AL135, WMID!AL135, EMID!AL135, SWALES!AL135, SWEST!AL135, LPN!AL135,SPN!AL135,EPN!AL135,SPD!AL135,SPMW!AL135,SSEH!AL135,SSES!AL135) -> 0 | AM135: =CHOOSE(m_identity,ENWL!AM135, NPgN!AM135, NPgY!AM135, WMID!AM135, EMID!AM135, SWALES!AM135, SWEST!AM135, LPN!AM135,SPN!AM135,EPN!AM135,SPD!AM135,SPMW!AM135,SSEH!AM135,SSES!AM135) -> 0 | AN135: =CHOOSE(m_identity,ENWL!AN135, NPgN!AN135, NPgY!AN135, WMID!AN135, EMID!AN135, SWALES!AN135, SWEST!AN135, LPN!AN135,SPN!AN135,EPN!AN135,SPD!AN135,SPMW!AN135,SSEH!AN135,SSES!AN135) -> 0 | AO135: =CHOOSE(m_identity,ENWL!AO135, NPgN!AO135, NPgY!AO135, WMID!AO135, EMID!AO135, SWALES!AO135, SWEST!AO135, LPN!AO135,SPN!AO135,EPN!AO135,SPD!AO135,SPMW!AO135,SSEH!AO135,SSES!AO135) -> 0 | AP135: =CHOOSE(m_identity,ENWL!AP135, NPgN!AP135, NPgY!AP135, WMID!AP135, EMID!AP135, SWALES!AP135, SWEST!AP135, LPN!AP135,SPN!AP135,EPN!AP135,SPD!AP135,SPMW!AP135,SSEH!AP135,SSES!AP135) -> 0 | AQ135: =CHOOSE(m_identity,ENWL!AQ135, NPgN!AQ135, NPgY!AQ135, WMID!AQ135, EMID!AQ135, SWALES!AQ135, SWEST!AQ135, LPN!AQ135,SPN!AQ135,EPN!AQ135,SPD!AQ135,SPMW!AQ135,SSEH!AQ135,SSES!AQ135) -> 0
E137: =E22 -> Allowed Expenditure - Worst Served Customer Project (TIM neutral) | G137: £m 12/13 prices | AJ137: =AJ22 -> 0.1302513562 | AK137: =AK22 -> 0.2715342126 | AL137: 0.6657341858 | AM137: 0.2270046007 | AN137: 0.04727705967 | AO137: 0 | AP137: 0 | AQ137: 0
E138: Allocation to load related capex | G138: % | AJ138: =CHOOSE(m_identity,ENWL!AJ138, NPgN!AJ138, NPgY!AJ138, WMID!AJ138, EMID!AJ138, SWALES!AJ138, SWEST!AJ138, LPN!AJ138,SPN!AJ138,EPN!AJ138,SPD!AJ138,SPMW!AJ138,SSEH!AJ138,SSES!AJ138) -> 0 | AK138: =CHOOSE(m_identity,ENWL!AK138, NPgN!AK138, NPgY!AK138, WMID!AK138, EMID!AK138, SWALES!AK138, SWEST!AK138, LPN!AK138,SPN!AK138,EPN!AK138,SPD!AK138,SPMW!AK138,SSEH!AK138,SSES!AK138) -> 0 | AL138: =CHOOSE(m_identity,ENWL!AL138, NPgN!AL138, NPgY!AL138, WMID!AL138, EMID!AL138, SWALES!AL138, SWEST!AL138, LPN!AL138,SPN!AL138,EPN!AL138,SPD!AL138,SPMW!AL138,SSEH!AL138,SSES!AL138) -> 0 | AM138: =CHOOSE(m_identity,ENWL!AM138, NPgN!AM138, NPgY!AM138, WMID!AM138, EMID!AM138, SWALES!AM138, SWEST!AM138, LPN!AM138,SPN!AM138,EPN!AM138,SPD!AM138,SPMW!AM138,SSEH!AM138,SSES!AM138) -> 0 | AN138: =CHOOSE(m_identity,ENWL!AN138, NPgN!AN138, NPgY!AN138, WMID!AN138, EMID!AN138, SWALES!AN138, SWEST!AN138, LPN!AN138,SPN!AN138,EPN!AN138,SPD!AN138,SPMW!AN138,SSEH!AN138,SSES!AN138) -> 0 | AO138: =CHOOSE(m_identity,ENWL!AO138, NPgN!AO138, NPgY!AO138, WMID!AO138, EMID!AO138, SWALES!AO138, SWEST!AO138, LPN!AO138,SPN!AO138,EPN!AO138,SPD!AO138,SPMW!AO138,SSEH!AO138,SSES!AO138) -> 0 | AP138: =CHOOSE(m_identity,ENWL!AP138, NPgN!AP138, NPgY!AP138, WMID!AP138, EMID!AP138, SWALES!AP138, SWEST!AP138, LPN!AP138,SPN!AP138,EPN!AP138,SPD!AP138,SPMW!AP138,SSEH!AP138,SSES!AP138) -> 0 | AQ138: =CHOOSE(m_identity,ENWL!AQ138, NPgN!AQ138, NPgY!AQ138, WMID!AQ138, EMID!AQ138, SWALES!AQ138, SWEST!AQ138, LPN!AQ138,SPN!AQ138,EPN!AQ138,SPD!AQ138,SPMW!AQ138,SSEH!AQ138,SSES!AQ138) -> 0
E139: Allocation to non-load related capex - asset replacement | G139: % | AJ139: =CHOOSE(m_identity,ENWL!AJ139, NPgN!AJ139, NPgY!AJ139, WMID!AJ139, EMID!AJ139, SWALES!AJ139, SWEST!AJ139, LPN!AJ139,SPN!AJ139,EPN!AJ139,SPD!AJ139,SPMW!AJ139,SSEH!AJ139,SSES!AJ139) -> 0 | AK139: =CHOOSE(m_identity,ENWL!AK139, NPgN!AK139, NPgY!AK139, WMID!AK139, EMID!AK139, SWALES!AK139, SWEST!AK139, LPN!AK139,SPN!AK139,EPN!AK139,SPD!AK139,SPMW!AK139,SSEH!AK139,SSES!AK139) -> 0 | AL139: =CHOOSE(m_identity,ENWL!AL139, NPgN!AL139, NPgY!AL139, WMID!AL139, EMID!AL139, SWALES!AL139, SWEST!AL139, LPN!AL139,SPN!AL139,EPN!AL139,SPD!AL139,SPMW!AL139,SSEH!AL139,SSES!AL139) -> 0 | AM139: =CHOOSE(m_identity,ENWL!AM139, NPgN!AM139, NPgY!AM139, WMID!AM139, EMID!AM139, SWALES!AM139, SWEST!AM139, LPN!AM139,SPN!AM139,EPN!AM139,SPD!AM139,SPMW!AM139,SSEH!AM139,SSES!AM139) -> 0 | AN139: =CHOOSE(m_identity,ENWL!AN139, NPgN!AN139, NPgY!AN139, WMID!AN139, EMID!AN139, SWALES!AN139, SWEST!AN139, LPN!AN139,SPN!AN139,EPN!AN139,SPD!AN139,SPMW!AN139,SSEH!AN139,SSES!AN139) -> 0 | AO139: =CHOOSE(m_identity,ENWL!AO139, NPgN!AO139, NPgY!AO139, WMID!AO139, EMID!AO139, SWALES!AO139, SWEST!AO139, LPN!AO139,SPN!AO139,EPN!AO139,SPD!AO139,SPMW!AO139,SSEH!AO139,SSES!AO139) -> 0 | AP139: =CHOOSE(m_identity,ENWL!AP139, NPgN!AP139, NPgY!AP139, WMID!AP139, EMID!AP139, SWALES!AP139, SWEST!AP139, LPN!AP139,SPN!AP139,EPN!AP139,SPD!AP139,SPMW!AP139,SSEH!AP139,SSES!AP139) -> 0 | AQ139: =CHOOSE(m_identity,ENWL!AQ139, NPgN!AQ139, NPgY!AQ139, WMID!AQ139, EMID!AQ139, SWALES!AQ139, SWEST!AQ139, LPN!AQ139,SPN!AQ139,EPN!AQ139,SPD!AQ139,SPMW!AQ139,SSEH!AQ139,SSES!AQ139) -> 0
E140: Allocation to non-load related capex - other | G140: % | AJ140: =CHOOSE(m_identity,ENWL!AJ140, NPgN!AJ140, NPgY!AJ140, WMID!AJ140, EMID!AJ140, SWALES!AJ140, SWEST!AJ140, LPN!AJ140,SPN!AJ140,EPN!AJ140,SPD!AJ140,SPMW!AJ140,SSEH!AJ140,SSES!AJ140) -> 1 | AK140: =CHOOSE(m_identity,ENWL!AK140, NPgN!AK140, NPgY!AK140, WMID!AK140, EMID!AK140, SWALES!AK140, SWEST!AK140, LPN!AK140,SPN!AK140,EPN!AK140,SPD!AK140,SPMW!AK140,SSEH!AK140,SSES!AK140) -> 1 | AL140: =CHOOSE(m_identity,ENWL!AL140, NPgN!AL140, NPgY!AL140, WMID!AL140, EMID!AL140, SWALES!AL140, SWEST!AL140, LPN!AL140,SPN!AL140,EPN!AL140,SPD!AL140,SPMW!AL140,SSEH!AL140,SSES!AL140) -> 1 | AM140: =CHOOSE(m_identity,ENWL!AM140, NPgN!AM140, NPgY!AM140, WMID!AM140, EMID!AM140, SWALES!AM140, SWEST!AM140, LPN!AM140,SPN!AM140,EPN!AM140,SPD!AM140,SPMW!AM140,SSEH!AM140,SSES!AM140) -> 1 | AN140: =CHOOSE(m_identity,ENWL!AN140, NPgN!AN140, NPgY!AN140, WMID!AN140, EMID!AN140, SWALES!AN140, SWEST!AN140, LPN!AN140,SPN!AN140,EPN!AN140,SPD!AN140,SPMW!AN140,SSEH!AN140,SSES!AN140) -> 1 | AO140: =CHOOSE(m_identity,ENWL!AO140, NPgN!AO140, NPgY!AO140, WMID!AO140, EMID!AO140, SWALES!AO140, SWEST!AO140, LPN!AO140,SPN!AO140,EPN!AO140,SPD!AO140,SPMW!AO140,SSEH!AO140,SSES!AO140) -> 1 | AP140: =CHOOSE(m_identity,ENWL!AP140, NPgN!AP140, NPgY!AP140, WMID!AP140, EMID!AP140, SWALES!AP140, SWEST!AP140, LPN!AP140,SPN!AP140,EPN!AP140,SPD!AP140,SPMW!AP140,SSEH!AP140,SSES!AP140) -> 1 | AQ140: =CHOOSE(m_identity,ENWL!AQ140, NPgN!AQ140, NPgY!AQ140, WMID!AQ140, EMID!AQ140, SWALES!AQ140, SWEST!AQ140, LPN!AQ140,SPN!AQ140,EPN!AQ140,SPD!AQ140,SPMW!AQ140,SSEH!AQ140,SSES!AQ140) -> 1
E141: Allocation to faults | G141: % | AJ141: =CHOOSE(m_identity,ENWL!AJ141, NPgN!AJ141, NPgY!AJ141, WMID!AJ141, EMID!AJ141, SWALES!AJ141, SWEST!AJ141, LPN!AJ141,SPN!AJ141,EPN!AJ141,SPD!AJ141,SPMW!AJ141,SSEH!AJ141,SSES!AJ141) -> 0 | AK141: =CHOOSE(m_identity,ENWL!AK141, NPgN!AK141, NPgY!AK141, WMID!AK141, EMID!AK141, SWALES!AK141, SWEST!AK141, LPN!AK141,SPN!AK141,EPN!AK141,SPD!AK141,SPMW!AK141,SSEH!AK141,SSES!AK141) -> 0 | AL141: =CHOOSE(m_identity,ENWL!AL141, NPgN!AL141, NPgY!AL141, WMID!AL141, EMID!AL141, SWALES!AL141, SWEST!AL141, LPN!AL141,SPN!AL141,EPN!AL141,SPD!AL141,SPMW!AL141,SSEH!AL141,SSES!AL141) -> 0 | AM141: =CHOOSE(m_identity,ENWL!AM141, NPgN!AM141, NPgY!AM141, WMID!AM141, EMID!AM141, SWALES!AM141, SWEST!AM141, LPN!AM141,SPN!AM141,EPN!AM141,SPD!AM141,SPMW!AM141,SSEH!AM141,SSES!AM141) -> 0 | AN141: =CHOOSE(m_identity,ENWL!AN141, NPgN!AN141, NPgY!AN141, WMID!AN141, EMID!AN141, SWALES!AN141, SWEST!AN141, LPN!AN141,SPN!AN141,EPN!AN141,SPD!AN141,SPMW!AN141,SSEH!AN141,SSES!AN141) -> 0 | AO141: =CHOOSE(m_identity,ENWL!AO141, NPgN!AO141, NPgY!AO141, WMID!AO141, EMID!AO141, SWALES!AO141, SWEST!AO141, LPN!AO141,SPN!AO141,EPN!AO141,SPD!AO141,SPMW!AO141,SSEH!AO141,SSES!AO141) -> 0 | AP141: =CHOOSE(m_identity,ENWL!AP141, NPgN!AP141, NPgY!AP141, WMID!AP141, EMID!AP141, SWALES!AP141, SWEST!AP141, LPN!AP141,SPN!AP141,EPN!AP141,SPD!AP141,SPMW!AP141,SSEH!AP141,SSES!AP141) -> 0 | AQ141: =CHOOSE(m_identity,ENWL!AQ141, NPgN!AQ141, NPgY!AQ141, WMID!AQ141, EMID!AQ141, SWALES!AQ141, SWEST!AQ141, LPN!AQ141,SPN!AQ141,EPN!AQ141,SPD!AQ141,SPMW!AQ141,SSEH!AQ141,SSES!AQ141) -> 0
E142: Allocation to tree cutting | G142: % | AJ142: =CHOOSE(m_identity,ENWL!AJ142, NPgN!AJ142, NPgY!AJ142, WMID!AJ142, EMID!AJ142, SWALES!AJ142, SWEST!AJ142, LPN!AJ142,SPN!AJ142,EPN!AJ142,SPD!AJ142,SPMW!AJ142,SSEH!AJ142,SSES!AJ142) -> 0 | AK142: =CHOOSE(m_identity,ENWL!AK142, NPgN!AK142, NPgY!AK142, WMID!AK142, EMID!AK142, SWALES!AK142, SWEST!AK142, LPN!AK142,SPN!AK142,EPN!AK142,SPD!AK142,SPMW!AK142,SSEH!AK142,SSES!AK142) -> 0 | AL142: =CHOOSE(m_identity,ENWL!AL142, NPgN!AL142, NPgY!AL142, WMID!AL142, EMID!AL142, SWALES!AL142, SWEST!AL142, LPN!AL142,SPN!AL142,EPN!AL142,SPD!AL142,SPMW!AL142,SSEH!AL142,SSES!AL142) -> 0 | AM142: =CHOOSE(m_identity,ENWL!AM142, NPgN!AM142, NPgY!AM142, WMID!AM142, EMID!AM142, SWALES!AM142, SWEST!AM142, LPN!AM142,SPN!AM142,EPN!AM142,SPD!AM142,SPMW!AM142,SSEH!AM142,SSES!AM142) -> 0 | AN142: =CHOOSE(m_identity,ENWL!AN142, NPgN!AN142, NPgY!AN142, WMID!AN142, EMID!AN142, SWALES!AN142, SWEST!AN142, LPN!AN142,SPN!AN142,EPN!AN142,SPD!AN142,SPMW!AN142,SSEH!AN142,SSES!AN142) -> 0 | AO142: =CHOOSE(m_identity,ENWL!AO142, NPgN!AO142, NPgY!AO142, WMID!AO142, EMID!AO142, SWALES!AO142, SWEST!AO142, LPN!AO142,SPN!AO142,EPN!AO142,SPD!AO142,SPMW!AO142,SSEH!AO142,SSES!AO142) -> 0 | AP142: =CHOOSE(m_identity,ENWL!AP142, NPgN!AP142, NPgY!AP142, WMID!AP142, EMID!AP142, SWALES!AP142, SWEST!AP142, LPN!AP142,SPN!AP142,EPN!AP142,SPD!AP142,SPMW!AP142,SSEH!AP142,SSES!AP142) -> 0 | AQ142: =CHOOSE(m_identity,ENWL!AQ142, NPgN!AQ142, NPgY!AQ142, WMID!AQ142, EMID!AQ142, SWALES!AQ142, SWEST!AQ142, LPN!AQ142,SPN!AQ142,EPN!AQ142,SPD!AQ142,SPMW!AQ142,SSEH!AQ142,SSES!AQ142) -> 0
E143: Allocation to 100% ‘revenue pool’ expenditure | G143: % | AJ143: =CHOOSE(m_identity,ENWL!AJ143, NPgN!AJ143, NPgY!AJ143, WMID!AJ143, EMID!AJ143, SWALES!AJ143, SWEST!AJ143, LPN!AJ143,SPN!AJ143,EPN!AJ143,SPD!AJ143,SPMW!AJ143,SSEH!AJ143,SSES!AJ143) -> 0 | AK143: =CHOOSE(m_identity,ENWL!AK143, NPgN!AK143, NPgY!AK143, WMID!AK143, EMID!AK143, SWALES!AK143, SWEST!AK143, LPN!AK143,SPN!AK143,EPN!AK143,SPD!AK143,SPMW!AK143,SSEH!AK143,SSES!AK143) -> 0 | AL143: =CHOOSE(m_identity,ENWL!AL143, NPgN!AL143, NPgY!AL143, WMID!AL143, EMID!AL143, SWALES!AL143, SWEST!AL143, LPN!AL143,SPN!AL143,EPN!AL143,SPD!AL143,SPMW!AL143,SSEH!AL143,SSES!AL143) -> 0 | AM143: =CHOOSE(m_identity,ENWL!AM143, NPgN!AM143, NPgY!AM143, WMID!AM143, EMID!AM143, SWALES!AM143, SWEST!AM143, LPN!AM143,SPN!AM143,EPN!AM143,SPD!AM143,SPMW!AM143,SSEH!AM143,SSES!AM143) -> 0 | AN143: =CHOOSE(m_identity,ENWL!AN143, NPgN!AN143, NPgY!AN143, WMID!AN143, EMID!AN143, SWALES!AN143, SWEST!AN143, LPN!AN143,SPN!AN143,EPN!AN143,SPD!AN143,SPMW!AN143,SSEH!AN143,SSES!AN143) -> 0 | AO143: =CHOOSE(m_identity,ENWL!AO143, NPgN!AO143, NPgY!AO143, WMID!AO143, EMID!AO143, SWALES!AO143, SWEST!AO143, LPN!AO143,SPN!AO143,EPN!AO143,SPD!AO143,SPMW!AO143,SSEH!AO143,SSES!AO143) -> 0 | AP143: =CHOOSE(m_identity,ENWL!AP143, NPgN!AP143, NPgY!AP143, WMID!AP143, EMID!AP143, SWALES!AP143, SWEST!AP143, LPN!AP143,SPN!AP143,EPN!AP143,SPD!AP143,SPMW!AP143,SSEH!AP143,SSES!AP143) -> 0 | AQ143: =CHOOSE(m_identity,ENWL!AQ143, NPgN!AQ143, NPgY!AQ143, WMID!AQ143, EMID!AQ143, SWALES!AQ143, SWEST!AQ143, LPN!AQ143,SPN!AQ143,EPN!AQ143,SPD!AQ143,SPMW!AQ143,SSEH!AQ143,SSES!AQ143) -> 0
E144: Allocation to controllable opex | G144: % | AJ144: =CHOOSE(m_identity,ENWL!AJ144, NPgN!AJ144, NPgY!AJ144, WMID!AJ144, EMID!AJ144, SWALES!AJ144, SWEST!AJ144, LPN!AJ144,SPN!AJ144,EPN!AJ144,SPD!AJ144,SPMW!AJ144,SSEH!AJ144,SSES!AJ144) -> 0 | AK144: =CHOOSE(m_identity,ENWL!AK144, NPgN!AK144, NPgY!AK144, WMID!AK144, EMID!AK144, SWALES!AK144, SWEST!AK144, LPN!AK144,SPN!AK144,EPN!AK144,SPD!AK144,SPMW!AK144,SSEH!AK144,SSES!AK144) -> 0 | AL144: =CHOOSE(m_identity,ENWL!AL144, NPgN!AL144, NPgY!AL144, WMID!AL144, EMID!AL144, SWALES!AL144, SWEST!AL144, LPN!AL144,SPN!AL144,EPN!AL144,SPD!AL144,SPMW!AL144,SSEH!AL144,SSES!AL144) -> 0 | AM144: =CHOOSE(m_identity,ENWL!AM144, NPgN!AM144, NPgY!AM144, WMID!AM144, EMID!AM144, SWALES!AM144, SWEST!AM144, LPN!AM144,SPN!AM144,EPN!AM144,SPD!AM144,SPMW!AM144,SSEH!AM144,SSES!AM144) -> 0 | AN144: =CHOOSE(m_identity,ENWL!AN144, NPgN!AN144, NPgY!AN144, WMID!AN144, EMID!AN144, SWALES!AN144, SWEST!AN144, LPN!AN144,SPN!AN144,EPN!AN144,SPD!AN144,SPMW!AN144,SSEH!AN144,SSES!AN144) -> 0 | AO144: =CHOOSE(m_identity,ENWL!AO144, NPgN!AO144, NPgY!AO144, WMID!AO144, EMID!AO144, SWALES!AO144, SWEST!AO144, LPN!AO144,SPN!AO144,EPN!AO144,SPD!AO144,SPMW!AO144,SSEH!AO144,SSES!AO144) -> 0 | AP144: =CHOOSE(m_identity,ENWL!AP144, NPgN!AP144, NPgY!AP144, WMID!AP144, EMID!AP144, SWALES!AP144, SWEST!AP144, LPN!AP144,SPN!AP144,EPN!AP144,SPD!AP144,SPMW!AP144,SSEH!AP144,SSES!AP144) -> 0 | AQ144: =CHOOSE(m_identity,ENWL!AQ144, NPgN!AQ144, NPgY!AQ144, WMID!AQ144, EMID!AQ144, SWALES!AQ144, SWEST!AQ144, LPN!AQ144,SPN!AQ144,EPN!AQ144,SPD!AQ144,SPMW!AQ144,SSEH!AQ144,SSES!AQ144) -> 0
E146: =E23 -> Allowed Expenditure - Smart Meter Roll-out costs | G146: £m 12/13 prices | AJ146: =AJ23 -> 0.338827 | AK146: 2.693174 | AL146: 4.652815 | AM146: 6.260063 | AN146: 6.522339 | AO146: 0 | AP146: 0 | AQ146: 0
E147: Allocation to load related capex | G147: % | AJ147: =CHOOSE(m_identity,ENWL!AJ147, NPgN!AJ147, NPgY!AJ147, WMID!AJ147, EMID!AJ147, SWALES!AJ147, SWEST!AJ147, LPN!AJ147,SPN!AJ147,EPN!AJ147,SPD!AJ147,SPMW!AJ147,SSEH!AJ147,SSES!AJ147) -> 0 | AK147: =CHOOSE(m_identity,ENWL!AK147, NPgN!AK147, NPgY!AK147, WMID!AK147, EMID!AK147, SWALES!AK147, SWEST!AK147, LPN!AK147,SPN!AK147,EPN!AK147,SPD!AK147,SPMW!AK147,SSEH!AK147,SSES!AK147) -> 0 | AL147: =CHOOSE(m_identity,ENWL!AL147, NPgN!AL147, NPgY!AL147, WMID!AL147, EMID!AL147, SWALES!AL147, SWEST!AL147, LPN!AL147,SPN!AL147,EPN!AL147,SPD!AL147,SPMW!AL147,SSEH!AL147,SSES!AL147) -> 0 | AM147: =CHOOSE(m_identity,ENWL!AM147, NPgN!AM147, NPgY!AM147, WMID!AM147, EMID!AM147, SWALES!AM147, SWEST!AM147, LPN!AM147,SPN!AM147,EPN!AM147,SPD!AM147,SPMW!AM147,SSEH!AM147,SSES!AM147) -> 0 | AN147: =CHOOSE(m_identity,ENWL!AN147, NPgN!AN147, NPgY!AN147, WMID!AN147, EMID!AN147, SWALES!AN147, SWEST!AN147, LPN!AN147,SPN!AN147,EPN!AN147,SPD!AN147,SPMW!AN147,SSEH!AN147,SSES!AN147) -> 0 | AO147: =CHOOSE(m_identity,ENWL!AO147, NPgN!AO147, NPgY!AO147, WMID!AO147, EMID!AO147, SWALES!AO147, SWEST!AO147, LPN!AO147,SPN!AO147,EPN!AO147,SPD!AO147,SPMW!AO147,SSEH!AO147,SSES!AO147) -> 0 | AP147: =CHOOSE(m_identity,ENWL!AP147, NPgN!AP147, NPgY!AP147, WMID!AP147, EMID!AP147, SWALES!AP147, SWEST!AP147, LPN!AP147,SPN!AP147,EPN!AP147,SPD!AP147,SPMW!AP147,SSEH!AP147,SSES!AP147) -> 0 | AQ147: =CHOOSE(m_identity,ENWL!AQ147, NPgN!AQ147, NPgY!AQ147, WMID!AQ147, EMID!AQ147, SWALES!AQ147, SWEST!AQ147, LPN!AQ147,SPN!AQ147,EPN!AQ147,SPD!AQ147,SPMW!AQ147,SSEH!AQ147,SSES!AQ147) -> 0
E148: Allocation to non-load related capex - asset replacement | G148: % | AJ148: =CHOOSE(m_identity,ENWL!AJ148, NPgN!AJ148, NPgY!AJ148, WMID!AJ148, EMID!AJ148, SWALES!AJ148, SWEST!AJ148, LPN!AJ148,SPN!AJ148,EPN!AJ148,SPD!AJ148,SPMW!AJ148,SSEH!AJ148,SSES!AJ148) -> 0 | AK148: =CHOOSE(m_identity,ENWL!AK148, NPgN!AK148, NPgY!AK148, WMID!AK148, EMID!AK148, SWALES!AK148, SWEST!AK148, LPN!AK148,SPN!AK148,EPN!AK148,SPD!AK148,SPMW!AK148,SSEH!AK148,SSES!AK148) -> 0 | AL148: =CHOOSE(m_identity,ENWL!AL148, NPgN!AL148, NPgY!AL148, WMID!AL148, EMID!AL148, SWALES!AL148, SWEST!AL148, LPN!AL148,SPN!AL148,EPN!AL148,SPD!AL148,SPMW!AL148,SSEH!AL148,SSES!AL148) -> 0 | AM148: =CHOOSE(m_identity,ENWL!AM148, NPgN!AM148, NPgY!AM148, WMID!AM148, EMID!AM148, SWALES!AM148, SWEST!AM148, LPN!AM148,SPN!AM148,EPN!AM148,SPD!AM148,SPMW!AM148,SSEH!AM148,SSES!AM148) -> 0 | AN148: =CHOOSE(m_identity,ENWL!AN148, NPgN!AN148, NPgY!AN148, WMID!AN148, EMID!AN148, SWALES!AN148, SWEST!AN148, LPN!AN148,SPN!AN148,EPN!AN148,SPD!AN148,SPMW!AN148,SSEH!AN148,SSES!AN148) -> 0 | AO148: =CHOOSE(m_identity,ENWL!AO148, NPgN!AO148, NPgY!AO148, WMID!AO148, EMID!AO148, SWALES!AO148, SWEST!AO148, LPN!AO148,SPN!AO148,EPN!AO148,SPD!AO148,SPMW!AO148,SSEH!AO148,SSES!AO148) -> 0 | AP148: =CHOOSE(m_identity,ENWL!AP148, NPgN!AP148, NPgY!AP148, WMID!AP148, EMID!AP148, SWALES!AP148, SWEST!AP148, LPN!AP148,SPN!AP148,EPN!AP148,SPD!AP148,SPMW!AP148,SSEH!AP148,SSES!AP148) -> 0 | AQ148: =CHOOSE(m_identity,ENWL!AQ148, NPgN!AQ148, NPgY!AQ148, WMID!AQ148, EMID!AQ148, SWALES!AQ148, SWEST!AQ148, LPN!AQ148,SPN!AQ148,EPN!AQ148,SPD!AQ148,SPMW!AQ148,SSEH!AQ148,SSES!AQ148) -> 0
E149: Allocation to non-load related capex - other | G149: % | AJ149: =CHOOSE(m_identity,ENWL!AJ149, NPgN!AJ149, NPgY!AJ149, WMID!AJ149, EMID!AJ149, SWALES!AJ149, SWEST!AJ149, LPN!AJ149,SPN!AJ149,EPN!AJ149,SPD!AJ149,SPMW!AJ149,SSEH!AJ149,SSES!AJ149) -> 0 | AK149: =CHOOSE(m_identity,ENWL!AK149, NPgN!AK149, NPgY!AK149, WMID!AK149, EMID!AK149, SWALES!AK149, SWEST!AK149, LPN!AK149,SPN!AK149,EPN!AK149,SPD!AK149,SPMW!AK149,SSEH!AK149,SSES!AK149) -> 0 | AL149: =CHOOSE(m_identity,ENWL!AL149, NPgN!AL149, NPgY!AL149, WMID!AL149, EMID!AL149, SWALES!AL149, SWEST!AL149, LPN!AL149,SPN!AL149,EPN!AL149,SPD!AL149,SPMW!AL149,SSEH!AL149,SSES!AL149) -> 0 | AM149: =CHOOSE(m_identity,ENWL!AM149, NPgN!AM149, NPgY!AM149, WMID!AM149, EMID!AM149, SWALES!AM149, SWEST!AM149, LPN!AM149,SPN!AM149,EPN!AM149,SPD!AM149,SPMW!AM149,SSEH!AM149,SSES!AM149) -> 0 | AN149: =CHOOSE(m_identity,ENWL!AN149, NPgN!AN149, NPgY!AN149, WMID!AN149, EMID!AN149, SWALES!AN149, SWEST!AN149, LPN!AN149,SPN!AN149,EPN!AN149,SPD!AN149,SPMW!AN149,SSEH!AN149,SSES!AN149) -> 0 | AO149: =CHOOSE(m_identity,ENWL!AO149, NPgN!AO149, NPgY!AO149, WMID!AO149, EMID!AO149, SWALES!AO149, SWEST!AO149, LPN!AO149,SPN!AO149,EPN!AO149,SPD!AO149,SPMW!AO149,SSEH!AO149,SSES!AO149) -> 0 | AP149: =CHOOSE(m_identity,ENWL!AP149, NPgN!AP149, NPgY!AP149, WMID!AP149, EMID!AP149, SWALES!AP149, SWEST!AP149, LPN!AP149,SPN!AP149,EPN!AP149,SPD!AP149,SPMW!AP149,SSEH!AP149,SSES!AP149) -> 0 | AQ149: =CHOOSE(m_identity,ENWL!AQ149, NPgN!AQ149, NPgY!AQ149, WMID!AQ149, EMID!AQ149, SWALES!AQ149, SWEST!AQ149, LPN!AQ149,SPN!AQ149,EPN!AQ149,SPD!AQ149,SPMW!AQ149,SSEH!AQ149,SSES!AQ149) -> 0
E150: Allocation to faults | G150: % | AJ150: =CHOOSE(m_identity,ENWL!AJ150, NPgN!AJ150, NPgY!AJ150, WMID!AJ150, EMID!AJ150, SWALES!AJ150, SWEST!AJ150, LPN!AJ150,SPN!AJ150,EPN!AJ150,SPD!AJ150,SPMW!AJ150,SSEH!AJ150,SSES!AJ150) -> 0 | AK150: =CHOOSE(m_identity,ENWL!AK150, NPgN!AK150, NPgY!AK150, WMID!AK150, EMID!AK150, SWALES!AK150, SWEST!AK150, LPN!AK150,SPN!AK150,EPN!AK150,SPD!AK150,SPMW!AK150,SSEH!AK150,SSES!AK150) -> 0 | AL150: =CHOOSE(m_identity,ENWL!AL150, NPgN!AL150, NPgY!AL150, WMID!AL150, EMID!AL150, SWALES!AL150, SWEST!AL150, LPN!AL150,SPN!AL150,EPN!AL150,SPD!AL150,SPMW!AL150,SSEH!AL150,SSES!AL150) -> 0 | AM150: =CHOOSE(m_identity,ENWL!AM150, NPgN!AM150, NPgY!AM150, WMID!AM150, EMID!AM150, SWALES!AM150, SWEST!AM150, LPN!AM150,SPN!AM150,EPN!AM150,SPD!AM150,SPMW!AM150,SSEH!AM150,SSES!AM150) -> 0 | AN150: =CHOOSE(m_identity,ENWL!AN150, NPgN!AN150, NPgY!AN150, WMID!AN150, EMID!AN150, SWALES!AN150, SWEST!AN150, LPN!AN150,SPN!AN150,EPN!AN150,SPD!AN150,SPMW!AN150,SSEH!AN150,SSES!AN150) -> 0 | AO150: =CHOOSE(m_identity,ENWL!AO150, NPgN!AO150, NPgY!AO150, WMID!AO150, EMID!AO150, SWALES!AO150, SWEST!AO150, LPN!AO150,SPN!AO150,EPN!AO150,SPD!AO150,SPMW!AO150,SSEH!AO150,SSES!AO150) -> 0 | AP150: =CHOOSE(m_identity,ENWL!AP150, NPgN!AP150, NPgY!AP150, WMID!AP150, EMID!AP150, SWALES!AP150, SWEST!AP150, LPN!AP150,SPN!AP150,EPN!AP150,SPD!AP150,SPMW!AP150,SSEH!AP150,SSES!AP150) -> 0 | AQ150: =CHOOSE(m_identity,ENWL!AQ150, NPgN!AQ150, NPgY!AQ150, WMID!AQ150, EMID!AQ150, SWALES!AQ150, SWEST!AQ150, LPN!AQ150,SPN!AQ150,EPN!AQ150,SPD!AQ150,SPMW!AQ150,SSEH!AQ150,SSES!AQ150) -> 0
E151: Allocation to tree cutting | G151: % | AJ151: =CHOOSE(m_identity,ENWL!AJ151, NPgN!AJ151, NPgY!AJ151, WMID!AJ151, EMID!AJ151, SWALES!AJ151, SWEST!AJ151, LPN!AJ151,SPN!AJ151,EPN!AJ151,SPD!AJ151,SPMW!AJ151,SSEH!AJ151,SSES!AJ151) -> 0 | AK151: =CHOOSE(m_identity,ENWL!AK151, NPgN!AK151, NPgY!AK151, WMID!AK151, EMID!AK151, SWALES!AK151, SWEST!AK151, LPN!AK151,SPN!AK151,EPN!AK151,SPD!AK151,SPMW!AK151,SSEH!AK151,SSES!AK151) -> 0 | AL151: =CHOOSE(m_identity,ENWL!AL151, NPgN!AL151, NPgY!AL151, WMID!AL151, EMID!AL151, SWALES!AL151, SWEST!AL151, LPN!AL151,SPN!AL151,EPN!AL151,SPD!AL151,SPMW!AL151,SSEH!AL151,SSES!AL151) -> 0 | AM151: =CHOOSE(m_identity,ENWL!AM151, NPgN!AM151, NPgY!AM151, WMID!AM151, EMID!AM151, SWALES!AM151, SWEST!AM151, LPN!AM151,SPN!AM151,EPN!AM151,SPD!AM151,SPMW!AM151,SSEH!AM151,SSES!AM151) -> 0 | AN151: =CHOOSE(m_identity,ENWL!AN151, NPgN!AN151, NPgY!AN151, WMID!AN151, EMID!AN151, SWALES!AN151, SWEST!AN151, LPN!AN151,SPN!AN151,EPN!AN151,SPD!AN151,SPMW!AN151,SSEH!AN151,SSES!AN151) -> 0 | AO151: =CHOOSE(m_identity,ENWL!AO151, NPgN!AO151, NPgY!AO151, WMID!AO151, EMID!AO151, SWALES!AO151, SWEST!AO151, LPN!AO151,SPN!AO151,EPN!AO151,SPD!AO151,SPMW!AO151,SSEH!AO151,SSES!AO151) -> 0 | AP151: =CHOOSE(m_identity,ENWL!AP151, NPgN!AP151, NPgY!AP151, WMID!AP151, EMID!AP151, SWALES!AP151, SWEST!AP151, LPN!AP151,SPN!AP151,EPN!AP151,SPD!AP151,SPMW!AP151,SSEH!AP151,SSES!AP151) -> 0 | AQ151: =CHOOSE(m_identity,ENWL!AQ151, NPgN!AQ151, NPgY!AQ151, WMID!AQ151, EMID!AQ151, SWALES!AQ151, SWEST!AQ151, LPN!AQ151,SPN!AQ151,EPN!AQ151,SPD!AQ151,SPMW!AQ151,SSEH!AQ151,SSES!AQ151) -> 0
E152: Allocation to 100% ‘revenue pool’ expenditure | G152: % | AJ152: =CHOOSE(m_identity,ENWL!AJ152, NPgN!AJ152, NPgY!AJ152, WMID!AJ152, EMID!AJ152, SWALES!AJ152, SWEST!AJ152, LPN!AJ152,SPN!AJ152,EPN!AJ152,SPD!AJ152,SPMW!AJ152,SSEH!AJ152,SSES!AJ152) -> 0.005068047465 | AK152: =CHOOSE(m_identity,ENWL!AK152, NPgN!AK152, NPgY!AK152, WMID!AK152, EMID!AK152, SWALES!AK152, SWEST!AK152, LPN!AK152,SPN!AK152,EPN!AK152,SPD!AK152,SPMW!AK152,SSEH!AK152,SSES!AK152) -> 0.003698952603 | AL152: =CHOOSE(m_identity,ENWL!AL152, NPgN!AL152, NPgY!AL152, WMID!AL152, EMID!AL152, SWALES!AL152, SWEST!AL152, LPN!AL152,SPN!AL152,EPN!AL152,SPD!AL152,SPMW!AL152,SSEH!AL152,SSES!AL152) -> 0.00307286831 | AM152: =CHOOSE(m_identity,ENWL!AM152, NPgN!AM152, NPgY!AM152, WMID!AM152, EMID!AM152, SWALES!AM152, SWEST!AM152, LPN!AM152,SPN!AM152,EPN!AM152,SPD!AM152,SPMW!AM152,SSEH!AM152,SSES!AM152) -> 0.003388553298 | AN152: =CHOOSE(m_identity,ENWL!AN152, NPgN!AN152, NPgY!AN152, WMID!AN152, EMID!AN152, SWALES!AN152, SWEST!AN152, LPN!AN152,SPN!AN152,EPN!AN152,SPD!AN152,SPMW!AN152,SSEH!AN152,SSES!AN152) -> 0.003570285292 | AO152: =CHOOSE(m_identity,ENWL!AO152, NPgN!AO152, NPgY!AO152, WMID!AO152, EMID!AO152, SWALES!AO152, SWEST!AO152, LPN!AO152,SPN!AO152,EPN!AO152,SPD!AO152,SPMW!AO152,SSEH!AO152,SSES!AO152) -> 0.09893850035 | AP152: =CHOOSE(m_identity,ENWL!AP152, NPgN!AP152, NPgY!AP152, WMID!AP152, EMID!AP152, SWALES!AP152, SWEST!AP152, LPN!AP152,SPN!AP152,EPN!AP152,SPD!AP152,SPMW!AP152,SSEH!AP152,SSES!AP152) -> 0.003759741394 | AQ152: =CHOOSE(m_identity,ENWL!AQ152, NPgN!AQ152, NPgY!AQ152, WMID!AQ152, EMID!AQ152, SWALES!AQ152, SWEST!AQ152, LPN!AQ152,SPN!AQ152,EPN!AQ152,SPD!AQ152,SPMW!AQ152,SSEH!AQ152,SSES!AQ152) -> 0.003759741394
E153: Allocation to controllable opex | G153: % | AJ153: =CHOOSE(m_identity,ENWL!AJ153, NPgN!AJ153, NPgY!AJ153, WMID!AJ153, EMID!AJ153, SWALES!AJ153, SWEST!AJ153, LPN!AJ153,SPN!AJ153,EPN!AJ153,SPD!AJ153,SPMW!AJ153,SSEH!AJ153,SSES!AJ153) -> 0.9949319525 | AK153: =CHOOSE(m_identity,ENWL!AK153, NPgN!AK153, NPgY!AK153, WMID!AK153, EMID!AK153, SWALES!AK153, SWEST!AK153, LPN!AK153,SPN!AK153,EPN!AK153,SPD!AK153,SPMW!AK153,SSEH!AK153,SSES!AK153) -> 0.9963010474 | AL153: =CHOOSE(m_identity,ENWL!AL153, NPgN!AL153, NPgY!AL153, WMID!AL153, EMID!AL153, SWALES!AL153, SWEST!AL153, LPN!AL153,SPN!AL153,EPN!AL153,SPD!AL153,SPMW!AL153,SSEH!AL153,SSES!AL153) -> 0.9969271317 | AM153: =CHOOSE(m_identity,ENWL!AM153, NPgN!AM153, NPgY!AM153, WMID!AM153, EMID!AM153, SWALES!AM153, SWEST!AM153, LPN!AM153,SPN!AM153,EPN!AM153,SPD!AM153,SPMW!AM153,SSEH!AM153,SSES!AM153) -> 0.9966114467 | AN153: =CHOOSE(m_identity,ENWL!AN153, NPgN!AN153, NPgY!AN153, WMID!AN153, EMID!AN153, SWALES!AN153, SWEST!AN153, LPN!AN153,SPN!AN153,EPN!AN153,SPD!AN153,SPMW!AN153,SSEH!AN153,SSES!AN153) -> 0.9964297147 | AO153: =CHOOSE(m_identity,ENWL!AO153, NPgN!AO153, NPgY!AO153, WMID!AO153, EMID!AO153, SWALES!AO153, SWEST!AO153, LPN!AO153,SPN!AO153,EPN!AO153,SPD!AO153,SPMW!AO153,SSEH!AO153,SSES!AO153) -> 0.9010614997 | AP153: =CHOOSE(m_identity,ENWL!AP153, NPgN!AP153, NPgY!AP153, WMID!AP153, EMID!AP153, SWALES!AP153, SWEST!AP153, LPN!AP153,SPN!AP153,EPN!AP153,SPD!AP153,SPMW!AP153,SSEH!AP153,SSES!AP153) -> 0.9962402586 | AQ153: =CHOOSE(m_identity,ENWL!AQ153, NPgN!AQ153, NPgY!AQ153, WMID!AQ153, EMID!AQ153, SWALES!AQ153, SWEST!AQ153, LPN!AQ153,SPN!AQ153,EPN!AQ153,SPD!AQ153,SPMW!AQ153,SSEH!AQ153,SSES!AQ153) -> 0.9962402586
E155: =E24 -> Allowed Expenditure - Specified Street Works | G155: £m 12/13 prices | AJ155: =AJ24 -> 1.086138563 | AK155: 1.036496296 | AL155: 1.325077634 | AM155: 1.425075419 | AN155: 1.211590579 | AO155: 1.279714074 | AP155: 1.220365268 | AQ155: 1.157404714
E156: Allocation to load related capex | G156: % | AJ156: =CHOOSE(m_identity,ENWL!AJ156, NPgN!AJ156, NPgY!AJ156, WMID!AJ156, EMID!AJ156, SWALES!AJ156, SWEST!AJ156, LPN!AJ156,SPN!AJ156,EPN!AJ156,SPD!AJ156,SPMW!AJ156,SSEH!AJ156,SSES!AJ156) -> -0.6059965236 | AK156: =CHOOSE(m_identity,ENWL!AK156, NPgN!AK156, NPgY!AK156, WMID!AK156, EMID!AK156, SWALES!AK156, SWEST!AK156, LPN!AK156,SPN!AK156,EPN!AK156,SPD!AK156,SPMW!AK156,SSEH!AK156,SSES!AK156) -> -0.796376973 | AL156: =CHOOSE(m_identity,ENWL!AL156, NPgN!AL156, NPgY!AL156, WMID!AL156, EMID!AL156, SWALES!AL156, SWEST!AL156, LPN!AL156,SPN!AL156,EPN!AL156,SPD!AL156,SPMW!AL156,SSEH!AL156,SSES!AL156) -> -0.8811369806 | AM156: =CHOOSE(m_identity,ENWL!AM156, NPgN!AM156, NPgY!AM156, WMID!AM156, EMID!AM156, SWALES!AM156, SWEST!AM156, LPN!AM156,SPN!AM156,EPN!AM156,SPD!AM156,SPMW!AM156,SSEH!AM156,SSES!AM156) -> -0.9600538368 | AN156: =CHOOSE(m_identity,ENWL!AN156, NPgN!AN156, NPgY!AN156, WMID!AN156, EMID!AN156, SWALES!AN156, SWEST!AN156, LPN!AN156,SPN!AN156,EPN!AN156,SPD!AN156,SPMW!AN156,SSEH!AN156,SSES!AN156) -> -1.052836113 | AO156: =CHOOSE(m_identity,ENWL!AO156, NPgN!AO156, NPgY!AO156, WMID!AO156, EMID!AO156, SWALES!AO156, SWEST!AO156, LPN!AO156,SPN!AO156,EPN!AO156,SPD!AO156,SPMW!AO156,SSEH!AO156,SSES!AO156) -> -1.058321414 | AP156: =CHOOSE(m_identity,ENWL!AP156, NPgN!AP156, NPgY!AP156, WMID!AP156, EMID!AP156, SWALES!AP156, SWEST!AP156, LPN!AP156,SPN!AP156,EPN!AP156,SPD!AP156,SPMW!AP156,SSEH!AP156,SSES!AP156) -> -1.057820968 | AQ156: =CHOOSE(m_identity,ENWL!AQ156, NPgN!AQ156, NPgY!AQ156, WMID!AQ156, EMID!AQ156, SWALES!AQ156, SWEST!AQ156, LPN!AQ156,SPN!AQ156,EPN!AQ156,SPD!AQ156,SPMW!AQ156,SSEH!AQ156,SSES!AQ156) -> -1.057387677
E157: Allocation to non-load related capex - asset replacement | G157: % | AJ157: =CHOOSE(m_identity,ENWL!AJ157, NPgN!AJ157, NPgY!AJ157, WMID!AJ157, EMID!AJ157, SWALES!AJ157, SWEST!AJ157, LPN!AJ157,SPN!AJ157,EPN!AJ157,SPD!AJ157,SPMW!AJ157,SSEH!AJ157,SSES!AJ157) -> 0.2457913973 | AK157: =CHOOSE(m_identity,ENWL!AK157, NPgN!AK157, NPgY!AK157, WMID!AK157, EMID!AK157, SWALES!AK157, SWEST!AK157, LPN!AK157,SPN!AK157,EPN!AK157,SPD!AK157,SPMW!AK157,SSEH!AK157,SSES!AK157) -> 0.4259728739 | AL157: =CHOOSE(m_identity,ENWL!AL157, NPgN!AL157, NPgY!AL157, WMID!AL157, EMID!AL157, SWALES!AL157, SWEST!AL157, LPN!AL157,SPN!AL157,EPN!AL157,SPD!AL157,SPMW!AL157,SSEH!AL157,SSES!AL157) -> 0.5109336557 | AM157: =CHOOSE(m_identity,ENWL!AM157, NPgN!AM157, NPgY!AM157, WMID!AM157, EMID!AM157, SWALES!AM157, SWEST!AM157, LPN!AM157,SPN!AM157,EPN!AM157,SPD!AM157,SPMW!AM157,SSEH!AM157,SSES!AM157) -> 0.5920664332 | AN157: =CHOOSE(m_identity,ENWL!AN157, NPgN!AN157, NPgY!AN157, WMID!AN157, EMID!AN157, SWALES!AN157, SWEST!AN157, LPN!AN157,SPN!AN157,EPN!AN157,SPD!AN157,SPMW!AN157,SSEH!AN157,SSES!AN157) -> 0.6880777157 | AO157: =CHOOSE(m_identity,ENWL!AO157, NPgN!AO157, NPgY!AO157, WMID!AO157, EMID!AO157, SWALES!AO157, SWEST!AO157, LPN!AO157,SPN!AO157,EPN!AO157,SPD!AO157,SPMW!AO157,SSEH!AO157,SSES!AO157) -> 0.6924082617 | AP157: =CHOOSE(m_identity,ENWL!AP157, NPgN!AP157, NPgY!AP157, WMID!AP157, EMID!AP157, SWALES!AP157, SWEST!AP157, LPN!AP157,SPN!AP157,EPN!AP157,SPD!AP157,SPMW!AP157,SSEH!AP157,SSES!AP157) -> 0.692887431 | AQ157: =CHOOSE(m_identity,ENWL!AQ157, NPgN!AQ157, NPgY!AQ157, WMID!AQ157, EMID!AQ157, SWALES!AQ157, SWEST!AQ157, LPN!AQ157,SPN!AQ157,EPN!AQ157,SPD!AQ157,SPMW!AQ157,SSEH!AQ157,SSES!AQ157) -> 0.6934218198
E158: Allocation to non-load related capex - other | G158: % | AJ158: =CHOOSE(m_identity,ENWL!AJ158, NPgN!AJ158, NPgY!AJ158, WMID!AJ158, EMID!AJ158, SWALES!AJ158, SWEST!AJ158, LPN!AJ158,SPN!AJ158,EPN!AJ158,SPD!AJ158,SPMW!AJ158,SSEH!AJ158,SSES!AJ158) -> 0 | AK158: =CHOOSE(m_identity,ENWL!AK158, NPgN!AK158, NPgY!AK158, WMID!AK158, EMID!AK158, SWALES!AK158, SWEST!AK158, LPN!AK158,SPN!AK158,EPN!AK158,SPD!AK158,SPMW!AK158,SSEH!AK158,SSES!AK158) -> 0 | AL158: =CHOOSE(m_identity,ENWL!AL158, NPgN!AL158, NPgY!AL158, WMID!AL158, EMID!AL158, SWALES!AL158, SWEST!AL158, LPN!AL158,SPN!AL158,EPN!AL158,SPD!AL158,SPMW!AL158,SSEH!AL158,SSES!AL158) -> 0 | AM158: =CHOOSE(m_identity,ENWL!AM158, NPgN!AM158, NPgY!AM158, WMID!AM158, EMID!AM158, SWALES!AM158, SWEST!AM158, LPN!AM158,SPN!AM158,EPN!AM158,SPD!AM158,SPMW!AM158,SSEH!AM158,SSES!AM158) -> 0 | AN158: =CHOOSE(m_identity,ENWL!AN158, NPgN!AN158, NPgY!AN158, WMID!AN158, EMID!AN158, SWALES!AN158, SWEST!AN158, LPN!AN158,SPN!AN158,EPN!AN158,SPD!AN158,SPMW!AN158,SSEH!AN158,SSES!AN158) -> 0 | AO158: =CHOOSE(m_identity,ENWL!AO158, NPgN!AO158, NPgY!AO158, WMID!AO158, EMID!AO158, SWALES!AO158, SWEST!AO158, LPN!AO158,SPN!AO158,EPN!AO158,SPD!AO158,SPMW!AO158,SSEH!AO158,SSES!AO158) -> 0 | AP158: =CHOOSE(m_identity,ENWL!AP158, NPgN!AP158, NPgY!AP158, WMID!AP158, EMID!AP158, SWALES!AP158, SWEST!AP158, LPN!AP158,SPN!AP158,EPN!AP158,SPD!AP158,SPMW!AP158,SSEH!AP158,SSES!AP158) -> 0 | AQ158: =CHOOSE(m_identity,ENWL!AQ158, NPgN!AQ158, NPgY!AQ158, WMID!AQ158, EMID!AQ158, SWALES!AQ158, SWEST!AQ158, LPN!AQ158,SPN!AQ158,EPN!AQ158,SPD!AQ158,SPMW!AQ158,SSEH!AQ158,SSES!AQ158) -> 0
E159: Allocation to faults | G159: % | AJ159: =CHOOSE(m_identity,ENWL!AJ159, NPgN!AJ159, NPgY!AJ159, WMID!AJ159, EMID!AJ159, SWALES!AJ159, SWEST!AJ159, LPN!AJ159,SPN!AJ159,EPN!AJ159,SPD!AJ159,SPMW!AJ159,SSEH!AJ159,SSES!AJ159) -> 0.8738469836 | AK159: =CHOOSE(m_identity,ENWL!AK159, NPgN!AK159, NPgY!AK159, WMID!AK159, EMID!AK159, SWALES!AK159, SWEST!AK159, LPN!AK159,SPN!AK159,EPN!AK159,SPD!AK159,SPMW!AK159,SSEH!AK159,SSES!AK159) -> 0.8805645792 | AL159: =CHOOSE(m_identity,ENWL!AL159, NPgN!AL159, NPgY!AL159, WMID!AL159, EMID!AL159, SWALES!AL159, SWEST!AL159, LPN!AL159,SPN!AL159,EPN!AL159,SPD!AL159,SPMW!AL159,SSEH!AL159,SSES!AL159) -> 0.8802755006 | AM159: =CHOOSE(m_identity,ENWL!AM159, NPgN!AM159, NPgY!AM159, WMID!AM159, EMID!AM159, SWALES!AM159, SWEST!AM159, LPN!AM159,SPN!AM159,EPN!AM159,SPD!AM159,SPMW!AM159,SSEH!AM159,SSES!AM159) -> 0.8787588963 | AN159: =CHOOSE(m_identity,ENWL!AN159, NPgN!AN159, NPgY!AN159, WMID!AN159, EMID!AN159, SWALES!AN159, SWEST!AN159, LPN!AN159,SPN!AN159,EPN!AN159,SPD!AN159,SPMW!AN159,SSEH!AN159,SSES!AN159) -> 0.8767853511 | AO159: =CHOOSE(m_identity,ENWL!AO159, NPgN!AO159, NPgY!AO159, WMID!AO159, EMID!AO159, SWALES!AO159, SWEST!AO159, LPN!AO159,SPN!AO159,EPN!AO159,SPD!AO159,SPMW!AO159,SSEH!AO159,SSES!AO159) -> 0.8817294309 | AP159: =CHOOSE(m_identity,ENWL!AP159, NPgN!AP159, NPgY!AP159, WMID!AP159, EMID!AP159, SWALES!AP159, SWEST!AP159, LPN!AP159,SPN!AP159,EPN!AP159,SPD!AP159,SPMW!AP159,SSEH!AP159,SSES!AP159) -> 0.8842079017 | AQ159: =CHOOSE(m_identity,ENWL!AQ159, NPgN!AQ159, NPgY!AQ159, WMID!AQ159, EMID!AQ159, SWALES!AQ159, SWEST!AQ159, LPN!AQ159,SPN!AQ159,EPN!AQ159,SPD!AQ159,SPMW!AQ159,SSEH!AQ159,SSES!AQ159) -> 0.8867376795
E160: Allocation to tree cutting | G160: % | AJ160: =CHOOSE(m_identity,ENWL!AJ160, NPgN!AJ160, NPgY!AJ160, WMID!AJ160, EMID!AJ160, SWALES!AJ160, SWEST!AJ160, LPN!AJ160,SPN!AJ160,EPN!AJ160,SPD!AJ160,SPMW!AJ160,SSEH!AJ160,SSES!AJ160) -> 0 | AK160: =CHOOSE(m_identity,ENWL!AK160, NPgN!AK160, NPgY!AK160, WMID!AK160, EMID!AK160, SWALES!AK160, SWEST!AK160, LPN!AK160,SPN!AK160,EPN!AK160,SPD!AK160,SPMW!AK160,SSEH!AK160,SSES!AK160) -> 0 | AL160: =CHOOSE(m_identity,ENWL!AL160, NPgN!AL160, NPgY!AL160, WMID!AL160, EMID!AL160, SWALES!AL160, SWEST!AL160, LPN!AL160,SPN!AL160,EPN!AL160,SPD!AL160,SPMW!AL160,SSEH!AL160,SSES!AL160) -> 0 | AM160: =CHOOSE(m_identity,ENWL!AM160, NPgN!AM160, NPgY!AM160, WMID!AM160, EMID!AM160, SWALES!AM160, SWEST!AM160, LPN!AM160,SPN!AM160,EPN!AM160,SPD!AM160,SPMW!AM160,SSEH!AM160,SSES!AM160) -> 0 | AN160: =CHOOSE(m_identity,ENWL!AN160, NPgN!AN160, NPgY!AN160, WMID!AN160, EMID!AN160, SWALES!AN160, SWEST!AN160, LPN!AN160,SPN!AN160,EPN!AN160,SPD!AN160,SPMW!AN160,SSEH!AN160,SSES!AN160) -> 0 | AO160: =CHOOSE(m_identity,ENWL!AO160, NPgN!AO160, NPgY!AO160, WMID!AO160, EMID!AO160, SWALES!AO160, SWEST!AO160, LPN!AO160,SPN!AO160,EPN!AO160,SPD!AO160,SPMW!AO160,SSEH!AO160,SSES!AO160) -> 0 | AP160: =CHOOSE(m_identity,ENWL!AP160, NPgN!AP160, NPgY!AP160, WMID!AP160, EMID!AP160, SWALES!AP160, SWEST!AP160, LPN!AP160,SPN!AP160,EPN!AP160,SPD!AP160,SPMW!AP160,SSEH!AP160,SSES!AP160) -> 0 | AQ160: =CHOOSE(m_identity,ENWL!AQ160, NPgN!AQ160, NPgY!AQ160, WMID!AQ160, EMID!AQ160, SWALES!AQ160, SWEST!AQ160, LPN!AQ160,SPN!AQ160,EPN!AQ160,SPD!AQ160,SPMW!AQ160,SSEH!AQ160,SSES!AQ160) -> 0
E161: Allocation to 100% ‘revenue pool’ expenditure | G161: % | AJ161: =CHOOSE(m_identity,ENWL!AJ161, NPgN!AJ161, NPgY!AJ161, WMID!AJ161, EMID!AJ161, SWALES!AJ161, SWEST!AJ161, LPN!AJ161,SPN!AJ161,EPN!AJ161,SPD!AJ161,SPMW!AJ161,SSEH!AJ161,SSES!AJ161) -> 0 | AK161: =CHOOSE(m_identity,ENWL!AK161, NPgN!AK161, NPgY!AK161, WMID!AK161, EMID!AK161, SWALES!AK161, SWEST!AK161, LPN!AK161,SPN!AK161,EPN!AK161,SPD!AK161,SPMW!AK161,SSEH!AK161,SSES!AK161) -> 0 | AL161: =CHOOSE(m_identity,ENWL!AL161, NPgN!AL161, NPgY!AL161, WMID!AL161, EMID!AL161, SWALES!AL161, SWEST!AL161, LPN!AL161,SPN!AL161,EPN!AL161,SPD!AL161,SPMW!AL161,SSEH!AL161,SSES!AL161) -> 0 | AM161: =CHOOSE(m_identity,ENWL!AM161, NPgN!AM161, NPgY!AM161, WMID!AM161, EMID!AM161, SWALES!AM161, SWEST!AM161, LPN!AM161,SPN!AM161,EPN!AM161,SPD!AM161,SPMW!AM161,SSEH!AM161,SSES!AM161) -> 0 | AN161: =CHOOSE(m_identity,ENWL!AN161, NPgN!AN161, NPgY!AN161, WMID!AN161, EMID!AN161, SWALES!AN161, SWEST!AN161, LPN!AN161,SPN!AN161,EPN!AN161,SPD!AN161,SPMW!AN161,SSEH!AN161,SSES!AN161) -> 0 | AO161: =CHOOSE(m_identity,ENWL!AO161, NPgN!AO161, NPgY!AO161, WMID!AO161, EMID!AO161, SWALES!AO161, SWEST!AO161, LPN!AO161,SPN!AO161,EPN!AO161,SPD!AO161,SPMW!AO161,SSEH!AO161,SSES!AO161) -> 0 | AP161: =CHOOSE(m_identity,ENWL!AP161, NPgN!AP161, NPgY!AP161, WMID!AP161, EMID!AP161, SWALES!AP161, SWEST!AP161, LPN!AP161,SPN!AP161,EPN!AP161,SPD!AP161,SPMW!AP161,SSEH!AP161,SSES!AP161) -> 0 | AQ161: =CHOOSE(m_identity,ENWL!AQ161, NPgN!AQ161, NPgY!AQ161, WMID!AQ161, EMID!AQ161, SWALES!AQ161, SWEST!AQ161, LPN!AQ161,SPN!AQ161,EPN!AQ161,SPD!AQ161,SPMW!AQ161,SSEH!AQ161,SSES!AQ161) -> 0
E162: Allocation to controllable opex | G162: % | AJ162: =CHOOSE(m_identity,ENWL!AJ162, NPgN!AJ162, NPgY!AJ162, WMID!AJ162, EMID!AJ162, SWALES!AJ162, SWEST!AJ162, LPN!AJ162,SPN!AJ162,EPN!AJ162,SPD!AJ162,SPMW!AJ162,SSEH!AJ162,SSES!AJ162) -> 0.4863581428 | AK162: =CHOOSE(m_identity,ENWL!AK162, NPgN!AK162, NPgY!AK162, WMID!AK162, EMID!AK162, SWALES!AK162, SWEST!AK162, LPN!AK162,SPN!AK162,EPN!AK162,SPD!AK162,SPMW!AK162,SSEH!AK162,SSES!AK162) -> 0.4898395198 | AL162: =CHOOSE(m_identity,ENWL!AL162, NPgN!AL162, NPgY!AL162, WMID!AL162, EMID!AL162, SWALES!AL162, SWEST!AL162, LPN!AL162,SPN!AL162,EPN!AL162,SPD!AL162,SPMW!AL162,SSEH!AL162,SSES!AL162) -> 0.4899278242 | AM162: =CHOOSE(m_identity,ENWL!AM162, NPgN!AM162, NPgY!AM162, WMID!AM162, EMID!AM162, SWALES!AM162, SWEST!AM162, LPN!AM162,SPN!AM162,EPN!AM162,SPD!AM162,SPMW!AM162,SSEH!AM162,SSES!AM162) -> 0.4892285073 | AN162: =CHOOSE(m_identity,ENWL!AN162, NPgN!AN162, NPgY!AN162, WMID!AN162, EMID!AN162, SWALES!AN162, SWEST!AN162, LPN!AN162,SPN!AN162,EPN!AN162,SPD!AN162,SPMW!AN162,SSEH!AN162,SSES!AN162) -> 0.4879730462 | AO162: =CHOOSE(m_identity,ENWL!AO162, NPgN!AO162, NPgY!AO162, WMID!AO162, EMID!AO162, SWALES!AO162, SWEST!AO162, LPN!AO162,SPN!AO162,EPN!AO162,SPD!AO162,SPMW!AO162,SSEH!AO162,SSES!AO162) -> 0.4841837215 | AP162: =CHOOSE(m_identity,ENWL!AP162, NPgN!AP162, NPgY!AP162, WMID!AP162, EMID!AP162, SWALES!AP162, SWEST!AP162, LPN!AP162,SPN!AP162,EPN!AP162,SPD!AP162,SPMW!AP162,SSEH!AP162,SSES!AP162) -> 0.4807256355 | AQ162: =CHOOSE(m_identity,ENWL!AQ162, NPgN!AQ162, NPgY!AQ162, WMID!AQ162, EMID!AQ162, SWALES!AQ162, SWEST!AQ162, LPN!AQ162,SPN!AQ162,EPN!AQ162,SPD!AQ162,SPMW!AQ162,SSEH!AQ162,SSES!AQ162) -> 0.4772281781
E164: =E25 -> Allowed Expenditure - Load Related | G164: £m 12/13 prices | AJ164: =AJ25 -> 14.84367076 | AK164: =AK25 -> 18.62165692 | AL164: 12.39712226 | AM164: 16.09209496 | AN164: 15.15703367 | AO164: 16.46941455 | AP164: 22.25871242 | AQ164: 19.41046618
E165: Allocation to load related capex | G165: % | AJ165: =CHOOSE(m_identity,ENWL!AJ165, NPgN!AJ165, NPgY!AJ165, WMID!AJ165, EMID!AJ165, SWALES!AJ165, SWEST!AJ165, LPN!AJ165,SPN!AJ165,EPN!AJ165,SPD!AJ165,SPMW!AJ165,SSEH!AJ165,SSES!AJ165) -> 0.988429024 | AK165: =CHOOSE(m_identity,ENWL!AK165, NPgN!AK165, NPgY!AK165, WMID!AK165, EMID!AK165, SWALES!AK165, SWEST!AK165, LPN!AK165,SPN!AK165,EPN!AK165,SPD!AK165,SPMW!AK165,SSEH!AK165,SSES!AK165) -> 0.9876362064 | AL165: =CHOOSE(m_identity,ENWL!AL165, NPgN!AL165, NPgY!AL165, WMID!AL165, EMID!AL165, SWALES!AL165, SWEST!AL165, LPN!AL165,SPN!AL165,EPN!AL165,SPD!AL165,SPMW!AL165,SSEH!AL165,SSES!AL165) -> 0.9878098112 | AM165: =CHOOSE(m_identity,ENWL!AM165, NPgN!AM165, NPgY!AM165, WMID!AM165, EMID!AM165, SWALES!AM165, SWEST!AM165, LPN!AM165,SPN!AM165,EPN!AM165,SPD!AM165,SPMW!AM165,SSEH!AM165,SSES!AM165) -> 0.9888897978 | AN165: =CHOOSE(m_identity,ENWL!AN165, NPgN!AN165, NPgY!AN165, WMID!AN165, EMID!AN165, SWALES!AN165, SWEST!AN165, LPN!AN165,SPN!AN165,EPN!AN165,SPD!AN165,SPMW!AN165,SSEH!AN165,SSES!AN165) -> 0.987375194 | AO165: =CHOOSE(m_identity,ENWL!AO165, NPgN!AO165, NPgY!AO165, WMID!AO165, EMID!AO165, SWALES!AO165, SWEST!AO165, LPN!AO165,SPN!AO165,EPN!AO165,SPD!AO165,SPMW!AO165,SSEH!AO165,SSES!AO165) -> 0.989728556 | AP165: =CHOOSE(m_identity,ENWL!AP165, NPgN!AP165, NPgY!AP165, WMID!AP165, EMID!AP165, SWALES!AP165, SWEST!AP165, LPN!AP165,SPN!AP165,EPN!AP165,SPD!AP165,SPMW!AP165,SSEH!AP165,SSES!AP165) -> 0.9902069612 | AQ165: =CHOOSE(m_identity,ENWL!AQ165, NPgN!AQ165, NPgY!AQ165, WMID!AQ165, EMID!AQ165, SWALES!AQ165, SWEST!AQ165, LPN!AQ165,SPN!AQ165,EPN!AQ165,SPD!AQ165,SPMW!AQ165,SSEH!AQ165,SSES!AQ165) -> 0.9901701633
E166: Allocation to non-load related capex - asset replacement | G166: % | AJ166: =CHOOSE(m_identity,ENWL!AJ166, NPgN!AJ166, NPgY!AJ166, WMID!AJ166, EMID!AJ166, SWALES!AJ166, SWEST!AJ166, LPN!AJ166,SPN!AJ166,EPN!AJ166,SPD!AJ166,SPMW!AJ166,SSEH!AJ166,SSES!AJ166) -> 0 | AK166: =CHOOSE(m_identity,ENWL!AK166, NPgN!AK166, NPgY!AK166, WMID!AK166, EMID!AK166, SWALES!AK166, SWEST!AK166, LPN!AK166,SPN!AK166,EPN!AK166,SPD!AK166,SPMW!AK166,SSEH!AK166,SSES!AK166) -> 0 | AL166: =CHOOSE(m_identity,ENWL!AL166, NPgN!AL166, NPgY!AL166, WMID!AL166, EMID!AL166, SWALES!AL166, SWEST!AL166, LPN!AL166,SPN!AL166,EPN!AL166,SPD!AL166,SPMW!AL166,SSEH!AL166,SSES!AL166) -> 0 | AM166: =CHOOSE(m_identity,ENWL!AM166, NPgN!AM166, NPgY!AM166, WMID!AM166, EMID!AM166, SWALES!AM166, SWEST!AM166, LPN!AM166,SPN!AM166,EPN!AM166,SPD!AM166,SPMW!AM166,SSEH!AM166,SSES!AM166) -> 0 | AN166: =CHOOSE(m_identity,ENWL!AN166, NPgN!AN166, NPgY!AN166, WMID!AN166, EMID!AN166, SWALES!AN166, SWEST!AN166, LPN!AN166,SPN!AN166,EPN!AN166,SPD!AN166,SPMW!AN166,SSEH!AN166,SSES!AN166) -> 0 | AO166: =CHOOSE(m_identity,ENWL!AO166, NPgN!AO166, NPgY!AO166, WMID!AO166, EMID!AO166, SWALES!AO166, SWEST!AO166, LPN!AO166,SPN!AO166,EPN!AO166,SPD!AO166,SPMW!AO166,SSEH!AO166,SSES!AO166) -> 0 | AP166: =CHOOSE(m_identity,ENWL!AP166, NPgN!AP166, NPgY!AP166, WMID!AP166, EMID!AP166, SWALES!AP166, SWEST!AP166, LPN!AP166,SPN!AP166,EPN!AP166,SPD!AP166,SPMW!AP166,SSEH!AP166,SSES!AP166) -> 0 | AQ166: =CHOOSE(m_identity,ENWL!AQ166, NPgN!AQ166, NPgY!AQ166, WMID!AQ166, EMID!AQ166, SWALES!AQ166, SWEST!AQ166, LPN!AQ166,SPN!AQ166,EPN!AQ166,SPD!AQ166,SPMW!AQ166,SSEH!AQ166,SSES!AQ166) -> 0
E167: Allocation to non-load related capex - other | G167: % | AJ167: =CHOOSE(m_identity,ENWL!AJ167, NPgN!AJ167, NPgY!AJ167, WMID!AJ167, EMID!AJ167, SWALES!AJ167, SWEST!AJ167, LPN!AJ167,SPN!AJ167,EPN!AJ167,SPD!AJ167,SPMW!AJ167,SSEH!AJ167,SSES!AJ167) -> 0 | AK167: =CHOOSE(m_identity,ENWL!AK167, NPgN!AK167, NPgY!AK167, WMID!AK167, EMID!AK167, SWALES!AK167, SWEST!AK167, LPN!AK167,SPN!AK167,EPN!AK167,SPD!AK167,SPMW!AK167,SSEH!AK167,SSES!AK167) -> 0 | AL167: =CHOOSE(m_identity,ENWL!AL167, NPgN!AL167, NPgY!AL167, WMID!AL167, EMID!AL167, SWALES!AL167, SWEST!AL167, LPN!AL167,SPN!AL167,EPN!AL167,SPD!AL167,SPMW!AL167,SSEH!AL167,SSES!AL167) -> 0 | AM167: =CHOOSE(m_identity,ENWL!AM167, NPgN!AM167, NPgY!AM167, WMID!AM167, EMID!AM167, SWALES!AM167, SWEST!AM167, LPN!AM167,SPN!AM167,EPN!AM167,SPD!AM167,SPMW!AM167,SSEH!AM167,SSES!AM167) -> 0 | AN167: =CHOOSE(m_identity,ENWL!AN167, NPgN!AN167, NPgY!AN167, WMID!AN167, EMID!AN167, SWALES!AN167, SWEST!AN167, LPN!AN167,SPN!AN167,EPN!AN167,SPD!AN167,SPMW!AN167,SSEH!AN167,SSES!AN167) -> 0 | AO167: =CHOOSE(m_identity,ENWL!AO167, NPgN!AO167, NPgY!AO167, WMID!AO167, EMID!AO167, SWALES!AO167, SWEST!AO167, LPN!AO167,SPN!AO167,EPN!AO167,SPD!AO167,SPMW!AO167,SSEH!AO167,SSES!AO167) -> 0 | AP167: =CHOOSE(m_identity,ENWL!AP167, NPgN!AP167, NPgY!AP167, WMID!AP167, EMID!AP167, SWALES!AP167, SWEST!AP167, LPN!AP167,SPN!AP167,EPN!AP167,SPD!AP167,SPMW!AP167,SSEH!AP167,SSES!AP167) -> 0 | AQ167: =CHOOSE(m_identity,ENWL!AQ167, NPgN!AQ167, NPgY!AQ167, WMID!AQ167, EMID!AQ167, SWALES!AQ167, SWEST!AQ167, LPN!AQ167,SPN!AQ167,EPN!AQ167,SPD!AQ167,SPMW!AQ167,SSEH!AQ167,SSES!AQ167) -> 0
E168: Allocation to faults | G168: % | AJ168: =CHOOSE(m_identity,ENWL!AJ168, NPgN!AJ168, NPgY!AJ168, WMID!AJ168, EMID!AJ168, SWALES!AJ168, SWEST!AJ168, LPN!AJ168,SPN!AJ168,EPN!AJ168,SPD!AJ168,SPMW!AJ168,SSEH!AJ168,SSES!AJ168) -> 0 | AK168: =CHOOSE(m_identity,ENWL!AK168, NPgN!AK168, NPgY!AK168, WMID!AK168, EMID!AK168, SWALES!AK168, SWEST!AK168, LPN!AK168,SPN!AK168,EPN!AK168,SPD!AK168,SPMW!AK168,SSEH!AK168,SSES!AK168) -> 0 | AL168: =CHOOSE(m_identity,ENWL!AL168, NPgN!AL168, NPgY!AL168, WMID!AL168, EMID!AL168, SWALES!AL168, SWEST!AL168, LPN!AL168,SPN!AL168,EPN!AL168,SPD!AL168,SPMW!AL168,SSEH!AL168,SSES!AL168) -> 0 | AM168: =CHOOSE(m_identity,ENWL!AM168, NPgN!AM168, NPgY!AM168, WMID!AM168, EMID!AM168, SWALES!AM168, SWEST!AM168, LPN!AM168,SPN!AM168,EPN!AM168,SPD!AM168,SPMW!AM168,SSEH!AM168,SSES!AM168) -> 0 | AN168: =CHOOSE(m_identity,ENWL!AN168, NPgN!AN168, NPgY!AN168, WMID!AN168, EMID!AN168, SWALES!AN168, SWEST!AN168, LPN!AN168,SPN!AN168,EPN!AN168,SPD!AN168,SPMW!AN168,SSEH!AN168,SSES!AN168) -> 0 | AO168: =CHOOSE(m_identity,ENWL!AO168, NPgN!AO168, NPgY!AO168, WMID!AO168, EMID!AO168, SWALES!AO168, SWEST!AO168, LPN!AO168,SPN!AO168,EPN!AO168,SPD!AO168,SPMW!AO168,SSEH!AO168,SSES!AO168) -> 0 | AP168: =CHOOSE(m_identity,ENWL!AP168, NPgN!AP168, NPgY!AP168, WMID!AP168, EMID!AP168, SWALES!AP168, SWEST!AP168, LPN!AP168,SPN!AP168,EPN!AP168,SPD!AP168,SPMW!AP168,SSEH!AP168,SSES!AP168) -> 0 | AQ168: =CHOOSE(m_identity,ENWL!AQ168, NPgN!AQ168, NPgY!AQ168, WMID!AQ168, EMID!AQ168, SWALES!AQ168, SWEST!AQ168, LPN!AQ168,SPN!AQ168,EPN!AQ168,SPD!AQ168,SPMW!AQ168,SSEH!AQ168,SSES!AQ168) -> 0
E169: Allocation to tree cutting | G169: % | AJ169: =CHOOSE(m_identity,ENWL!AJ169, NPgN!AJ169, NPgY!AJ169, WMID!AJ169, EMID!AJ169, SWALES!AJ169, SWEST!AJ169, LPN!AJ169,SPN!AJ169,EPN!AJ169,SPD!AJ169,SPMW!AJ169,SSEH!AJ169,SSES!AJ169) -> 0 | AK169: =CHOOSE(m_identity,ENWL!AK169, NPgN!AK169, NPgY!AK169, WMID!AK169, EMID!AK169, SWALES!AK169, SWEST!AK169, LPN!AK169,SPN!AK169,EPN!AK169,SPD!AK169,SPMW!AK169,SSEH!AK169,SSES!AK169) -> 0 | AL169: =CHOOSE(m_identity,ENWL!AL169, NPgN!AL169, NPgY!AL169, WMID!AL169, EMID!AL169, SWALES!AL169, SWEST!AL169, LPN!AL169,SPN!AL169,EPN!AL169,SPD!AL169,SPMW!AL169,SSEH!AL169,SSES!AL169) -> 0 | AM169: =CHOOSE(m_identity,ENWL!AM169, NPgN!AM169, NPgY!AM169, WMID!AM169, EMID!AM169, SWALES!AM169, SWEST!AM169, LPN!AM169,SPN!AM169,EPN!AM169,SPD!AM169,SPMW!AM169,SSEH!AM169,SSES!AM169) -> 0 | AN169: =CHOOSE(m_identity,ENWL!AN169, NPgN!AN169, NPgY!AN169, WMID!AN169, EMID!AN169, SWALES!AN169, SWEST!AN169, LPN!AN169,SPN!AN169,EPN!AN169,SPD!AN169,SPMW!AN169,SSEH!AN169,SSES!AN169) -> 0 | AO169: =CHOOSE(m_identity,ENWL!AO169, NPgN!AO169, NPgY!AO169, WMID!AO169, EMID!AO169, SWALES!AO169, SWEST!AO169, LPN!AO169,SPN!AO169,EPN!AO169,SPD!AO169,SPMW!AO169,SSEH!AO169,SSES!AO169) -> 0 | AP169: =CHOOSE(m_identity,ENWL!AP169, NPgN!AP169, NPgY!AP169, WMID!AP169, EMID!AP169, SWALES!AP169, SWEST!AP169, LPN!AP169,SPN!AP169,EPN!AP169,SPD!AP169,SPMW!AP169,SSEH!AP169,SSES!AP169) -> 0 | AQ169: =CHOOSE(m_identity,ENWL!AQ169, NPgN!AQ169, NPgY!AQ169, WMID!AQ169, EMID!AQ169, SWALES!AQ169, SWEST!AQ169, LPN!AQ169,SPN!AQ169,EPN!AQ169,SPD!AQ169,SPMW!AQ169,SSEH!AQ169,SSES!AQ169) -> 0
E170: Allocation to 100% ‘revenue pool’ expenditure | G170: % | AJ170: =CHOOSE(m_identity,ENWL!AJ170, NPgN!AJ170, NPgY!AJ170, WMID!AJ170, EMID!AJ170, SWALES!AJ170, SWEST!AJ170, LPN!AJ170,SPN!AJ170,EPN!AJ170,SPD!AJ170,SPMW!AJ170,SSEH!AJ170,SSES!AJ170) -> 0.011570976 | AK170: =CHOOSE(m_identity,ENWL!AK170, NPgN!AK170, NPgY!AK170, WMID!AK170, EMID!AK170, SWALES!AK170, SWEST!AK170, LPN!AK170,SPN!AK170,EPN!AK170,SPD!AK170,SPMW!AK170,SSEH!AK170,SSES!AK170) -> 0.01236379357 | AL170: =CHOOSE(m_identity,ENWL!AL170, NPgN!AL170, NPgY!AL170, WMID!AL170, EMID!AL170, SWALES!AL170, SWEST!AL170, LPN!AL170,SPN!AL170,EPN!AL170,SPD!AL170,SPMW!AL170,SSEH!AL170,SSES!AL170) -> 0.01219018875 | AM170: =CHOOSE(m_identity,ENWL!AM170, NPgN!AM170, NPgY!AM170, WMID!AM170, EMID!AM170, SWALES!AM170, SWEST!AM170, LPN!AM170,SPN!AM170,EPN!AM170,SPD!AM170,SPMW!AM170,SSEH!AM170,SSES!AM170) -> 0.01111020224 | AN170: =CHOOSE(m_identity,ENWL!AN170, NPgN!AN170, NPgY!AN170, WMID!AN170, EMID!AN170, SWALES!AN170, SWEST!AN170, LPN!AN170,SPN!AN170,EPN!AN170,SPD!AN170,SPMW!AN170,SSEH!AN170,SSES!AN170) -> 0.01262480601 | AO170: =CHOOSE(m_identity,ENWL!AO170, NPgN!AO170, NPgY!AO170, WMID!AO170, EMID!AO170, SWALES!AO170, SWEST!AO170, LPN!AO170,SPN!AO170,EPN!AO170,SPD!AO170,SPMW!AO170,SSEH!AO170,SSES!AO170) -> 0.01027144404 | AP170: =CHOOSE(m_identity,ENWL!AP170, NPgN!AP170, NPgY!AP170, WMID!AP170, EMID!AP170, SWALES!AP170, SWEST!AP170, LPN!AP170,SPN!AP170,EPN!AP170,SPD!AP170,SPMW!AP170,SSEH!AP170,SSES!AP170) -> 0.009793038777 | AQ170: =CHOOSE(m_identity,ENWL!AQ170, NPgN!AQ170, NPgY!AQ170, WMID!AQ170, EMID!AQ170, SWALES!AQ170, SWEST!AQ170, LPN!AQ170,SPN!AQ170,EPN!AQ170,SPD!AQ170,SPMW!AQ170,SSEH!AQ170,SSES!AQ170) -> 0.00982983671
E171: Allocation to controllable opex | G171: % | AJ171: =CHOOSE(m_identity,ENWL!AJ171, NPgN!AJ171, NPgY!AJ171, WMID!AJ171, EMID!AJ171, SWALES!AJ171, SWEST!AJ171, LPN!AJ171,SPN!AJ171,EPN!AJ171,SPD!AJ171,SPMW!AJ171,SSEH!AJ171,SSES!AJ171) -> 0 | AK171: =CHOOSE(m_identity,ENWL!AK171, NPgN!AK171, NPgY!AK171, WMID!AK171, EMID!AK171, SWALES!AK171, SWEST!AK171, LPN!AK171,SPN!AK171,EPN!AK171,SPD!AK171,SPMW!AK171,SSEH!AK171,SSES!AK171) -> 0 | AL171: =CHOOSE(m_identity,ENWL!AL171, NPgN!AL171, NPgY!AL171, WMID!AL171, EMID!AL171, SWALES!AL171, SWEST!AL171, LPN!AL171,SPN!AL171,EPN!AL171,SPD!AL171,SPMW!AL171,SSEH!AL171,SSES!AL171) -> 0 | AM171: =CHOOSE(m_identity,ENWL!AM171, NPgN!AM171, NPgY!AM171, WMID!AM171, EMID!AM171, SWALES!AM171, SWEST!AM171, LPN!AM171,SPN!AM171,EPN!AM171,SPD!AM171,SPMW!AM171,SSEH!AM171,SSES!AM171) -> 0 | AN171: =CHOOSE(m_identity,ENWL!AN171, NPgN!AN171, NPgY!AN171, WMID!AN171, EMID!AN171, SWALES!AN171, SWEST!AN171, LPN!AN171,SPN!AN171,EPN!AN171,SPD!AN171,SPMW!AN171,SSEH!AN171,SSES!AN171) -> 0 | AO171: =CHOOSE(m_identity,ENWL!AO171, NPgN!AO171, NPgY!AO171, WMID!AO171, EMID!AO171, SWALES!AO171, SWEST!AO171, LPN!AO171,SPN!AO171,EPN!AO171,SPD!AO171,SPMW!AO171,SSEH!AO171,SSES!AO171) -> 0 | AP171: =CHOOSE(m_identity,ENWL!AP171, NPgN!AP171, NPgY!AP171, WMID!AP171, EMID!AP171, SWALES!AP171, SWEST!AP171, LPN!AP171,SPN!AP171,EPN!AP171,SPD!AP171,SPMW!AP171,SSEH!AP171,SSES!AP171) -> 0 | AQ171: =CHOOSE(m_identity,ENWL!AQ171, NPgN!AQ171, NPgY!AQ171, WMID!AQ171, EMID!AQ171, SWALES!AQ171, SWEST!AQ171, LPN!AQ171,SPN!AQ171,EPN!AQ171,SPD!AQ171,SPMW!AQ171,SSEH!AQ171,SSES!AQ171) -> 0
E173: =E26 -> Allowed Expenditure - Rail Electrification (WPD) | G173: £m 12/13 prices | AJ173: =AJ26 -> 0 | AK173: =AK26 -> 0 | AL173: 0 | AM173: 0 | AN173: 0 | AO173: 0 | AP173: 0 | AQ173: 0
E174: Allocation to load related capex | G174: % | AJ174: =CHOOSE(m_identity,ENWL!AJ174, NPgN!AJ174, NPgY!AJ174, WMID!AJ174, EMID!AJ174, SWALES!AJ174, SWEST!AJ174, LPN!AJ174,SPN!AJ174,EPN!AJ174,SPD!AJ174,SPMW!AJ174,SSEH!AJ174,SSES!AJ174) -> 0 | AK174: =CHOOSE(m_identity,ENWL!AK174, NPgN!AK174, NPgY!AK174, WMID!AK174, EMID!AK174, SWALES!AK174, SWEST!AK174, LPN!AK174,SPN!AK174,EPN!AK174,SPD!AK174,SPMW!AK174,SSEH!AK174,SSES!AK174) -> 0 | AL174: =CHOOSE(m_identity,ENWL!AL174, NPgN!AL174, NPgY!AL174, WMID!AL174, EMID!AL174, SWALES!AL174, SWEST!AL174, LPN!AL174,SPN!AL174,EPN!AL174,SPD!AL174,SPMW!AL174,SSEH!AL174,SSES!AL174) -> 0 | AM174: =CHOOSE(m_identity,ENWL!AM174, NPgN!AM174, NPgY!AM174, WMID!AM174, EMID!AM174, SWALES!AM174, SWEST!AM174, LPN!AM174,SPN!AM174,EPN!AM174,SPD!AM174,SPMW!AM174,SSEH!AM174,SSES!AM174) -> 0 | AN174: =CHOOSE(m_identity,ENWL!AN174, NPgN!AN174, NPgY!AN174, WMID!AN174, EMID!AN174, SWALES!AN174, SWEST!AN174, LPN!AN174,SPN!AN174,EPN!AN174,SPD!AN174,SPMW!AN174,SSEH!AN174,SSES!AN174) -> 0 | AO174: =CHOOSE(m_identity,ENWL!AO174, NPgN!AO174, NPgY!AO174, WMID!AO174, EMID!AO174, SWALES!AO174, SWEST!AO174, LPN!AO174,SPN!AO174,EPN!AO174,SPD!AO174,SPMW!AO174,SSEH!AO174,SSES!AO174) -> 0 | AP174: =CHOOSE(m_identity,ENWL!AP174, NPgN!AP174, NPgY!AP174, WMID!AP174, EMID!AP174, SWALES!AP174, SWEST!AP174, LPN!AP174,SPN!AP174,EPN!AP174,SPD!AP174,SPMW!AP174,SSEH!AP174,SSES!AP174) -> 0 | AQ174: =CHOOSE(m_identity,ENWL!AQ174, NPgN!AQ174, NPgY!AQ174, WMID!AQ174, EMID!AQ174, SWALES!AQ174, SWEST!AQ174, LPN!AQ174,SPN!AQ174,EPN!AQ174,SPD!AQ174,SPMW!AQ174,SSEH!AQ174,SSES!AQ174) -> 0
E175: Allocation to non-load related capex - asset replacement | G175: % | AJ175: =CHOOSE(m_identity,ENWL!AJ175, NPgN!AJ175, NPgY!AJ175, WMID!AJ175, EMID!AJ175, SWALES!AJ175, SWEST!AJ175, LPN!AJ175,SPN!AJ175,EPN!AJ175,SPD!AJ175,SPMW!AJ175,SSEH!AJ175,SSES!AJ175) -> 0.9804732217 | AK175: =CHOOSE(m_identity,ENWL!AK175, NPgN!AK175, NPgY!AK175, WMID!AK175, EMID!AK175, SWALES!AK175, SWEST!AK175, LPN!AK175,SPN!AK175,EPN!AK175,SPD!AK175,SPMW!AK175,SSEH!AK175,SSES!AK175) -> 0.9798394316 | AL175: =CHOOSE(m_identity,ENWL!AL175, NPgN!AL175, NPgY!AL175, WMID!AL175, EMID!AL175, SWALES!AL175, SWEST!AL175, LPN!AL175,SPN!AL175,EPN!AL175,SPD!AL175,SPMW!AL175,SSEH!AL175,SSES!AL175) -> 0.9803401465 | AM175: =CHOOSE(m_identity,ENWL!AM175, NPgN!AM175, NPgY!AM175, WMID!AM175, EMID!AM175, SWALES!AM175, SWEST!AM175, LPN!AM175,SPN!AM175,EPN!AM175,SPD!AM175,SPMW!AM175,SSEH!AM175,SSES!AM175) -> 0.9807377777 | AN175: =CHOOSE(m_identity,ENWL!AN175, NPgN!AN175, NPgY!AN175, WMID!AN175, EMID!AN175, SWALES!AN175, SWEST!AN175, LPN!AN175,SPN!AN175,EPN!AN175,SPD!AN175,SPMW!AN175,SSEH!AN175,SSES!AN175) -> 0.9808402827 | AO175: =CHOOSE(m_identity,ENWL!AO175, NPgN!AO175, NPgY!AO175, WMID!AO175, EMID!AO175, SWALES!AO175, SWEST!AO175, LPN!AO175,SPN!AO175,EPN!AO175,SPD!AO175,SPMW!AO175,SSEH!AO175,SSES!AO175) -> 0.9813366526 | AP175: =CHOOSE(m_identity,ENWL!AP175, NPgN!AP175, NPgY!AP175, WMID!AP175, EMID!AP175, SWALES!AP175, SWEST!AP175, LPN!AP175,SPN!AP175,EPN!AP175,SPD!AP175,SPMW!AP175,SSEH!AP175,SSES!AP175) -> 0.9821995881 | AQ175: =CHOOSE(m_identity,ENWL!AQ175, NPgN!AQ175, NPgY!AQ175, WMID!AQ175, EMID!AQ175, SWALES!AQ175, SWEST!AQ175, LPN!AQ175,SPN!AQ175,EPN!AQ175,SPD!AQ175,SPMW!AQ175,SSEH!AQ175,SSES!AQ175) -> 0.982404512
E176: Allocation to non-load related capex - other | G176: % | AJ176: =CHOOSE(m_identity,ENWL!AJ176, NPgN!AJ176, NPgY!AJ176, WMID!AJ176, EMID!AJ176, SWALES!AJ176, SWEST!AJ176, LPN!AJ176,SPN!AJ176,EPN!AJ176,SPD!AJ176,SPMW!AJ176,SSEH!AJ176,SSES!AJ176) -> 0 | AK176: =CHOOSE(m_identity,ENWL!AK176, NPgN!AK176, NPgY!AK176, WMID!AK176, EMID!AK176, SWALES!AK176, SWEST!AK176, LPN!AK176,SPN!AK176,EPN!AK176,SPD!AK176,SPMW!AK176,SSEH!AK176,SSES!AK176) -> 0 | AL176: =CHOOSE(m_identity,ENWL!AL176, NPgN!AL176, NPgY!AL176, WMID!AL176, EMID!AL176, SWALES!AL176, SWEST!AL176, LPN!AL176,SPN!AL176,EPN!AL176,SPD!AL176,SPMW!AL176,SSEH!AL176,SSES!AL176) -> 0 | AM176: =CHOOSE(m_identity,ENWL!AM176, NPgN!AM176, NPgY!AM176, WMID!AM176, EMID!AM176, SWALES!AM176, SWEST!AM176, LPN!AM176,SPN!AM176,EPN!AM176,SPD!AM176,SPMW!AM176,SSEH!AM176,SSES!AM176) -> 0 | AN176: =CHOOSE(m_identity,ENWL!AN176, NPgN!AN176, NPgY!AN176, WMID!AN176, EMID!AN176, SWALES!AN176, SWEST!AN176, LPN!AN176,SPN!AN176,EPN!AN176,SPD!AN176,SPMW!AN176,SSEH!AN176,SSES!AN176) -> 0 | AO176: =CHOOSE(m_identity,ENWL!AO176, NPgN!AO176, NPgY!AO176, WMID!AO176, EMID!AO176, SWALES!AO176, SWEST!AO176, LPN!AO176,SPN!AO176,EPN!AO176,SPD!AO176,SPMW!AO176,SSEH!AO176,SSES!AO176) -> 0 | AP176: =CHOOSE(m_identity,ENWL!AP176, NPgN!AP176, NPgY!AP176, WMID!AP176, EMID!AP176, SWALES!AP176, SWEST!AP176, LPN!AP176,SPN!AP176,EPN!AP176,SPD!AP176,SPMW!AP176,SSEH!AP176,SSES!AP176) -> 0 | AQ176: =CHOOSE(m_identity,ENWL!AQ176, NPgN!AQ176, NPgY!AQ176, WMID!AQ176, EMID!AQ176, SWALES!AQ176, SWEST!AQ176, LPN!AQ176,SPN!AQ176,EPN!AQ176,SPD!AQ176,SPMW!AQ176,SSEH!AQ176,SSES!AQ176) -> 0
E177: Allocation to faults | G177: % | AJ177: =CHOOSE(m_identity,ENWL!AJ177, NPgN!AJ177, NPgY!AJ177, WMID!AJ177, EMID!AJ177, SWALES!AJ177, SWEST!AJ177, LPN!AJ177,SPN!AJ177,EPN!AJ177,SPD!AJ177,SPMW!AJ177,SSEH!AJ177,SSES!AJ177) -> 0 | AK177: =CHOOSE(m_identity,ENWL!AK177, NPgN!AK177, NPgY!AK177, WMID!AK177, EMID!AK177, SWALES!AK177, SWEST!AK177, LPN!AK177,SPN!AK177,EPN!AK177,SPD!AK177,SPMW!AK177,SSEH!AK177,SSES!AK177) -> 0 | AL177: =CHOOSE(m_identity,ENWL!AL177, NPgN!AL177, NPgY!AL177, WMID!AL177, EMID!AL177, SWALES!AL177, SWEST!AL177, LPN!AL177,SPN!AL177,EPN!AL177,SPD!AL177,SPMW!AL177,SSEH!AL177,SSES!AL177) -> 0 | AM177: =CHOOSE(m_identity,ENWL!AM177, NPgN!AM177, NPgY!AM177, WMID!AM177, EMID!AM177, SWALES!AM177, SWEST!AM177, LPN!AM177,SPN!AM177,EPN!AM177,SPD!AM177,SPMW!AM177,SSEH!AM177,SSES!AM177) -> 0 | AN177: =CHOOSE(m_identity,ENWL!AN177, NPgN!AN177, NPgY!AN177, WMID!AN177, EMID!AN177, SWALES!AN177, SWEST!AN177, LPN!AN177,SPN!AN177,EPN!AN177,SPD!AN177,SPMW!AN177,SSEH!AN177,SSES!AN177) -> 0 | AO177: =CHOOSE(m_identity,ENWL!AO177, NPgN!AO177, NPgY!AO177, WMID!AO177, EMID!AO177, SWALES!AO177, SWEST!AO177, LPN!AO177,SPN!AO177,EPN!AO177,SPD!AO177,SPMW!AO177,SSEH!AO177,SSES!AO177) -> 0 | AP177: =CHOOSE(m_identity,ENWL!AP177, NPgN!AP177, NPgY!AP177, WMID!AP177, EMID!AP177, SWALES!AP177, SWEST!AP177, LPN!AP177,SPN!AP177,EPN!AP177,SPD!AP177,SPMW!AP177,SSEH!AP177,SSES!AP177) -> 0 | AQ177: =CHOOSE(m_identity,ENWL!AQ177, NPgN!AQ177, NPgY!AQ177, WMID!AQ177, EMID!AQ177, SWALES!AQ177, SWEST!AQ177, LPN!AQ177,SPN!AQ177,EPN!AQ177,SPD!AQ177,SPMW!AQ177,SSEH!AQ177,SSES!AQ177) -> 0
E178: Allocation to tree cutting | G178: % | AJ178: =CHOOSE(m_identity,ENWL!AJ178, NPgN!AJ178, NPgY!AJ178, WMID!AJ178, EMID!AJ178, SWALES!AJ178, SWEST!AJ178, LPN!AJ178,SPN!AJ178,EPN!AJ178,SPD!AJ178,SPMW!AJ178,SSEH!AJ178,SSES!AJ178) -> 0 | AK178: =CHOOSE(m_identity,ENWL!AK178, NPgN!AK178, NPgY!AK178, WMID!AK178, EMID!AK178, SWALES!AK178, SWEST!AK178, LPN!AK178,SPN!AK178,EPN!AK178,SPD!AK178,SPMW!AK178,SSEH!AK178,SSES!AK178) -> 0 | AL178: =CHOOSE(m_identity,ENWL!AL178, NPgN!AL178, NPgY!AL178, WMID!AL178, EMID!AL178, SWALES!AL178, SWEST!AL178, LPN!AL178,SPN!AL178,EPN!AL178,SPD!AL178,SPMW!AL178,SSEH!AL178,SSES!AL178) -> 0 | AM178: =CHOOSE(m_identity,ENWL!AM178, NPgN!AM178, NPgY!AM178, WMID!AM178, EMID!AM178, SWALES!AM178, SWEST!AM178, LPN!AM178,SPN!AM178,EPN!AM178,SPD!AM178,SPMW!AM178,SSEH!AM178,SSES!AM178) -> 0 | AN178: =CHOOSE(m_identity,ENWL!AN178, NPgN!AN178, NPgY!AN178, WMID!AN178, EMID!AN178, SWALES!AN178, SWEST!AN178, LPN!AN178,SPN!AN178,EPN!AN178,SPD!AN178,SPMW!AN178,SSEH!AN178,SSES!AN178) -> 0 | AO178: =CHOOSE(m_identity,ENWL!AO178, NPgN!AO178, NPgY!AO178, WMID!AO178, EMID!AO178, SWALES!AO178, SWEST!AO178, LPN!AO178,SPN!AO178,EPN!AO178,SPD!AO178,SPMW!AO178,SSEH!AO178,SSES!AO178) -> 0 | AP178: =CHOOSE(m_identity,ENWL!AP178, NPgN!AP178, NPgY!AP178, WMID!AP178, EMID!AP178, SWALES!AP178, SWEST!AP178, LPN!AP178,SPN!AP178,EPN!AP178,SPD!AP178,SPMW!AP178,SSEH!AP178,SSES!AP178) -> 0 | AQ178: =CHOOSE(m_identity,ENWL!AQ178, NPgN!AQ178, NPgY!AQ178, WMID!AQ178, EMID!AQ178, SWALES!AQ178, SWEST!AQ178, LPN!AQ178,SPN!AQ178,EPN!AQ178,SPD!AQ178,SPMW!AQ178,SSEH!AQ178,SSES!AQ178) -> 0
E179: Allocation to 100% ‘revenue pool’ expenditure | G179: % | AJ179: =CHOOSE(m_identity,ENWL!AJ179, NPgN!AJ179, NPgY!AJ179, WMID!AJ179, EMID!AJ179, SWALES!AJ179, SWEST!AJ179, LPN!AJ179,SPN!AJ179,EPN!AJ179,SPD!AJ179,SPMW!AJ179,SSEH!AJ179,SSES!AJ179) -> 0.01952677828 | AK179: =CHOOSE(m_identity,ENWL!AK179, NPgN!AK179, NPgY!AK179, WMID!AK179, EMID!AK179, SWALES!AK179, SWEST!AK179, LPN!AK179,SPN!AK179,EPN!AK179,SPD!AK179,SPMW!AK179,SSEH!AK179,SSES!AK179) -> 0.02016056839 | AL179: =CHOOSE(m_identity,ENWL!AL179, NPgN!AL179, NPgY!AL179, WMID!AL179, EMID!AL179, SWALES!AL179, SWEST!AL179, LPN!AL179,SPN!AL179,EPN!AL179,SPD!AL179,SPMW!AL179,SSEH!AL179,SSES!AL179) -> 0.01965985354 | AM179: =CHOOSE(m_identity,ENWL!AM179, NPgN!AM179, NPgY!AM179, WMID!AM179, EMID!AM179, SWALES!AM179, SWEST!AM179, LPN!AM179,SPN!AM179,EPN!AM179,SPD!AM179,SPMW!AM179,SSEH!AM179,SSES!AM179) -> 0.01926222226 | AN179: =CHOOSE(m_identity,ENWL!AN179, NPgN!AN179, NPgY!AN179, WMID!AN179, EMID!AN179, SWALES!AN179, SWEST!AN179, LPN!AN179,SPN!AN179,EPN!AN179,SPD!AN179,SPMW!AN179,SSEH!AN179,SSES!AN179) -> 0.01915971726 | AO179: =CHOOSE(m_identity,ENWL!AO179, NPgN!AO179, NPgY!AO179, WMID!AO179, EMID!AO179, SWALES!AO179, SWEST!AO179, LPN!AO179,SPN!AO179,EPN!AO179,SPD!AO179,SPMW!AO179,SSEH!AO179,SSES!AO179) -> 0.01866334736 | AP179: =CHOOSE(m_identity,ENWL!AP179, NPgN!AP179, NPgY!AP179, WMID!AP179, EMID!AP179, SWALES!AP179, SWEST!AP179, LPN!AP179,SPN!AP179,EPN!AP179,SPD!AP179,SPMW!AP179,SSEH!AP179,SSES!AP179) -> 0.01780041187 | AQ179: =CHOOSE(m_identity,ENWL!AQ179, NPgN!AQ179, NPgY!AQ179, WMID!AQ179, EMID!AQ179, SWALES!AQ179, SWEST!AQ179, LPN!AQ179,SPN!AQ179,EPN!AQ179,SPD!AQ179,SPMW!AQ179,SSEH!AQ179,SSES!AQ179) -> 0.01759548797
E180: Allocation to controllable opex | G180: % | AJ180: =CHOOSE(m_identity,ENWL!AJ180, NPgN!AJ180, NPgY!AJ180, WMID!AJ180, EMID!AJ180, SWALES!AJ180, SWEST!AJ180, LPN!AJ180,SPN!AJ180,EPN!AJ180,SPD!AJ180,SPMW!AJ180,SSEH!AJ180,SSES!AJ180) -> 0 | AK180: =CHOOSE(m_identity,ENWL!AK180, NPgN!AK180, NPgY!AK180, WMID!AK180, EMID!AK180, SWALES!AK180, SWEST!AK180, LPN!AK180,SPN!AK180,EPN!AK180,SPD!AK180,SPMW!AK180,SSEH!AK180,SSES!AK180) -> 0 | AL180: =CHOOSE(m_identity,ENWL!AL180, NPgN!AL180, NPgY!AL180, WMID!AL180, EMID!AL180, SWALES!AL180, SWEST!AL180, LPN!AL180,SPN!AL180,EPN!AL180,SPD!AL180,SPMW!AL180,SSEH!AL180,SSES!AL180) -> 0 | AM180: =CHOOSE(m_identity,ENWL!AM180, NPgN!AM180, NPgY!AM180, WMID!AM180, EMID!AM180, SWALES!AM180, SWEST!AM180, LPN!AM180,SPN!AM180,EPN!AM180,SPD!AM180,SPMW!AM180,SSEH!AM180,SSES!AM180) -> 0 | AN180: =CHOOSE(m_identity,ENWL!AN180, NPgN!AN180, NPgY!AN180, WMID!AN180, EMID!AN180, SWALES!AN180, SWEST!AN180, LPN!AN180,SPN!AN180,EPN!AN180,SPD!AN180,SPMW!AN180,SSEH!AN180,SSES!AN180) -> 0 | AO180: =CHOOSE(m_identity,ENWL!AO180, NPgN!AO180, NPgY!AO180, WMID!AO180, EMID!AO180, SWALES!AO180, SWEST!AO180, LPN!AO180,SPN!AO180,EPN!AO180,SPD!AO180,SPMW!AO180,SSEH!AO180,SSES!AO180) -> 0 | AP180: =CHOOSE(m_identity,ENWL!AP180, NPgN!AP180, NPgY!AP180, WMID!AP180, EMID!AP180, SWALES!AP180, SWEST!AP180, LPN!AP180,SPN!AP180,EPN!AP180,SPD!AP180,SPMW!AP180,SSEH!AP180,SSES!AP180) -> 0 | AQ180: =CHOOSE(m_identity,ENWL!AQ180, NPgN!AQ180, NPgY!AQ180, WMID!AQ180, EMID!AQ180, SWALES!AQ180, SWEST!AQ180, LPN!AQ180,SPN!AQ180,EPN!AQ180,SPD!AQ180,SPMW!AQ180,SSEH!AQ180,SSES!AQ180) -> 0
E182: =E27 -> Allowed Expenditure - Moorside Costs (ENWL) | G182: £m 12/13 prices | AJ182: =AJ27 -> 0 | AK182: =AK27 -> 0 | AL182: =AL27 -> 0 | AM182: 0 | AN182: =AN27 -> 0 | AO182: 0 | AP182: 0 | AQ182: 0
E183: Allocation to load related capex | G183: % | AJ183: =CHOOSE(m_identity,ENWL!AJ183, NPgN!AJ183, NPgY!AJ183, WMID!AJ183, EMID!AJ183, SWALES!AJ183, SWEST!AJ183, LPN!AJ183,SPN!AJ183,EPN!AJ183,SPD!AJ183,SPMW!AJ183,SSEH!AJ183,SSES!AJ183) -> 1 | AK183: =CHOOSE(m_identity,ENWL!AK183, NPgN!AK183, NPgY!AK183, WMID!AK183, EMID!AK183, SWALES!AK183, SWEST!AK183, LPN!AK183,SPN!AK183,EPN!AK183,SPD!AK183,SPMW!AK183,SSEH!AK183,SSES!AK183) -> 1 | AL183: =CHOOSE(m_identity,ENWL!AL183, NPgN!AL183, NPgY!AL183, WMID!AL183, EMID!AL183, SWALES!AL183, SWEST!AL183, LPN!AL183,SPN!AL183,EPN!AL183,SPD!AL183,SPMW!AL183,SSEH!AL183,SSES!AL183) -> 1 | AM183: =CHOOSE(m_identity,ENWL!AM183, NPgN!AM183, NPgY!AM183, WMID!AM183, EMID!AM183, SWALES!AM183, SWEST!AM183, LPN!AM183,SPN!AM183,EPN!AM183,SPD!AM183,SPMW!AM183,SSEH!AM183,SSES!AM183) -> 1 | AN183: =CHOOSE(m_identity,ENWL!AN183, NPgN!AN183, NPgY!AN183, WMID!AN183, EMID!AN183, SWALES!AN183, SWEST!AN183, LPN!AN183,SPN!AN183,EPN!AN183,SPD!AN183,SPMW!AN183,SSEH!AN183,SSES!AN183) -> 1 | AO183: =CHOOSE(m_identity,ENWL!AO183, NPgN!AO183, NPgY!AO183, WMID!AO183, EMID!AO183, SWALES!AO183, SWEST!AO183, LPN!AO183,SPN!AO183,EPN!AO183,SPD!AO183,SPMW!AO183,SSEH!AO183,SSES!AO183) -> 1 | AP183: =CHOOSE(m_identity,ENWL!AP183, NPgN!AP183, NPgY!AP183, WMID!AP183, EMID!AP183, SWALES!AP183, SWEST!AP183, LPN!AP183,SPN!AP183,EPN!AP183,SPD!AP183,SPMW!AP183,SSEH!AP183,SSES!AP183) -> 1 | AQ183: =CHOOSE(m_identity,ENWL!AQ183, NPgN!AQ183, NPgY!AQ183, WMID!AQ183, EMID!AQ183, SWALES!AQ183, SWEST!AQ183, LPN!AQ183,SPN!AQ183,EPN!AQ183,SPD!AQ183,SPMW!AQ183,SSEH!AQ183,SSES!AQ183) -> 1
E184: Allocation to non-load related capex - asset replacement | G184: % | AJ184: =CHOOSE(m_identity,ENWL!AJ184, NPgN!AJ184, NPgY!AJ184, WMID!AJ184, EMID!AJ184, SWALES!AJ184, SWEST!AJ184, LPN!AJ184,SPN!AJ184,EPN!AJ184,SPD!AJ184,SPMW!AJ184,SSEH!AJ184,SSES!AJ184) -> 0 | AK184: =CHOOSE(m_identity,ENWL!AK184, NPgN!AK184, NPgY!AK184, WMID!AK184, EMID!AK184, SWALES!AK184, SWEST!AK184, LPN!AK184,SPN!AK184,EPN!AK184,SPD!AK184,SPMW!AK184,SSEH!AK184,SSES!AK184) -> 0 | AL184: =CHOOSE(m_identity,ENWL!AL184, NPgN!AL184, NPgY!AL184, WMID!AL184, EMID!AL184, SWALES!AL184, SWEST!AL184, LPN!AL184,SPN!AL184,EPN!AL184,SPD!AL184,SPMW!AL184,SSEH!AL184,SSES!AL184) -> 0 | AM184: =CHOOSE(m_identity,ENWL!AM184, NPgN!AM184, NPgY!AM184, WMID!AM184, EMID!AM184, SWALES!AM184, SWEST!AM184, LPN!AM184,SPN!AM184,EPN!AM184,SPD!AM184,SPMW!AM184,SSEH!AM184,SSES!AM184) -> 0 | AN184: =CHOOSE(m_identity,ENWL!AN184, NPgN!AN184, NPgY!AN184, WMID!AN184, EMID!AN184, SWALES!AN184, SWEST!AN184, LPN!AN184,SPN!AN184,EPN!AN184,SPD!AN184,SPMW!AN184,SSEH!AN184,SSES!AN184) -> 0 | AO184: =CHOOSE(m_identity,ENWL!AO184, NPgN!AO184, NPgY!AO184, WMID!AO184, EMID!AO184, SWALES!AO184, SWEST!AO184, LPN!AO184,SPN!AO184,EPN!AO184,SPD!AO184,SPMW!AO184,SSEH!AO184,SSES!AO184) -> 0 | AP184: =CHOOSE(m_identity,ENWL!AP184, NPgN!AP184, NPgY!AP184, WMID!AP184, EMID!AP184, SWALES!AP184, SWEST!AP184, LPN!AP184,SPN!AP184,EPN!AP184,SPD!AP184,SPMW!AP184,SSEH!AP184,SSES!AP184) -> 0 | AQ184: =CHOOSE(m_identity,ENWL!AQ184, NPgN!AQ184, NPgY!AQ184, WMID!AQ184, EMID!AQ184, SWALES!AQ184, SWEST!AQ184, LPN!AQ184,SPN!AQ184,EPN!AQ184,SPD!AQ184,SPMW!AQ184,SSEH!AQ184,SSES!AQ184) -> 0
E185: Allocation to non-load related capex - other | G185: % | AJ185: =CHOOSE(m_identity,ENWL!AJ185, NPgN!AJ185, NPgY!AJ185, WMID!AJ185, EMID!AJ185, SWALES!AJ185, SWEST!AJ185, LPN!AJ185,SPN!AJ185,EPN!AJ185,SPD!AJ185,SPMW!AJ185,SSEH!AJ185,SSES!AJ185) -> 0 | AK185: =CHOOSE(m_identity,ENWL!AK185, NPgN!AK185, NPgY!AK185, WMID!AK185, EMID!AK185, SWALES!AK185, SWEST!AK185, LPN!AK185,SPN!AK185,EPN!AK185,SPD!AK185,SPMW!AK185,SSEH!AK185,SSES!AK185) -> 0 | AL185: =CHOOSE(m_identity,ENWL!AL185, NPgN!AL185, NPgY!AL185, WMID!AL185, EMID!AL185, SWALES!AL185, SWEST!AL185, LPN!AL185,SPN!AL185,EPN!AL185,SPD!AL185,SPMW!AL185,SSEH!AL185,SSES!AL185) -> 0 | AM185: =CHOOSE(m_identity,ENWL!AM185, NPgN!AM185, NPgY!AM185, WMID!AM185, EMID!AM185, SWALES!AM185, SWEST!AM185, LPN!AM185,SPN!AM185,EPN!AM185,SPD!AM185,SPMW!AM185,SSEH!AM185,SSES!AM185) -> 0 | AN185: =CHOOSE(m_identity,ENWL!AN185, NPgN!AN185, NPgY!AN185, WMID!AN185, EMID!AN185, SWALES!AN185, SWEST!AN185, LPN!AN185,SPN!AN185,EPN!AN185,SPD!AN185,SPMW!AN185,SSEH!AN185,SSES!AN185) -> 0 | AO185: =CHOOSE(m_identity,ENWL!AO185, NPgN!AO185, NPgY!AO185, WMID!AO185, EMID!AO185, SWALES!AO185, SWEST!AO185, LPN!AO185,SPN!AO185,EPN!AO185,SPD!AO185,SPMW!AO185,SSEH!AO185,SSES!AO185) -> 0 | AP185: =CHOOSE(m_identity,ENWL!AP185, NPgN!AP185, NPgY!AP185, WMID!AP185, EMID!AP185, SWALES!AP185, SWEST!AP185, LPN!AP185,SPN!AP185,EPN!AP185,SPD!AP185,SPMW!AP185,SSEH!AP185,SSES!AP185) -> 0 | AQ185: =CHOOSE(m_identity,ENWL!AQ185, NPgN!AQ185, NPgY!AQ185, WMID!AQ185, EMID!AQ185, SWALES!AQ185, SWEST!AQ185, LPN!AQ185,SPN!AQ185,EPN!AQ185,SPD!AQ185,SPMW!AQ185,SSEH!AQ185,SSES!AQ185) -> 0
E186: Allocation to faults | G186: % | AJ186: =CHOOSE(m_identity,ENWL!AJ186, NPgN!AJ186, NPgY!AJ186, WMID!AJ186, EMID!AJ186, SWALES!AJ186, SWEST!AJ186, LPN!AJ186,SPN!AJ186,EPN!AJ186,SPD!AJ186,SPMW!AJ186,SSEH!AJ186,SSES!AJ186) -> 0 | AK186: =CHOOSE(m_identity,ENWL!AK186, NPgN!AK186, NPgY!AK186, WMID!AK186, EMID!AK186, SWALES!AK186, SWEST!AK186, LPN!AK186,SPN!AK186,EPN!AK186,SPD!AK186,SPMW!AK186,SSEH!AK186,SSES!AK186) -> 0 | AL186: =CHOOSE(m_identity,ENWL!AL186, NPgN!AL186, NPgY!AL186, WMID!AL186, EMID!AL186, SWALES!AL186, SWEST!AL186, LPN!AL186,SPN!AL186,EPN!AL186,SPD!AL186,SPMW!AL186,SSEH!AL186,SSES!AL186) -> 0 | AM186: =CHOOSE(m_identity,ENWL!AM186, NPgN!AM186, NPgY!AM186, WMID!AM186, EMID!AM186, SWALES!AM186, SWEST!AM186, LPN!AM186,SPN!AM186,EPN!AM186,SPD!AM186,SPMW!AM186,SSEH!AM186,SSES!AM186) -> 0 | AN186: =CHOOSE(m_identity,ENWL!AN186, NPgN!AN186, NPgY!AN186, WMID!AN186, EMID!AN186, SWALES!AN186, SWEST!AN186, LPN!AN186,SPN!AN186,EPN!AN186,SPD!AN186,SPMW!AN186,SSEH!AN186,SSES!AN186) -> 0 | AO186: =CHOOSE(m_identity,ENWL!AO186, NPgN!AO186, NPgY!AO186, WMID!AO186, EMID!AO186, SWALES!AO186, SWEST!AO186, LPN!AO186,SPN!AO186,EPN!AO186,SPD!AO186,SPMW!AO186,SSEH!AO186,SSES!AO186) -> 0 | AP186: =CHOOSE(m_identity,ENWL!AP186, NPgN!AP186, NPgY!AP186, WMID!AP186, EMID!AP186, SWALES!AP186, SWEST!AP186, LPN!AP186,SPN!AP186,EPN!AP186,SPD!AP186,SPMW!AP186,SSEH!AP186,SSES!AP186) -> 0 | AQ186: =CHOOSE(m_identity,ENWL!AQ186, NPgN!AQ186, NPgY!AQ186, WMID!AQ186, EMID!AQ186, SWALES!AQ186, SWEST!AQ186, LPN!AQ186,SPN!AQ186,EPN!AQ186,SPD!AQ186,SPMW!AQ186,SSEH!AQ186,SSES!AQ186) -> 0
E187: Allocation to tree cutting | G187: % | AJ187: =CHOOSE(m_identity,ENWL!AJ187, NPgN!AJ187, NPgY!AJ187, WMID!AJ187, EMID!AJ187, SWALES!AJ187, SWEST!AJ187, LPN!AJ187,SPN!AJ187,EPN!AJ187,SPD!AJ187,SPMW!AJ187,SSEH!AJ187,SSES!AJ187) -> 0 | AK187: =CHOOSE(m_identity,ENWL!AK187, NPgN!AK187, NPgY!AK187, WMID!AK187, EMID!AK187, SWALES!AK187, SWEST!AK187, LPN!AK187,SPN!AK187,EPN!AK187,SPD!AK187,SPMW!AK187,SSEH!AK187,SSES!AK187) -> 0 | AL187: =CHOOSE(m_identity,ENWL!AL187, NPgN!AL187, NPgY!AL187, WMID!AL187, EMID!AL187, SWALES!AL187, SWEST!AL187, LPN!AL187,SPN!AL187,EPN!AL187,SPD!AL187,SPMW!AL187,SSEH!AL187,SSES!AL187) -> 0 | AM187: =CHOOSE(m_identity,ENWL!AM187, NPgN!AM187, NPgY!AM187, WMID!AM187, EMID!AM187, SWALES!AM187, SWEST!AM187, LPN!AM187,SPN!AM187,EPN!AM187,SPD!AM187,SPMW!AM187,SSEH!AM187,SSES!AM187) -> 0 | AN187: =CHOOSE(m_identity,ENWL!AN187, NPgN!AN187, NPgY!AN187, WMID!AN187, EMID!AN187, SWALES!AN187, SWEST!AN187, LPN!AN187,SPN!AN187,EPN!AN187,SPD!AN187,SPMW!AN187,SSEH!AN187,SSES!AN187) -> 0 | AO187: =CHOOSE(m_identity,ENWL!AO187, NPgN!AO187, NPgY!AO187, WMID!AO187, EMID!AO187, SWALES!AO187, SWEST!AO187, LPN!AO187,SPN!AO187,EPN!AO187,SPD!AO187,SPMW!AO187,SSEH!AO187,SSES!AO187) -> 0 | AP187: =CHOOSE(m_identity,ENWL!AP187, NPgN!AP187, NPgY!AP187, WMID!AP187, EMID!AP187, SWALES!AP187, SWEST!AP187, LPN!AP187,SPN!AP187,EPN!AP187,SPD!AP187,SPMW!AP187,SSEH!AP187,SSES!AP187) -> 0 | AQ187: =CHOOSE(m_identity,ENWL!AQ187, NPgN!AQ187, NPgY!AQ187, WMID!AQ187, EMID!AQ187, SWALES!AQ187, SWEST!AQ187, LPN!AQ187,SPN!AQ187,EPN!AQ187,SPD!AQ187,SPMW!AQ187,SSEH!AQ187,SSES!AQ187) -> 0
E188: Allocation to 100% ‘revenue pool’ expenditure | G188: % | AJ188: =CHOOSE(m_identity,ENWL!AJ188, NPgN!AJ188, NPgY!AJ188, WMID!AJ188, EMID!AJ188, SWALES!AJ188, SWEST!AJ188, LPN!AJ188,SPN!AJ188,EPN!AJ188,SPD!AJ188,SPMW!AJ188,SSEH!AJ188,SSES!AJ188) -> 0 | AK188: =CHOOSE(m_identity,ENWL!AK188, NPgN!AK188, NPgY!AK188, WMID!AK188, EMID!AK188, SWALES!AK188, SWEST!AK188, LPN!AK188,SPN!AK188,EPN!AK188,SPD!AK188,SPMW!AK188,SSEH!AK188,SSES!AK188) -> 0 | AL188: =CHOOSE(m_identity,ENWL!AL188, NPgN!AL188, NPgY!AL188, WMID!AL188, EMID!AL188, SWALES!AL188, SWEST!AL188, LPN!AL188,SPN!AL188,EPN!AL188,SPD!AL188,SPMW!AL188,SSEH!AL188,SSES!AL188) -> 0 | AM188: =CHOOSE(m_identity,ENWL!AM188, NPgN!AM188, NPgY!AM188, WMID!AM188, EMID!AM188, SWALES!AM188, SWEST!AM188, LPN!AM188,SPN!AM188,EPN!AM188,SPD!AM188,SPMW!AM188,SSEH!AM188,SSES!AM188) -> 0 | AN188: =CHOOSE(m_identity,ENWL!AN188, NPgN!AN188, NPgY!AN188, WMID!AN188, EMID!AN188, SWALES!AN188, SWEST!AN188, LPN!AN188,SPN!AN188,EPN!AN188,SPD!AN188,SPMW!AN188,SSEH!AN188,SSES!AN188) -> 0 | AO188: =CHOOSE(m_identity,ENWL!AO188, NPgN!AO188, NPgY!AO188, WMID!AO188, EMID!AO188, SWALES!AO188, SWEST!AO188, LPN!AO188,SPN!AO188,EPN!AO188,SPD!AO188,SPMW!AO188,SSEH!AO188,SSES!AO188) -> 0 | AP188: =CHOOSE(m_identity,ENWL!AP188, NPgN!AP188, NPgY!AP188, WMID!AP188, EMID!AP188, SWALES!AP188, SWEST!AP188, LPN!AP188,SPN!AP188,EPN!AP188,SPD!AP188,SPMW!AP188,SSEH!AP188,SSES!AP188) -> 0 | AQ188: =CHOOSE(m_identity,ENWL!AQ188, NPgN!AQ188, NPgY!AQ188, WMID!AQ188, EMID!AQ188, SWALES!AQ188, SWEST!AQ188, LPN!AQ188,SPN!AQ188,EPN!AQ188,SPD!AQ188,SPMW!AQ188,SSEH!AQ188,SSES!AQ188) -> 0
E189: Allocation to controllable opex | G189: % | AJ189: =CHOOSE(m_identity,ENWL!AJ189, NPgN!AJ189, NPgY!AJ189, WMID!AJ189, EMID!AJ189, SWALES!AJ189, SWEST!AJ189, LPN!AJ189,SPN!AJ189,EPN!AJ189,SPD!AJ189,SPMW!AJ189,SSEH!AJ189,SSES!AJ189) -> 0 | AK189: =CHOOSE(m_identity,ENWL!AK189, NPgN!AK189, NPgY!AK189, WMID!AK189, EMID!AK189, SWALES!AK189, SWEST!AK189, LPN!AK189,SPN!AK189,EPN!AK189,SPD!AK189,SPMW!AK189,SSEH!AK189,SSES!AK189) -> 0 | AL189: =CHOOSE(m_identity,ENWL!AL189, NPgN!AL189, NPgY!AL189, WMID!AL189, EMID!AL189, SWALES!AL189, SWEST!AL189, LPN!AL189,SPN!AL189,EPN!AL189,SPD!AL189,SPMW!AL189,SSEH!AL189,SSES!AL189) -> 0 | AM189: =CHOOSE(m_identity,ENWL!AM189, NPgN!AM189, NPgY!AM189, WMID!AM189, EMID!AM189, SWALES!AM189, SWEST!AM189, LPN!AM189,SPN!AM189,EPN!AM189,SPD!AM189,SPMW!AM189,SSEH!AM189,SSES!AM189) -> 0 | AN189: =CHOOSE(m_identity,ENWL!AN189, NPgN!AN189, NPgY!AN189, WMID!AN189, EMID!AN189, SWALES!AN189, SWEST!AN189, LPN!AN189,SPN!AN189,EPN!AN189,SPD!AN189,SPMW!AN189,SSEH!AN189,SSES!AN189) -> 0 | AO189: =CHOOSE(m_identity,ENWL!AO189, NPgN!AO189, NPgY!AO189, WMID!AO189, EMID!AO189, SWALES!AO189, SWEST!AO189, LPN!AO189,SPN!AO189,EPN!AO189,SPD!AO189,SPMW!AO189,SSEH!AO189,SSES!AO189) -> 0 | AP189: =CHOOSE(m_identity,ENWL!AP189, NPgN!AP189, NPgY!AP189, WMID!AP189, EMID!AP189, SWALES!AP189, SWEST!AP189, LPN!AP189,SPN!AP189,EPN!AP189,SPD!AP189,SPMW!AP189,SSEH!AP189,SSES!AP189) -> 0 | AQ189: =CHOOSE(m_identity,ENWL!AQ189, NPgN!AQ189, NPgY!AQ189, WMID!AQ189, EMID!AQ189, SWALES!AQ189, SWEST!AQ189, LPN!AQ189,SPN!AQ189,EPN!AQ189,SPD!AQ189,SPMW!AQ189,SSEH!AQ189,SSES!AQ189) -> 0
E191: =E28 -> Allowed Expenditure - Shetland Uncertain Energy (SSEH) | G191: £m 12/13 prices | AJ191: =AJ28 -> 0 | AK191: 0 | AL191: 0 | AM191: 0 | AN191: 0 | AO191: 0 | AP191: 0 | AQ191: 0
E192: Allocation to load related capex | G192: % | AJ192: =CHOOSE(m_identity,ENWL!AJ192, NPgN!AJ192, NPgY!AJ192, WMID!AJ192, EMID!AJ192, SWALES!AJ192, SWEST!AJ192, LPN!AJ192,SPN!AJ192,EPN!AJ192,SPD!AJ192,SPMW!AJ192,SSEH!AJ192,SSES!AJ192) -> 0 | AK192: =CHOOSE(m_identity,ENWL!AK192, NPgN!AK192, NPgY!AK192, WMID!AK192, EMID!AK192, SWALES!AK192, SWEST!AK192, LPN!AK192,SPN!AK192,EPN!AK192,SPD!AK192,SPMW!AK192,SSEH!AK192,SSES!AK192) -> 0 | AL192: =CHOOSE(m_identity,ENWL!AL192, NPgN!AL192, NPgY!AL192, WMID!AL192, EMID!AL192, SWALES!AL192, SWEST!AL192, LPN!AL192,SPN!AL192,EPN!AL192,SPD!AL192,SPMW!AL192,SSEH!AL192,SSES!AL192) -> 0 | AM192: =CHOOSE(m_identity,ENWL!AM192, NPgN!AM192, NPgY!AM192, WMID!AM192, EMID!AM192, SWALES!AM192, SWEST!AM192, LPN!AM192,SPN!AM192,EPN!AM192,SPD!AM192,SPMW!AM192,SSEH!AM192,SSES!AM192) -> 0 | AN192: =CHOOSE(m_identity,ENWL!AN192, NPgN!AN192, NPgY!AN192, WMID!AN192, EMID!AN192, SWALES!AN192, SWEST!AN192, LPN!AN192,SPN!AN192,EPN!AN192,SPD!AN192,SPMW!AN192,SSEH!AN192,SSES!AN192) -> 0 | AO192: =CHOOSE(m_identity,ENWL!AO192, NPgN!AO192, NPgY!AO192, WMID!AO192, EMID!AO192, SWALES!AO192, SWEST!AO192, LPN!AO192,SPN!AO192,EPN!AO192,SPD!AO192,SPMW!AO192,SSEH!AO192,SSES!AO192) -> 0 | AP192: =CHOOSE(m_identity,ENWL!AP192, NPgN!AP192, NPgY!AP192, WMID!AP192, EMID!AP192, SWALES!AP192, SWEST!AP192, LPN!AP192,SPN!AP192,EPN!AP192,SPD!AP192,SPMW!AP192,SSEH!AP192,SSES!AP192) -> 0 | AQ192: =CHOOSE(m_identity,ENWL!AQ192, NPgN!AQ192, NPgY!AQ192, WMID!AQ192, EMID!AQ192, SWALES!AQ192, SWEST!AQ192, LPN!AQ192,SPN!AQ192,EPN!AQ192,SPD!AQ192,SPMW!AQ192,SSEH!AQ192,SSES!AQ192) -> 0
E193: Allocation to non-load related capex - asset replacement | G193: % | AJ193: =CHOOSE(m_identity,ENWL!AJ193, NPgN!AJ193, NPgY!AJ193, WMID!AJ193, EMID!AJ193, SWALES!AJ193, SWEST!AJ193, LPN!AJ193,SPN!AJ193,EPN!AJ193,SPD!AJ193,SPMW!AJ193,SSEH!AJ193,SSES!AJ193) -> 0 | AK193: =CHOOSE(m_identity,ENWL!AK193, NPgN!AK193, NPgY!AK193, WMID!AK193, EMID!AK193, SWALES!AK193, SWEST!AK193, LPN!AK193,SPN!AK193,EPN!AK193,SPD!AK193,SPMW!AK193,SSEH!AK193,SSES!AK193) -> 0 | AL193: =CHOOSE(m_identity,ENWL!AL193, NPgN!AL193, NPgY!AL193, WMID!AL193, EMID!AL193, SWALES!AL193, SWEST!AL193, LPN!AL193,SPN!AL193,EPN!AL193,SPD!AL193,SPMW!AL193,SSEH!AL193,SSES!AL193) -> 0 | AM193: =CHOOSE(m_identity,ENWL!AM193, NPgN!AM193, NPgY!AM193, WMID!AM193, EMID!AM193, SWALES!AM193, SWEST!AM193, LPN!AM193,SPN!AM193,EPN!AM193,SPD!AM193,SPMW!AM193,SSEH!AM193,SSES!AM193) -> 0 | AN193: =CHOOSE(m_identity,ENWL!AN193, NPgN!AN193, NPgY!AN193, WMID!AN193, EMID!AN193, SWALES!AN193, SWEST!AN193, LPN!AN193,SPN!AN193,EPN!AN193,SPD!AN193,SPMW!AN193,SSEH!AN193,SSES!AN193) -> 0 | AO193: =CHOOSE(m_identity,ENWL!AO193, NPgN!AO193, NPgY!AO193, WMID!AO193, EMID!AO193, SWALES!AO193, SWEST!AO193, LPN!AO193,SPN!AO193,EPN!AO193,SPD!AO193,SPMW!AO193,SSEH!AO193,SSES!AO193) -> 0 | AP193: =CHOOSE(m_identity,ENWL!AP193, NPgN!AP193, NPgY!AP193, WMID!AP193, EMID!AP193, SWALES!AP193, SWEST!AP193, LPN!AP193,SPN!AP193,EPN!AP193,SPD!AP193,SPMW!AP193,SSEH!AP193,SSES!AP193) -> 0 | AQ193: =CHOOSE(m_identity,ENWL!AQ193, NPgN!AQ193, NPgY!AQ193, WMID!AQ193, EMID!AQ193, SWALES!AQ193, SWEST!AQ193, LPN!AQ193,SPN!AQ193,EPN!AQ193,SPD!AQ193,SPMW!AQ193,SSEH!AQ193,SSES!AQ193) -> 0
E194: Allocation to non-load related capex - other | G194: % | AJ194: =CHOOSE(m_identity,ENWL!AJ194, NPgN!AJ194, NPgY!AJ194, WMID!AJ194, EMID!AJ194, SWALES!AJ194, SWEST!AJ194, LPN!AJ194,SPN!AJ194,EPN!AJ194,SPD!AJ194,SPMW!AJ194,SSEH!AJ194,SSES!AJ194) -> 0 | AK194: =CHOOSE(m_identity,ENWL!AK194, NPgN!AK194, NPgY!AK194, WMID!AK194, EMID!AK194, SWALES!AK194, SWEST!AK194, LPN!AK194,SPN!AK194,EPN!AK194,SPD!AK194,SPMW!AK194,SSEH!AK194,SSES!AK194) -> 0 | AL194: =CHOOSE(m_identity,ENWL!AL194, NPgN!AL194, NPgY!AL194, WMID!AL194, EMID!AL194, SWALES!AL194, SWEST!AL194, LPN!AL194,SPN!AL194,EPN!AL194,SPD!AL194,SPMW!AL194,SSEH!AL194,SSES!AL194) -> 0 | AM194: =CHOOSE(m_identity,ENWL!AM194, NPgN!AM194, NPgY!AM194, WMID!AM194, EMID!AM194, SWALES!AM194, SWEST!AM194, LPN!AM194,SPN!AM194,EPN!AM194,SPD!AM194,SPMW!AM194,SSEH!AM194,SSES!AM194) -> 0 | AN194: =CHOOSE(m_identity,ENWL!AN194, NPgN!AN194, NPgY!AN194, WMID!AN194, EMID!AN194, SWALES!AN194, SWEST!AN194, LPN!AN194,SPN!AN194,EPN!AN194,SPD!AN194,SPMW!AN194,SSEH!AN194,SSES!AN194) -> 0 | AO194: =CHOOSE(m_identity,ENWL!AO194, NPgN!AO194, NPgY!AO194, WMID!AO194, EMID!AO194, SWALES!AO194, SWEST!AO194, LPN!AO194,SPN!AO194,EPN!AO194,SPD!AO194,SPMW!AO194,SSEH!AO194,SSES!AO194) -> 0 | AP194: =CHOOSE(m_identity,ENWL!AP194, NPgN!AP194, NPgY!AP194, WMID!AP194, EMID!AP194, SWALES!AP194, SWEST!AP194, LPN!AP194,SPN!AP194,EPN!AP194,SPD!AP194,SPMW!AP194,SSEH!AP194,SSES!AP194) -> 0 | AQ194: =CHOOSE(m_identity,ENWL!AQ194, NPgN!AQ194, NPgY!AQ194, WMID!AQ194, EMID!AQ194, SWALES!AQ194, SWEST!AQ194, LPN!AQ194,SPN!AQ194,EPN!AQ194,SPD!AQ194,SPMW!AQ194,SSEH!AQ194,SSES!AQ194) -> 0
E195: Allocation to faults | G195: % | AJ195: =CHOOSE(m_identity,ENWL!AJ195, NPgN!AJ195, NPgY!AJ195, WMID!AJ195, EMID!AJ195, SWALES!AJ195, SWEST!AJ195, LPN!AJ195,SPN!AJ195,EPN!AJ195,SPD!AJ195,SPMW!AJ195,SSEH!AJ195,SSES!AJ195) -> 0 | AK195: =CHOOSE(m_identity,ENWL!AK195, NPgN!AK195, NPgY!AK195, WMID!AK195, EMID!AK195, SWALES!AK195, SWEST!AK195, LPN!AK195,SPN!AK195,EPN!AK195,SPD!AK195,SPMW!AK195,SSEH!AK195,SSES!AK195) -> 0 | AL195: =CHOOSE(m_identity,ENWL!AL195, NPgN!AL195, NPgY!AL195, WMID!AL195, EMID!AL195, SWALES!AL195, SWEST!AL195, LPN!AL195,SPN!AL195,EPN!AL195,SPD!AL195,SPMW!AL195,SSEH!AL195,SSES!AL195) -> 0 | AM195: =CHOOSE(m_identity,ENWL!AM195, NPgN!AM195, NPgY!AM195, WMID!AM195, EMID!AM195, SWALES!AM195, SWEST!AM195, LPN!AM195,SPN!AM195,EPN!AM195,SPD!AM195,SPMW!AM195,SSEH!AM195,SSES!AM195) -> 0 | AN195: =CHOOSE(m_identity,ENWL!AN195, NPgN!AN195, NPgY!AN195, WMID!AN195, EMID!AN195, SWALES!AN195, SWEST!AN195, LPN!AN195,SPN!AN195,EPN!AN195,SPD!AN195,SPMW!AN195,SSEH!AN195,SSES!AN195) -> 0 | AO195: =CHOOSE(m_identity,ENWL!AO195, NPgN!AO195, NPgY!AO195, WMID!AO195, EMID!AO195, SWALES!AO195, SWEST!AO195, LPN!AO195,SPN!AO195,EPN!AO195,SPD!AO195,SPMW!AO195,SSEH!AO195,SSES!AO195) -> 0 | AP195: =CHOOSE(m_identity,ENWL!AP195, NPgN!AP195, NPgY!AP195, WMID!AP195, EMID!AP195, SWALES!AP195, SWEST!AP195, LPN!AP195,SPN!AP195,EPN!AP195,SPD!AP195,SPMW!AP195,SSEH!AP195,SSES!AP195) -> 0 | AQ195: =CHOOSE(m_identity,ENWL!AQ195, NPgN!AQ195, NPgY!AQ195, WMID!AQ195, EMID!AQ195, SWALES!AQ195, SWEST!AQ195, LPN!AQ195,SPN!AQ195,EPN!AQ195,SPD!AQ195,SPMW!AQ195,SSEH!AQ195,SSES!AQ195) -> 0
E196: Allocation to tree cutting | G196: % | AJ196: =CHOOSE(m_identity,ENWL!AJ196, NPgN!AJ196, NPgY!AJ196, WMID!AJ196, EMID!AJ196, SWALES!AJ196, SWEST!AJ196, LPN!AJ196,SPN!AJ196,EPN!AJ196,SPD!AJ196,SPMW!AJ196,SSEH!AJ196,SSES!AJ196) -> 0 | AK196: =CHOOSE(m_identity,ENWL!AK196, NPgN!AK196, NPgY!AK196, WMID!AK196, EMID!AK196, SWALES!AK196, SWEST!AK196, LPN!AK196,SPN!AK196,EPN!AK196,SPD!AK196,SPMW!AK196,SSEH!AK196,SSES!AK196) -> 0 | AL196: =CHOOSE(m_identity,ENWL!AL196, NPgN!AL196, NPgY!AL196, WMID!AL196, EMID!AL196, SWALES!AL196, SWEST!AL196, LPN!AL196,SPN!AL196,EPN!AL196,SPD!AL196,SPMW!AL196,SSEH!AL196,SSES!AL196) -> 0 | AM196: =CHOOSE(m_identity,ENWL!AM196, NPgN!AM196, NPgY!AM196, WMID!AM196, EMID!AM196, SWALES!AM196, SWEST!AM196, LPN!AM196,SPN!AM196,EPN!AM196,SPD!AM196,SPMW!AM196,SSEH!AM196,SSES!AM196) -> 0 | AN196: =CHOOSE(m_identity,ENWL!AN196, NPgN!AN196, NPgY!AN196, WMID!AN196, EMID!AN196, SWALES!AN196, SWEST!AN196, LPN!AN196,SPN!AN196,EPN!AN196,SPD!AN196,SPMW!AN196,SSEH!AN196,SSES!AN196) -> 0 | AO196: =CHOOSE(m_identity,ENWL!AO196, NPgN!AO196, NPgY!AO196, WMID!AO196, EMID!AO196, SWALES!AO196, SWEST!AO196, LPN!AO196,SPN!AO196,EPN!AO196,SPD!AO196,SPMW!AO196,SSEH!AO196,SSES!AO196) -> 0 | AP196: =CHOOSE(m_identity,ENWL!AP196, NPgN!AP196, NPgY!AP196, WMID!AP196, EMID!AP196, SWALES!AP196, SWEST!AP196, LPN!AP196,SPN!AP196,EPN!AP196,SPD!AP196,SPMW!AP196,SSEH!AP196,SSES!AP196) -> 0 | AQ196: =CHOOSE(m_identity,ENWL!AQ196, NPgN!AQ196, NPgY!AQ196, WMID!AQ196, EMID!AQ196, SWALES!AQ196, SWEST!AQ196, LPN!AQ196,SPN!AQ196,EPN!AQ196,SPD!AQ196,SPMW!AQ196,SSEH!AQ196,SSES!AQ196) -> 0
E197: Allocation to 100% ‘revenue pool’ expenditure | G197: % | AJ197: =CHOOSE(m_identity,ENWL!AJ197, NPgN!AJ197, NPgY!AJ197, WMID!AJ197, EMID!AJ197, SWALES!AJ197, SWEST!AJ197, LPN!AJ197,SPN!AJ197,EPN!AJ197,SPD!AJ197,SPMW!AJ197,SSEH!AJ197,SSES!AJ197) -> 0 | AK197: =CHOOSE(m_identity,ENWL!AK197, NPgN!AK197, NPgY!AK197, WMID!AK197, EMID!AK197, SWALES!AK197, SWEST!AK197, LPN!AK197,SPN!AK197,EPN!AK197,SPD!AK197,SPMW!AK197,SSEH!AK197,SSES!AK197) -> 0 | AL197: =CHOOSE(m_identity,ENWL!AL197, NPgN!AL197, NPgY!AL197, WMID!AL197, EMID!AL197, SWALES!AL197, SWEST!AL197, LPN!AL197,SPN!AL197,EPN!AL197,SPD!AL197,SPMW!AL197,SSEH!AL197,SSES!AL197) -> 0 | AM197: =CHOOSE(m_identity,ENWL!AM197, NPgN!AM197, NPgY!AM197, WMID!AM197, EMID!AM197, SWALES!AM197, SWEST!AM197, LPN!AM197,SPN!AM197,EPN!AM197,SPD!AM197,SPMW!AM197,SSEH!AM197,SSES!AM197) -> 0 | AN197: =CHOOSE(m_identity,ENWL!AN197, NPgN!AN197, NPgY!AN197, WMID!AN197, EMID!AN197, SWALES!AN197, SWEST!AN197, LPN!AN197,SPN!AN197,EPN!AN197,SPD!AN197,SPMW!AN197,SSEH!AN197,SSES!AN197) -> 0 | AO197: =CHOOSE(m_identity,ENWL!AO197, NPgN!AO197, NPgY!AO197, WMID!AO197, EMID!AO197, SWALES!AO197, SWEST!AO197, LPN!AO197,SPN!AO197,EPN!AO197,SPD!AO197,SPMW!AO197,SSEH!AO197,SSES!AO197) -> 0 | AP197: =CHOOSE(m_identity,ENWL!AP197, NPgN!AP197, NPgY!AP197, WMID!AP197, EMID!AP197, SWALES!AP197, SWEST!AP197, LPN!AP197,SPN!AP197,EPN!AP197,SPD!AP197,SPMW!AP197,SSEH!AP197,SSES!AP197) -> 0 | AQ197: =CHOOSE(m_identity,ENWL!AQ197, NPgN!AQ197, NPgY!AQ197, WMID!AQ197, EMID!AQ197, SWALES!AQ197, SWEST!AQ197, LPN!AQ197,SPN!AQ197,EPN!AQ197,SPD!AQ197,SPMW!AQ197,SSEH!AQ197,SSES!AQ197) -> 0
E198: Allocation to controllable opex | G198: % | AJ198: =CHOOSE(m_identity,ENWL!AJ198, NPgN!AJ198, NPgY!AJ198, WMID!AJ198, EMID!AJ198, SWALES!AJ198, SWEST!AJ198, LPN!AJ198,SPN!AJ198,EPN!AJ198,SPD!AJ198,SPMW!AJ198,SSEH!AJ198,SSES!AJ198) -> 0 | AK198: =CHOOSE(m_identity,ENWL!AK198, NPgN!AK198, NPgY!AK198, WMID!AK198, EMID!AK198, SWALES!AK198, SWEST!AK198, LPN!AK198,SPN!AK198,EPN!AK198,SPD!AK198,SPMW!AK198,SSEH!AK198,SSES!AK198) -> 0 | AL198: =CHOOSE(m_identity,ENWL!AL198, NPgN!AL198, NPgY!AL198, WMID!AL198, EMID!AL198, SWALES!AL198, SWEST!AL198, LPN!AL198,SPN!AL198,EPN!AL198,SPD!AL198,SPMW!AL198,SSEH!AL198,SSES!AL198) -> 0 | AM198: =CHOOSE(m_identity,ENWL!AM198, NPgN!AM198, NPgY!AM198, WMID!AM198, EMID!AM198, SWALES!AM198, SWEST!AM198, LPN!AM198,SPN!AM198,EPN!AM198,SPD!AM198,SPMW!AM198,SSEH!AM198,SSES!AM198) -> 0 | AN198: =CHOOSE(m_identity,ENWL!AN198, NPgN!AN198, NPgY!AN198, WMID!AN198, EMID!AN198, SWALES!AN198, SWEST!AN198, LPN!AN198,SPN!AN198,EPN!AN198,SPD!AN198,SPMW!AN198,SSEH!AN198,SSES!AN198) -> 0 | AO198: =CHOOSE(m_identity,ENWL!AO198, NPgN!AO198, NPgY!AO198, WMID!AO198, EMID!AO198, SWALES!AO198, SWEST!AO198, LPN!AO198,SPN!AO198,EPN!AO198,SPD!AO198,SPMW!AO198,SSEH!AO198,SSES!AO198) -> 0 | AP198: =CHOOSE(m_identity,ENWL!AP198, NPgN!AP198, NPgY!AP198, WMID!AP198, EMID!AP198, SWALES!AP198, SWEST!AP198, LPN!AP198,SPN!AP198,EPN!AP198,SPD!AP198,SPMW!AP198,SSEH!AP198,SSES!AP198) -> 0 | AQ198: =CHOOSE(m_identity,ENWL!AQ198, NPgN!AQ198, NPgY!AQ198, WMID!AQ198, EMID!AQ198, SWALES!AQ198, SWEST!AQ198, LPN!AQ198,SPN!AQ198,EPN!AQ198,SPD!AQ198,SPMW!AQ198,SSEH!AQ198,SSES!AQ198) -> 0
E200: =E29 -> Allowed Expenditure - Shetland Competitive Process (SSEH) | G200: £m 12/13 prices | AJ200: =AJ29 -> 0 | AK200: =AK29 -> 0 | AL200: 0 | AM200: 0 | AN200: 0 | AO200: 0 | AP200: 0 | AQ200: 0
E201: Allocation to load related capex | G201: % | AJ201: =CHOOSE(m_identity,ENWL!AJ201, NPgN!AJ201, NPgY!AJ201, WMID!AJ201, EMID!AJ201, SWALES!AJ201, SWEST!AJ201, LPN!AJ201,SPN!AJ201,EPN!AJ201,SPD!AJ201,SPMW!AJ201,SSEH!AJ201,SSES!AJ201) -> 0 | AK201: =CHOOSE(m_identity,ENWL!AK201, NPgN!AK201, NPgY!AK201, WMID!AK201, EMID!AK201, SWALES!AK201, SWEST!AK201, LPN!AK201,SPN!AK201,EPN!AK201,SPD!AK201,SPMW!AK201,SSEH!AK201,SSES!AK201) -> 0 | AL201: =CHOOSE(m_identity,ENWL!AL201, NPgN!AL201, NPgY!AL201, WMID!AL201, EMID!AL201, SWALES!AL201, SWEST!AL201, LPN!AL201,SPN!AL201,EPN!AL201,SPD!AL201,SPMW!AL201,SSEH!AL201,SSES!AL201) -> 0 | AM201: =CHOOSE(m_identity,ENWL!AM201, NPgN!AM201, NPgY!AM201, WMID!AM201, EMID!AM201, SWALES!AM201, SWEST!AM201, LPN!AM201,SPN!AM201,EPN!AM201,SPD!AM201,SPMW!AM201,SSEH!AM201,SSES!AM201) -> 0 | AN201: =CHOOSE(m_identity,ENWL!AN201, NPgN!AN201, NPgY!AN201, WMID!AN201, EMID!AN201, SWALES!AN201, SWEST!AN201, LPN!AN201,SPN!AN201,EPN!AN201,SPD!AN201,SPMW!AN201,SSEH!AN201,SSES!AN201) -> 0 | AO201: =CHOOSE(m_identity,ENWL!AO201, NPgN!AO201, NPgY!AO201, WMID!AO201, EMID!AO201, SWALES!AO201, SWEST!AO201, LPN!AO201,SPN!AO201,EPN!AO201,SPD!AO201,SPMW!AO201,SSEH!AO201,SSES!AO201) -> 0 | AP201: =CHOOSE(m_identity,ENWL!AP201, NPgN!AP201, NPgY!AP201, WMID!AP201, EMID!AP201, SWALES!AP201, SWEST!AP201, LPN!AP201,SPN!AP201,EPN!AP201,SPD!AP201,SPMW!AP201,SSEH!AP201,SSES!AP201) -> 0 | AQ201: =CHOOSE(m_identity,ENWL!AQ201, NPgN!AQ201, NPgY!AQ201, WMID!AQ201, EMID!AQ201, SWALES!AQ201, SWEST!AQ201, LPN!AQ201,SPN!AQ201,EPN!AQ201,SPD!AQ201,SPMW!AQ201,SSEH!AQ201,SSES!AQ201) -> 0
E202: Allocation to non-load related capex - asset replacement | G202: % | AJ202: =CHOOSE(m_identity,ENWL!AJ202, NPgN!AJ202, NPgY!AJ202, WMID!AJ202, EMID!AJ202, SWALES!AJ202, SWEST!AJ202, LPN!AJ202,SPN!AJ202,EPN!AJ202,SPD!AJ202,SPMW!AJ202,SSEH!AJ202,SSES!AJ202) -> 0 | AK202: =CHOOSE(m_identity,ENWL!AK202, NPgN!AK202, NPgY!AK202, WMID!AK202, EMID!AK202, SWALES!AK202, SWEST!AK202, LPN!AK202,SPN!AK202,EPN!AK202,SPD!AK202,SPMW!AK202,SSEH!AK202,SSES!AK202) -> 0 | AL202: =CHOOSE(m_identity,ENWL!AL202, NPgN!AL202, NPgY!AL202, WMID!AL202, EMID!AL202, SWALES!AL202, SWEST!AL202, LPN!AL202,SPN!AL202,EPN!AL202,SPD!AL202,SPMW!AL202,SSEH!AL202,SSES!AL202) -> 0 | AM202: =CHOOSE(m_identity,ENWL!AM202, NPgN!AM202, NPgY!AM202, WMID!AM202, EMID!AM202, SWALES!AM202, SWEST!AM202, LPN!AM202,SPN!AM202,EPN!AM202,SPD!AM202,SPMW!AM202,SSEH!AM202,SSES!AM202) -> 0 | AN202: =CHOOSE(m_identity,ENWL!AN202, NPgN!AN202, NPgY!AN202, WMID!AN202, EMID!AN202, SWALES!AN202, SWEST!AN202, LPN!AN202,SPN!AN202,EPN!AN202,SPD!AN202,SPMW!AN202,SSEH!AN202,SSES!AN202) -> 0 | AO202: =CHOOSE(m_identity,ENWL!AO202, NPgN!AO202, NPgY!AO202, WMID!AO202, EMID!AO202, SWALES!AO202, SWEST!AO202, LPN!AO202,SPN!AO202,EPN!AO202,SPD!AO202,SPMW!AO202,SSEH!AO202,SSES!AO202) -> 0 | AP202: =CHOOSE(m_identity,ENWL!AP202, NPgN!AP202, NPgY!AP202, WMID!AP202, EMID!AP202, SWALES!AP202, SWEST!AP202, LPN!AP202,SPN!AP202,EPN!AP202,SPD!AP202,SPMW!AP202,SSEH!AP202,SSES!AP202) -> 0 | AQ202: =CHOOSE(m_identity,ENWL!AQ202, NPgN!AQ202, NPgY!AQ202, WMID!AQ202, EMID!AQ202, SWALES!AQ202, SWEST!AQ202, LPN!AQ202,SPN!AQ202,EPN!AQ202,SPD!AQ202,SPMW!AQ202,SSEH!AQ202,SSES!AQ202) -> 0
E203: Allocation to non-load related capex - other | G203: % | AJ203: =CHOOSE(m_identity,ENWL!AJ203, NPgN!AJ203, NPgY!AJ203, WMID!AJ203, EMID!AJ203, SWALES!AJ203, SWEST!AJ203, LPN!AJ203,SPN!AJ203,EPN!AJ203,SPD!AJ203,SPMW!AJ203,SSEH!AJ203,SSES!AJ203) -> 0 | AK203: =CHOOSE(m_identity,ENWL!AK203, NPgN!AK203, NPgY!AK203, WMID!AK203, EMID!AK203, SWALES!AK203, SWEST!AK203, LPN!AK203,SPN!AK203,EPN!AK203,SPD!AK203,SPMW!AK203,SSEH!AK203,SSES!AK203) -> 0 | AL203: =CHOOSE(m_identity,ENWL!AL203, NPgN!AL203, NPgY!AL203, WMID!AL203, EMID!AL203, SWALES!AL203, SWEST!AL203, LPN!AL203,SPN!AL203,EPN!AL203,SPD!AL203,SPMW!AL203,SSEH!AL203,SSES!AL203) -> 0 | AM203: =CHOOSE(m_identity,ENWL!AM203, NPgN!AM203, NPgY!AM203, WMID!AM203, EMID!AM203, SWALES!AM203, SWEST!AM203, LPN!AM203,SPN!AM203,EPN!AM203,SPD!AM203,SPMW!AM203,SSEH!AM203,SSES!AM203) -> 0 | AN203: =CHOOSE(m_identity,ENWL!AN203, NPgN!AN203, NPgY!AN203, WMID!AN203, EMID!AN203, SWALES!AN203, SWEST!AN203, LPN!AN203,SPN!AN203,EPN!AN203,SPD!AN203,SPMW!AN203,SSEH!AN203,SSES!AN203) -> 0 | AO203: =CHOOSE(m_identity,ENWL!AO203, NPgN!AO203, NPgY!AO203, WMID!AO203, EMID!AO203, SWALES!AO203, SWEST!AO203, LPN!AO203,SPN!AO203,EPN!AO203,SPD!AO203,SPMW!AO203,SSEH!AO203,SSES!AO203) -> 0 | AP203: =CHOOSE(m_identity,ENWL!AP203, NPgN!AP203, NPgY!AP203, WMID!AP203, EMID!AP203, SWALES!AP203, SWEST!AP203, LPN!AP203,SPN!AP203,EPN!AP203,SPD!AP203,SPMW!AP203,SSEH!AP203,SSES!AP203) -> 0 | AQ203: =CHOOSE(m_identity,ENWL!AQ203, NPgN!AQ203, NPgY!AQ203, WMID!AQ203, EMID!AQ203, SWALES!AQ203, SWEST!AQ203, LPN!AQ203,SPN!AQ203,EPN!AQ203,SPD!AQ203,SPMW!AQ203,SSEH!AQ203,SSES!AQ203) -> 0
E204: Allocation to faults | G204: % | AJ204: =CHOOSE(m_identity,ENWL!AJ204, NPgN!AJ204, NPgY!AJ204, WMID!AJ204, EMID!AJ204, SWALES!AJ204, SWEST!AJ204, LPN!AJ204,SPN!AJ204,EPN!AJ204,SPD!AJ204,SPMW!AJ204,SSEH!AJ204,SSES!AJ204) -> 0 | AK204: =CHOOSE(m_identity,ENWL!AK204, NPgN!AK204, NPgY!AK204, WMID!AK204, EMID!AK204, SWALES!AK204, SWEST!AK204, LPN!AK204,SPN!AK204,EPN!AK204,SPD!AK204,SPMW!AK204,SSEH!AK204,SSES!AK204) -> 0 | AL204: =CHOOSE(m_identity,ENWL!AL204, NPgN!AL204, NPgY!AL204, WMID!AL204, EMID!AL204, SWALES!AL204, SWEST!AL204, LPN!AL204,SPN!AL204,EPN!AL204,SPD!AL204,SPMW!AL204,SSEH!AL204,SSES!AL204) -> 0 | AM204: =CHOOSE(m_identity,ENWL!AM204, NPgN!AM204, NPgY!AM204, WMID!AM204, EMID!AM204, SWALES!AM204, SWEST!AM204, LPN!AM204,SPN!AM204,EPN!AM204,SPD!AM204,SPMW!AM204,SSEH!AM204,SSES!AM204) -> 0 | AN204: =CHOOSE(m_identity,ENWL!AN204, NPgN!AN204, NPgY!AN204, WMID!AN204, EMID!AN204, SWALES!AN204, SWEST!AN204, LPN!AN204,SPN!AN204,EPN!AN204,SPD!AN204,SPMW!AN204,SSEH!AN204,SSES!AN204) -> 0 | AO204: =CHOOSE(m_identity,ENWL!AO204, NPgN!AO204, NPgY!AO204, WMID!AO204, EMID!AO204, SWALES!AO204, SWEST!AO204, LPN!AO204,SPN!AO204,EPN!AO204,SPD!AO204,SPMW!AO204,SSEH!AO204,SSES!AO204) -> 0 | AP204: =CHOOSE(m_identity,ENWL!AP204, NPgN!AP204, NPgY!AP204, WMID!AP204, EMID!AP204, SWALES!AP204, SWEST!AP204, LPN!AP204,SPN!AP204,EPN!AP204,SPD!AP204,SPMW!AP204,SSEH!AP204,SSES!AP204) -> 0 | AQ204: =CHOOSE(m_identity,ENWL!AQ204, NPgN!AQ204, NPgY!AQ204, WMID!AQ204, EMID!AQ204, SWALES!AQ204, SWEST!AQ204, LPN!AQ204,SPN!AQ204,EPN!AQ204,SPD!AQ204,SPMW!AQ204,SSEH!AQ204,SSES!AQ204) -> 0
E205: Allocation to tree cutting | G205: % | AJ205: =CHOOSE(m_identity,ENWL!AJ205, NPgN!AJ205, NPgY!AJ205, WMID!AJ205, EMID!AJ205, SWALES!AJ205, SWEST!AJ205, LPN!AJ205,SPN!AJ205,EPN!AJ205,SPD!AJ205,SPMW!AJ205,SSEH!AJ205,SSES!AJ205) -> 0 | AK205: =CHOOSE(m_identity,ENWL!AK205, NPgN!AK205, NPgY!AK205, WMID!AK205, EMID!AK205, SWALES!AK205, SWEST!AK205, LPN!AK205,SPN!AK205,EPN!AK205,SPD!AK205,SPMW!AK205,SSEH!AK205,SSES!AK205) -> 0 | AL205: =CHOOSE(m_identity,ENWL!AL205, NPgN!AL205, NPgY!AL205, WMID!AL205, EMID!AL205, SWALES!AL205, SWEST!AL205, LPN!AL205,SPN!AL205,EPN!AL205,SPD!AL205,SPMW!AL205,SSEH!AL205,SSES!AL205) -> 0 | AM205: =CHOOSE(m_identity,ENWL!AM205, NPgN!AM205, NPgY!AM205, WMID!AM205, EMID!AM205, SWALES!AM205, SWEST!AM205, LPN!AM205,SPN!AM205,EPN!AM205,SPD!AM205,SPMW!AM205,SSEH!AM205,SSES!AM205) -> 0 | AN205: =CHOOSE(m_identity,ENWL!AN205, NPgN!AN205, NPgY!AN205, WMID!AN205, EMID!AN205, SWALES!AN205, SWEST!AN205, LPN!AN205,SPN!AN205,EPN!AN205,SPD!AN205,SPMW!AN205,SSEH!AN205,SSES!AN205) -> 0 | AO205: =CHOOSE(m_identity,ENWL!AO205, NPgN!AO205, NPgY!AO205, WMID!AO205, EMID!AO205, SWALES!AO205, SWEST!AO205, LPN!AO205,SPN!AO205,EPN!AO205,SPD!AO205,SPMW!AO205,SSEH!AO205,SSES!AO205) -> 0 | AP205: =CHOOSE(m_identity,ENWL!AP205, NPgN!AP205, NPgY!AP205, WMID!AP205, EMID!AP205, SWALES!AP205, SWEST!AP205, LPN!AP205,SPN!AP205,EPN!AP205,SPD!AP205,SPMW!AP205,SSEH!AP205,SSES!AP205) -> 0 | AQ205: =CHOOSE(m_identity,ENWL!AQ205, NPgN!AQ205, NPgY!AQ205, WMID!AQ205, EMID!AQ205, SWALES!AQ205, SWEST!AQ205, LPN!AQ205,SPN!AQ205,EPN!AQ205,SPD!AQ205,SPMW!AQ205,SSEH!AQ205,SSES!AQ205) -> 0
E206: Allocation to 100% ‘revenue pool’ expenditure | G206: % | AJ206: =CHOOSE(m_identity,ENWL!AJ206, NPgN!AJ206, NPgY!AJ206, WMID!AJ206, EMID!AJ206, SWALES!AJ206, SWEST!AJ206, LPN!AJ206,SPN!AJ206,EPN!AJ206,SPD!AJ206,SPMW!AJ206,SSEH!AJ206,SSES!AJ206) -> 0 | AK206: =CHOOSE(m_identity,ENWL!AK206, NPgN!AK206, NPgY!AK206, WMID!AK206, EMID!AK206, SWALES!AK206, SWEST!AK206, LPN!AK206,SPN!AK206,EPN!AK206,SPD!AK206,SPMW!AK206,SSEH!AK206,SSES!AK206) -> 0 | AL206: =CHOOSE(m_identity,ENWL!AL206, NPgN!AL206, NPgY!AL206, WMID!AL206, EMID!AL206, SWALES!AL206, SWEST!AL206, LPN!AL206,SPN!AL206,EPN!AL206,SPD!AL206,SPMW!AL206,SSEH!AL206,SSES!AL206) -> 0 | AM206: =CHOOSE(m_identity,ENWL!AM206, NPgN!AM206, NPgY!AM206, WMID!AM206, EMID!AM206, SWALES!AM206, SWEST!AM206, LPN!AM206,SPN!AM206,EPN!AM206,SPD!AM206,SPMW!AM206,SSEH!AM206,SSES!AM206) -> 0 | AN206: =CHOOSE(m_identity,ENWL!AN206, NPgN!AN206, NPgY!AN206, WMID!AN206, EMID!AN206, SWALES!AN206, SWEST!AN206, LPN!AN206,SPN!AN206,EPN!AN206,SPD!AN206,SPMW!AN206,SSEH!AN206,SSES!AN206) -> 0 | AO206: =CHOOSE(m_identity,ENWL!AO206, NPgN!AO206, NPgY!AO206, WMID!AO206, EMID!AO206, SWALES!AO206, SWEST!AO206, LPN!AO206,SPN!AO206,EPN!AO206,SPD!AO206,SPMW!AO206,SSEH!AO206,SSES!AO206) -> 0 | AP206: =CHOOSE(m_identity,ENWL!AP206, NPgN!AP206, NPgY!AP206, WMID!AP206, EMID!AP206, SWALES!AP206, SWEST!AP206, LPN!AP206,SPN!AP206,EPN!AP206,SPD!AP206,SPMW!AP206,SSEH!AP206,SSES!AP206) -> 0 | AQ206: =CHOOSE(m_identity,ENWL!AQ206, NPgN!AQ206, NPgY!AQ206, WMID!AQ206, EMID!AQ206, SWALES!AQ206, SWEST!AQ206, LPN!AQ206,SPN!AQ206,EPN!AQ206,SPD!AQ206,SPMW!AQ206,SSEH!AQ206,SSES!AQ206) -> 0
E207: Allocation to controllable opex | G207: % | AJ207: =CHOOSE(m_identity,ENWL!AJ207, NPgN!AJ207, NPgY!AJ207, WMID!AJ207, EMID!AJ207, SWALES!AJ207, SWEST!AJ207, LPN!AJ207,SPN!AJ207,EPN!AJ207,SPD!AJ207,SPMW!AJ207,SSEH!AJ207,SSES!AJ207) -> 0 | AK207: =CHOOSE(m_identity,ENWL!AK207, NPgN!AK207, NPgY!AK207, WMID!AK207, EMID!AK207, SWALES!AK207, SWEST!AK207, LPN!AK207,SPN!AK207,EPN!AK207,SPD!AK207,SPMW!AK207,SSEH!AK207,SSES!AK207) -> 0 | AL207: =CHOOSE(m_identity,ENWL!AL207, NPgN!AL207, NPgY!AL207, WMID!AL207, EMID!AL207, SWALES!AL207, SWEST!AL207, LPN!AL207,SPN!AL207,EPN!AL207,SPD!AL207,SPMW!AL207,SSEH!AL207,SSES!AL207) -> 0 | AM207: =CHOOSE(m_identity,ENWL!AM207, NPgN!AM207, NPgY!AM207, WMID!AM207, EMID!AM207, SWALES!AM207, SWEST!AM207, LPN!AM207,SPN!AM207,EPN!AM207,SPD!AM207,SPMW!AM207,SSEH!AM207,SSES!AM207) -> 0 | AN207: =CHOOSE(m_identity,ENWL!AN207, NPgN!AN207, NPgY!AN207, WMID!AN207, EMID!AN207, SWALES!AN207, SWEST!AN207, LPN!AN207,SPN!AN207,EPN!AN207,SPD!AN207,SPMW!AN207,SSEH!AN207,SSES!AN207) -> 0 | AO207: =CHOOSE(m_identity,ENWL!AO207, NPgN!AO207, NPgY!AO207, WMID!AO207, EMID!AO207, SWALES!AO207, SWEST!AO207, LPN!AO207,SPN!AO207,EPN!AO207,SPD!AO207,SPMW!AO207,SSEH!AO207,SSES!AO207) -> 0 | AP207: =CHOOSE(m_identity,ENWL!AP207, NPgN!AP207, NPgY!AP207, WMID!AP207, EMID!AP207, SWALES!AP207, SWEST!AP207, LPN!AP207,SPN!AP207,EPN!AP207,SPD!AP207,SPMW!AP207,SSEH!AP207,SSES!AP207) -> 0 | AQ207: =CHOOSE(m_identity,ENWL!AQ207, NPgN!AQ207, NPgY!AQ207, WMID!AQ207, EMID!AQ207, SWALES!AQ207, SWEST!AQ207, LPN!AQ207,SPN!AQ207,EPN!AQ207,SPD!AQ207,SPMW!AQ207,SSEH!AQ207,SSES!AQ207) -> 0
E209: =$E$30 -> Allowed Expenditure - Link Boxes | G209: £m 12/13 prices | AJ209: =AJ30 -> 0 | AK209: =AK30 -> 0 | AL209: 0 | AM209: 0 | AN209: 0 | AO209: 0 | AP209: 0 | AQ209: 0
E210: Allocation to load related capex | G210: % | AJ210: =CHOOSE(m_identity,ENWL!AJ210, NPgN!AJ210, NPgY!AJ210, WMID!AJ210, EMID!AJ210, SWALES!AJ210, SWEST!AJ210, LPN!AJ210,SPN!AJ210,EPN!AJ210,SPD!AJ210,SPMW!AJ210,SSEH!AJ210,SSES!AJ210) -> 0 | AK210: =CHOOSE(m_identity,ENWL!AK210, NPgN!AK210, NPgY!AK210, WMID!AK210, EMID!AK210, SWALES!AK210, SWEST!AK210, LPN!AK210,SPN!AK210,EPN!AK210,SPD!AK210,SPMW!AK210,SSEH!AK210,SSES!AK210) -> 0 | AL210: =CHOOSE(m_identity,ENWL!AL210, NPgN!AL210, NPgY!AL210, WMID!AL210, EMID!AL210, SWALES!AL210, SWEST!AL210, LPN!AL210,SPN!AL210,EPN!AL210,SPD!AL210,SPMW!AL210,SSEH!AL210,SSES!AL210) -> 0 | AM210: =CHOOSE(m_identity,ENWL!AM210, NPgN!AM210, NPgY!AM210, WMID!AM210, EMID!AM210, SWALES!AM210, SWEST!AM210, LPN!AM210,SPN!AM210,EPN!AM210,SPD!AM210,SPMW!AM210,SSEH!AM210,SSES!AM210) -> 0 | AN210: =CHOOSE(m_identity,ENWL!AN210, NPgN!AN210, NPgY!AN210, WMID!AN210, EMID!AN210, SWALES!AN210, SWEST!AN210, LPN!AN210,SPN!AN210,EPN!AN210,SPD!AN210,SPMW!AN210,SSEH!AN210,SSES!AN210) -> 0 | AO210: =CHOOSE(m_identity,ENWL!AO210, NPgN!AO210, NPgY!AO210, WMID!AO210, EMID!AO210, SWALES!AO210, SWEST!AO210, LPN!AO210,SPN!AO210,EPN!AO210,SPD!AO210,SPMW!AO210,SSEH!AO210,SSES!AO210) -> 0 | AP210: =CHOOSE(m_identity,ENWL!AP210, NPgN!AP210, NPgY!AP210, WMID!AP210, EMID!AP210, SWALES!AP210, SWEST!AP210, LPN!AP210,SPN!AP210,EPN!AP210,SPD!AP210,SPMW!AP210,SSEH!AP210,SSES!AP210) -> 0 | AQ210: =CHOOSE(m_identity,ENWL!AQ210, NPgN!AQ210, NPgY!AQ210, WMID!AQ210, EMID!AQ210, SWALES!AQ210, SWEST!AQ210, LPN!AQ210,SPN!AQ210,EPN!AQ210,SPD!AQ210,SPMW!AQ210,SSEH!AQ210,SSES!AQ210) -> 0
E211: Allocation to non-load related capex - asset replacement | G211: % | AJ211: =CHOOSE(m_identity,ENWL!AJ211, NPgN!AJ211, NPgY!AJ211, WMID!AJ211, EMID!AJ211, SWALES!AJ211, SWEST!AJ211, LPN!AJ211,SPN!AJ211,EPN!AJ211,SPD!AJ211,SPMW!AJ211,SSEH!AJ211,SSES!AJ211) -> 0 | AK211: =CHOOSE(m_identity,ENWL!AK211, NPgN!AK211, NPgY!AK211, WMID!AK211, EMID!AK211, SWALES!AK211, SWEST!AK211, LPN!AK211,SPN!AK211,EPN!AK211,SPD!AK211,SPMW!AK211,SSEH!AK211,SSES!AK211) -> 0 | AL211: =CHOOSE(m_identity,ENWL!AL211, NPgN!AL211, NPgY!AL211, WMID!AL211, EMID!AL211, SWALES!AL211, SWEST!AL211, LPN!AL211,SPN!AL211,EPN!AL211,SPD!AL211,SPMW!AL211,SSEH!AL211,SSES!AL211) -> 0 | AM211: =CHOOSE(m_identity,ENWL!AM211, NPgN!AM211, NPgY!AM211, WMID!AM211, EMID!AM211, SWALES!AM211, SWEST!AM211, LPN!AM211,SPN!AM211,EPN!AM211,SPD!AM211,SPMW!AM211,SSEH!AM211,SSES!AM211) -> 0 | AN211: =CHOOSE(m_identity,ENWL!AN211, NPgN!AN211, NPgY!AN211, WMID!AN211, EMID!AN211, SWALES!AN211, SWEST!AN211, LPN!AN211,SPN!AN211,EPN!AN211,SPD!AN211,SPMW!AN211,SSEH!AN211,SSES!AN211) -> 0 | AO211: =CHOOSE(m_identity,ENWL!AO211, NPgN!AO211, NPgY!AO211, WMID!AO211, EMID!AO211, SWALES!AO211, SWEST!AO211, LPN!AO211,SPN!AO211,EPN!AO211,SPD!AO211,SPMW!AO211,SSEH!AO211,SSES!AO211) -> 0 | AP211: =CHOOSE(m_identity,ENWL!AP211, NPgN!AP211, NPgY!AP211, WMID!AP211, EMID!AP211, SWALES!AP211, SWEST!AP211, LPN!AP211,SPN!AP211,EPN!AP211,SPD!AP211,SPMW!AP211,SSEH!AP211,SSES!AP211) -> 0 | AQ211: =CHOOSE(m_identity,ENWL!AQ211, NPgN!AQ211, NPgY!AQ211, WMID!AQ211, EMID!AQ211, SWALES!AQ211, SWEST!AQ211, LPN!AQ211,SPN!AQ211,EPN!AQ211,SPD!AQ211,SPMW!AQ211,SSEH!AQ211,SSES!AQ211) -> 0
E212: Allocation to non-load related capex - other | G212: % | AJ212: =CHOOSE(m_identity,ENWL!AJ212, NPgN!AJ212, NPgY!AJ212, WMID!AJ212, EMID!AJ212, SWALES!AJ212, SWEST!AJ212, LPN!AJ212,SPN!AJ212,EPN!AJ212,SPD!AJ212,SPMW!AJ212,SSEH!AJ212,SSES!AJ212) -> 0 | AK212: =CHOOSE(m_identity,ENWL!AK212, NPgN!AK212, NPgY!AK212, WMID!AK212, EMID!AK212, SWALES!AK212, SWEST!AK212, LPN!AK212,SPN!AK212,EPN!AK212,SPD!AK212,SPMW!AK212,SSEH!AK212,SSES!AK212) -> 0 | AL212: =CHOOSE(m_identity,ENWL!AL212, NPgN!AL212, NPgY!AL212, WMID!AL212, EMID!AL212, SWALES!AL212, SWEST!AL212, LPN!AL212,SPN!AL212,EPN!AL212,SPD!AL212,SPMW!AL212,SSEH!AL212,SSES!AL212) -> 0 | AM212: =CHOOSE(m_identity,ENWL!AM212, NPgN!AM212, NPgY!AM212, WMID!AM212, EMID!AM212, SWALES!AM212, SWEST!AM212, LPN!AM212,SPN!AM212,EPN!AM212,SPD!AM212,SPMW!AM212,SSEH!AM212,SSES!AM212) -> 0 | AN212: =CHOOSE(m_identity,ENWL!AN212, NPgN!AN212, NPgY!AN212, WMID!AN212, EMID!AN212, SWALES!AN212, SWEST!AN212, LPN!AN212,SPN!AN212,EPN!AN212,SPD!AN212,SPMW!AN212,SSEH!AN212,SSES!AN212) -> 0 | AO212: =CHOOSE(m_identity,ENWL!AO212, NPgN!AO212, NPgY!AO212, WMID!AO212, EMID!AO212, SWALES!AO212, SWEST!AO212, LPN!AO212,SPN!AO212,EPN!AO212,SPD!AO212,SPMW!AO212,SSEH!AO212,SSES!AO212) -> 0 | AP212: =CHOOSE(m_identity,ENWL!AP212, NPgN!AP212, NPgY!AP212, WMID!AP212, EMID!AP212, SWALES!AP212, SWEST!AP212, LPN!AP212,SPN!AP212,EPN!AP212,SPD!AP212,SPMW!AP212,SSEH!AP212,SSES!AP212) -> 0 | AQ212: =CHOOSE(m_identity,ENWL!AQ212, NPgN!AQ212, NPgY!AQ212, WMID!AQ212, EMID!AQ212, SWALES!AQ212, SWEST!AQ212, LPN!AQ212,SPN!AQ212,EPN!AQ212,SPD!AQ212,SPMW!AQ212,SSEH!AQ212,SSES!AQ212) -> 0
E213: Allocation to faults | G213: % | AJ213: =CHOOSE(m_identity,ENWL!AJ213, NPgN!AJ213, NPgY!AJ213, WMID!AJ213, EMID!AJ213, SWALES!AJ213, SWEST!AJ213, LPN!AJ213,SPN!AJ213,EPN!AJ213,SPD!AJ213,SPMW!AJ213,SSEH!AJ213,SSES!AJ213) -> 0 | AK213: =CHOOSE(m_identity,ENWL!AK213, NPgN!AK213, NPgY!AK213, WMID!AK213, EMID!AK213, SWALES!AK213, SWEST!AK213, LPN!AK213,SPN!AK213,EPN!AK213,SPD!AK213,SPMW!AK213,SSEH!AK213,SSES!AK213) -> 0 | AL213: =CHOOSE(m_identity,ENWL!AL213, NPgN!AL213, NPgY!AL213, WMID!AL213, EMID!AL213, SWALES!AL213, SWEST!AL213, LPN!AL213,SPN!AL213,EPN!AL213,SPD!AL213,SPMW!AL213,SSEH!AL213,SSES!AL213) -> 0 | AM213: =CHOOSE(m_identity,ENWL!AM213, NPgN!AM213, NPgY!AM213, WMID!AM213, EMID!AM213, SWALES!AM213, SWEST!AM213, LPN!AM213,SPN!AM213,EPN!AM213,SPD!AM213,SPMW!AM213,SSEH!AM213,SSES!AM213) -> 0 | AN213: =CHOOSE(m_identity,ENWL!AN213, NPgN!AN213, NPgY!AN213, WMID!AN213, EMID!AN213, SWALES!AN213, SWEST!AN213, LPN!AN213,SPN!AN213,EPN!AN213,SPD!AN213,SPMW!AN213,SSEH!AN213,SSES!AN213) -> 0 | AO213: =CHOOSE(m_identity,ENWL!AO213, NPgN!AO213, NPgY!AO213, WMID!AO213, EMID!AO213, SWALES!AO213, SWEST!AO213, LPN!AO213,SPN!AO213,EPN!AO213,SPD!AO213,SPMW!AO213,SSEH!AO213,SSES!AO213) -> 0 | AP213: =CHOOSE(m_identity,ENWL!AP213, NPgN!AP213, NPgY!AP213, WMID!AP213, EMID!AP213, SWALES!AP213, SWEST!AP213, LPN!AP213,SPN!AP213,EPN!AP213,SPD!AP213,SPMW!AP213,SSEH!AP213,SSES!AP213) -> 0 | AQ213: =CHOOSE(m_identity,ENWL!AQ213, NPgN!AQ213, NPgY!AQ213, WMID!AQ213, EMID!AQ213, SWALES!AQ213, SWEST!AQ213, LPN!AQ213,SPN!AQ213,EPN!AQ213,SPD!AQ213,SPMW!AQ213,SSEH!AQ213,SSES!AQ213) -> 0
E214: Allocation to tree cutting | G214: % | AJ214: =CHOOSE(m_identity,ENWL!AJ214, NPgN!AJ214, NPgY!AJ214, WMID!AJ214, EMID!AJ214, SWALES!AJ214, SWEST!AJ214, LPN!AJ214,SPN!AJ214,EPN!AJ214,SPD!AJ214,SPMW!AJ214,SSEH!AJ214,SSES!AJ214) -> 0 | AK214: =CHOOSE(m_identity,ENWL!AK214, NPgN!AK214, NPgY!AK214, WMID!AK214, EMID!AK214, SWALES!AK214, SWEST!AK214, LPN!AK214,SPN!AK214,EPN!AK214,SPD!AK214,SPMW!AK214,SSEH!AK214,SSES!AK214) -> 0 | AL214: =CHOOSE(m_identity,ENWL!AL214, NPgN!AL214, NPgY!AL214, WMID!AL214, EMID!AL214, SWALES!AL214, SWEST!AL214, LPN!AL214,SPN!AL214,EPN!AL214,SPD!AL214,SPMW!AL214,SSEH!AL214,SSES!AL214) -> 0 | AM214: =CHOOSE(m_identity,ENWL!AM214, NPgN!AM214, NPgY!AM214, WMID!AM214, EMID!AM214, SWALES!AM214, SWEST!AM214, LPN!AM214,SPN!AM214,EPN!AM214,SPD!AM214,SPMW!AM214,SSEH!AM214,SSES!AM214) -> 0 | AN214: =CHOOSE(m_identity,ENWL!AN214, NPgN!AN214, NPgY!AN214, WMID!AN214, EMID!AN214, SWALES!AN214, SWEST!AN214, LPN!AN214,SPN!AN214,EPN!AN214,SPD!AN214,SPMW!AN214,SSEH!AN214,SSES!AN214) -> 0 | AO214: =CHOOSE(m_identity,ENWL!AO214, NPgN!AO214, NPgY!AO214, WMID!AO214, EMID!AO214, SWALES!AO214, SWEST!AO214, LPN!AO214,SPN!AO214,EPN!AO214,SPD!AO214,SPMW!AO214,SSEH!AO214,SSES!AO214) -> 0 | AP214: =CHOOSE(m_identity,ENWL!AP214, NPgN!AP214, NPgY!AP214, WMID!AP214, EMID!AP214, SWALES!AP214, SWEST!AP214, LPN!AP214,SPN!AP214,EPN!AP214,SPD!AP214,SPMW!AP214,SSEH!AP214,SSES!AP214) -> 0 | AQ214: =CHOOSE(m_identity,ENWL!AQ214, NPgN!AQ214, NPgY!AQ214, WMID!AQ214, EMID!AQ214, SWALES!AQ214, SWEST!AQ214, LPN!AQ214,SPN!AQ214,EPN!AQ214,SPD!AQ214,SPMW!AQ214,SSEH!AQ214,SSES!AQ214) -> 0
E215: Allocation to 100% ‘revenue pool’ expenditure | G215: % | AJ215: =CHOOSE(m_identity,ENWL!AJ215, NPgN!AJ215, NPgY!AJ215, WMID!AJ215, EMID!AJ215, SWALES!AJ215, SWEST!AJ215, LPN!AJ215,SPN!AJ215,EPN!AJ215,SPD!AJ215,SPMW!AJ215,SSEH!AJ215,SSES!AJ215) -> 0 | AK215: =CHOOSE(m_identity,ENWL!AK215, NPgN!AK215, NPgY!AK215, WMID!AK215, EMID!AK215, SWALES!AK215, SWEST!AK215, LPN!AK215,SPN!AK215,EPN!AK215,SPD!AK215,SPMW!AK215,SSEH!AK215,SSES!AK215) -> 0 | AL215: =CHOOSE(m_identity,ENWL!AL215, NPgN!AL215, NPgY!AL215, WMID!AL215, EMID!AL215, SWALES!AL215, SWEST!AL215, LPN!AL215,SPN!AL215,EPN!AL215,SPD!AL215,SPMW!AL215,SSEH!AL215,SSES!AL215) -> 0 | AM215: =CHOOSE(m_identity,ENWL!AM215, NPgN!AM215, NPgY!AM215, WMID!AM215, EMID!AM215, SWALES!AM215, SWEST!AM215, LPN!AM215,SPN!AM215,EPN!AM215,SPD!AM215,SPMW!AM215,SSEH!AM215,SSES!AM215) -> 0 | AN215: =CHOOSE(m_identity,ENWL!AN215, NPgN!AN215, NPgY!AN215, WMID!AN215, EMID!AN215, SWALES!AN215, SWEST!AN215, LPN!AN215,SPN!AN215,EPN!AN215,SPD!AN215,SPMW!AN215,SSEH!AN215,SSES!AN215) -> 0 | AO215: =CHOOSE(m_identity,ENWL!AO215, NPgN!AO215, NPgY!AO215, WMID!AO215, EMID!AO215, SWALES!AO215, SWEST!AO215, LPN!AO215,SPN!AO215,EPN!AO215,SPD!AO215,SPMW!AO215,SSEH!AO215,SSES!AO215) -> 0 | AP215: =CHOOSE(m_identity,ENWL!AP215, NPgN!AP215, NPgY!AP215, WMID!AP215, EMID!AP215, SWALES!AP215, SWEST!AP215, LPN!AP215,SPN!AP215,EPN!AP215,SPD!AP215,SPMW!AP215,SSEH!AP215,SSES!AP215) -> 0 | AQ215: =CHOOSE(m_identity,ENWL!AQ215, NPgN!AQ215, NPgY!AQ215, WMID!AQ215, EMID!AQ215, SWALES!AQ215, SWEST!AQ215, LPN!AQ215,SPN!AQ215,EPN!AQ215,SPD!AQ215,SPMW!AQ215,SSEH!AQ215,SSES!AQ215) -> 0
E216: Allocation to controllable opex | G216: % | AJ216: =CHOOSE(m_identity,ENWL!AJ216, NPgN!AJ216, NPgY!AJ216, WMID!AJ216, EMID!AJ216, SWALES!AJ216, SWEST!AJ216, LPN!AJ216,SPN!AJ216,EPN!AJ216,SPD!AJ216,SPMW!AJ216,SSEH!AJ216,SSES!AJ216) -> 0 | AK216: =CHOOSE(m_identity,ENWL!AK216, NPgN!AK216, NPgY!AK216, WMID!AK216, EMID!AK216, SWALES!AK216, SWEST!AK216, LPN!AK216,SPN!AK216,EPN!AK216,SPD!AK216,SPMW!AK216,SSEH!AK216,SSES!AK216) -> 0 | AL216: =CHOOSE(m_identity,ENWL!AL216, NPgN!AL216, NPgY!AL216, WMID!AL216, EMID!AL216, SWALES!AL216, SWEST!AL216, LPN!AL216,SPN!AL216,EPN!AL216,SPD!AL216,SPMW!AL216,SSEH!AL216,SSES!AL216) -> 0 | AM216: =CHOOSE(m_identity,ENWL!AM216, NPgN!AM216, NPgY!AM216, WMID!AM216, EMID!AM216, SWALES!AM216, SWEST!AM216, LPN!AM216,SPN!AM216,EPN!AM216,SPD!AM216,SPMW!AM216,SSEH!AM216,SSES!AM216) -> 0 | AN216: =CHOOSE(m_identity,ENWL!AN216, NPgN!AN216, NPgY!AN216, WMID!AN216, EMID!AN216, SWALES!AN216, SWEST!AN216, LPN!AN216,SPN!AN216,EPN!AN216,SPD!AN216,SPMW!AN216,SSEH!AN216,SSES!AN216) -> 0 | AO216: =CHOOSE(m_identity,ENWL!AO216, NPgN!AO216, NPgY!AO216, WMID!AO216, EMID!AO216, SWALES!AO216, SWEST!AO216, LPN!AO216,SPN!AO216,EPN!AO216,SPD!AO216,SPMW!AO216,SSEH!AO216,SSES!AO216) -> 0 | AP216: =CHOOSE(m_identity,ENWL!AP216, NPgN!AP216, NPgY!AP216, WMID!AP216, EMID!AP216, SWALES!AP216, SWEST!AP216, LPN!AP216,SPN!AP216,EPN!AP216,SPD!AP216,SPMW!AP216,SSEH!AP216,SSES!AP216) -> 0 | AQ216: =CHOOSE(m_identity,ENWL!AQ216, NPgN!AQ216, NPgY!AQ216, WMID!AQ216, EMID!AQ216, SWALES!AQ216, SWEST!AQ216, LPN!AQ216,SPN!AQ216,EPN!AQ216,SPD!AQ216,SPMW!AQ216,SSEH!AQ216,SSES!AQ216) -> 0
E218: =$E$31 -> Allowed Expenditure - Subsea Cables (SSEH) | G218: £m 12/13 prices | AJ218: =AJ31 -> 0 | AK218: =AK31 -> 0 | AL218: 0 | AM218: 0 | AN218: 0 | AO218: 0 | AP218: 0 | AQ218: 0
E219: Allocation to load related capex | G219: % | AJ219: =CHOOSE(m_identity,ENWL!AJ219, NPgN!AJ219, NPgY!AJ219, WMID!AJ219, EMID!AJ219, SWALES!AJ219, SWEST!AJ219, LPN!AJ219,SPN!AJ219,EPN!AJ219,SPD!AJ219,SPMW!AJ219,SSEH!AJ219,SSES!AJ219) -> 0 | AK219: =CHOOSE(m_identity,ENWL!AK219, NPgN!AK219, NPgY!AK219, WMID!AK219, EMID!AK219, SWALES!AK219, SWEST!AK219, LPN!AK219,SPN!AK219,EPN!AK219,SPD!AK219,SPMW!AK219,SSEH!AK219,SSES!AK219) -> 0 | AL219: =CHOOSE(m_identity,ENWL!AL219, NPgN!AL219, NPgY!AL219, WMID!AL219, EMID!AL219, SWALES!AL219, SWEST!AL219, LPN!AL219,SPN!AL219,EPN!AL219,SPD!AL219,SPMW!AL219,SSEH!AL219,SSES!AL219) -> 0 | AM219: =CHOOSE(m_identity,ENWL!AM219, NPgN!AM219, NPgY!AM219, WMID!AM219, EMID!AM219, SWALES!AM219, SWEST!AM219, LPN!AM219,SPN!AM219,EPN!AM219,SPD!AM219,SPMW!AM219,SSEH!AM219,SSES!AM219) -> 0 | AN219: =CHOOSE(m_identity,ENWL!AN219, NPgN!AN219, NPgY!AN219, WMID!AN219, EMID!AN219, SWALES!AN219, SWEST!AN219, LPN!AN219,SPN!AN219,EPN!AN219,SPD!AN219,SPMW!AN219,SSEH!AN219,SSES!AN219) -> 0 | AO219: =CHOOSE(m_identity,ENWL!AO219, NPgN!AO219, NPgY!AO219, WMID!AO219, EMID!AO219, SWALES!AO219, SWEST!AO219, LPN!AO219,SPN!AO219,EPN!AO219,SPD!AO219,SPMW!AO219,SSEH!AO219,SSES!AO219) -> 0 | AP219: =CHOOSE(m_identity,ENWL!AP219, NPgN!AP219, NPgY!AP219, WMID!AP219, EMID!AP219, SWALES!AP219, SWEST!AP219, LPN!AP219,SPN!AP219,EPN!AP219,SPD!AP219,SPMW!AP219,SSEH!AP219,SSES!AP219) -> 0 | AQ219: =CHOOSE(m_identity,ENWL!AQ219, NPgN!AQ219, NPgY!AQ219, WMID!AQ219, EMID!AQ219, SWALES!AQ219, SWEST!AQ219, LPN!AQ219,SPN!AQ219,EPN!AQ219,SPD!AQ219,SPMW!AQ219,SSEH!AQ219,SSES!AQ219) -> 0
E220: Allocation to non-load related capex - asset replacement | G220: % | AJ220: =CHOOSE(m_identity,ENWL!AJ220, NPgN!AJ220, NPgY!AJ220, WMID!AJ220, EMID!AJ220, SWALES!AJ220, SWEST!AJ220, LPN!AJ220,SPN!AJ220,EPN!AJ220,SPD!AJ220,SPMW!AJ220,SSEH!AJ220,SSES!AJ220) -> 0 | AK220: =CHOOSE(m_identity,ENWL!AK220, NPgN!AK220, NPgY!AK220, WMID!AK220, EMID!AK220, SWALES!AK220, SWEST!AK220, LPN!AK220,SPN!AK220,EPN!AK220,SPD!AK220,SPMW!AK220,SSEH!AK220,SSES!AK220) -> 0 | AL220: =CHOOSE(m_identity,ENWL!AL220, NPgN!AL220, NPgY!AL220, WMID!AL220, EMID!AL220, SWALES!AL220, SWEST!AL220, LPN!AL220,SPN!AL220,EPN!AL220,SPD!AL220,SPMW!AL220,SSEH!AL220,SSES!AL220) -> 0 | AM220: =CHOOSE(m_identity,ENWL!AM220, NPgN!AM220, NPgY!AM220, WMID!AM220, EMID!AM220, SWALES!AM220, SWEST!AM220, LPN!AM220,SPN!AM220,EPN!AM220,SPD!AM220,SPMW!AM220,SSEH!AM220,SSES!AM220) -> 0 | AN220: =CHOOSE(m_identity,ENWL!AN220, NPgN!AN220, NPgY!AN220, WMID!AN220, EMID!AN220, SWALES!AN220, SWEST!AN220, LPN!AN220,SPN!AN220,EPN!AN220,SPD!AN220,SPMW!AN220,SSEH!AN220,SSES!AN220) -> 0 | AO220: =CHOOSE(m_identity,ENWL!AO220, NPgN!AO220, NPgY!AO220, WMID!AO220, EMID!AO220, SWALES!AO220, SWEST!AO220, LPN!AO220,SPN!AO220,EPN!AO220,SPD!AO220,SPMW!AO220,SSEH!AO220,SSES!AO220) -> 0 | AP220: =CHOOSE(m_identity,ENWL!AP220, NPgN!AP220, NPgY!AP220, WMID!AP220, EMID!AP220, SWALES!AP220, SWEST!AP220, LPN!AP220,SPN!AP220,EPN!AP220,SPD!AP220,SPMW!AP220,SSEH!AP220,SSES!AP220) -> 0 | AQ220: =CHOOSE(m_identity,ENWL!AQ220, NPgN!AQ220, NPgY!AQ220, WMID!AQ220, EMID!AQ220, SWALES!AQ220, SWEST!AQ220, LPN!AQ220,SPN!AQ220,EPN!AQ220,SPD!AQ220,SPMW!AQ220,SSEH!AQ220,SSES!AQ220) -> 0
E221: Allocation to non-load related capex - other | G221: % | AJ221: =CHOOSE(m_identity,ENWL!AJ221, NPgN!AJ221, NPgY!AJ221, WMID!AJ221, EMID!AJ221, SWALES!AJ221, SWEST!AJ221, LPN!AJ221,SPN!AJ221,EPN!AJ221,SPD!AJ221,SPMW!AJ221,SSEH!AJ221,SSES!AJ221) -> 0 | AK221: =CHOOSE(m_identity,ENWL!AK221, NPgN!AK221, NPgY!AK221, WMID!AK221, EMID!AK221, SWALES!AK221, SWEST!AK221, LPN!AK221,SPN!AK221,EPN!AK221,SPD!AK221,SPMW!AK221,SSEH!AK221,SSES!AK221) -> 0 | AL221: =CHOOSE(m_identity,ENWL!AL221, NPgN!AL221, NPgY!AL221, WMID!AL221, EMID!AL221, SWALES!AL221, SWEST!AL221, LPN!AL221,SPN!AL221,EPN!AL221,SPD!AL221,SPMW!AL221,SSEH!AL221,SSES!AL221) -> 0 | AM221: =CHOOSE(m_identity,ENWL!AM221, NPgN!AM221, NPgY!AM221, WMID!AM221, EMID!AM221, SWALES!AM221, SWEST!AM221, LPN!AM221,SPN!AM221,EPN!AM221,SPD!AM221,SPMW!AM221,SSEH!AM221,SSES!AM221) -> 0 | AN221: =CHOOSE(m_identity,ENWL!AN221, NPgN!AN221, NPgY!AN221, WMID!AN221, EMID!AN221, SWALES!AN221, SWEST!AN221, LPN!AN221,SPN!AN221,EPN!AN221,SPD!AN221,SPMW!AN221,SSEH!AN221,SSES!AN221) -> 0 | AO221: =CHOOSE(m_identity,ENWL!AO221, NPgN!AO221, NPgY!AO221, WMID!AO221, EMID!AO221, SWALES!AO221, SWEST!AO221, LPN!AO221,SPN!AO221,EPN!AO221,SPD!AO221,SPMW!AO221,SSEH!AO221,SSES!AO221) -> 0 | AP221: =CHOOSE(m_identity,ENWL!AP221, NPgN!AP221, NPgY!AP221, WMID!AP221, EMID!AP221, SWALES!AP221, SWEST!AP221, LPN!AP221,SPN!AP221,EPN!AP221,SPD!AP221,SPMW!AP221,SSEH!AP221,SSES!AP221) -> 0 | AQ221: =CHOOSE(m_identity,ENWL!AQ221, NPgN!AQ221, NPgY!AQ221, WMID!AQ221, EMID!AQ221, SWALES!AQ221, SWEST!AQ221, LPN!AQ221,SPN!AQ221,EPN!AQ221,SPD!AQ221,SPMW!AQ221,SSEH!AQ221,SSES!AQ221) -> 0
E222: Allocation to faults | G222: % | AJ222: =CHOOSE(m_identity,ENWL!AJ222, NPgN!AJ222, NPgY!AJ222, WMID!AJ222, EMID!AJ222, SWALES!AJ222, SWEST!AJ222, LPN!AJ222,SPN!AJ222,EPN!AJ222,SPD!AJ222,SPMW!AJ222,SSEH!AJ222,SSES!AJ222) -> 0 | AK222: =CHOOSE(m_identity,ENWL!AK222, NPgN!AK222, NPgY!AK222, WMID!AK222, EMID!AK222, SWALES!AK222, SWEST!AK222, LPN!AK222,SPN!AK222,EPN!AK222,SPD!AK222,SPMW!AK222,SSEH!AK222,SSES!AK222) -> 0 | AL222: =CHOOSE(m_identity,ENWL!AL222, NPgN!AL222, NPgY!AL222, WMID!AL222, EMID!AL222, SWALES!AL222, SWEST!AL222, LPN!AL222,SPN!AL222,EPN!AL222,SPD!AL222,SPMW!AL222,SSEH!AL222,SSES!AL222) -> 0 | AM222: =CHOOSE(m_identity,ENWL!AM222, NPgN!AM222, NPgY!AM222, WMID!AM222, EMID!AM222, SWALES!AM222, SWEST!AM222, LPN!AM222,SPN!AM222,EPN!AM222,SPD!AM222,SPMW!AM222,SSEH!AM222,SSES!AM222) -> 0 | AN222: =CHOOSE(m_identity,ENWL!AN222, NPgN!AN222, NPgY!AN222, WMID!AN222, EMID!AN222, SWALES!AN222, SWEST!AN222, LPN!AN222,SPN!AN222,EPN!AN222,SPD!AN222,SPMW!AN222,SSEH!AN222,SSES!AN222) -> 0 | AO222: =CHOOSE(m_identity,ENWL!AO222, NPgN!AO222, NPgY!AO222, WMID!AO222, EMID!AO222, SWALES!AO222, SWEST!AO222, LPN!AO222,SPN!AO222,EPN!AO222,SPD!AO222,SPMW!AO222,SSEH!AO222,SSES!AO222) -> 0 | AP222: =CHOOSE(m_identity,ENWL!AP222, NPgN!AP222, NPgY!AP222, WMID!AP222, EMID!AP222, SWALES!AP222, SWEST!AP222, LPN!AP222,SPN!AP222,EPN!AP222,SPD!AP222,SPMW!AP222,SSEH!AP222,SSES!AP222) -> 0 | AQ222: =CHOOSE(m_identity,ENWL!AQ222, NPgN!AQ222, NPgY!AQ222, WMID!AQ222, EMID!AQ222, SWALES!AQ222, SWEST!AQ222, LPN!AQ222,SPN!AQ222,EPN!AQ222,SPD!AQ222,SPMW!AQ222,SSEH!AQ222,SSES!AQ222) -> 0
E223: Allocation to tree cutting | G223: % | AJ223: =CHOOSE(m_identity,ENWL!AJ223, NPgN!AJ223, NPgY!AJ223, WMID!AJ223, EMID!AJ223, SWALES!AJ223, SWEST!AJ223, LPN!AJ223,SPN!AJ223,EPN!AJ223,SPD!AJ223,SPMW!AJ223,SSEH!AJ223,SSES!AJ223) -> 0 | AK223: =CHOOSE(m_identity,ENWL!AK223, NPgN!AK223, NPgY!AK223, WMID!AK223, EMID!AK223, SWALES!AK223, SWEST!AK223, LPN!AK223,SPN!AK223,EPN!AK223,SPD!AK223,SPMW!AK223,SSEH!AK223,SSES!AK223) -> 0 | AL223: =CHOOSE(m_identity,ENWL!AL223, NPgN!AL223, NPgY!AL223, WMID!AL223, EMID!AL223, SWALES!AL223, SWEST!AL223, LPN!AL223,SPN!AL223,EPN!AL223,SPD!AL223,SPMW!AL223,SSEH!AL223,SSES!AL223) -> 0 | AM223: =CHOOSE(m_identity,ENWL!AM223, NPgN!AM223, NPgY!AM223, WMID!AM223, EMID!AM223, SWALES!AM223, SWEST!AM223, LPN!AM223,SPN!AM223,EPN!AM223,SPD!AM223,SPMW!AM223,SSEH!AM223,SSES!AM223) -> 0 | AN223: =CHOOSE(m_identity,ENWL!AN223, NPgN!AN223, NPgY!AN223, WMID!AN223, EMID!AN223, SWALES!AN223, SWEST!AN223, LPN!AN223,SPN!AN223,EPN!AN223,SPD!AN223,SPMW!AN223,SSEH!AN223,SSES!AN223) -> 0 | AO223: =CHOOSE(m_identity,ENWL!AO223, NPgN!AO223, NPgY!AO223, WMID!AO223, EMID!AO223, SWALES!AO223, SWEST!AO223, LPN!AO223,SPN!AO223,EPN!AO223,SPD!AO223,SPMW!AO223,SSEH!AO223,SSES!AO223) -> 0 | AP223: =CHOOSE(m_identity,ENWL!AP223, NPgN!AP223, NPgY!AP223, WMID!AP223, EMID!AP223, SWALES!AP223, SWEST!AP223, LPN!AP223,SPN!AP223,EPN!AP223,SPD!AP223,SPMW!AP223,SSEH!AP223,SSES!AP223) -> 0 | AQ223: =CHOOSE(m_identity,ENWL!AQ223, NPgN!AQ223, NPgY!AQ223, WMID!AQ223, EMID!AQ223, SWALES!AQ223, SWEST!AQ223, LPN!AQ223,SPN!AQ223,EPN!AQ223,SPD!AQ223,SPMW!AQ223,SSEH!AQ223,SSES!AQ223) -> 0
E224: Allocation to 100% ‘revenue pool’ expenditure | G224: % | AJ224: =CHOOSE(m_identity,ENWL!AJ224, NPgN!AJ224, NPgY!AJ224, WMID!AJ224, EMID!AJ224, SWALES!AJ224, SWEST!AJ224, LPN!AJ224,SPN!AJ224,EPN!AJ224,SPD!AJ224,SPMW!AJ224,SSEH!AJ224,SSES!AJ224) -> 0 | AK224: =CHOOSE(m_identity,ENWL!AK224, NPgN!AK224, NPgY!AK224, WMID!AK224, EMID!AK224, SWALES!AK224, SWEST!AK224, LPN!AK224,SPN!AK224,EPN!AK224,SPD!AK224,SPMW!AK224,SSEH!AK224,SSES!AK224) -> 0 | AL224: =CHOOSE(m_identity,ENWL!AL224, NPgN!AL224, NPgY!AL224, WMID!AL224, EMID!AL224, SWALES!AL224, SWEST!AL224, LPN!AL224,SPN!AL224,EPN!AL224,SPD!AL224,SPMW!AL224,SSEH!AL224,SSES!AL224) -> 0 | AM224: =CHOOSE(m_identity,ENWL!AM224, NPgN!AM224, NPgY!AM224, WMID!AM224, EMID!AM224, SWALES!AM224, SWEST!AM224, LPN!AM224,SPN!AM224,EPN!AM224,SPD!AM224,SPMW!AM224,SSEH!AM224,SSES!AM224) -> 0 | AN224: =CHOOSE(m_identity,ENWL!AN224, NPgN!AN224, NPgY!AN224, WMID!AN224, EMID!AN224, SWALES!AN224, SWEST!AN224, LPN!AN224,SPN!AN224,EPN!AN224,SPD!AN224,SPMW!AN224,SSEH!AN224,SSES!AN224) -> 0 | AO224: =CHOOSE(m_identity,ENWL!AO224, NPgN!AO224, NPgY!AO224, WMID!AO224, EMID!AO224, SWALES!AO224, SWEST!AO224, LPN!AO224,SPN!AO224,EPN!AO224,SPD!AO224,SPMW!AO224,SSEH!AO224,SSES!AO224) -> 0 | AP224: =CHOOSE(m_identity,ENWL!AP224, NPgN!AP224, NPgY!AP224, WMID!AP224, EMID!AP224, SWALES!AP224, SWEST!AP224, LPN!AP224,SPN!AP224,EPN!AP224,SPD!AP224,SPMW!AP224,SSEH!AP224,SSES!AP224) -> 0 | AQ224: =CHOOSE(m_identity,ENWL!AQ224, NPgN!AQ224, NPgY!AQ224, WMID!AQ224, EMID!AQ224, SWALES!AQ224, SWEST!AQ224, LPN!AQ224,SPN!AQ224,EPN!AQ224,SPD!AQ224,SPMW!AQ224,SSEH!AQ224,SSES!AQ224) -> 0
E225: Allocation to controllable opex | G225: % | AJ225: =CHOOSE(m_identity,ENWL!AJ225, NPgN!AJ225, NPgY!AJ225, WMID!AJ225, EMID!AJ225, SWALES!AJ225, SWEST!AJ225, LPN!AJ225,SPN!AJ225,EPN!AJ225,SPD!AJ225,SPMW!AJ225,SSEH!AJ225,SSES!AJ225) -> 0 | AK225: =CHOOSE(m_identity,ENWL!AK225, NPgN!AK225, NPgY!AK225, WMID!AK225, EMID!AK225, SWALES!AK225, SWEST!AK225, LPN!AK225,SPN!AK225,EPN!AK225,SPD!AK225,SPMW!AK225,SSEH!AK225,SSES!AK225) -> 0 | AL225: =CHOOSE(m_identity,ENWL!AL225, NPgN!AL225, NPgY!AL225, WMID!AL225, EMID!AL225, SWALES!AL225, SWEST!AL225, LPN!AL225,SPN!AL225,EPN!AL225,SPD!AL225,SPMW!AL225,SSEH!AL225,SSES!AL225) -> 0 | AM225: =CHOOSE(m_identity,ENWL!AM225, NPgN!AM225, NPgY!AM225, WMID!AM225, EMID!AM225, SWALES!AM225, SWEST!AM225, LPN!AM225,SPN!AM225,EPN!AM225,SPD!AM225,SPMW!AM225,SSEH!AM225,SSES!AM225) -> 0 | AN225: =CHOOSE(m_identity,ENWL!AN225, NPgN!AN225, NPgY!AN225, WMID!AN225, EMID!AN225, SWALES!AN225, SWEST!AN225, LPN!AN225,SPN!AN225,EPN!AN225,SPD!AN225,SPMW!AN225,SSEH!AN225,SSES!AN225) -> 0 | AO225: =CHOOSE(m_identity,ENWL!AO225, NPgN!AO225, NPgY!AO225, WMID!AO225, EMID!AO225, SWALES!AO225, SWEST!AO225, LPN!AO225,SPN!AO225,EPN!AO225,SPD!AO225,SPMW!AO225,SSEH!AO225,SSES!AO225) -> 0 | AP225: =CHOOSE(m_identity,ENWL!AP225, NPgN!AP225, NPgY!AP225, WMID!AP225, EMID!AP225, SWALES!AP225, SWEST!AP225, LPN!AP225,SPN!AP225,EPN!AP225,SPD!AP225,SPMW!AP225,SSEH!AP225,SSES!AP225) -> 0 | AQ225: =CHOOSE(m_identity,ENWL!AQ225, NPgN!AQ225, NPgY!AQ225, WMID!AQ225, EMID!AQ225, SWALES!AQ225, SWEST!AQ225, LPN!AQ225,SPN!AQ225,EPN!AQ225,SPD!AQ225,SPMW!AQ225,SSEH!AQ225,SSES!AQ225) -> 0
E227: =E32 -> Allowed Expenditure - Uncertain Rail Electrification Costs | G227: £m 12/13 prices | AJ227: =AJ32 -> 0 | AK227: =AK32 -> 0 | AL227: 0 | AM227: 0 | AN227: 0 | AO227: 0 | AP227: 0 | AQ227: 0
E228: Allocation to load related capex | G228: % | AJ228: =CHOOSE(m_identity,ENWL!AJ228, NPgN!AJ228, NPgY!AJ228, WMID!AJ228, EMID!AJ228, SWALES!AJ228, SWEST!AJ228, LPN!AJ228,SPN!AJ228,EPN!AJ228,SPD!AJ228,SPMW!AJ228,SSEH!AJ228,SSES!AJ228) -> 0 | AK228: =CHOOSE(m_identity,ENWL!AK228, NPgN!AK228, NPgY!AK228, WMID!AK228, EMID!AK228, SWALES!AK228, SWEST!AK228, LPN!AK228,SPN!AK228,EPN!AK228,SPD!AK228,SPMW!AK228,SSEH!AK228,SSES!AK228) -> 0 | AL228: =CHOOSE(m_identity,ENWL!AL228, NPgN!AL228, NPgY!AL228, WMID!AL228, EMID!AL228, SWALES!AL228, SWEST!AL228, LPN!AL228,SPN!AL228,EPN!AL228,SPD!AL228,SPMW!AL228,SSEH!AL228,SSES!AL228) -> 0 | AM228: =CHOOSE(m_identity,ENWL!AM228, NPgN!AM228, NPgY!AM228, WMID!AM228, EMID!AM228, SWALES!AM228, SWEST!AM228, LPN!AM228,SPN!AM228,EPN!AM228,SPD!AM228,SPMW!AM228,SSEH!AM228,SSES!AM228) -> 0 | AN228: =CHOOSE(m_identity,ENWL!AN228, NPgN!AN228, NPgY!AN228, WMID!AN228, EMID!AN228, SWALES!AN228, SWEST!AN228, LPN!AN228,SPN!AN228,EPN!AN228,SPD!AN228,SPMW!AN228,SSEH!AN228,SSES!AN228) -> 0 | AO228: =CHOOSE(m_identity,ENWL!AO228, NPgN!AO228, NPgY!AO228, WMID!AO228, EMID!AO228, SWALES!AO228, SWEST!AO228, LPN!AO228,SPN!AO228,EPN!AO228,SPD!AO228,SPMW!AO228,SSEH!AO228,SSES!AO228) -> 0 | AP228: =CHOOSE(m_identity,ENWL!AP228, NPgN!AP228, NPgY!AP228, WMID!AP228, EMID!AP228, SWALES!AP228, SWEST!AP228, LPN!AP228,SPN!AP228,EPN!AP228,SPD!AP228,SPMW!AP228,SSEH!AP228,SSES!AP228) -> 0 | AQ228: =CHOOSE(m_identity,ENWL!AQ228, NPgN!AQ228, NPgY!AQ228, WMID!AQ228, EMID!AQ228, SWALES!AQ228, SWEST!AQ228, LPN!AQ228,SPN!AQ228,EPN!AQ228,SPD!AQ228,SPMW!AQ228,SSEH!AQ228,SSES!AQ228) -> 0
E229: Allocation to non-load related capex - asset replacement | G229: % | AJ229: =CHOOSE(m_identity,ENWL!AJ229, NPgN!AJ229, NPgY!AJ229, WMID!AJ229, EMID!AJ229, SWALES!AJ229, SWEST!AJ229, LPN!AJ229,SPN!AJ229,EPN!AJ229,SPD!AJ229,SPMW!AJ229,SSEH!AJ229,SSES!AJ229) -> 0.9804732217 | AK229: =CHOOSE(m_identity,ENWL!AK229, NPgN!AK229, NPgY!AK229, WMID!AK229, EMID!AK229, SWALES!AK229, SWEST!AK229, LPN!AK229,SPN!AK229,EPN!AK229,SPD!AK229,SPMW!AK229,SSEH!AK229,SSES!AK229) -> 0.9798394316 | AL229: =CHOOSE(m_identity,ENWL!AL229, NPgN!AL229, NPgY!AL229, WMID!AL229, EMID!AL229, SWALES!AL229, SWEST!AL229, LPN!AL229,SPN!AL229,EPN!AL229,SPD!AL229,SPMW!AL229,SSEH!AL229,SSES!AL229) -> 0.9803401465 | AM229: =CHOOSE(m_identity,ENWL!AM229, NPgN!AM229, NPgY!AM229, WMID!AM229, EMID!AM229, SWALES!AM229, SWEST!AM229, LPN!AM229,SPN!AM229,EPN!AM229,SPD!AM229,SPMW!AM229,SSEH!AM229,SSES!AM229) -> 0.9807377777 | AN229: =CHOOSE(m_identity,ENWL!AN229, NPgN!AN229, NPgY!AN229, WMID!AN229, EMID!AN229, SWALES!AN229, SWEST!AN229, LPN!AN229,SPN!AN229,EPN!AN229,SPD!AN229,SPMW!AN229,SSEH!AN229,SSES!AN229) -> 0.9808402827 | AO229: =CHOOSE(m_identity,ENWL!AO229, NPgN!AO229, NPgY!AO229, WMID!AO229, EMID!AO229, SWALES!AO229, SWEST!AO229, LPN!AO229,SPN!AO229,EPN!AO229,SPD!AO229,SPMW!AO229,SSEH!AO229,SSES!AO229) -> 0.9813366526 | AP229: =CHOOSE(m_identity,ENWL!AP229, NPgN!AP229, NPgY!AP229, WMID!AP229, EMID!AP229, SWALES!AP229, SWEST!AP229, LPN!AP229,SPN!AP229,EPN!AP229,SPD!AP229,SPMW!AP229,SSEH!AP229,SSES!AP229) -> 0.9821995881 | AQ229: =CHOOSE(m_identity,ENWL!AQ229, NPgN!AQ229, NPgY!AQ229, WMID!AQ229, EMID!AQ229, SWALES!AQ229, SWEST!AQ229, LPN!AQ229,SPN!AQ229,EPN!AQ229,SPD!AQ229,SPMW!AQ229,SSEH!AQ229,SSES!AQ229) -> 0.982404512
E230: Allocation to non-load related capex - other | G230: % | AJ230: =CHOOSE(m_identity,ENWL!AJ230, NPgN!AJ230, NPgY!AJ230, WMID!AJ230, EMID!AJ230, SWALES!AJ230, SWEST!AJ230, LPN!AJ230,SPN!AJ230,EPN!AJ230,SPD!AJ230,SPMW!AJ230,SSEH!AJ230,SSES!AJ230) -> 0 | AK230: =CHOOSE(m_identity,ENWL!AK230, NPgN!AK230, NPgY!AK230, WMID!AK230, EMID!AK230, SWALES!AK230, SWEST!AK230, LPN!AK230,SPN!AK230,EPN!AK230,SPD!AK230,SPMW!AK230,SSEH!AK230,SSES!AK230) -> 0 | AL230: =CHOOSE(m_identity,ENWL!AL230, NPgN!AL230, NPgY!AL230, WMID!AL230, EMID!AL230, SWALES!AL230, SWEST!AL230, LPN!AL230,SPN!AL230,EPN!AL230,SPD!AL230,SPMW!AL230,SSEH!AL230,SSES!AL230) -> 0 | AM230: =CHOOSE(m_identity,ENWL!AM230, NPgN!AM230, NPgY!AM230, WMID!AM230, EMID!AM230, SWALES!AM230, SWEST!AM230, LPN!AM230,SPN!AM230,EPN!AM230,SPD!AM230,SPMW!AM230,SSEH!AM230,SSES!AM230) -> 0 | AN230: =CHOOSE(m_identity,ENWL!AN230, NPgN!AN230, NPgY!AN230, WMID!AN230, EMID!AN230, SWALES!AN230, SWEST!AN230, LPN!AN230,SPN!AN230,EPN!AN230,SPD!AN230,SPMW!AN230,SSEH!AN230,SSES!AN230) -> 0 | AO230: =CHOOSE(m_identity,ENWL!AO230, NPgN!AO230, NPgY!AO230, WMID!AO230, EMID!AO230, SWALES!AO230, SWEST!AO230, LPN!AO230,SPN!AO230,EPN!AO230,SPD!AO230,SPMW!AO230,SSEH!AO230,SSES!AO230) -> 0 | AP230: =CHOOSE(m_identity,ENWL!AP230, NPgN!AP230, NPgY!AP230, WMID!AP230, EMID!AP230, SWALES!AP230, SWEST!AP230, LPN!AP230,SPN!AP230,EPN!AP230,SPD!AP230,SPMW!AP230,SSEH!AP230,SSES!AP230) -> 0 | AQ230: =CHOOSE(m_identity,ENWL!AQ230, NPgN!AQ230, NPgY!AQ230, WMID!AQ230, EMID!AQ230, SWALES!AQ230, SWEST!AQ230, LPN!AQ230,SPN!AQ230,EPN!AQ230,SPD!AQ230,SPMW!AQ230,SSEH!AQ230,SSES!AQ230) -> 0
E231: Allocation to faults | G231: % | AJ231: =CHOOSE(m_identity,ENWL!AJ231, NPgN!AJ231, NPgY!AJ231, WMID!AJ231, EMID!AJ231, SWALES!AJ231, SWEST!AJ231, LPN!AJ231,SPN!AJ231,EPN!AJ231,SPD!AJ231,SPMW!AJ231,SSEH!AJ231,SSES!AJ231) -> 0 | AK231: =CHOOSE(m_identity,ENWL!AK231, NPgN!AK231, NPgY!AK231, WMID!AK231, EMID!AK231, SWALES!AK231, SWEST!AK231, LPN!AK231,SPN!AK231,EPN!AK231,SPD!AK231,SPMW!AK231,SSEH!AK231,SSES!AK231) -> 0 | AL231: =CHOOSE(m_identity,ENWL!AL231, NPgN!AL231, NPgY!AL231, WMID!AL231, EMID!AL231, SWALES!AL231, SWEST!AL231, LPN!AL231,SPN!AL231,EPN!AL231,SPD!AL231,SPMW!AL231,SSEH!AL231,SSES!AL231) -> 0 | AM231: =CHOOSE(m_identity,ENWL!AM231, NPgN!AM231, NPgY!AM231, WMID!AM231, EMID!AM231, SWALES!AM231, SWEST!AM231, LPN!AM231,SPN!AM231,EPN!AM231,SPD!AM231,SPMW!AM231,SSEH!AM231,SSES!AM231) -> 0 | AN231: =CHOOSE(m_identity,ENWL!AN231, NPgN!AN231, NPgY!AN231, WMID!AN231, EMID!AN231, SWALES!AN231, SWEST!AN231, LPN!AN231,SPN!AN231,EPN!AN231,SPD!AN231,SPMW!AN231,SSEH!AN231,SSES!AN231) -> 0 | AO231: =CHOOSE(m_identity,ENWL!AO231, NPgN!AO231, NPgY!AO231, WMID!AO231, EMID!AO231, SWALES!AO231, SWEST!AO231, LPN!AO231,SPN!AO231,EPN!AO231,SPD!AO231,SPMW!AO231,SSEH!AO231,SSES!AO231) -> 0 | AP231: =CHOOSE(m_identity,ENWL!AP231, NPgN!AP231, NPgY!AP231, WMID!AP231, EMID!AP231, SWALES!AP231, SWEST!AP231, LPN!AP231,SPN!AP231,EPN!AP231,SPD!AP231,SPMW!AP231,SSEH!AP231,SSES!AP231) -> 0 | AQ231: =CHOOSE(m_identity,ENWL!AQ231, NPgN!AQ231, NPgY!AQ231, WMID!AQ231, EMID!AQ231, SWALES!AQ231, SWEST!AQ231, LPN!AQ231,SPN!AQ231,EPN!AQ231,SPD!AQ231,SPMW!AQ231,SSEH!AQ231,SSES!AQ231) -> 0
E232: Allocation to tree cutting | G232: % | AJ232: =CHOOSE(m_identity,ENWL!AJ232, NPgN!AJ232, NPgY!AJ232, WMID!AJ232, EMID!AJ232, SWALES!AJ232, SWEST!AJ232, LPN!AJ232,SPN!AJ232,EPN!AJ232,SPD!AJ232,SPMW!AJ232,SSEH!AJ232,SSES!AJ232) -> 0 | AK232: =CHOOSE(m_identity,ENWL!AK232, NPgN!AK232, NPgY!AK232, WMID!AK232, EMID!AK232, SWALES!AK232, SWEST!AK232, LPN!AK232,SPN!AK232,EPN!AK232,SPD!AK232,SPMW!AK232,SSEH!AK232,SSES!AK232) -> 0 | AL232: =CHOOSE(m_identity,ENWL!AL232, NPgN!AL232, NPgY!AL232, WMID!AL232, EMID!AL232, SWALES!AL232, SWEST!AL232, LPN!AL232,SPN!AL232,EPN!AL232,SPD!AL232,SPMW!AL232,SSEH!AL232,SSES!AL232) -> 0 | AM232: =CHOOSE(m_identity,ENWL!AM232, NPgN!AM232, NPgY!AM232, WMID!AM232, EMID!AM232, SWALES!AM232, SWEST!AM232, LPN!AM232,SPN!AM232,EPN!AM232,SPD!AM232,SPMW!AM232,SSEH!AM232,SSES!AM232) -> 0 | AN232: =CHOOSE(m_identity,ENWL!AN232, NPgN!AN232, NPgY!AN232, WMID!AN232, EMID!AN232, SWALES!AN232, SWEST!AN232, LPN!AN232,SPN!AN232,EPN!AN232,SPD!AN232,SPMW!AN232,SSEH!AN232,SSES!AN232) -> 0 | AO232: =CHOOSE(m_identity,ENWL!AO232, NPgN!AO232, NPgY!AO232, WMID!AO232, EMID!AO232, SWALES!AO232, SWEST!AO232, LPN!AO232,SPN!AO232,EPN!AO232,SPD!AO232,SPMW!AO232,SSEH!AO232,SSES!AO232) -> 0 | AP232: =CHOOSE(m_identity,ENWL!AP232, NPgN!AP232, NPgY!AP232, WMID!AP232, EMID!AP232, SWALES!AP232, SWEST!AP232, LPN!AP232,SPN!AP232,EPN!AP232,SPD!AP232,SPMW!AP232,SSEH!AP232,SSES!AP232) -> 0 | AQ232: =CHOOSE(m_identity,ENWL!AQ232, NPgN!AQ232, NPgY!AQ232, WMID!AQ232, EMID!AQ232, SWALES!AQ232, SWEST!AQ232, LPN!AQ232,SPN!AQ232,EPN!AQ232,SPD!AQ232,SPMW!AQ232,SSEH!AQ232,SSES!AQ232) -> 0
E233: Allocation to 100% ‘revenue pool’ expenditure | G233: % | AJ233: =CHOOSE(m_identity,ENWL!AJ233, NPgN!AJ233, NPgY!AJ233, WMID!AJ233, EMID!AJ233, SWALES!AJ233, SWEST!AJ233, LPN!AJ233,SPN!AJ233,EPN!AJ233,SPD!AJ233,SPMW!AJ233,SSEH!AJ233,SSES!AJ233) -> 0.01952677828 | AK233: =CHOOSE(m_identity,ENWL!AK233, NPgN!AK233, NPgY!AK233, WMID!AK233, EMID!AK233, SWALES!AK233, SWEST!AK233, LPN!AK233,SPN!AK233,EPN!AK233,SPD!AK233,SPMW!AK233,SSEH!AK233,SSES!AK233) -> 0.02016056839 | AL233: =CHOOSE(m_identity,ENWL!AL233, NPgN!AL233, NPgY!AL233, WMID!AL233, EMID!AL233, SWALES!AL233, SWEST!AL233, LPN!AL233,SPN!AL233,EPN!AL233,SPD!AL233,SPMW!AL233,SSEH!AL233,SSES!AL233) -> 0.01965985354 | AM233: =CHOOSE(m_identity,ENWL!AM233, NPgN!AM233, NPgY!AM233, WMID!AM233, EMID!AM233, SWALES!AM233, SWEST!AM233, LPN!AM233,SPN!AM233,EPN!AM233,SPD!AM233,SPMW!AM233,SSEH!AM233,SSES!AM233) -> 0.01926222226 | AN233: =CHOOSE(m_identity,ENWL!AN233, NPgN!AN233, NPgY!AN233, WMID!AN233, EMID!AN233, SWALES!AN233, SWEST!AN233, LPN!AN233,SPN!AN233,EPN!AN233,SPD!AN233,SPMW!AN233,SSEH!AN233,SSES!AN233) -> 0.01915971726 | AO233: =CHOOSE(m_identity,ENWL!AO233, NPgN!AO233, NPgY!AO233, WMID!AO233, EMID!AO233, SWALES!AO233, SWEST!AO233, LPN!AO233,SPN!AO233,EPN!AO233,SPD!AO233,SPMW!AO233,SSEH!AO233,SSES!AO233) -> 0.01866334736 | AP233: =CHOOSE(m_identity,ENWL!AP233, NPgN!AP233, NPgY!AP233, WMID!AP233, EMID!AP233, SWALES!AP233, SWEST!AP233, LPN!AP233,SPN!AP233,EPN!AP233,SPD!AP233,SPMW!AP233,SSEH!AP233,SSES!AP233) -> 0.01780041187 | AQ233: =CHOOSE(m_identity,ENWL!AQ233, NPgN!AQ233, NPgY!AQ233, WMID!AQ233, EMID!AQ233, SWALES!AQ233, SWEST!AQ233, LPN!AQ233,SPN!AQ233,EPN!AQ233,SPD!AQ233,SPMW!AQ233,SSEH!AQ233,SSES!AQ233) -> 0.01759548797
E234: Allocation to controllable opex | G234: % | AJ234: =CHOOSE(m_identity,ENWL!AJ234, NPgN!AJ234, NPgY!AJ234, WMID!AJ234, EMID!AJ234, SWALES!AJ234, SWEST!AJ234, LPN!AJ234,SPN!AJ234,EPN!AJ234,SPD!AJ234,SPMW!AJ234,SSEH!AJ234,SSES!AJ234) -> 0 | AK234: =CHOOSE(m_identity,ENWL!AK234, NPgN!AK234, NPgY!AK234, WMID!AK234, EMID!AK234, SWALES!AK234, SWEST!AK234, LPN!AK234,SPN!AK234,EPN!AK234,SPD!AK234,SPMW!AK234,SSEH!AK234,SSES!AK234) -> 0 | AL234: =CHOOSE(m_identity,ENWL!AL234, NPgN!AL234, NPgY!AL234, WMID!AL234, EMID!AL234, SWALES!AL234, SWEST!AL234, LPN!AL234,SPN!AL234,EPN!AL234,SPD!AL234,SPMW!AL234,SSEH!AL234,SSES!AL234) -> 0 | AM234: =CHOOSE(m_identity,ENWL!AM234, NPgN!AM234, NPgY!AM234, WMID!AM234, EMID!AM234, SWALES!AM234, SWEST!AM234, LPN!AM234,SPN!AM234,EPN!AM234,SPD!AM234,SPMW!AM234,SSEH!AM234,SSES!AM234) -> 0 | AN234: =CHOOSE(m_identity,ENWL!AN234, NPgN!AN234, NPgY!AN234, WMID!AN234, EMID!AN234, SWALES!AN234, SWEST!AN234, LPN!AN234,SPN!AN234,EPN!AN234,SPD!AN234,SPMW!AN234,SSEH!AN234,SSES!AN234) -> 0 | AO234: =CHOOSE(m_identity,ENWL!AO234, NPgN!AO234, NPgY!AO234, WMID!AO234, EMID!AO234, SWALES!AO234, SWEST!AO234, LPN!AO234,SPN!AO234,EPN!AO234,SPD!AO234,SPMW!AO234,SSEH!AO234,SSES!AO234) -> 0 | AP234: =CHOOSE(m_identity,ENWL!AP234, NPgN!AP234, NPgY!AP234, WMID!AP234, EMID!AP234, SWALES!AP234, SWEST!AP234, LPN!AP234,SPN!AP234,EPN!AP234,SPD!AP234,SPMW!AP234,SSEH!AP234,SSES!AP234) -> 0 | AQ234: =CHOOSE(m_identity,ENWL!AQ234, NPgN!AQ234, NPgY!AQ234, WMID!AQ234, EMID!AQ234, SWALES!AQ234, SWEST!AQ234, LPN!AQ234,SPN!AQ234,EPN!AQ234,SPD!AQ234,SPMW!AQ234,SSEH!AQ234,SSES!AQ234) -> 0
E236: =E33 -> Allowed Expenditure - Innovation Roll-out Mechanism | G236: £m 12/13 prices | AJ236: =AJ33 -> 0 | AK236: =AK33 -> 0 | AL236: 0 | AM236: 0 | AN236: 0 | AO236: 4.643312616 | AP236: 8.202429895 | AQ236: 2.2429151
E237: Allocation to load related capex | G237: % | AJ237: =CHOOSE(m_identity,ENWL!AJ237, NPgN!AJ237, NPgY!AJ237, WMID!AJ237, EMID!AJ237, SWALES!AJ237, SWEST!AJ237, LPN!AJ237,SPN!AJ237,EPN!AJ237,SPD!AJ237,SPMW!AJ237,SSEH!AJ237,SSES!AJ237) -> 0.25 | AK237: =CHOOSE(m_identity,ENWL!AK237, NPgN!AK237, NPgY!AK237, WMID!AK237, EMID!AK237, SWALES!AK237, SWEST!AK237, LPN!AK237,SPN!AK237,EPN!AK237,SPD!AK237,SPMW!AK237,SSEH!AK237,SSES!AK237) -> 0.25 | AL237: =CHOOSE(m_identity,ENWL!AL237, NPgN!AL237, NPgY!AL237, WMID!AL237, EMID!AL237, SWALES!AL237, SWEST!AL237, LPN!AL237,SPN!AL237,EPN!AL237,SPD!AL237,SPMW!AL237,SSEH!AL237,SSES!AL237) -> 0.25 | AM237: =CHOOSE(m_identity,ENWL!AM237, NPgN!AM237, NPgY!AM237, WMID!AM237, EMID!AM237, SWALES!AM237, SWEST!AM237, LPN!AM237,SPN!AM237,EPN!AM237,SPD!AM237,SPMW!AM237,SSEH!AM237,SSES!AM237) -> 0.25 | AN237: =CHOOSE(m_identity,ENWL!AN237, NPgN!AN237, NPgY!AN237, WMID!AN237, EMID!AN237, SWALES!AN237, SWEST!AN237, LPN!AN237,SPN!AN237,EPN!AN237,SPD!AN237,SPMW!AN237,SSEH!AN237,SSES!AN237) -> 0.25 | AO237: =CHOOSE(m_identity,ENWL!AO237, NPgN!AO237, NPgY!AO237, WMID!AO237, EMID!AO237, SWALES!AO237, SWEST!AO237, LPN!AO237,SPN!AO237,EPN!AO237,SPD!AO237,SPMW!AO237,SSEH!AO237,SSES!AO237) -> 0.25 | AP237: =CHOOSE(m_identity,ENWL!AP237, NPgN!AP237, NPgY!AP237, WMID!AP237, EMID!AP237, SWALES!AP237, SWEST!AP237, LPN!AP237,SPN!AP237,EPN!AP237,SPD!AP237,SPMW!AP237,SSEH!AP237,SSES!AP237) -> 0.25 | AQ237: =CHOOSE(m_identity,ENWL!AQ237, NPgN!AQ237, NPgY!AQ237, WMID!AQ237, EMID!AQ237, SWALES!AQ237, SWEST!AQ237, LPN!AQ237,SPN!AQ237,EPN!AQ237,SPD!AQ237,SPMW!AQ237,SSEH!AQ237,SSES!AQ237) -> 0.25
E238: Allocation to non-load related capex - asset replacement | G238: % | AJ238: =CHOOSE(m_identity,ENWL!AJ238, NPgN!AJ238, NPgY!AJ238, WMID!AJ238, EMID!AJ238, SWALES!AJ238, SWEST!AJ238, LPN!AJ238,SPN!AJ238,EPN!AJ238,SPD!AJ238,SPMW!AJ238,SSEH!AJ238,SSES!AJ238) -> 0 | AK238: =CHOOSE(m_identity,ENWL!AK238, NPgN!AK238, NPgY!AK238, WMID!AK238, EMID!AK238, SWALES!AK238, SWEST!AK238, LPN!AK238,SPN!AK238,EPN!AK238,SPD!AK238,SPMW!AK238,SSEH!AK238,SSES!AK238) -> 0 | AL238: =CHOOSE(m_identity,ENWL!AL238, NPgN!AL238, NPgY!AL238, WMID!AL238, EMID!AL238, SWALES!AL238, SWEST!AL238, LPN!AL238,SPN!AL238,EPN!AL238,SPD!AL238,SPMW!AL238,SSEH!AL238,SSES!AL238) -> 0 | AM238: =CHOOSE(m_identity,ENWL!AM238, NPgN!AM238, NPgY!AM238, WMID!AM238, EMID!AM238, SWALES!AM238, SWEST!AM238, LPN!AM238,SPN!AM238,EPN!AM238,SPD!AM238,SPMW!AM238,SSEH!AM238,SSES!AM238) -> 0 | AN238: =CHOOSE(m_identity,ENWL!AN238, NPgN!AN238, NPgY!AN238, WMID!AN238, EMID!AN238, SWALES!AN238, SWEST!AN238, LPN!AN238,SPN!AN238,EPN!AN238,SPD!AN238,SPMW!AN238,SSEH!AN238,SSES!AN238) -> 0 | AO238: =CHOOSE(m_identity,ENWL!AO238, NPgN!AO238, NPgY!AO238, WMID!AO238, EMID!AO238, SWALES!AO238, SWEST!AO238, LPN!AO238,SPN!AO238,EPN!AO238,SPD!AO238,SPMW!AO238,SSEH!AO238,SSES!AO238) -> 0 | AP238: =CHOOSE(m_identity,ENWL!AP238, NPgN!AP238, NPgY!AP238, WMID!AP238, EMID!AP238, SWALES!AP238, SWEST!AP238, LPN!AP238,SPN!AP238,EPN!AP238,SPD!AP238,SPMW!AP238,SSEH!AP238,SSES!AP238) -> 0 | AQ238: =CHOOSE(m_identity,ENWL!AQ238, NPgN!AQ238, NPgY!AQ238, WMID!AQ238, EMID!AQ238, SWALES!AQ238, SWEST!AQ238, LPN!AQ238,SPN!AQ238,EPN!AQ238,SPD!AQ238,SPMW!AQ238,SSEH!AQ238,SSES!AQ238) -> 0
E239: Allocation to non-load related capex - other | G239: % | AJ239: =CHOOSE(m_identity,ENWL!AJ239, NPgN!AJ239, NPgY!AJ239, WMID!AJ239, EMID!AJ239, SWALES!AJ239, SWEST!AJ239, LPN!AJ239,SPN!AJ239,EPN!AJ239,SPD!AJ239,SPMW!AJ239,SSEH!AJ239,SSES!AJ239) -> 0.75 | AK239: =CHOOSE(m_identity,ENWL!AK239, NPgN!AK239, NPgY!AK239, WMID!AK239, EMID!AK239, SWALES!AK239, SWEST!AK239, LPN!AK239,SPN!AK239,EPN!AK239,SPD!AK239,SPMW!AK239,SSEH!AK239,SSES!AK239) -> 0.75 | AL239: =CHOOSE(m_identity,ENWL!AL239, NPgN!AL239, NPgY!AL239, WMID!AL239, EMID!AL239, SWALES!AL239, SWEST!AL239, LPN!AL239,SPN!AL239,EPN!AL239,SPD!AL239,SPMW!AL239,SSEH!AL239,SSES!AL239) -> 0.75 | AM239: =CHOOSE(m_identity,ENWL!AM239, NPgN!AM239, NPgY!AM239, WMID!AM239, EMID!AM239, SWALES!AM239, SWEST!AM239, LPN!AM239,SPN!AM239,EPN!AM239,SPD!AM239,SPMW!AM239,SSEH!AM239,SSES!AM239) -> 0.75 | AN239: =CHOOSE(m_identity,ENWL!AN239, NPgN!AN239, NPgY!AN239, WMID!AN239, EMID!AN239, SWALES!AN239, SWEST!AN239, LPN!AN239,SPN!AN239,EPN!AN239,SPD!AN239,SPMW!AN239,SSEH!AN239,SSES!AN239) -> 0.75 | AO239: =CHOOSE(m_identity,ENWL!AO239, NPgN!AO239, NPgY!AO239, WMID!AO239, EMID!AO239, SWALES!AO239, SWEST!AO239, LPN!AO239,SPN!AO239,EPN!AO239,SPD!AO239,SPMW!AO239,SSEH!AO239,SSES!AO239) -> 0.75 | AP239: =CHOOSE(m_identity,ENWL!AP239, NPgN!AP239, NPgY!AP239, WMID!AP239, EMID!AP239, SWALES!AP239, SWEST!AP239, LPN!AP239,SPN!AP239,EPN!AP239,SPD!AP239,SPMW!AP239,SSEH!AP239,SSES!AP239) -> 0.75 | AQ239: =CHOOSE(m_identity,ENWL!AQ239, NPgN!AQ239, NPgY!AQ239, WMID!AQ239, EMID!AQ239, SWALES!AQ239, SWEST!AQ239, LPN!AQ239,SPN!AQ239,EPN!AQ239,SPD!AQ239,SPMW!AQ239,SSEH!AQ239,SSES!AQ239) -> 0.75
E240: Allocation to faults | G240: % | AJ240: =CHOOSE(m_identity,ENWL!AJ240, NPgN!AJ240, NPgY!AJ240, WMID!AJ240, EMID!AJ240, SWALES!AJ240, SWEST!AJ240, LPN!AJ240,SPN!AJ240,EPN!AJ240,SPD!AJ240,SPMW!AJ240,SSEH!AJ240,SSES!AJ240) -> 0 | AK240: =CHOOSE(m_identity,ENWL!AK240, NPgN!AK240, NPgY!AK240, WMID!AK240, EMID!AK240, SWALES!AK240, SWEST!AK240, LPN!AK240,SPN!AK240,EPN!AK240,SPD!AK240,SPMW!AK240,SSEH!AK240,SSES!AK240) -> 0 | AL240: =CHOOSE(m_identity,ENWL!AL240, NPgN!AL240, NPgY!AL240, WMID!AL240, EMID!AL240, SWALES!AL240, SWEST!AL240, LPN!AL240,SPN!AL240,EPN!AL240,SPD!AL240,SPMW!AL240,SSEH!AL240,SSES!AL240) -> 0 | AM240: =CHOOSE(m_identity,ENWL!AM240, NPgN!AM240, NPgY!AM240, WMID!AM240, EMID!AM240, SWALES!AM240, SWEST!AM240, LPN!AM240,SPN!AM240,EPN!AM240,SPD!AM240,SPMW!AM240,SSEH!AM240,SSES!AM240) -> 0 | AN240: =CHOOSE(m_identity,ENWL!AN240, NPgN!AN240, NPgY!AN240, WMID!AN240, EMID!AN240, SWALES!AN240, SWEST!AN240, LPN!AN240,SPN!AN240,EPN!AN240,SPD!AN240,SPMW!AN240,SSEH!AN240,SSES!AN240) -> 0 | AO240: =CHOOSE(m_identity,ENWL!AO240, NPgN!AO240, NPgY!AO240, WMID!AO240, EMID!AO240, SWALES!AO240, SWEST!AO240, LPN!AO240,SPN!AO240,EPN!AO240,SPD!AO240,SPMW!AO240,SSEH!AO240,SSES!AO240) -> 0 | AP240: =CHOOSE(m_identity,ENWL!AP240, NPgN!AP240, NPgY!AP240, WMID!AP240, EMID!AP240, SWALES!AP240, SWEST!AP240, LPN!AP240,SPN!AP240,EPN!AP240,SPD!AP240,SPMW!AP240,SSEH!AP240,SSES!AP240) -> 0 | AQ240: =CHOOSE(m_identity,ENWL!AQ240, NPgN!AQ240, NPgY!AQ240, WMID!AQ240, EMID!AQ240, SWALES!AQ240, SWEST!AQ240, LPN!AQ240,SPN!AQ240,EPN!AQ240,SPD!AQ240,SPMW!AQ240,SSEH!AQ240,SSES!AQ240) -> 0
E241: Allocation to tree cutting | G241: % | AJ241: =CHOOSE(m_identity,ENWL!AJ241, NPgN!AJ241, NPgY!AJ241, WMID!AJ241, EMID!AJ241, SWALES!AJ241, SWEST!AJ241, LPN!AJ241,SPN!AJ241,EPN!AJ241,SPD!AJ241,SPMW!AJ241,SSEH!AJ241,SSES!AJ241) -> 0 | AK241: =CHOOSE(m_identity,ENWL!AK241, NPgN!AK241, NPgY!AK241, WMID!AK241, EMID!AK241, SWALES!AK241, SWEST!AK241, LPN!AK241,SPN!AK241,EPN!AK241,SPD!AK241,SPMW!AK241,SSEH!AK241,SSES!AK241) -> 0 | AL241: =CHOOSE(m_identity,ENWL!AL241, NPgN!AL241, NPgY!AL241, WMID!AL241, EMID!AL241, SWALES!AL241, SWEST!AL241, LPN!AL241,SPN!AL241,EPN!AL241,SPD!AL241,SPMW!AL241,SSEH!AL241,SSES!AL241) -> 0 | AM241: =CHOOSE(m_identity,ENWL!AM241, NPgN!AM241, NPgY!AM241, WMID!AM241, EMID!AM241, SWALES!AM241, SWEST!AM241, LPN!AM241,SPN!AM241,EPN!AM241,SPD!AM241,SPMW!AM241,SSEH!AM241,SSES!AM241) -> 0 | AN241: =CHOOSE(m_identity,ENWL!AN241, NPgN!AN241, NPgY!AN241, WMID!AN241, EMID!AN241, SWALES!AN241, SWEST!AN241, LPN!AN241,SPN!AN241,EPN!AN241,SPD!AN241,SPMW!AN241,SSEH!AN241,SSES!AN241) -> 0 | AO241: =CHOOSE(m_identity,ENWL!AO241, NPgN!AO241, NPgY!AO241, WMID!AO241, EMID!AO241, SWALES!AO241, SWEST!AO241, LPN!AO241,SPN!AO241,EPN!AO241,SPD!AO241,SPMW!AO241,SSEH!AO241,SSES!AO241) -> 0 | AP241: =CHOOSE(m_identity,ENWL!AP241, NPgN!AP241, NPgY!AP241, WMID!AP241, EMID!AP241, SWALES!AP241, SWEST!AP241, LPN!AP241,SPN!AP241,EPN!AP241,SPD!AP241,SPMW!AP241,SSEH!AP241,SSES!AP241) -> 0 | AQ241: =CHOOSE(m_identity,ENWL!AQ241, NPgN!AQ241, NPgY!AQ241, WMID!AQ241, EMID!AQ241, SWALES!AQ241, SWEST!AQ241, LPN!AQ241,SPN!AQ241,EPN!AQ241,SPD!AQ241,SPMW!AQ241,SSEH!AQ241,SSES!AQ241) -> 0
E242: Allocation to 100% ‘revenue pool’ expenditure | G242: % | AJ242: =CHOOSE(m_identity,ENWL!AJ242, NPgN!AJ242, NPgY!AJ242, WMID!AJ242, EMID!AJ242, SWALES!AJ242, SWEST!AJ242, LPN!AJ242,SPN!AJ242,EPN!AJ242,SPD!AJ242,SPMW!AJ242,SSEH!AJ242,SSES!AJ242) -> 0 | AK242: =CHOOSE(m_identity,ENWL!AK242, NPgN!AK242, NPgY!AK242, WMID!AK242, EMID!AK242, SWALES!AK242, SWEST!AK242, LPN!AK242,SPN!AK242,EPN!AK242,SPD!AK242,SPMW!AK242,SSEH!AK242,SSES!AK242) -> 0 | AL242: =CHOOSE(m_identity,ENWL!AL242, NPgN!AL242, NPgY!AL242, WMID!AL242, EMID!AL242, SWALES!AL242, SWEST!AL242, LPN!AL242,SPN!AL242,EPN!AL242,SPD!AL242,SPMW!AL242,SSEH!AL242,SSES!AL242) -> 0 | AM242: =CHOOSE(m_identity,ENWL!AM242, NPgN!AM242, NPgY!AM242, WMID!AM242, EMID!AM242, SWALES!AM242, SWEST!AM242, LPN!AM242,SPN!AM242,EPN!AM242,SPD!AM242,SPMW!AM242,SSEH!AM242,SSES!AM242) -> 0 | AN242: =CHOOSE(m_identity,ENWL!AN242, NPgN!AN242, NPgY!AN242, WMID!AN242, EMID!AN242, SWALES!AN242, SWEST!AN242, LPN!AN242,SPN!AN242,EPN!AN242,SPD!AN242,SPMW!AN242,SSEH!AN242,SSES!AN242) -> 0 | AO242: =CHOOSE(m_identity,ENWL!AO242, NPgN!AO242, NPgY!AO242, WMID!AO242, EMID!AO242, SWALES!AO242, SWEST!AO242, LPN!AO242,SPN!AO242,EPN!AO242,SPD!AO242,SPMW!AO242,SSEH!AO242,SSES!AO242) -> 0 | AP242: =CHOOSE(m_identity,ENWL!AP242, NPgN!AP242, NPgY!AP242, WMID!AP242, EMID!AP242, SWALES!AP242, SWEST!AP242, LPN!AP242,SPN!AP242,EPN!AP242,SPD!AP242,SPMW!AP242,SSEH!AP242,SSES!AP242) -> 0 | AQ242: =CHOOSE(m_identity,ENWL!AQ242, NPgN!AQ242, NPgY!AQ242, WMID!AQ242, EMID!AQ242, SWALES!AQ242, SWEST!AQ242, LPN!AQ242,SPN!AQ242,EPN!AQ242,SPD!AQ242,SPMW!AQ242,SSEH!AQ242,SSES!AQ242) -> 0
E243: Allocation to controllable opex | G243: % | AJ243: =CHOOSE(m_identity,ENWL!AJ243, NPgN!AJ243, NPgY!AJ243, WMID!AJ243, EMID!AJ243, SWALES!AJ243, SWEST!AJ243, LPN!AJ243,SPN!AJ243,EPN!AJ243,SPD!AJ243,SPMW!AJ243,SSEH!AJ243,SSES!AJ243) -> 0 | AK243: =CHOOSE(m_identity,ENWL!AK243, NPgN!AK243, NPgY!AK243, WMID!AK243, EMID!AK243, SWALES!AK243, SWEST!AK243, LPN!AK243,SPN!AK243,EPN!AK243,SPD!AK243,SPMW!AK243,SSEH!AK243,SSES!AK243) -> 0 | AL243: =CHOOSE(m_identity,ENWL!AL243, NPgN!AL243, NPgY!AL243, WMID!AL243, EMID!AL243, SWALES!AL243, SWEST!AL243, LPN!AL243,SPN!AL243,EPN!AL243,SPD!AL243,SPMW!AL243,SSEH!AL243,SSES!AL243) -> 0 | AM243: =CHOOSE(m_identity,ENWL!AM243, NPgN!AM243, NPgY!AM243, WMID!AM243, EMID!AM243, SWALES!AM243, SWEST!AM243, LPN!AM243,SPN!AM243,EPN!AM243,SPD!AM243,SPMW!AM243,SSEH!AM243,SSES!AM243) -> 0 | AN243: =CHOOSE(m_identity,ENWL!AN243, NPgN!AN243, NPgY!AN243, WMID!AN243, EMID!AN243, SWALES!AN243, SWEST!AN243, LPN!AN243,SPN!AN243,EPN!AN243,SPD!AN243,SPMW!AN243,SSEH!AN243,SSES!AN243) -> 0 | AO243: =CHOOSE(m_identity,ENWL!AO243, NPgN!AO243, NPgY!AO243, WMID!AO243, EMID!AO243, SWALES!AO243, SWEST!AO243, LPN!AO243,SPN!AO243,EPN!AO243,SPD!AO243,SPMW!AO243,SSEH!AO243,SSES!AO243) -> 0 | AP243: =CHOOSE(m_identity,ENWL!AP243, NPgN!AP243, NPgY!AP243, WMID!AP243, EMID!AP243, SWALES!AP243, SWEST!AP243, LPN!AP243,SPN!AP243,EPN!AP243,SPD!AP243,SPMW!AP243,SSEH!AP243,SSES!AP243) -> 0 | AQ243: =CHOOSE(m_identity,ENWL!AQ243, NPgN!AQ243, NPgY!AQ243, WMID!AQ243, EMID!AQ243, SWALES!AQ243, SWEST!AQ243, LPN!AQ243,SPN!AQ243,EPN!AQ243,SPD!AQ243,SPMW!AQ243,SSEH!AQ243,SSES!AQ243) -> 0
E245: =E34 -> Allowed Expenditure - Shetland Extension Fixed Energy Costs (SSEH) | G245: £m 12/13 prices | AJ245: =AJ34 -> 0 | AK245: =AK34 -> 0 | AL245: 0 | AM245: 0 | AN245: 0 | AO245: 0 | AP245: 0 | AQ245: 0
E246: Allocation to load related capex | G246: % | AJ246: =CHOOSE(m_identity,ENWL!AJ246, NPgN!AJ246, NPgY!AJ246, WMID!AJ246, EMID!AJ246, SWALES!AJ246, SWEST!AJ246, LPN!AJ246, SPN!AJ246,EPN!AJ246,SPD!AJ246,SPMW!AJ246,SSEH!AJ246,SSES!AJ246) -> 0 | AK246: =CHOOSE(m_identity,ENWL!AK246, NPgN!AK246, NPgY!AK246, WMID!AK246, EMID!AK246, SWALES!AK246, SWEST!AK246, LPN!AK246, SPN!AK246,EPN!AK246,SPD!AK246,SPMW!AK246,SSEH!AK246,SSES!AK246) -> 0 | AL246: =CHOOSE(m_identity,ENWL!AL246, NPgN!AL246, NPgY!AL246, WMID!AL246, EMID!AL246, SWALES!AL246, SWEST!AL246, LPN!AL246, SPN!AL246,EPN!AL246,SPD!AL246,SPMW!AL246,SSEH!AL246,SSES!AL246) -> 0 | AM246: =CHOOSE(m_identity,ENWL!AM246, NPgN!AM246, NPgY!AM246, WMID!AM246, EMID!AM246, SWALES!AM246, SWEST!AM246, LPN!AM246, SPN!AM246,EPN!AM246,SPD!AM246,SPMW!AM246,SSEH!AM246,SSES!AM246) -> 0 | AN246: =CHOOSE(m_identity,ENWL!AN246, NPgN!AN246, NPgY!AN246, WMID!AN246, EMID!AN246, SWALES!AN246, SWEST!AN246, LPN!AN246, SPN!AN246,EPN!AN246,SPD!AN246,SPMW!AN246,SSEH!AN246,SSES!AN246) -> 0 | AO246: =CHOOSE(m_identity,ENWL!AO246, NPgN!AO246, NPgY!AO246, WMID!AO246, EMID!AO246, SWALES!AO246, SWEST!AO246, LPN!AO246, SPN!AO246,EPN!AO246,SPD!AO246,SPMW!AO246,SSEH!AO246,SSES!AO246) -> 0 | AP246: =CHOOSE(m_identity,ENWL!AP246, NPgN!AP246, NPgY!AP246, WMID!AP246, EMID!AP246, SWALES!AP246, SWEST!AP246, LPN!AP246, SPN!AP246,EPN!AP246,SPD!AP246,SPMW!AP246,SSEH!AP246,SSES!AP246) -> 0 | AQ246: =CHOOSE(m_identity,ENWL!AQ246, NPgN!AQ246, NPgY!AQ246, WMID!AQ246, EMID!AQ246, SWALES!AQ246, SWEST!AQ246, LPN!AQ246, SPN!AQ246,EPN!AQ246,SPD!AQ246,SPMW!AQ246,SSEH!AQ246,SSES!AQ246) -> 0
... 206 more rows

Sheet Totex
A1: Totex
B2: =UserInterface!G17 -> ENWL
E6: Parameter | G6: Units | I6: Constant | AJ6: Annual values
E7: PCFM year ending | I7: =UserInterface!$G$10 -> 2022-03-31 | K7: 1991-03-31 | L7: 1992-03-31 | M7: 1993-03-31 | N7: 1994-03-31 | O7: 1995-03-31 | P7: 1996-03-31 | Q7: 1997-03-31 | R7: 1998-03-31 | S7: 1999-03-31 | T7: 2000-03-31 | U7: 2001-03-31 | V7: 2002-03-31 | W7: 2003-03-31 | X7: 2004-03-31 | Y7: 2005-03-31 | Z7: 2006-03-31 | AA7: 2007-03-31 | AB7: 2008-03-31 | AC7: 2009-03-31 | AD7: 2010-03-31 | AE7: 2011-03-31 | AF7: 2012-03-31 | AG7: 2013-03-31 | AH7: 2014-03-31 | AI7: 2015-03-31 | AJ7: 2016-03-31 | AK7: 2017-03-31 | AL7: 2018-03-31 | AM7: 2019-03-31 | AN7: 2020-03-31 | AO7: 2021-03-31 | AP7: 2022-03-31 | AQ7: 2023-03-31
B9: Totex
C11: Allowed totex aggregated by sub-category
C12: Note: Totex is the sum of a number of cost categories, with all totex allowances falling under one (or more) of them. They have significance in the model as each sub-category can have its own set of tax pool allocation rules.
D14: Non-variant allowances
D15: Note: These values are set at final proposals and are not updated during the price control
E17: Non-variant allowed load related capex | G17: £m 12/13 prices | AJ17: =Input!AJ100 -> 0 | AK17: =Input!AK100 -> 0 | AL17: =Input!AL100 -> 0 | AM17: =Input!AM100 -> 0 | AN17: =Input!AN100 -> 0 | AO17: =Input!AO100 -> 0 | AP17: =Input!AP100 -> 0 | AQ17: =Input!AQ100 -> 0
E18: Non-variant allowed non-load related capex - asset replacement | G18: £m 12/13 prices | AJ18: =Input!AJ101 -> 85.77219045 | AK18: =Input!AK101 -> 75.94699878 | AL18: =Input!AL101 -> 82.88506456 | AM18: =Input!AM101 -> 79.0516131 | AN18: =Input!AN101 -> 82.6725225 | AO18: =Input!AO101 -> 82.78785353 | AP18: =Input!AP101 -> 81.91919489 | AQ18: =Input!AQ101 -> 79.48363302
E19: Non-variant allowed non-load related capex - other | G19: £m 12/13 prices | AJ19: =Input!AJ102 -> 12.13674747 | AK19: =Input!AK102 -> 9.439290884 | AL19: =Input!AL102 -> 9.891892873 | AM19: =Input!AM102 -> 11.97245122 | AN19: =Input!AN102 -> 11.42103532 | AO19: =Input!AO102 -> 10.62068054 | AP19: =Input!AP102 -> 15.30347719 | AQ19: =Input!AQ102 -> 15.17057198
E20: Non-variant allowed faults | G20: £m 12/13 prices | AJ20: =Input!AJ103 -> 23.35620383 | AK20: =Input!AK103 -> 23.14425028 | AL20: =Input!AL103 -> 22.51746454 | AM20: =Input!AM103 -> 22.01074141 | AN20: =Input!AN103 -> 21.52485676 | AO20: =Input!AO103 -> 21.04768906 | AP20: =Input!AP103 -> 20.49266046 | AQ20: =Input!AQ103 -> 20.00411701
E21: Non-variant tree cutting | G21: £m 12/13 prices | AJ21: =Input!AJ104 -> 4.239102961 | AK21: =Input!AK104 -> 4.199807501 | AL21: =Input!AL104 -> 4.119243101 | AM21: =Input!AM104 -> 4.040618031 | AN21: =Input!AN104 -> 3.965483175 | AO21: =Input!AO104 -> 3.886017086 | AP21: =Input!AP104 -> 3.799744553 | AQ21: =Input!AQ104 -> 3.723705901
E22: Non-variant allowed 100% ‘revenue pool’ expenditure | G22: £m 12/13 prices | AJ22: =Input!AJ105 -> 15.34272133 | AK22: =Input!AK105 -> 14.43769286 | AL22: =Input!AL105 -> 14.62453063 | AM22: =Input!AM105 -> 14.34531921 | AN22: =Input!AN105 -> 14.4103222 | AO22: =Input!AO105 -> 14.27713102 | AP22: =Input!AP105 -> 14.19258305 | AQ22: =Input!AQ105 -> 13.84470767
E23: Non-variant allowed controllable opex | G23: £m 12/13 prices | AJ23: =Input!AJ106 -> 79.31556303 | AK23: =Input!AK106 -> 76.20906353 | AL23: =Input!AL106 -> 74.8633498 | AM23: =Input!AM106 -> 74.87488938 | AN23: =Input!AN106 -> 73.46748287 | AO23: =Input!AO106 -> 74.40376194 | AP23: =Input!AP106 -> 73.54243941 | AQ23: =Input!AQ106 -> 71.87995138
D25: Variant
D26: Note: Licence conditions may allow for non-baseline allowances to be granted. These are added to the baseline to generate the allowed sub-categories and thereby the overall allowed totex.
E28: Variant allowed load related capex | G28: =Input!G272 -> £m 12/13 prices | AJ28: =Input!AJ272 -> 14.0137188 | AK28: =Input!AK272 -> 17.56598081 | AL28: =Input!AL272 -> 11.07842409 | AM28: =Input!AM272 -> 14.54515941 | AN28: =Input!AN272 -> 13.69007274 | AO28: =Input!AO272 -> 16.10672922 | AP28: =Input!AP272 -> 22.80041149 | AQ28: =Input!AQ272 -> 18.55656776
E29: Variant allowed non-load related capex - asset replacement | G29: =Input!G273 -> £m 12/13 prices | AJ29: =Input!AJ273 -> 0.2669635149 | AK29: =Input!AK273 -> 0.4415193059 | AL29: =Input!AL273 -> 0.6770267599 | AM29: =Input!AM273 -> 0.8437393204 | AN29: =Input!AN273 -> 0.8336684777 | AO29: =Input!AO273 -> 0.8860845972 | AP29: =Input!AP273 -> 0.8455757553 | AQ29: =Input!AQ273 -> 0.8025696828
E30: Variant allowed non-load related capex - other | G30: =Input!G274 -> £m 12/13 prices | AJ30: =Input!AJ274 -> 0.9117194792 | AK30: =Input!AK274 -> 1.108042513 | AL30: =Input!AL274 -> 1.586169412 | AM30: =Input!AM274 -> 1.126725078 | AN30: =Input!AN274 -> 1.059891818 | AO30: =Input!AO274 -> 3.482484462 | AP30: =Input!AP274 -> 6.151822421 | AQ30: =Input!AQ274 -> 1.682186325
E31: Variant allowed faults | G31: =Input!G275 -> £m 12/13 prices | AJ31: =Input!AJ275 -> 0.9491189068 | AK31: =Input!AK275 -> 0.9127019246 | AL31: =Input!AL275 -> 1.166433378 | AM31: =Input!AM275 -> 1.252297702 | AN31: =Input!AN275 -> 1.062304871 | AO31: =Input!AO275 -> 1.128361562 | AP31: =Input!AP275 -> 1.079056613 | AQ31: =Input!AQ275 -> 1.02631437
E32: Variant allowed tree cutting | G32: =Input!G276 -> £m 12/13 prices | AJ32: =Input!AJ276 -> 0 | AK32: =Input!AK276 -> 0 | AL32: =Input!AL276 -> 0 | AM32: =Input!AM276 -> 0 | AN32: =Input!AN276 -> 0 | AO32: =Input!AO276 -> 0 | AP32: =Input!AP276 -> 0 | AQ32: =Input!AQ276 -> 0
E33: Variant allowed 100% ‘revenue pool’ expenditure | G33: =Input!G277 -> £m 12/13 prices | AJ33: =Input!AJ277 -> 0.2048129866 | AK33: =Input!AK277 -> 0.2748098651 | AL33: =Input!AL277 -> 0.2025444218 | AM33: =Input!AM277 -> 0.235540016 | AN33: =Input!AN277 -> 0.2544278465 | AO33: =Input!AO277 -> 0.1691646699 | AP33: =Input!AP277 -> 0.2179804338 | AQ33: =Input!AQ277 -> 0.190801713
E34: Variant allowed controllable opex | G34: =Input!G278 -> £m 12/13 prices | AJ34: =Input!AJ278 -> 0.8653621428 | AK34: =Input!AK278 -> 3.190928925 | AL34: =Input!AL278 -> 5.287709915 | AM34: =Input!AM278 -> 6.936037963 | AN34: =Input!AN278 -> 7.090275934 | AO34: =Input!AO278 -> 0.6196167226 | AP34: =Input!AP278 -> 0.5866608689 | AQ34: =Input!AQ278 -> 0.5523461429
D36: Allowance
D37: Note: "Allowed totex" is exported to be used in the TIM calculation. The allowed totex sub-categories are used below to create forecast actuals for the tax calculation and the TIM calculation when actuals are not yet available.
E39: Allowed load related capex | G39: £m 12/13 prices | AJ39: =AJ17 + AJ28 -> 14.0137188 | AK39: 17.56598081 | AL39: 11.07842409 | AM39: 14.54515941 | AN39: 13.69007274 | AO39: 16.10672922 | AP39: 22.80041149 | AQ39: 18.55656776
E40: Allowed non-load related capex - asset replacement | G40: £m 12/13 prices | AJ40: 86.03915397 | AK40: 76.38851809 | AL40: 83.56209132 | AM40: 79.89535242 | AN40: 83.50619098 | AO40: 83.67393813 | AP40: 82.76477064 | AQ40: 80.2862027
E41: Allowed non-load related capex - other | G41: £m 12/13 prices | AJ41: 13.04846695 | AK41: 10.5473334 | AL41: 11.47806228 | AM41: 13.0991763 | AN41: 12.48092713 | AO41: 14.103165 | AP41: 21.45529961 | AQ41: 16.8527583
E42: Allowed faults | G42: £m 12/13 prices | AJ42: 24.30532273 | AK42: 24.0569522 | AL42: 23.68389792 | AM42: 23.26303912 | AN42: 22.58716163 | AO42: 22.17605062 | AP42: 21.57171707 | AQ42: 21.03043138
E43: Allowed tree cutting | G43: £m 12/13 prices | AJ43: 4.239102961 | AK43: 4.199807501 | AL43: 4.119243101 | AM43: 4.040618031 | AN43: 3.965483175 | AO43: 3.886017086 | AP43: 3.799744553 | AQ43: 3.723705901
E44: Allowed 100% ‘revenue pool’ expenditure | G44: £m 12/13 prices | AJ44: 15.54753432 | AK44: 14.71250272 | AL44: 14.82707505 | AM44: 14.58085922 | AN44: 14.66475005 | AO44: 14.44629569 | AP44: 14.41056349 | AQ44: 14.03550938
E45: Allowed controllable opex | G45: £m 12/13 prices | AJ45: 80.18092517 | AK45: 79.39999245 | AL45: 80.15105971 | AM45: 81.81092734 | AN45: 80.55775881 | AO45: 75.02337866 | AP45: 74.12910028 | AQ45: 72.43229752
E46: Allowed totex | G46: £m 12/13 prices | AJ46: =SUM(AJ39:AJ45) -> 237.3742249 | AK46: 226.8710872 | AL46: 228.8998535 | AM46: 231.2351318 | AN46: 231.4523445 | AO46: 229.4155744 | AP46: 240.9316071 | AQ46: 226.917473
C48: Actual totex
D50: Source of actuals
D51: Note: The model assumes that there is a time lag from year t until actual expenditure data becomes available for the model. After the lag, actual expenditure inputs are used. Up to that point the model generates a forecast actual expenditure.
D52: When required in the model, forecasts assume that actuals are equal to their corresponding allowance.
D53: In a year where actual totex is assumed to be available, values must be inputted to the model as it will not generate a forecast and the empty input cell will be read as an actual spend of zero.
E55: Years from t until normal reporting of actual costs | G55: years | I55: =Input!I67 -> 2
E56: Input actuals used | G56: text | AJ56: =YEAR($I$7) >= YEAR(AJ$7) + $I55 -> TRUE | AK56: TRUE | AL56: TRUE | AM56: TRUE | AN56: TRUE | AO56: FALSE | AP56: FALSE | AQ56: FALSE
E57: Forecast actuals generated from allowances | G57: text | AJ57: =YEAR($I$7) < YEAR(AJ$7) + $I55 -> FALSE | AK57: FALSE | AL57: FALSE | AM57: FALSE | AN57: FALSE | AO57: TRUE | AP57: TRUE | AQ57: TRUE
D59: Actual totex from cost reporting processes and final proposals
E61: Actual load related capex | G61: £m 12/13 prices | AJ61: =IF(AJ$56, Input!AJ282, 0) -> 9.827272069 | AK61: =IF(AK$56, Input!AK282, 0) -> 2.469648331 | AL61: =IF(AL$56, Input!AL282, 0) -> 3.371187014 | AM61: =IF(AM$56, Input!AM282, 0) -> 6.18007277 | AN61: =IF(AN$56, Input!AN282, 0) -> 11.57751037 | AO61: =IF(AO$56, Input!AO282, 0) -> 0 | AP61: =IF(AP$56, Input!AP282, 0) -> 0 | AQ61: =IF(AQ$56, Input!AQ282, 0) -> 0
E62: Actual non-load related capex - asset replacement | G62: £m 12/13 prices | AJ62: =IF(AJ$56, Input!AJ283, 0) -> 71.54371488 | AK62: =IF(AK$56, Input!AK283, 0) -> 70.76111894 | AL62: =IF(AL$56, Input!AL283, 0) -> 78.16435367 | AM62: =IF(AM$56, Input!AM283, 0) -> 75.78148886 | AN62: =IF(AN$56, Input!AN283, 0) -> 57.78287818 | AO62: =IF(AO$56, Input!AO283, 0) -> 0 | AP62: =IF(AP$56, Input!AP283, 0) -> 0 | AQ62: =IF(AQ$56, Input!AQ283, 0) -> 0
E63: Actual non-load related capex - other | G63: £m 12/13 prices | AJ63: =IF(AJ$56, Input!AJ284, 0) -> 23.8067907 | AK63: =IF(AK$56, Input!AK284, 0) -> 17.79240157 | AL63: =IF(AL$56, Input!AL284, 0) -> 18.38457565 | AM63: =IF(AM$56, Input!AM284, 0) -> 19.78615198 | AN63: =IF(AN$56, Input!AN284, 0) -> 14.7731476 | AO63: =IF(AO$56, Input!AO284, 0) -> 0 | AP63: =IF(AP$56, Input!AP284, 0) -> 0 | AQ63: =IF(AQ$56, Input!AQ284, 0) -> 0
E64: Actual faults | G64: £m 12/13 prices | AJ64: =IF(AJ$56, Input!AJ285, 0) -> 35.55022541 | AK64: =IF(AK$56, Input!AK285, 0) -> 26.21047371 | AL64: =IF(AL$56, Input!AL285, 0) -> 26.10091088 | AM64: =IF(AM$56, Input!AM285, 0) -> 27.95571293 | AN64: =IF(AN$56, Input!AN285, 0) -> 25.1759602 | AO64: =IF(AO$56, Input!AO285, 0) -> 0 | AP64: =IF(AP$56, Input!AP285, 0) -> 0 | AQ64: =IF(AQ$56, Input!AQ285, 0) -> 0
E65: Actual tree cutting | G65: £m 12/13 prices | AJ65: =IF(AJ$56, Input!AJ286, 0) -> 2.875388662 | AK65: =IF(AK$56, Input!AK286, 0) -> 3.252440486 | AL65: =IF(AL$56, Input!AL286, 0) -> 3.553006632 | AM65: =IF(AM$56, Input!AM286, 0) -> 3.178548136 | AN65: =IF(AN$56, Input!AN286, 0) -> 3.873357299 | AO65: =IF(AO$56, Input!AO286, 0) -> 0 | AP65: =IF(AP$56, Input!AP286, 0) -> 0 | AQ65: =IF(AQ$56, Input!AQ286, 0) -> 0
E66: Actual 100% ‘revenue pool’ expenditure | G66: £m 12/13 prices | AJ66: =IF(AJ$56, Input!AJ287, 0) -> 12.0870516 | AK66: =IF(AK$56, Input!AK287, 0) -> 11.73888674 | AL66: =IF(AL$56, Input!AL287, 0) -> 13.17658777 | AM66: =IF(AM$56, Input!AM287, 0) -> 13.18740029 | AN66: =IF(AN$56, Input!AN287, 0) -> 13.6913389 | AO66: =IF(AO$56, Input!AO287, 0) -> 0 | AP66: =IF(AP$56, Input!AP287, 0) -> 0 | AQ66: =IF(AQ$56, Input!AQ287, 0) -> 0
E67: Actual controllable opex | G67: £m 12/13 prices | AJ67: =IF(AJ$56, Input!AJ288, 0) -> 74.82531566 | AK67: =IF(AK$56, Input!AK288, 0) -> 63.1593872 | AL67: =IF(AL$56, Input!AL288, 0) -> 83.86704784 | AM67: =IF(AM$56, Input!AM288, 0) -> 86.60877338 | AN67: =IF(AN$56, Input!AN288, 0) -> 85.80778515 | AO67: =IF(AO$56, Input!AO288, 0) -> 0 | AP67: =IF(AP$56, Input!AP288, 0) -> 0 | AQ67: =IF(AQ$56, Input!AQ288, 0) -> 0
D70: Forecast totex from new allowances
E72: Forecast actual load related capex | G72: £m 12/13 prices | AJ72: =IF(AJ$57, AJ39, 0) -> 0 | AK72: 0 | AL72: 0 | AM72: 0 | AN72: 0 | AO72: 16.10672922 | AP72: 22.80041149 | AQ72: 18.55656776
E73: Forecast actual non-load related capex - asset replacement | G73: £m 12/13 prices | AJ73: 0 | AK73: 0 | AL73: 0 | AM73: 0 | AN73: 0 | AO73: 83.67393813 | AP73: 82.76477064 | AQ73: 80.2862027
E74: Forecast actual non-load related capex - other | G74: £m 12/13 prices | AJ74: 0 | AK74: 0 | AL74: 0 | AM74: 0 | AN74: 0 | AO74: 14.103165 | AP74: 21.45529961 | AQ74: 16.8527583
E75: Forecast actual faults | G75: £m 12/13 prices | AJ75: 0 | AK75: 0 | AL75: 0 | AM75: 0 | AN75: 0 | AO75: 22.17605062 | AP75: 21.57171707 | AQ75: 21.03043138
E76: Forecast actual tree cutting | G76: £m 12/13 prices | AJ76: =IF(AJ$57, AJ43, 0) -> 0 | AK76: =IF(AK$57, AK43, 0) -> 0 | AL76: 0 | AM76: 0 | AN76: 0 | AO76: 3.886017086 | AP76: 3.799744553 | AQ76: 3.723705901
E77: Forecast actual 100% ‘revenue pool’ expenditure | G77: £m 12/13 prices | AJ77: =IF(AJ$57, AJ44, 0) -> 0 | AK77: =IF(AK$57, AK44, 0) -> 0 | AL77: 0 | AM77: 0 | AN77: 0 | AO77: 14.44629569 | AP77: 14.41056349 | AQ77: 14.03550938
E78: Forecast actual controllable opex | G78: £m 12/13 prices | AJ78: =IF(AJ$57, AJ45, 0) -> 0 | AK78: 0 | AL78: 0 | AM78: 0 | AN78: 0 | AO78: 75.02337866 | AP78: 74.12910028 | AQ78: 72.43229752
D80: Totex applied
D81: Note: Actuals are exported both to identify performance against the allowance and to generate writing down allowances used in the tax calculation.
E83: Actual load related capex | G83: £m 12/13 prices | AJ83: =AJ61 + AJ72 -> 9.827272069 | AK83: 2.469648331 | AL83: 3.371187014 | AM83: 6.18007277 | AN83: 11.57751037 | AO83: 16.10672922 | AP83: 22.80041149 | AQ83: 18.55656776
E84: Actual non-load related capex - asset replacement | G84: £m 12/13 prices | AJ84: 71.54371488 | AK84: 70.76111894 | AL84: 78.16435367 | AM84: 75.78148886 | AN84: 57.78287818 | AO84: 83.67393813 | AP84: 82.76477064 | AQ84: 80.2862027
E85: Actual non-load related capex - other | G85: £m 12/13 prices | AJ85: 23.8067907 | AK85: 17.79240157 | AL85: 18.38457565 | AM85: 19.78615198 | AN85: 14.7731476 | AO85: 14.103165 | AP85: 21.45529961 | AQ85: 16.8527583
E86: Actual faults | G86: £m 12/13 prices | AJ86: 35.55022541 | AK86: 26.21047371 | AL86: 26.10091088 | AM86: 27.95571293 | AN86: 25.1759602 | AO86: 22.17605062 | AP86: 21.57171707 | AQ86: 21.03043138
E87: Actual tree cutting | G87: £m 12/13 prices | AJ87: 2.875388662 | AK87: 3.252440486 | AL87: 3.553006632 | AM87: 3.178548136 | AN87: 3.873357299 | AO87: 3.886017086 | AP87: 3.799744553 | AQ87: 3.723705901
E88: Actual 100% ‘revenue pool’ expenditure | G88: £m 12/13 prices | AJ88: 12.0870516 | AK88: 11.73888674 | AL88: 13.17658777 | AM88: 13.18740029 | AN88: 13.6913389 | AO88: 14.44629569 | AP88: 14.41056349 | AQ88: 14.03550938
E89: Actual controllable opex | G89: £m 12/13 prices | AJ89: 74.82531566 | AK89: 63.1593872 | AL89: 83.86704784 | AM89: 86.60877338 | AN89: 85.80778515 | AO89: 75.02337866 | AP89: 74.12910028 | AQ89: 72.43229752
E90: Actual totex | G90: £m 12/13 prices | AJ90: =SUM(AJ83:AJ89) -> 230.515759 | AK90: 195.384357 | AL90: 226.6176695 | AM90: 232.6781483 | AN90: 212.6819777 | AO90: 229.4155744 | AP90: 240.9316071 | AQ90: 226.917473
B92: End of sheet

Sheet TIM
A1: Totex Incentive Mechanism (TIM)
B2: =UserInterface!G17 -> ENWL
E6: Parameter | G6: Units | I6: Constant | AJ6: Annual values
E7: PCFM year ending | I7: =UserInterface!$G$10 -> 2022-03-31 | K7: 1991-03-31 | L7: 1992-03-31 | M7: 1993-03-31 | N7: 1994-03-31 | O7: 1995-03-31 | P7: 1996-03-31 | Q7: 1997-03-31 | R7: 1998-03-31 | S7: 1999-03-31 | T7: 2000-03-31 | U7: 2001-03-31 | V7: 2002-03-31 | W7: 2003-03-31 | X7: 2004-03-31 | Y7: 2005-03-31 | Z7: 2006-03-31 | AA7: 2007-03-31 | AB7: 2008-03-31 | AC7: 2009-03-31 | AD7: 2010-03-31 | AE7: 2011-03-31 | AF7: 2012-03-31 | AG7: 2013-03-31 | AH7: 2014-03-31 | AI7: 2015-03-31 | AJ7: 2016-03-31 | AK7: 2017-03-31 | AL7: 2018-03-31 | AM7: 2019-03-31 | AN7: 2020-03-31 | AO7: 2021-03-31 | AP7: 2022-03-31 | AQ7: 2023-03-31
B9: Efficiency incentive
C11: Incentive strength
E13: Incentive strength | G13: % | I13: =Input!I73 -> 0.5811466619
C15: Additional income
E17: Ofgem view | G17: % | I17: =Input!I75 -> 0.75
E18: Operator view | G18: % | I18: =Input!I76 -> 0.25
E20: Ofgem view of group price control totex | G20: £m 12/13 prices | I20: =Input!I81 -> 1807.942609
E21: Group Finance Totex Adjustments (DRS8/Disposals) | G21: £m 12/13 prices | I21: =Input!$I$522 -> -10.1538373
E22: Adjusted Ofgem View of Group Totex | G22: £m 12/13 prices | I22: =SUM(I20:I21) -> 1797.788771
E24: Additional income % | G24: % | I24: =Input!I71 -> 0.00657593563
E26: Additional income at group level | G26: £m 12/13 prices | I26: =I22*I24 -> 11.82214324
E28: Forecast licensee totex | G28: £m 12/13 prices | I28: =Input!I78*Input!$I$75+Input!I79*Input!$I$76 -> 1824.985485
E29: Forecast group totex | G29: £m 12/13 prices | I29: =Input!I81*I17 + Input!I82*I18 -> 1824.985485
E30: Percentage of group totex at licensee level | G30: % | I30: =I28 / I29 -> 1
B32: Efficiency incentive
C34: Post-TIM overspend (underspend)
C35: Note: Totex overspend (underspend) is identified and subject to the "efficiency incentive rate."
D37: Totex
E39: Actual totex | G39: £m 12/13 prices | AJ39: =Totex!AJ90 -> 230.515759 | AK39: =Totex!AK90 -> 195.384357 | AL39: =Totex!AL90 -> 226.6176695 | AM39: =Totex!AM90 -> 232.6781483 | AN39: =Totex!AN90 -> 212.6819777 | AO39: =Totex!AO90 -> 229.4155744 | AP39: =Totex!AP90 -> 240.9316071 | AQ39: =Totex!AQ90 -> 226.917473
E40: Less allowed totex | G40: £m 12/13 prices | AJ40: =-Totex!AJ46 -> -237.3742249 | AK40: =-Totex!AK46 -> -226.8710872 | AL40: =-Totex!AL46 -> -228.8998535 | AM40: =-Totex!AM46 -> -231.2351318 | AN40: =-Totex!AN46 -> -231.4523445 | AO40: =-Totex!AO46 -> -229.4155744 | AP40: =-Totex!AP46 -> -240.9316071 | AQ40: =-Totex!AQ46 -> -226.917473
E41: Pre-TIM totex overspend (underspend) | G41: £m 12/13 prices | AJ41: =SUM(AJ39:AJ40) -> -6.858465924 | AK41: -31.48673021 | AL41: -2.282184027 | AM41: 1.4430165 | AN41: -18.77036682 | AO41: 0 | AP41: 0 | AQ41: 0
E43: Funding Adjustment Rate (often referred to as 'sharing factor') | G43: % | AJ43: =(1 - $I$13) -> 0.4188533381 | AK43: =(1 - $I$13) -> 0.4188533381 | AL43: 0.4188533381 | AM43: 0.4188533381 | AN43: 0.4188533381 | AO43: 0.4188533381 | AP43: 0.4188533381 | AQ43: 0.4188533381
E45: Post-TIM totex overspend (underspend) | G45: £m 12/13 prices | AJ45: =AJ$43 * AJ41 -> -2.872691347 | AK45: =AK$43 * AK41 -> -13.18832205 | AL45: =AL$43 * AL41 -> -0.9559003981 | AM45: 0.6044122781 | AN45: -7.862030799 | AO45: 0 | AP45: 0 | AQ45: 0
C47: Post-TIM totex
C48: Note: "Post-TIM overspend (underspend)" is added to the allowed totex value to give the Post-TIM totex allowance to be split into fast and slow money.
D50: Totex
E52: Allowed totex | G52: £m 12/13 prices | AJ52: =-AJ40 -> 237.3742249 | AK52: =-AK40 -> 226.8710872 | AL52: 228.8998535 | AM52: 231.2351318 | AN52: 231.4523445 | AO52: 229.4155744 | AP52: 240.9316071 | AQ52: 226.917473
E53: Post-TIM totex overspend (underspend) | G53: £m 12/13 prices | AJ53: =AJ45 -> -2.872691347 | AK53: -13.18832205 | AL53: -0.9559003981 | AM53: 0.6044122781 | AN53: -7.862030799 | AO53: 0 | AP53: 0 | AQ53: 0
E54: Post-TIM totex | G54: £m 12/13 prices | AJ54: =SUM(AJ52:AJ53) -> 234.5015336 | AK54: 213.6827651 | AL54: 227.9439531 | AM54: 231.8395441 | AN54: 223.5903137 | AO54: 229.4155744 | AP54: 240.9316071 | AQ54: 226.917473
B56: Capitalisation
B57: Note: Post-TIM totex are allocated into "fast" and "slow" elements based on a pre-set percentage split:
B58: - "fast money " is exported to the "Revenue" sheet where it is included as an element of "recalculated base revenue;" and
B59: - "slow money " is exported to the "Depn" sheet where it is added to RAV. Slow money is recovered over the life of the RAV through regulatory depreciation and return allowances.
C61: Separate capitalisation
D63: Totex
E65: Post-TIM totex | G65: £m 12/13 prices | AJ65: =AJ54 -> 234.5015336 | AK65: 213.6827651 | AL65: 227.9439531 | AM65: 231.8395441 | AN65: 223.5903137 | AO65: 229.4155744 | AP65: 240.9316071 | AQ65: 226.917473
E66: Capitalised share of totex | G66: % | AJ66: =Input!AJ69 -> 0.68 | AK66: =Input!AK69 -> 0.68 | AL66: =Input!AL69 -> 0.68 | AM66: =Input!AM69 -> 0.68 | AN66: =Input!AN69 -> 0.68 | AO66: =Input!AO69 -> 0.68 | AP66: =Input!AP69 -> 0.68 | AQ66: =Input!AQ69 -> 0.68
E67: Totex fast pot expenditure | G67: £m 12/13 prices | AJ67: =AJ65-AJ68 -> 75.04049074 | AK67: 68.37848484 | AL67: 72.94206499 | AM67: 74.18865412 | AN67: 71.54890039 | AO67: 73.41298381 | AP67: 77.09811428 | AQ67: 72.61359135
E68: Totex slow pot expenditure | G68: £m 12/13 prices | AJ68: =AJ65 * AJ66 -> 159.4610428 | AK68: =AK65 * AK66 -> 145.3042803 | AL68: 155.0018881 | AM68: 157.65089 | AN68: 152.0414133 | AO68: 156.0025906 | AP68: 163.8334928 | AQ68: 154.3038816
C70: Totex
E72: Fast pot expenditure | G72: £m 12/13 prices | AJ72: =AJ67 -> 75.04049074 | AK72: =AK67 -> 68.37848484 | AL72: 72.94206499 | AM72: 74.18865412 | AN72: 71.54890039 | AO72: 73.41298381 | AP72: 77.09811428 | AQ72: 72.61359135
E74: Slow pot expenditure | G74: £m 12/13 prices | AJ74: =AJ68 -> 159.4610428 | AK74: =AK68 -> 145.3042803 | AL74: 155.0018881 | AM74: 157.65089 | AN74: 152.0414133 | AO74: 156.0025906 | AP74: 163.8334928 | AQ74: 154.3038816
B76: Additional income
B77: Note: The additional income lump sum is recovered across the price control and is matched to the profile of allowed totex set at final proposals.
E79: Additional income | G79: £m 12/13 prices | I79: =I26*I30 -> 11.82214324
E81: Original allowed totex (set at final proposals) | G81: £m 12/13 prices | AJ81: =Input!AJ520 -> 238.1958033 | AK81: =Input!AK520 -> 225.327009 | AL81: =Input!AL520 -> 224.6456767 | AM81: =Input!AM520 -> 224.9150087 | AN81: =Input!AN520 -> 224.4182317 | AO81: =Input!AO520 -> 221.535376 | AP81: =Input!AP520 -> 228.7320703 | AQ81: =Input!AQ520 -> 220.1734329
E82: Total allowed totex in price control (set at final proposals) | G82: £m 12/13 prices | I82: =SUM($AJ81:$AQ81) -> 1807.942609
E84: Share of additional income allowed in year | G84: % | AJ84: =AJ81 / $I82 -> 0.1317496486 | AK84: 0.1246317266 | AL84: 0.1242548716 | AM84: 0.1244038432 | AN84: 0.1241290684 | AO84: 0.1225345179 | AP84: 0.1265151168 | AQ84: 0.1217812069
E86: Additional income | G86: £m 12/13 prices | AJ86: =($I79 * AJ84) -> 1.557563216 | AK86: =($I79 * AK84) -> 1.473414124 | AL86: 1.46895889 | AM86: 1.470720053 | AN86: 1.467471626 | AO86: 1.448620622 | AP86: 1.495679833 | AQ86: 1.439714872
B88: End of sheet

Sheet DARTs
A1: Direct Allowed Revenue Terms (DARTs)
B2: =UserInterface!G17 -> ENWL
E6: Parameter | G6: Units | I6: Constant | AJ6: Annual values
E7: PCFM year ending | I7: =UserInterface!$G$10 -> 2022-03-31 | K7: 1991-03-31 | L7: 1992-03-31 | M7: 1993-03-31 | N7: 1994-03-31 | O7: 1995-03-31 | P7: 1996-03-31 | Q7: 1997-03-31 | R7: 1998-03-31 | S7: 1999-03-31 | T7: 2000-03-31 | U7: 2001-03-31 | V7: 2002-03-31 | W7: 2003-03-31 | X7: 2004-03-31 | Y7: 2005-03-31 | Z7: 2006-03-31 | AA7: 2007-03-31 | AB7: 2008-03-31 | AC7: 2009-03-31 | AD7: 2010-03-31 | AE7: 2011-03-31 | AF7: 2012-03-31 | AG7: 2013-03-31 | AH7: 2014-03-31 | AI7: 2015-03-31 | AJ7: 2016-03-31 | AK7: 2017-03-31 | AL7: 2018-03-31 | AM7: 2019-03-31 | AN7: 2020-03-31 | AO7: 2021-03-31 | AP7: 2022-03-31 | AQ7: 2023-03-31
B9: Direct Allowed Revenue Terms (DARTs)
